Workbook

Sheet Cover
C9: AusNet Services
C10: Business Case Evaluation
C11: Summer and winter readiness

Sheet 1_KMA->
C6: Key Modelling Assumptions
C7: Section 1.
C9: =Cover!$C$9 -> AusNet Services
C10: =Cover!$C$10 -> Business Case Evaluation
C11: =Cover!$C$11 -> Summer and winter readiness

Sheet 1_KMA
B1: Key Modelling Assumptions | I1: Regulatory Period Indicator | J1: ='1_KMA'!J30 -> 0 | K1: ='1_KMA'!K30 -> 0 | L1: ='1_KMA'!L30 -> 0 | M1: ='1_KMA'!M30 -> 1 | N1: ='1_KMA'!N30 -> 1 | O1: ='1_KMA'!O30 -> 1 | P1: ='1_KMA'!P30 -> 1 | Q1: ='1_KMA'!Q30 -> 1 | R1: ='1_KMA'!R30 -> 0 | S1: ='1_KMA'!S30 -> 0 | T1: ='1_KMA'!T30 -> 0 | U1: ='1_KMA'!U30 -> 0 | V1: ='1_KMA'!V30 -> 0 | W1: ='1_KMA'!W30 -> 0 | X1: ='1_KMA'!X30 -> 0 | Y1: ='1_KMA'!Y30 -> 0 | Z1: ='1_KMA'!Z30 -> 0 | AA1: ='1_KMA'!AA30 -> 0 | AB1: ='1_KMA'!AB30 -> 0 | AC1: ='1_KMA'!AC30 -> 0 | AD1: ='1_KMA'!AD30 -> 0 | AE1: ='1_KMA'!AE30 -> 0 | AF1: ='1_KMA'!AF30 -> 0 | AG1: ='1_KMA'!AG30 -> 0 | AH1: ='1_KMA'!AH30 -> 0 | AI1: ='1_KMA'!AI30 -> 0 | AJ1: ='1_KMA'!AJ30 -> 0 | AK1: ='1_KMA'!AK30 -> 0 | AL1: ='1_KMA'!AL30 -> 0 | AM1: ='1_KMA'!AM30 -> 0 | AN1: ='1_KMA'!AN30 -> 0 | AO1: ='1_KMA'!AO30 -> 0 | AP1: ='1_KMA'!AP30 -> 0 | AQ1: ='1_KMA'!AQ30 -> 0 | AR1: ='1_KMA'!AR30 -> 0 | AS1: ='1_KMA'!AS30 -> 0 | AT1: ='1_KMA'!AT30 -> 0 | AU1: ='1_KMA'!AU30 -> 0 | AV1: ='1_KMA'!AV30 -> 0 | AW1: ='1_KMA'!AW30 -> 0 | AX1: ='1_KMA'!AX30 -> 0 | AY1: ='1_KMA'!AY30 -> 0 | AZ1: ='1_KMA'!AZ30 -> 0 | BA1: ='1_KMA'!BA30 -> 0 | BB1: ='1_KMA'!BB30 -> 0 | BC1: ='1_KMA'!BC30 -> 0 | BD1: ='1_KMA'!BD30 -> 0 | BE1: ='1_KMA'!BE30 -> 0 | BF1: ='1_KMA'!BF30 -> 0 | BG1: ='1_KMA'!BG30 -> 0
B2: =Cover!$C$9 -> AusNet Services | I2: Period Start Date | J2: ='1_KMA'!J31 -> 2023-07-01 | K2: ='1_KMA'!K31 -> 2024-07-01 | L2: ='1_KMA'!L31 -> 2025-07-01 | M2: ='1_KMA'!M31 -> 2026-07-01 | N2: ='1_KMA'!N31 -> 2027-07-01 | O2: ='1_KMA'!O31 -> 2028-07-01 | P2: ='1_KMA'!P31 -> 2029-07-01 | Q2: ='1_KMA'!Q31 -> 2030-07-01 | R2: ='1_KMA'!R31 -> 2031-07-01 | S2: ='1_KMA'!S31 -> 2032-07-01 | T2: ='1_KMA'!T31 -> 2033-07-01 | U2: ='1_KMA'!U31 -> 2034-07-01 | V2: ='1_KMA'!V31 -> 2035-07-01 | W2: ='1_KMA'!W31 -> 2036-07-01 | X2: ='1_KMA'!X31 -> 2037-07-01 | Y2: ='1_KMA'!Y31 -> 2038-07-01 | Z2: ='1_KMA'!Z31 -> 2039-07-01 | AA2: ='1_KMA'!AA31 -> 2040-07-01 | AB2: ='1_KMA'!AB31 -> 2041-07-01 | AC2: ='1_KMA'!AC31 -> 2042-07-01 | AD2: ='1_KMA'!AD31 -> 2043-07-01 | AE2: ='1_KMA'!AE31 -> 2044-07-01 | AF2: ='1_KMA'!AF31 -> 2045-07-01 | AG2: ='1_KMA'!AG31 -> 2046-07-01 | AH2: ='1_KMA'!AH31 -> 2047-07-01 | AI2: ='1_KMA'!AI31 -> 2048-07-01 | AJ2: ='1_KMA'!AJ31 -> 2049-07-01 | AK2: ='1_KMA'!AK31 -> 2050-07-01 | AL2: ='1_KMA'!AL31 -> 2051-07-01 | AM2: ='1_KMA'!AM31 -> 2052-07-01 | AN2: ='1_KMA'!AN31 -> 2053-07-01 | AO2: ='1_KMA'!AO31 -> 2054-07-01 | AP2: ='1_KMA'!AP31 -> 2055-07-01 | AQ2: ='1_KMA'!AQ31 -> 2056-07-01 | AR2: ='1_KMA'!AR31 -> 2057-07-01 | AS2: ='1_KMA'!AS31 -> 2058-07-01 | AT2: ='1_KMA'!AT31 -> 2059-07-01 | AU2: ='1_KMA'!AU31 -> 2060-07-01 | AV2: ='1_KMA'!AV31 -> 2061-07-01 | AW2: ='1_KMA'!AW31 -> 2062-07-01 | AX2: ='1_KMA'!AX31 -> 2063-07-01 | AY2: ='1_KMA'!AY31 -> 2064-07-01 | AZ2: ='1_KMA'!AZ31 -> 2065-07-01 | BA2: ='1_KMA'!BA31 -> 2066-07-01 | BB2: ='1_KMA'!BB31 -> 2067-07-01 | BC2: ='1_KMA'!BC31 -> 2068-07-01 | BD2: ='1_KMA'!BD31 -> 2069-07-01 | BE2: ='1_KMA'!BE31 -> 2070-07-01 | BF2: ='1_KMA'!BF31 -> 2071-07-01 | BG2: ='1_KMA'!BG31 -> 2072-07-01
B3: =Cover!$C$10 -> Business Case Evaluation | I3: Period End Date | J3: ='1_KMA'!J32 -> 2024-06-30 | K3: ='1_KMA'!K32 -> 2025-06-30 | L3: ='1_KMA'!L32 -> 2026-06-30 | M3: ='1_KMA'!M32 -> 2027-06-30 | N3: ='1_KMA'!N32 -> 2028-06-30 | O3: ='1_KMA'!O32 -> 2029-06-30 | P3: ='1_KMA'!P32 -> 2030-06-30 | Q3: ='1_KMA'!Q32 -> 2031-06-30 | R3: ='1_KMA'!R32 -> 2032-06-30 | S3: ='1_KMA'!S32 -> 2033-06-30 | T3: ='1_KMA'!T32 -> 2034-06-30 | U3: ='1_KMA'!U32 -> 2035-06-30 | V3: ='1_KMA'!V32 -> 2036-06-30 | W3: ='1_KMA'!W32 -> 2037-06-30 | X3: ='1_KMA'!X32 -> 2038-06-30 | Y3: ='1_KMA'!Y32 -> 2039-06-30 | Z3: ='1_KMA'!Z32 -> 2040-06-30 | AA3: ='1_KMA'!AA32 -> 2041-06-30 | AB3: ='1_KMA'!AB32 -> 2042-06-30 | AC3: ='1_KMA'!AC32 -> 2043-06-30 | AD3: ='1_KMA'!AD32 -> 2044-06-30 | AE3: ='1_KMA'!AE32 -> 2045-06-30 | AF3: ='1_KMA'!AF32 -> 2046-06-30 | AG3: ='1_KMA'!AG32 -> 2047-06-30 | AH3: ='1_KMA'!AH32 -> 2048-06-30 | AI3: ='1_KMA'!AI32 -> 2049-06-30 | AJ3: ='1_KMA'!AJ32 -> 2050-06-30 | AK3: ='1_KMA'!AK32 -> 2051-06-30 | AL3: ='1_KMA'!AL32 -> 2052-06-30 | AM3: ='1_KMA'!AM32 -> 2053-06-30 | AN3: ='1_KMA'!AN32 -> 2054-06-30 | AO3: ='1_KMA'!AO32 -> 2055-06-30 | AP3: ='1_KMA'!AP32 -> 2056-06-30 | AQ3: ='1_KMA'!AQ32 -> 2057-06-30 | AR3: ='1_KMA'!AR32 -> 2058-06-30 | AS3: ='1_KMA'!AS32 -> 2059-06-30 | AT3: ='1_KMA'!AT32 -> 2060-06-30 | AU3: ='1_KMA'!AU32 -> 2061-06-30 | AV3: ='1_KMA'!AV32 -> 2062-06-30 | AW3: ='1_KMA'!AW32 -> 2063-06-30 | AX3: ='1_KMA'!AX32 -> 2064-06-30 | AY3: ='1_KMA'!AY32 -> 2065-06-30 | AZ3: ='1_KMA'!AZ32 -> 2066-06-30 | BA3: ='1_KMA'!BA32 -> 2067-06-30 | BB3: ='1_KMA'!BB32 -> 2068-06-30 | BC3: ='1_KMA'!BC32 -> 2069-06-30 | BD3: ='1_KMA'!BD32 -> 2070-06-30 | BE3: ='1_KMA'!BE32 -> 2071-06-30 | BF3: ='1_KMA'!BF32 -> 2072-06-30 | BG3: ='1_KMA'!BG32 -> 2073-06-30
B4: =Cover!$C$11 -> Summer and winter readiness | I4: Project Year | J4: ='1_KMA'!J33 -> 1 | K4: ='1_KMA'!K33 -> 2 | L4: ='1_KMA'!L33 -> 3 | M4: ='1_KMA'!M33 -> 4 | N4: ='1_KMA'!N33 -> 5 | O4: ='1_KMA'!O33 -> 6 | P4: ='1_KMA'!P33 -> 7 | Q4: ='1_KMA'!Q33 -> 8 | R4: ='1_KMA'!R33 -> 9 | S4: ='1_KMA'!S33 -> 10 | T4: ='1_KMA'!T33 -> 11 | U4: ='1_KMA'!U33 -> 12 | V4: ='1_KMA'!V33 -> 13 | W4: ='1_KMA'!W33 -> 14 | X4: ='1_KMA'!X33 -> 15 | Y4: ='1_KMA'!Y33 -> 16 | Z4: ='1_KMA'!Z33 -> 17 | AA4: ='1_KMA'!AA33 -> 18 | AB4: ='1_KMA'!AB33 -> 19 | AC4: ='1_KMA'!AC33 -> 20 | AD4: ='1_KMA'!AD33 -> 21 | AE4: ='1_KMA'!AE33 -> 22 | AF4: ='1_KMA'!AF33 -> 23 | AG4: ='1_KMA'!AG33 -> 24 | AH4: ='1_KMA'!AH33 -> 25 | AI4: ='1_KMA'!AI33 -> 26 | AJ4: ='1_KMA'!AJ33 -> 27 | AK4: ='1_KMA'!AK33 -> 28 | AL4: ='1_KMA'!AL33 -> 29 | AM4: ='1_KMA'!AM33 -> 30 | AN4: ='1_KMA'!AN33 -> 31 | AO4: ='1_KMA'!AO33 -> 32 | AP4: ='1_KMA'!AP33 -> 33 | AQ4: ='1_KMA'!AQ33 -> 34 | AR4: ='1_KMA'!AR33 -> 35 | AS4: ='1_KMA'!AS33 -> 36 | AT4: ='1_KMA'!AT33 -> 37 | AU4: ='1_KMA'!AU33 -> 38 | AV4: ='1_KMA'!AV33 -> 39 | AW4: ='1_KMA'!AW33 -> 40 | AX4: ='1_KMA'!AX33 -> 41 | AY4: ='1_KMA'!AY33 -> 42 | AZ4: ='1_KMA'!AZ33 -> 43 | BA4: ='1_KMA'!BA33 -> 44 | BB4: ='1_KMA'!BB33 -> 45 | BC4: ='1_KMA'!BC33 -> 46 | BD4: ='1_KMA'!BD33 -> 47 | BE4: ='1_KMA'!BE33 -> 48 | BF4: ='1_KMA'!BF33 -> 49 | BG4: ='1_KMA'!BG33 -> 50
I5: Financial Year | J5: ='1_KMA'!J34 -> 2024 | K5: ='1_KMA'!K34 -> 2025 | L5: ='1_KMA'!L34 -> 2026 | M5: ='1_KMA'!M34 -> 2027 | N5: ='1_KMA'!N34 -> 2028 | O5: ='1_KMA'!O34 -> 2029 | P5: ='1_KMA'!P34 -> 2030 | Q5: ='1_KMA'!Q34 -> 2031 | R5: ='1_KMA'!R34 -> 2032 | S5: ='1_KMA'!S34 -> 2033 | T5: ='1_KMA'!T34 -> 2034 | U5: ='1_KMA'!U34 -> 2035 | V5: ='1_KMA'!V34 -> 2036 | W5: ='1_KMA'!W34 -> 2037 | X5: ='1_KMA'!X34 -> 2038 | Y5: ='1_KMA'!Y34 -> 2039 | Z5: ='1_KMA'!Z34 -> 2040 | AA5: ='1_KMA'!AA34 -> 2041 | AB5: ='1_KMA'!AB34 -> 2042 | AC5: ='1_KMA'!AC34 -> 2043 | AD5: ='1_KMA'!AD34 -> 2044 | AE5: ='1_KMA'!AE34 -> 2045 | AF5: ='1_KMA'!AF34 -> 2046 | AG5: ='1_KMA'!AG34 -> 2047 | AH5: ='1_KMA'!AH34 -> 2048 | AI5: ='1_KMA'!AI34 -> 2049 | AJ5: ='1_KMA'!AJ34 -> 2050 | AK5: ='1_KMA'!AK34 -> 2051 | AL5: ='1_KMA'!AL34 -> 2052 | AM5: ='1_KMA'!AM34 -> 2053 | AN5: ='1_KMA'!AN34 -> 2054 | AO5: ='1_KMA'!AO34 -> 2055 | AP5: ='1_KMA'!AP34 -> 2056 | AQ5: ='1_KMA'!AQ34 -> 2057 | AR5: ='1_KMA'!AR34 -> 2058 | AS5: ='1_KMA'!AS34 -> 2059 | AT5: ='1_KMA'!AT34 -> 2060 | AU5: ='1_KMA'!AU34 -> 2061 | AV5: ='1_KMA'!AV34 -> 2062 | AW5: ='1_KMA'!AW34 -> 2063 | AX5: ='1_KMA'!AX34 -> 2064 | AY5: ='1_KMA'!AY34 -> 2065 | AZ5: ='1_KMA'!AZ34 -> 2066 | BA5: ='1_KMA'!BA34 -> 2067 | BB5: ='1_KMA'!BB34 -> 2068 | BC5: ='1_KMA'!BC34 -> 2069 | BD5: ='1_KMA'!BD34 -> 2070 | BE5: ='1_KMA'!BE34 -> 2071 | BF5: ='1_KMA'!BF34 -> 2072 | BG5: ='1_KMA'!BG34 -> 2073
B7: Project Details
B9: Option Name | E9: Description | L9: Life of the asset for annualised cost calculation (years) | O9: Will this option be used in your assessment?
B10: Base Case | E10: Business as usual | O10: Yes
B11: Option 1 | E11: Implement summer prep | O11: Yes
B12: Option 2 | O12: No
B13: Option 3 | O13: No
B14: Option 4 | O14: No
B15: Option 5 | O15: No
B17: Modelling Controls
B19: Denomination of Entered Cashflows | I19: $thousands
B20: Dollar Basis of Entered Value for all Parts of the Model | I20: 2024-06-30
B21: Dollar Basis Needed for EDPR | I21: 2024-06-30
B22: Model Start Date | I22: 2023-07-01
B23: Assessment Period (Years) | I23: 50
B24: Model End Date | I24: =EOMONTH(I22+(I23*365),0) -> 2073-06-30
B25: Regulatory Period Start Date | I25: 2026-07-01
B26: Regulatory Period End Date | I26: 2031-06-30
B27: CPI p.a. (for future periods withouta RBA forecast) | I27: 0.025
B28: Real discount rate (base case) | I28: =Controls!E21 -> 0.05555
B30: Regulatory Period Indicator | J30: =IF(AND(J$31>=$I$25,J$32<=$I$26),1,0) -> 0 | K30: =IF(AND(K$31>=$I$25,K$32<=$I$26),1,0) -> 0 | L30: 0 | M30: 1 | N30: 1 | O30: 1 | P30: 1 | Q30: 1 | R30: 0 | S30: 0 | T30: 0 | U30: 0 | V30: 0 | W30: 0 | X30: 0 | Y30: 0 | Z30: 0 | AA30: 0 | AB30: 0 | AC30: 0 | AD30: 0 | AE30: 0 | AF30: 0 | AG30: 0 | AH30: 0 | AI30: 0 | AJ30: 0 | AK30: 0 | AL30: 0 | AM30: 0 | AN30: 0 | AO30: 0 | AP30: =IF(AND(AP$31>=$I$25,AP$32<=$I$26),1,0) -> 0 | AQ30: 0 | AR30: 0 | AS30: 0 | AT30: 0 | AU30: 0 | AV30: 0 | AW30: 0 | AX30: 0 | AY30: 0 | AZ30: 0 | BA30: 0 | BB30: 0 | BC30: 0 | BD30: 0 | BE30: 0 | BF30: 0 | BG30: 0
B31: Period Start Date | J31: =EDATE($I$22,(J33-1)*12) -> 2023-07-01 | K31: =EDATE($I$22,(K33-1)*12) -> 2024-07-01 | L31: 2025-07-01 | M31: 2026-07-01 | N31: 2027-07-01 | O31: 2028-07-01 | P31: 2029-07-01 | Q31: 2030-07-01 | R31: 2031-07-01 | S31: 2032-07-01 | T31: 2033-07-01 | U31: 2034-07-01 | V31: 2035-07-01 | W31: 2036-07-01 | X31: 2037-07-01 | Y31: 2038-07-01 | Z31: 2039-07-01 | AA31: 2040-07-01 | AB31: 2041-07-01 | AC31: 2042-07-01 | AD31: 2043-07-01 | AE31: 2044-07-01 | AF31: 2045-07-01 | AG31: 2046-07-01 | AH31: 2047-07-01 | AI31: 2048-07-01 | AJ31: 2049-07-01 | AK31: 2050-07-01 | AL31: 2051-07-01 | AM31: 2052-07-01 | AN31: 2053-07-01 | AO31: 2054-07-01 | AP31: =EDATE($I$22,(AP33-1)*12) -> 2055-07-01 | AQ31: 2056-07-01 | AR31: 2057-07-01 | AS31: 2058-07-01 | AT31: 2059-07-01 | AU31: 2060-07-01 | AV31: 2061-07-01 | AW31: 2062-07-01 | AX31: 2063-07-01 | AY31: 2064-07-01 | AZ31: 2065-07-01 | BA31: 2066-07-01 | BB31: 2067-07-01 | BC31: 2068-07-01 | BD31: 2069-07-01 | BE31: 2070-07-01 | BF31: 2071-07-01 | BG31: 2072-07-01
B32: Period End Date | J32: =EDATE(J31,12)-1 -> 2024-06-30 | K32: =EDATE(K31,12)-1 -> 2025-06-30 | L32: 2026-06-30 | M32: =EDATE(M31,12)-1 -> 2027-06-30 | N32: 2028-06-30 | O32: 2029-06-30 | P32: 2030-06-30 | Q32: 2031-06-30 | R32: 2032-06-30 | S32: 2033-06-30 | T32: 2034-06-30 | U32: 2035-06-30 | V32: 2036-06-30 | W32: 2037-06-30 | X32: 2038-06-30 | Y32: 2039-06-30 | Z32: 2040-06-30 | AA32: 2041-06-30 | AB32: 2042-06-30 | AC32: 2043-06-30 | AD32: 2044-06-30 | AE32: 2045-06-30 | AF32: 2046-06-30 | AG32: 2047-06-30 | AH32: 2048-06-30 | AI32: 2049-06-30 | AJ32: 2050-06-30 | AK32: 2051-06-30 | AL32: 2052-06-30 | AM32: 2053-06-30 | AN32: 2054-06-30 | AO32: 2055-06-30 | AP32: 2056-06-30 | AQ32: 2057-06-30 | AR32: 2058-06-30 | AS32: 2059-06-30 | AT32: 2060-06-30 | AU32: 2061-06-30 | AV32: 2062-06-30 | AW32: 2063-06-30 | AX32: 2064-06-30 | AY32: 2065-06-30 | AZ32: 2066-06-30 | BA32: 2067-06-30 | BB32: 2068-06-30 | BC32: 2069-06-30 | BD32: 2070-06-30 | BE32: 2071-06-30 | BF32: 2072-06-30 | BG32: 2073-06-30
B33: ="Project Year" -> Project Year | J33: =COLUMNS($J33:J33) -> 1 | K33: =COLUMNS($J33:K33) -> 2 | L33: =COLUMNS($J33:L33) -> 3 | M33: =COLUMNS($J33:M33) -> 4 | N33: =COLUMNS($J33:N33) -> 5 | O33: =COLUMNS($J33:O33) -> 6 | P33: =COLUMNS($J33:P33) -> 7 | Q33: =COLUMNS($J33:Q33) -> 8 | R33: =COLUMNS($J33:R33) -> 9 | S33: =COLUMNS($J33:S33) -> 10 | T33: =COLUMNS($J33:T33) -> 11 | U33: =COLUMNS($J33:U33) -> 12 | V33: =COLUMNS($J33:V33) -> 13 | W33: =COLUMNS($J33:W33) -> 14 | X33: =COLUMNS($J33:X33) -> 15 | Y33: =COLUMNS($J33:Y33) -> 16 | Z33: =COLUMNS($J33:Z33) -> 17 | AA33: =COLUMNS($J33:AA33) -> 18 | AB33: =COLUMNS($J33:AB33) -> 19 | AC33: =COLUMNS($J33:AC33) -> 20 | AD33: =COLUMNS($J33:AD33) -> 21 | AE33: =COLUMNS($J33:AE33) -> 22 | AF33: =COLUMNS($J33:AF33) -> 23 | AG33: =COLUMNS($J33:AG33) -> 24 | AH33: =COLUMNS($J33:AH33) -> 25 | AI33: =COLUMNS($J33:AI33) -> 26 | AJ33: =COLUMNS($J33:AJ33) -> 27 | AK33: =COLUMNS($J33:AK33) -> 28 | AL33: =COLUMNS($J33:AL33) -> 29 | AM33: =COLUMNS($J33:AM33) -> 30 | AN33: =COLUMNS($J33:AN33) -> 31 | AO33: =COLUMNS($J33:AO33) -> 32 | AP33: =COLUMNS($J33:AP33) -> 33 | AQ33: =COLUMNS($J33:AQ33) -> 34 | AR33: =COLUMNS($J33:AR33) -> 35 | AS33: =COLUMNS($J33:AS33) -> 36 | AT33: =COLUMNS($J33:AT33) -> 37 | AU33: =COLUMNS($J33:AU33) -> 38 | AV33: =COLUMNS($J33:AV33) -> 39 | AW33: =COLUMNS($J33:AW33) -> 40 | AX33: =COLUMNS($J33:AX33) -> 41 | AY33: =COLUMNS($J33:AY33) -> 42 | AZ33: =COLUMNS($J33:AZ33) -> 43 | BA33: =COLUMNS($J33:BA33) -> 44 | BB33: =COLUMNS($J33:BB33) -> 45 | BC33: =COLUMNS($J33:BC33) -> 46 | BD33: =COLUMNS($J33:BD33) -> 47 | BE33: =COLUMNS($J33:BE33) -> 48 | BF33: =COLUMNS($J33:BF33) -> 49 | BG33: =COLUMNS($J33:BG33) -> 50
B34: Financial Year | J34: =YEAR(J32) -> 2024 | K34: =YEAR(K32) -> 2025 | L34: 2026 | M34: 2027 | N34: 2028 | O34: 2029 | P34: 2030 | Q34: 2031 | R34: 2032 | S34: 2033 | T34: 2034 | U34: 2035 | V34: 2036 | W34: 2037 | X34: 2038 | Y34: 2039 | Z34: 2040 | AA34: 2041 | AB34: 2042 | AC34: 2043 | AD34: 2044 | AE34: 2045 | AF34: 2046 | AG34: 2047 | AH34: 2048 | AI34: 2049 | AJ34: 2050 | AK34: 2051 | AL34: 2052 | AM34: 2053 | AN34: 2054 | AO34: 2055 | AP34: 2056 | AQ34: 2057 | AR34: 2058 | AS34: 2059 | AT34: 2060 | AU34: 2061 | AV34: 2062 | AW34: 2063 | AX34: 2064 | AY34: 2065 | AZ34: 2066 | BA34: 2067 | BB34: 2068 | BC34: 2069 | BD34: 2070 | BE34: 2071 | BF34: 2072 | BG34: 2073

Sheet 2.1_Inputs
C6: Inputs
C7: Section 2.1.
C9: =Cover!$C$9 -> AusNet Services
C10: =Cover!$C$10 -> Business Case Evaluation
C11: =Cover!$C$11 -> Summer and winter readiness

Sheet 2.1_BC
B1: General Inputs: Base Case | I1: Regulatory Period Indicator | J1: ='1_KMA'!J30 -> 0 | K1: ='1_KMA'!K30 -> 0 | L1: ='1_KMA'!L30 -> 0 | M1: ='1_KMA'!M30 -> 1 | N1: ='1_KMA'!N30 -> 1 | O1: ='1_KMA'!O30 -> 1 | P1: ='1_KMA'!P30 -> 1 | Q1: ='1_KMA'!Q30 -> 1 | R1: ='1_KMA'!R30 -> 0 | S1: ='1_KMA'!S30 -> 0 | T1: ='1_KMA'!T30 -> 0 | U1: ='1_KMA'!U30 -> 0 | V1: ='1_KMA'!V30 -> 0 | W1: ='1_KMA'!W30 -> 0 | X1: ='1_KMA'!X30 -> 0 | Y1: ='1_KMA'!Y30 -> 0 | Z1: ='1_KMA'!Z30 -> 0 | AA1: ='1_KMA'!AA30 -> 0 | AB1: ='1_KMA'!AB30 -> 0 | AC1: ='1_KMA'!AC30 -> 0 | AD1: ='1_KMA'!AD30 -> 0 | AE1: ='1_KMA'!AE30 -> 0 | AF1: ='1_KMA'!AF30 -> 0 | AG1: ='1_KMA'!AG30 -> 0 | AH1: ='1_KMA'!AH30 -> 0 | AI1: ='1_KMA'!AI30 -> 0 | AJ1: ='1_KMA'!AJ30 -> 0 | AK1: ='1_KMA'!AK30 -> 0 | AL1: ='1_KMA'!AL30 -> 0 | AM1: ='1_KMA'!AM30 -> 0 | AN1: ='1_KMA'!AN30 -> 0 | AO1: ='1_KMA'!AO30 -> 0 | AP1: ='1_KMA'!AP30 -> 0 | AQ1: ='1_KMA'!AQ30 -> 0 | AR1: ='1_KMA'!AR30 -> 0 | AS1: ='1_KMA'!AS30 -> 0 | AT1: ='1_KMA'!AT30 -> 0 | AU1: ='1_KMA'!AU30 -> 0 | AV1: ='1_KMA'!AV30 -> 0 | AW1: ='1_KMA'!AW30 -> 0 | AX1: ='1_KMA'!AX30 -> 0 | AY1: ='1_KMA'!AY30 -> 0 | AZ1: ='1_KMA'!AZ30 -> 0 | BA1: ='1_KMA'!BA30 -> 0 | BB1: ='1_KMA'!BB30 -> 0 | BC1: ='1_KMA'!BC30 -> 0 | BD1: ='1_KMA'!BD30 -> 0 | BE1: ='1_KMA'!BE30 -> 0 | BF1: ='1_KMA'!BF30 -> 0 | BG1: ='1_KMA'!BG30 -> 0
B2: =Cover!$C$9 -> AusNet Services | I2: Period Start Date | J2: ='1_KMA'!J31 -> 2023-07-01 | K2: ='1_KMA'!K31 -> 2024-07-01 | L2: ='1_KMA'!L31 -> 2025-07-01 | M2: ='1_KMA'!M31 -> 2026-07-01 | N2: ='1_KMA'!N31 -> 2027-07-01 | O2: ='1_KMA'!O31 -> 2028-07-01 | P2: ='1_KMA'!P31 -> 2029-07-01 | Q2: ='1_KMA'!Q31 -> 2030-07-01 | R2: ='1_KMA'!R31 -> 2031-07-01 | S2: ='1_KMA'!S31 -> 2032-07-01 | T2: ='1_KMA'!T31 -> 2033-07-01 | U2: ='1_KMA'!U31 -> 2034-07-01 | V2: ='1_KMA'!V31 -> 2035-07-01 | W2: ='1_KMA'!W31 -> 2036-07-01 | X2: ='1_KMA'!X31 -> 2037-07-01 | Y2: ='1_KMA'!Y31 -> 2038-07-01 | Z2: ='1_KMA'!Z31 -> 2039-07-01 | AA2: ='1_KMA'!AA31 -> 2040-07-01 | AB2: ='1_KMA'!AB31 -> 2041-07-01 | AC2: ='1_KMA'!AC31 -> 2042-07-01 | AD2: ='1_KMA'!AD31 -> 2043-07-01 | AE2: ='1_KMA'!AE31 -> 2044-07-01 | AF2: ='1_KMA'!AF31 -> 2045-07-01 | AG2: ='1_KMA'!AG31 -> 2046-07-01 | AH2: ='1_KMA'!AH31 -> 2047-07-01 | AI2: ='1_KMA'!AI31 -> 2048-07-01 | AJ2: ='1_KMA'!AJ31 -> 2049-07-01 | AK2: ='1_KMA'!AK31 -> 2050-07-01 | AL2: ='1_KMA'!AL31 -> 2051-07-01 | AM2: ='1_KMA'!AM31 -> 2052-07-01 | AN2: ='1_KMA'!AN31 -> 2053-07-01 | AO2: ='1_KMA'!AO31 -> 2054-07-01 | AP2: ='1_KMA'!AP31 -> 2055-07-01 | AQ2: ='1_KMA'!AQ31 -> 2056-07-01 | AR2: ='1_KMA'!AR31 -> 2057-07-01 | AS2: ='1_KMA'!AS31 -> 2058-07-01 | AT2: ='1_KMA'!AT31 -> 2059-07-01 | AU2: ='1_KMA'!AU31 -> 2060-07-01 | AV2: ='1_KMA'!AV31 -> 2061-07-01 | AW2: ='1_KMA'!AW31 -> 2062-07-01 | AX2: ='1_KMA'!AX31 -> 2063-07-01 | AY2: ='1_KMA'!AY31 -> 2064-07-01 | AZ2: ='1_KMA'!AZ31 -> 2065-07-01 | BA2: ='1_KMA'!BA31 -> 2066-07-01 | BB2: ='1_KMA'!BB31 -> 2067-07-01 | BC2: ='1_KMA'!BC31 -> 2068-07-01 | BD2: ='1_KMA'!BD31 -> 2069-07-01 | BE2: ='1_KMA'!BE31 -> 2070-07-01 | BF2: ='1_KMA'!BF31 -> 2071-07-01 | BG2: ='1_KMA'!BG31 -> 2072-07-01
B3: =Cover!$C$10 -> Business Case Evaluation | I3: Period End Date | J3: ='1_KMA'!J32 -> 2024-06-30 | K3: ='1_KMA'!K32 -> 2025-06-30 | L3: ='1_KMA'!L32 -> 2026-06-30 | M3: ='1_KMA'!M32 -> 2027-06-30 | N3: ='1_KMA'!N32 -> 2028-06-30 | O3: ='1_KMA'!O32 -> 2029-06-30 | P3: ='1_KMA'!P32 -> 2030-06-30 | Q3: ='1_KMA'!Q32 -> 2031-06-30 | R3: ='1_KMA'!R32 -> 2032-06-30 | S3: ='1_KMA'!S32 -> 2033-06-30 | T3: ='1_KMA'!T32 -> 2034-06-30 | U3: ='1_KMA'!U32 -> 2035-06-30 | V3: ='1_KMA'!V32 -> 2036-06-30 | W3: ='1_KMA'!W32 -> 2037-06-30 | X3: ='1_KMA'!X32 -> 2038-06-30 | Y3: ='1_KMA'!Y32 -> 2039-06-30 | Z3: ='1_KMA'!Z32 -> 2040-06-30 | AA3: ='1_KMA'!AA32 -> 2041-06-30 | AB3: ='1_KMA'!AB32 -> 2042-06-30 | AC3: ='1_KMA'!AC32 -> 2043-06-30 | AD3: ='1_KMA'!AD32 -> 2044-06-30 | AE3: ='1_KMA'!AE32 -> 2045-06-30 | AF3: ='1_KMA'!AF32 -> 2046-06-30 | AG3: ='1_KMA'!AG32 -> 2047-06-30 | AH3: ='1_KMA'!AH32 -> 2048-06-30 | AI3: ='1_KMA'!AI32 -> 2049-06-30 | AJ3: ='1_KMA'!AJ32 -> 2050-06-30 | AK3: ='1_KMA'!AK32 -> 2051-06-30 | AL3: ='1_KMA'!AL32 -> 2052-06-30 | AM3: ='1_KMA'!AM32 -> 2053-06-30 | AN3: ='1_KMA'!AN32 -> 2054-06-30 | AO3: ='1_KMA'!AO32 -> 2055-06-30 | AP3: ='1_KMA'!AP32 -> 2056-06-30 | AQ3: ='1_KMA'!AQ32 -> 2057-06-30 | AR3: ='1_KMA'!AR32 -> 2058-06-30 | AS3: ='1_KMA'!AS32 -> 2059-06-30 | AT3: ='1_KMA'!AT32 -> 2060-06-30 | AU3: ='1_KMA'!AU32 -> 2061-06-30 | AV3: ='1_KMA'!AV32 -> 2062-06-30 | AW3: ='1_KMA'!AW32 -> 2063-06-30 | AX3: ='1_KMA'!AX32 -> 2064-06-30 | AY3: ='1_KMA'!AY32 -> 2065-06-30 | AZ3: ='1_KMA'!AZ32 -> 2066-06-30 | BA3: ='1_KMA'!BA32 -> 2067-06-30 | BB3: ='1_KMA'!BB32 -> 2068-06-30 | BC3: ='1_KMA'!BC32 -> 2069-06-30 | BD3: ='1_KMA'!BD32 -> 2070-06-30 | BE3: ='1_KMA'!BE32 -> 2071-06-30 | BF3: ='1_KMA'!BF32 -> 2072-06-30 | BG3: ='1_KMA'!BG32 -> 2073-06-30
B4: =Cover!$C$11 -> Summer and winter readiness | I4: Project Year | J4: ='1_KMA'!J33 -> 1 | K4: ='1_KMA'!K33 -> 2 | L4: ='1_KMA'!L33 -> 3 | M4: ='1_KMA'!M33 -> 4 | N4: ='1_KMA'!N33 -> 5 | O4: ='1_KMA'!O33 -> 6 | P4: ='1_KMA'!P33 -> 7 | Q4: ='1_KMA'!Q33 -> 8 | R4: ='1_KMA'!R33 -> 9 | S4: ='1_KMA'!S33 -> 10 | T4: ='1_KMA'!T33 -> 11 | U4: ='1_KMA'!U33 -> 12 | V4: ='1_KMA'!V33 -> 13 | W4: ='1_KMA'!W33 -> 14 | X4: ='1_KMA'!X33 -> 15 | Y4: ='1_KMA'!Y33 -> 16 | Z4: ='1_KMA'!Z33 -> 17 | AA4: ='1_KMA'!AA33 -> 18 | AB4: ='1_KMA'!AB33 -> 19 | AC4: ='1_KMA'!AC33 -> 20 | AD4: ='1_KMA'!AD33 -> 21 | AE4: ='1_KMA'!AE33 -> 22 | AF4: ='1_KMA'!AF33 -> 23 | AG4: ='1_KMA'!AG33 -> 24 | AH4: ='1_KMA'!AH33 -> 25 | AI4: ='1_KMA'!AI33 -> 26 | AJ4: ='1_KMA'!AJ33 -> 27 | AK4: ='1_KMA'!AK33 -> 28 | AL4: ='1_KMA'!AL33 -> 29 | AM4: ='1_KMA'!AM33 -> 30 | AN4: ='1_KMA'!AN33 -> 31 | AO4: ='1_KMA'!AO33 -> 32 | AP4: ='1_KMA'!AP33 -> 33 | AQ4: ='1_KMA'!AQ33 -> 34 | AR4: ='1_KMA'!AR33 -> 35 | AS4: ='1_KMA'!AS33 -> 36 | AT4: ='1_KMA'!AT33 -> 37 | AU4: ='1_KMA'!AU33 -> 38 | AV4: ='1_KMA'!AV33 -> 39 | AW4: ='1_KMA'!AW33 -> 40 | AX4: ='1_KMA'!AX33 -> 41 | AY4: ='1_KMA'!AY33 -> 42 | AZ4: ='1_KMA'!AZ33 -> 43 | BA4: ='1_KMA'!BA33 -> 44 | BB4: ='1_KMA'!BB33 -> 45 | BC4: ='1_KMA'!BC33 -> 46 | BD4: ='1_KMA'!BD33 -> 47 | BE4: ='1_KMA'!BE33 -> 48 | BF4: ='1_KMA'!BF33 -> 49 | BG4: ='1_KMA'!BG33 -> 50
I5: Financial Year | J5: ='1_KMA'!J34 -> 2024 | K5: ='1_KMA'!K34 -> 2025 | L5: ='1_KMA'!L34 -> 2026 | M5: ='1_KMA'!M34 -> 2027 | N5: ='1_KMA'!N34 -> 2028 | O5: ='1_KMA'!O34 -> 2029 | P5: ='1_KMA'!P34 -> 2030 | Q5: ='1_KMA'!Q34 -> 2031 | R5: ='1_KMA'!R34 -> 2032 | S5: ='1_KMA'!S34 -> 2033 | T5: ='1_KMA'!T34 -> 2034 | U5: ='1_KMA'!U34 -> 2035 | V5: ='1_KMA'!V34 -> 2036 | W5: ='1_KMA'!W34 -> 2037 | X5: ='1_KMA'!X34 -> 2038 | Y5: ='1_KMA'!Y34 -> 2039 | Z5: ='1_KMA'!Z34 -> 2040 | AA5: ='1_KMA'!AA34 -> 2041 | AB5: ='1_KMA'!AB34 -> 2042 | AC5: ='1_KMA'!AC34 -> 2043 | AD5: ='1_KMA'!AD34 -> 2044 | AE5: ='1_KMA'!AE34 -> 2045 | AF5: ='1_KMA'!AF34 -> 2046 | AG5: ='1_KMA'!AG34 -> 2047 | AH5: ='1_KMA'!AH34 -> 2048 | AI5: ='1_KMA'!AI34 -> 2049 | AJ5: ='1_KMA'!AJ34 -> 2050 | AK5: ='1_KMA'!AK34 -> 2051 | AL5: ='1_KMA'!AL34 -> 2052 | AM5: ='1_KMA'!AM34 -> 2053 | AN5: ='1_KMA'!AN34 -> 2054 | AO5: ='1_KMA'!AO34 -> 2055 | AP5: ='1_KMA'!AP34 -> 2056 | AQ5: ='1_KMA'!AQ34 -> 2057 | AR5: ='1_KMA'!AR34 -> 2058 | AS5: ='1_KMA'!AS34 -> 2059 | AT5: ='1_KMA'!AT34 -> 2060 | AU5: ='1_KMA'!AU34 -> 2061 | AV5: ='1_KMA'!AV34 -> 2062 | AW5: ='1_KMA'!AW34 -> 2063 | AX5: ='1_KMA'!AX34 -> 2064 | AY5: ='1_KMA'!AY34 -> 2065 | AZ5: ='1_KMA'!AZ34 -> 2066 | BA5: ='1_KMA'!BA34 -> 2067 | BB5: ='1_KMA'!BB34 -> 2068 | BC5: ='1_KMA'!BC34 -> 2069 | BD5: ='1_KMA'!BD34 -> 2070 | BE5: ='1_KMA'!BE34 -> 2071 | BF5: ='1_KMA'!BF34 -> 2072 | BG5: ='1_KMA'!BG34 -> 2073
B7: Summary
B9: Costs | G9: $ Basis Reminder | H9: $ Reminder
B10: Capex | G10: ='1_KMA'!$I$20 -> 2024-06-30 | H10: ='1_KMA'!$I$19 -> $thousands | J10: =J47 -> 0 | K10: =K47 -> 0 | L10: =L47 -> 0 | M10: 0 | N10: 0 | O10: 0 | P10: 0 | Q10: 0 | R10: 0 | S10: 0 | T10: 0 | U10: 0 | V10: 0 | W10: 0 | X10: 0 | Y10: 0 | Z10: 0 | AA10: 0 | AB10: 0 | AC10: 0 | AD10: 0 | AE10: 0 | AF10: 0 | AG10: 0 | AH10: 0 | AI10: 0 | AJ10: 0 | AK10: 0 | AL10: 0 | AM10: 0 | AN10: 0 | AO10: 0 | AP10: 0 | AQ10: 0 | AR10: 0 | AS10: 0 | AT10: 0 | AU10: 0 | AV10: 0 | AW10: 0 | AX10: 0 | AY10: 0 | AZ10: 0 | BA10: 0 | BB10: 0 | BC10: 0 | BD10: 0 | BE10: 0 | BF10: 0 | BG10: 0
B11: Capex offset | G11: ='1_KMA'!$I$20 -> 2024-06-30 | H11: ='1_KMA'!$I$19 -> $thousands | J11: =-J59 -> 0 | K11: =-K59 -> 0 | L11: =-L59 -> 0 | M11: 0 | N11: 0 | O11: 0 | P11: 0 | Q11: 0 | R11: 0 | S11: 0 | T11: 0 | U11: 0 | V11: 0 | W11: 0 | X11: 0 | Y11: 0 | Z11: 0 | AA11: 0 | AB11: 0 | AC11: 0 | AD11: 0 | AE11: 0 | AF11: 0 | AG11: 0 | AH11: 0 | AI11: 0 | AJ11: 0 | AK11: 0 | AL11: 0 | AM11: 0 | AN11: 0 | AO11: 0 | AP11: 0 | AQ11: 0 | AR11: 0 | AS11: 0 | AT11: 0 | AU11: 0 | AV11: 0 | AW11: 0 | AX11: 0 | AY11: 0 | AZ11: 0 | BA11: 0 | BB11: 0 | BC11: 0 | BD11: 0 | BE11: 0 | BF11: 0 | BG11: 0
B12: Opex | G12: ='1_KMA'!$I$20 -> 2024-06-30 | H12: ='1_KMA'!$I$19 -> $thousands | J12: 150 | K12: 150 | L12: 150 | M12: 150 | N12: 150 | O12: 150 | P12: 150 | Q12: 150 | R12: 150 | S12: 150 | T12: 150 | U12: 150 | V12: 150 | W12: 150 | X12: 150 | Y12: 150 | Z12: 150 | AA12: 150 | AB12: 150 | AC12: 150 | AD12: 150 | AE12: 150 | AF12: 150 | AG12: 150 | AH12: 300 | AI12: 300 | AJ12: 300 | AK12: 300 | AL12: 300 | AM12: 300 | AN12: 300 | AO12: 300 | AP12: 300 | AQ12: 300 | AR12: 300 | AS12: 300 | AT12: 300 | AU12: 150 | AV12: 150 | AW12: 150 | AX12: 150 | AY12: 150 | AZ12: 150 | BA12: 150 | BB12: 150 | BC12: 150 | BD12: 150 | BE12: 150 | BF12: 150 | BG12: 150
B13: Total | G13: ='1_KMA'!$I$20 -> 2024-06-30 | H13: ='1_KMA'!$I$19 -> $thousands | J13: =SUM(J10:J12) -> 150 | K13: =SUM(K10:K12) -> 150 | L13: 150 | M13: 150 | N13: 150 | O13: 150 | P13: 150 | Q13: 150 | R13: 150 | S13: 150 | T13: 150 | U13: 150 | V13: 150 | W13: 150 | X13: 150 | Y13: 150 | Z13: 150 | AA13: 150 | AB13: 150 | AC13: 150 | AD13: 150 | AE13: 150 | AF13: 150 | AG13: 150 | AH13: 300 | AI13: 300 | AJ13: 300 | AK13: 300 | AL13: 300 | AM13: 300 | AN13: 300 | AO13: 300 | AP13: 300 | AQ13: 300 | AR13: 300 | AS13: 300 | AT13: 300 | AU13: 150 | AV13: 150 | AW13: 150 | AX13: 150 | AY13: 150 | AZ13: 150 | BA13: 150 | BB13: 150 | BC13: 150 | BD13: 150 | BE13: 150 | BF13: 150 | BG13: 150
B15: For benefits calc | G15: $ Basis Reminder | H15: $ Reminder
B16: Value of EUE (residual) | G16: ='1_KMA'!$I$20 -> 2024-06-30 | H16: ='1_KMA'!$I$19 -> $thousands | J16: =-J108 -> -995.5375145 | K16: =-K108 -> -995.5375145 | L16: -995.5375145 | M16: -995.5375145 | N16: -995.5375145 | O16: -995.5375145 | P16: -995.5375145 | Q16: -995.5375145 | R16: -995.5375145 | S16: -995.5375145 | T16: -995.5375145 | U16: -995.5375145 | V16: -995.5375145 | W16: -995.5375145 | X16: -995.5375145 | Y16: -995.5375145 | Z16: -995.5375145 | AA16: -995.5375145 | AB16: -995.5375145 | AC16: -995.5375145 | AD16: -995.5375145 | AE16: -995.5375145 | AF16: -995.5375145 | AG16: -995.5375145 | AH16: -995.5375145 | AI16: -995.5375145 | AJ16: -995.5375145 | AK16: -995.5375145 | AL16: -995.5375145 | AM16: -995.5375145 | AN16: -995.5375145 | AO16: -995.5375145 | AP16: -995.5375145 | AQ16: -995.5375145 | AR16: -995.5375145 | AS16: -995.5375145 | AT16: -995.5375145 | AU16: -995.5375145 | AV16: -995.5375145 | AW16: -995.5375145 | AX16: -995.5375145 | AY16: -995.5375145 | AZ16: -995.5375145 | BA16: -995.5375145 | BB16: -995.5375145 | BC16: -995.5375145 | BD16: -995.5375145 | BE16: -995.5375145 | BF16: -995.5375145 | BG16: -995.5375145
B21: Total | G21: ='1_KMA'!$I$20 -> 2024-06-30 | H21: ='1_KMA'!$I$19 -> $thousands | J21: =SUM(J16:J20) -> -995.5375145 | K21: =SUM(K16:K20) -> -995.5375145 | L21: -995.5375145 | M21: -995.5375145 | N21: -995.5375145 | O21: -995.5375145 | P21: -995.5375145 | Q21: -995.5375145 | R21: -995.5375145 | S21: -995.5375145 | T21: -995.5375145 | U21: -995.5375145 | V21: -995.5375145 | W21: -995.5375145 | X21: -995.5375145 | Y21: -995.5375145 | Z21: -995.5375145 | AA21: -995.5375145 | AB21: -995.5375145 | AC21: -995.5375145 | AD21: -995.5375145 | AE21: -995.5375145 | AF21: -995.5375145 | AG21: -995.5375145 | AH21: -995.5375145 | AI21: -995.5375145 | AJ21: -995.5375145 | AK21: -995.5375145 | AL21: -995.5375145 | AM21: -995.5375145 | AN21: -995.5375145 | AO21: -995.5375145 | AP21: -995.5375145 | AQ21: -995.5375145 | AR21: -995.5375145 | AS21: -995.5375145 | AT21: -995.5375145 | AU21: -995.5375145 | AV21: -995.5375145 | AW21: -995.5375145 | AX21: -995.5375145 | AY21: -995.5375145 | AZ21: -995.5375145 | BA21: -995.5375145 | BB21: -995.5375145 | BC21: -995.5375145 | BD21: -995.5375145 | BE21: -995.5375145 | BF21: -995.5375145 | BG21: -995.5375145
B24: Cost Inputs
B26: Capex Build Up
B28: Name | H28: Unit | J28: Unit Rate
B34: Name | H34: Unit | J34: Quantities
B40: Name | G40: $ Basis Reminder | H40: $ Reminder
G41: ='1_KMA'!$I$20 -> 2024-06-30 | H41: ='1_KMA'!$I$19 -> $thousands | J41: =$J$29*J35 -> 0 | K41: =$J$29*K35 -> 0 | L41: =$J$29*L35 -> 0 | M41: =$J$29*M35 -> 0 | N41: 0 | O41: 0 | P41: 0 | Q41: 0 | R41: 0 | S41: 0 | T41: 0 | U41: 0 | V41: 0 | W41: 0 | X41: 0 | Y41: 0 | Z41: 0 | AA41: 0 | AB41: 0 | AC41: 0 | AD41: 0 | AE41: 0 | AF41: 0 | AG41: 0 | AH41: 0 | AI41: 0 | AJ41: 0 | AK41: 0 | AL41: 0 | AM41: 0 | AN41: 0 | AO41: 0 | AP41: 0 | AQ41: 0 | AR41: 0 | AS41: 0 | AT41: 0 | AU41: 0 | AV41: 0 | AW41: 0 | AX41: 0 | AY41: 0 | AZ41: 0 | BA41: 0 | BB41: 0 | BC41: 0 | BD41: 0 | BE41: 0 | BF41: 0 | BG41: 0
G42: ='1_KMA'!$I$20 -> 2024-06-30 | H42: ='1_KMA'!$I$19 -> $thousands | J42: =$J$30*J36 -> 0 | K42: =$J$30*K36 -> 0 | L42: =$J$30*L36 -> 0 | M42: =$J$30*M36 -> 0 | N42: 0 | O42: 0 | P42: 0 | Q42: 0 | R42: 0 | S42: 0 | T42: 0 | U42: 0 | V42: 0 | W42: 0 | X42: 0 | Y42: 0 | Z42: 0 | AA42: 0 | AB42: 0 | AC42: 0 | AD42: 0 | AE42: 0 | AF42: 0 | AG42: 0 | AH42: 0 | AI42: 0 | AJ42: 0 | AK42: 0 | AL42: 0 | AM42: 0 | AN42: 0 | AO42: 0 | AP42: 0 | AQ42: 0 | AR42: 0 | AS42: 0 | AT42: 0 | AU42: 0 | AV42: 0 | AW42: 0 | AX42: 0 | AY42: 0 | AZ42: 0 | BA42: 0 | BB42: 0 | BC42: 0 | BD42: 0 | BE42: 0 | BF42: 0 | BG42: 0
G43: ='1_KMA'!$I$20 -> 2024-06-30 | H43: ='1_KMA'!$I$19 -> $thousands | J43: =$J$31*J37 -> 0 | K43: =$J$31*K37 -> 0 | L43: =$J$31*L37 -> 0 | M43: =$J$31*M37 -> 0 | N43: 0 | O43: 0 | P43: 0 | Q43: 0 | R43: 0 | S43: 0 | T43: 0 | U43: 0 | V43: 0 | W43: 0 | X43: 0 | Y43: 0 | Z43: 0 | AA43: 0 | AB43: 0 | AC43: 0 | AD43: 0 | AE43: 0 | AF43: 0 | AG43: 0 | AH43: 0 | AI43: 0 | AJ43: 0 | AK43: 0 | AL43: 0 | AM43: 0 | AN43: 0 | AO43: 0 | AP43: 0 | AQ43: 0 | AR43: 0 | AS43: 0 | AT43: 0 | AU43: 0 | AV43: 0 | AW43: 0 | AX43: 0 | AY43: 0 | AZ43: 0 | BA43: 0 | BB43: 0 | BC43: 0 | BD43: 0 | BE43: 0 | BF43: 0 | BG43: 0
G44: ='1_KMA'!$I$20 -> 2024-06-30 | H44: ='1_KMA'!$I$19 -> $thousands | J44: =$J$32*J38 -> 0 | K44: =$J$32*K38 -> 0 | L44: =$J$32*L38 -> 0 | M44: =$J$32*M38 -> 0 | N44: =$J$32*N38 -> 0 | O44: 0 | P44: 0 | Q44: 0 | R44: 0 | S44: 0 | T44: 0 | U44: 0 | V44: 0 | W44: 0 | X44: 0 | Y44: 0 | Z44: 0 | AA44: 0 | AB44: 0 | AC44: 0 | AD44: 0 | AE44: 0 | AF44: 0 | AG44: 0 | AH44: 0 | AI44: 0 | AJ44: 0 | AK44: 0 | AL44: 0 | AM44: 0 | AN44: 0 | AO44: 0 | AP44: 0 | AQ44: 0 | AR44: 0 | AS44: 0 | AT44: 0 | AU44: 0 | AV44: 0 | AW44: 0 | AX44: 0 | AY44: 0 | AZ44: 0 | BA44: 0 | BB44: 0 | BC44: 0 | BD44: 0 | BE44: 0 | BF44: 0 | BG44: 0
G46: $ Basis Reminder | H46: $ Reminder
B47: Total | G47: ='1_KMA'!$I$20 -> 2024-06-30 | H47: ='1_KMA'!$I$19 -> $thousands | J47: =SUM(J41:J44) -> 0 | K47: =SUM(K41:K44) -> 0 | L47: 0 | M47: =SUM(M41:M44) -> 0 | N47: 0 | O47: 0 | P47: 0 | Q47: 0 | R47: 0 | S47: 0 | T47: 0 | U47: 0 | V47: 0 | W47: 0 | X47: 0 | Y47: 0 | Z47: 0 | AA47: 0 | AB47: 0 | AC47: 0 | AD47: 0 | AE47: 0 | AF47: 0 | AG47: 0 | AH47: 0 | AI47: 0 | AJ47: 0 | AK47: 0 | AL47: 0 | AM47: 0 | AN47: 0 | AO47: 0 | AP47: =SUM(AP41:AP44) -> 0 | AQ47: 0 | AR47: 0 | AS47: 0 | AT47: 0 | AU47: 0 | AV47: 0 | AW47: 0 | AX47: 0 | AY47: 0 | AZ47: 0 | BA47: 0 | BB47: 0 | BC47: 0 | BD47: 0 | BE47: 0 | BF47: 0 | BG47: 0
B49: Capex Offset
B52: Name | G52: $ Basis Reminder | H52: $ Reminder
G53: ='1_KMA'!$I$20 -> 2024-06-30 | H53: ='1_KMA'!$I$19 -> $thousands
G54: ='1_KMA'!$I$20 -> 2024-06-30 | H54: ='1_KMA'!$I$19 -> $thousands
G55: ='1_KMA'!$I$20 -> 2024-06-30 | H55: ='1_KMA'!$I$19 -> $thousands
G56: ='1_KMA'!$I$20 -> 2024-06-30 | H56: ='1_KMA'!$I$19 -> $thousands
G58: $ Basis Reminder | H58: $ Reminder
B59: Total | G59: ='1_KMA'!$I$20 -> 2024-06-30 | H59: ='1_KMA'!$I$19 -> $thousands | J59: =SUM(J53:J56) -> 0 | K59: =SUM(K53:K56) -> 0 | L59: =SUM(L53:L56) -> 0 | M59: 0 | N59: 0 | O59: 0 | P59: 0 | Q59: 0 | R59: 0 | S59: 0 | T59: 0 | U59: 0 | V59: 0 | W59: 0 | X59: 0 | Y59: 0 | Z59: 0 | AA59: 0 | AB59: 0 | AC59: 0 | AD59: 0 | AE59: 0 | AF59: 0 | AG59: 0 | AH59: 0 | AI59: 0 | AJ59: 0 | AK59: 0 | AL59: 0 | AM59: 0 | AN59: 0 | AO59: 0 | AP59: 0 | AQ59: 0 | AR59: 0 | AS59: 0 | AT59: 0 | AU59: 0 | AV59: 0 | AW59: 0 | AX59: 0 | AY59: 0 | AZ59: 0 | BA59: 0 | BB59: 0 | BC59: 0 | BD59: 0 | BE59: 0 | BF59: 0 | BG59: =SUM(BG53:BG56) -> 0
B61: Opex Build Up
B63: Name | H63: Unit | J63: Value
B64: Opex - feeder | H64: Thousands p.a.
B65: Opex - distribution substation | H65: Thousands p.a.
B66: Opex - LV circuits | H66: Thousands p.a.
B67: Responding to feeder overloads | H67: Thousands p.a.
B68: Responding to substation failures | H68: Thousands p.a.
B69: Responding to LV cricuit failures | H69: Thousands p.a.
B71: Name | H71: Unit | J71: Quantities
B72: =B64 -> Opex - feeder | H72: 1 unit p.a.
B73: =B65 -> Opex - distribution substation | H73: 1 unit p.a.
B74: =B66 -> Opex - LV circuits | H74: 1 unit p.a.
B75: =B67 -> Responding to feeder overloads | H75: 2 unit p.a.
B76: Responding to substation failures | H76: 3 unit p.a.
B77: Responding to LV cricuit failures | H77: 4 unit p.a.
B79: Name | G79: $ Basis Reminder | H79: $ Reminder
B80: =B64 -> Opex - feeder | G80: ='1_KMA'!$I$20 -> 2024-06-30 | H80: ='1_KMA'!$I$19 -> $thousands | J80: =$J$64*J72 -> 0 | K80: =$J$64*K72 -> 0 | L80: =$J$64*L72 -> 0 | M80: =$J$64*M72 -> 0 | N80: 0 | O80: 0 | P80: 0 | Q80: 0 | R80: =$J$64*R72 -> 0 | S80: 0 | T80: 0 | U80: 0 | V80: 0 | W80: 0 | X80: 0 | Y80: 0 | Z80: 0 | AA80: 0 | AB80: 0 | AC80: 0 | AD80: 0 | AE80: 0 | AF80: 0 | AG80: 0 | AH80: 0 | AI80: 0 | AJ80: 0 | AK80: 0 | AL80: 0 | AM80: 0 | AN80: 0 | AO80: 0 | AP80: 0 | AQ80: 0 | AR80: 0 | AS80: 0 | AT80: 0 | AU80: 0 | AV80: 0 | AW80: 0 | AX80: 0 | AY80: 0 | AZ80: 0 | BA80: 0 | BB80: 0 | BC80: 0 | BD80: 0 | BE80: 0 | BF80: 0 | BG80: 0
B81: =B65 -> Opex - distribution substation | G81: ='1_KMA'!$I$20 -> 2024-06-30 | H81: ='1_KMA'!$I$19 -> $thousands | J81: =$J$65*J73 -> 0 | K81: =$J$65*K73 -> 0 | L81: =$J$65*L73 -> 0 | M81: =$J$65*M73 -> 0 | N81: =$J$65*N73 -> 0 | O81: 0 | P81: 0 | Q81: 0 | R81: =$J$65*R73 -> 0 | S81: 0 | T81: 0 | U81: 0 | V81: 0 | W81: 0 | X81: 0 | Y81: 0 | Z81: 0 | AA81: 0 | AB81: 0 | AC81: 0 | AD81: 0 | AE81: 0 | AF81: 0 | AG81: 0 | AH81: 0 | AI81: 0 | AJ81: 0 | AK81: 0 | AL81: 0 | AM81: 0 | AN81: 0 | AO81: 0 | AP81: 0 | AQ81: 0 | AR81: 0 | AS81: 0 | AT81: 0 | AU81: 0 | AV81: 0 | AW81: 0 | AX81: 0 | AY81: 0 | AZ81: 0 | BA81: 0 | BB81: 0 | BC81: 0 | BD81: 0 | BE81: 0 | BF81: 0 | BG81: 0
B82: =B66 -> Opex - LV circuits | G82: ='1_KMA'!$I$20 -> 2024-06-30 | H82: ='1_KMA'!$I$19 -> $thousands | J82: =$J$66*J74 -> 0 | K82: =$J$66*K74 -> 0 | L82: =$J$66*L74 -> 0 | M82: =$J$66*M74 -> 0 | N82: 0 | O82: =$J$66*O74 -> 0 | P82: 0 | Q82: 0 | R82: =$J$66*R74 -> 0 | S82: 0 | T82: 0 | U82: 0 | V82: 0 | W82: 0 | X82: 0 | Y82: 0 | Z82: 0 | AA82: 0 | AB82: 0 | AC82: 0 | AD82: 0 | AE82: 0 | AF82: 0 | AG82: 0 | AH82: 0 | AI82: 0 | AJ82: 0 | AK82: 0 | AL82: 0 | AM82: 0 | AN82: 0 | AO82: 0 | AP82: 0 | AQ82: 0 | AR82: 0 | AS82: 0 | AT82: 0 | AU82: 0 | AV82: 0 | AW82: 0 | AX82: 0 | AY82: 0 | AZ82: 0 | BA82: 0 | BB82: 0 | BC82: 0 | BD82: 0 | BE82: 0 | BF82: 0 | BG82: 0
B83: =B67 -> Responding to feeder overloads | G83: ='1_KMA'!$I$20 -> 2024-06-30 | H83: ='1_KMA'!$I$19 -> $thousands | J83: =$J$67*J75 -> 0 | K83: =$J$67*K75 -> 0 | L83: 0 | M83: 0 | N83: 0 | O83: 0 | P83: 0 | Q83: 0 | R83: =$J$67*R75 -> 0 | S83: 0 | T83: 0 | U83: 0 | V83: 0 | W83: 0 | X83: 0 | Y83: 0 | Z83: 0 | AA83: 0 | AB83: 0 | AC83: 0 | AD83: 0 | AE83: 0 | AF83: 0 | AG83: 0 | AH83: 0 | AI83: 0 | AJ83: 0 | AK83: 0 | AL83: 0 | AM83: 0 | AN83: 0 | AO83: 0 | AP83: 0 | AQ83: 0 | AR83: 0 | AS83: 0 | AT83: 0 | AU83: 0 | AV83: 0 | AW83: 0 | AX83: 0 | AY83: 0 | AZ83: 0 | BA83: 0 | BB83: 0 | BC83: 0 | BD83: 0 | BE83: 0 | BF83: 0 | BG83: 0
B84: Responding to substation failures | G84: ='1_KMA'!$I$20 -> 2024-06-30 | H84: ='1_KMA'!$I$19 -> $thousands | J84: =$J$68*J76 -> 0 | K84: =$J$68*K76 -> 0 | L84: 0 | M84: 0 | N84: 0 | O84: 0 | P84: 0 | Q84: 0 | R84: =$J$68*R76 -> 0 | S84: 0 | T84: 0 | U84: 0 | V84: 0 | W84: 0 | X84: 0 | Y84: 0 | Z84: 0 | AA84: 0 | AB84: 0 | AC84: 0 | AD84: 0 | AE84: 0 | AF84: 0 | AG84: 0 | AH84: 0 | AI84: 0 | AJ84: 0 | AK84: 0 | AL84: 0 | AM84: 0 | AN84: 0 | AO84: 0 | AP84: 0 | AQ84: 0 | AR84: 0 | AS84: 0 | AT84: 0 | AU84: 0 | AV84: 0 | AW84: 0 | AX84: 0 | AY84: 0 | AZ84: 0 | BA84: 0 | BB84: 0 | BC84: 0 | BD84: 0 | BE84: 0 | BF84: 0 | BG84: 0
B85: Responding to LV cricuit failures | G85: ='1_KMA'!$I$20 -> 2024-06-30 | H85: ='1_KMA'!$I$19 -> $thousands | J85: =$J$69*J77 -> 0 | K85: =$J$69*K77 -> 0 | L85: 0 | M85: 0 | N85: 0 | O85: 0 | P85: 0 | Q85: 0 | R85: =$J$69*R77 -> 0 | S85: 0 | T85: 0 | U85: 0 | V85: 0 | W85: 0 | X85: 0 | Y85: 0 | Z85: 0 | AA85: 0 | AB85: 0 | AC85: 0 | AD85: 0 | AE85: 0 | AF85: 0 | AG85: 0 | AH85: 0 | AI85: 0 | AJ85: 0 | AK85: 0 | AL85: 0 | AM85: 0 | AN85: 0 | AO85: 0 | AP85: 0 | AQ85: 0 | AR85: 0 | AS85: 0 | AT85: 0 | AU85: 0 | AV85: 0 | AW85: 0 | AX85: 0 | AY85: 0 | AZ85: 0 | BA85: 0 | BB85: 0 | BC85: 0 | BD85: 0 | BE85: 0 | BF85: 0 | BG85: 0
G87: $ Basis Reminder | H87: $ Reminder
B88: Total | G88: ='1_KMA'!$I$20 -> 2024-06-30 | H88: ='1_KMA'!$I$19 -> $thousands | J88: =SUM(J80:J85) -> 0 | K88: =SUM(K80:K85) -> 0 | L88: =SUM(L80:L85) -> 0 | M88: =SUM(M80:M85) -> 0 | N88: =SUM(N80:N85) -> 0 | O88: 0 | P88: 0 | Q88: 0 | R88: 0 | S88: 0 | T88: 0 | U88: 0 | V88: 0 | W88: 0 | X88: 0 | Y88: 0 | Z88: 0 | AA88: 0 | AB88: 0 | AC88: 0 | AD88: 0 | AE88: 0 | AF88: 0 | AG88: 0 | AH88: 0 | AI88: 0 | AJ88: 0 | AK88: 0 | AL88: 0 | AM88: 0 | AN88: 0 | AO88: 0 | AP88: 0 | AQ88: 0 | AR88: 0 | AS88: 0 | AT88: 0 | AU88: 0 | AV88: 0 | AW88: 0 | AX88: 0 | AY88: 0 | AZ88: 0 | BA88: 0 | BB88: 0 | BC88: 0 | BD88: 0 | BE88: 0 | BF88: 0 | BG88: =SUM(BG80:BG85) -> 0
B90: Benefits Inputs
B92: Value of EUE
B94: Name | H94: Unit | J94: Value
B95: Value of EUE (feeder) | H95: Thousands p.a. | J95: 327.5075428
B96: Value of EUE (distribution substation) | H96: Thousands p.a. | J96: 414.9981333
B97: Value of EUE (LV circuits) | H97: Thousands p.a. | J97: 253.0318384
B101: Name | G101: $ Basis Reminder | H101: $ Reminder
B102: =B95 -> Value of EUE (feeder) | G102: ='1_KMA'!$I$20 -> 2024-06-30 | H102: ='1_KMA'!$I$19 -> $thousands | J102: =$J95 -> 327.5075428 | K102: =$J95 -> 327.5075428 | L102: 327.5075428 | M102: 327.5075428 | N102: 327.5075428 | O102: 327.5075428 | P102: 327.5075428 | Q102: 327.5075428 | R102: 327.5075428 | S102: 327.5075428 | T102: 327.5075428 | U102: 327.5075428 | V102: 327.5075428 | W102: 327.5075428 | X102: 327.5075428 | Y102: 327.5075428 | Z102: 327.5075428 | AA102: 327.5075428 | AB102: 327.5075428 | AC102: 327.5075428 | AD102: 327.5075428 | AE102: 327.5075428 | AF102: 327.5075428 | AG102: 327.5075428 | AH102: 327.5075428 | AI102: 327.5075428 | AJ102: 327.5075428 | AK102: 327.5075428 | AL102: 327.5075428 | AM102: 327.5075428 | AN102: 327.5075428 | AO102: 327.5075428 | AP102: 327.5075428 | AQ102: 327.5075428 | AR102: 327.5075428 | AS102: 327.5075428 | AT102: 327.5075428 | AU102: 327.5075428 | AV102: 327.5075428 | AW102: 327.5075428 | AX102: 327.5075428 | AY102: 327.5075428 | AZ102: =$J95 -> 327.5075428 | BA102: 327.5075428 | BB102: 327.5075428 | BC102: 327.5075428 | BD102: 327.5075428 | BE102: 327.5075428 | BF102: 327.5075428 | BG102: 327.5075428
B103: =B96 -> Value of EUE (distribution substation) | G103: ='1_KMA'!$I$20 -> 2024-06-30 | H103: ='1_KMA'!$I$19 -> $thousands | J103: =$J96 -> 414.9981333 | K103: =$J96 -> 414.9981333 | L103: 414.9981333 | M103: 414.9981333 | N103: 414.9981333 | O103: 414.9981333 | P103: 414.9981333 | Q103: 414.9981333 | R103: 414.9981333 | S103: 414.9981333 | T103: 414.9981333 | U103: 414.9981333 | V103: 414.9981333 | W103: 414.9981333 | X103: 414.9981333 | Y103: 414.9981333 | Z103: 414.9981333 | AA103: 414.9981333 | AB103: 414.9981333 | AC103: 414.9981333 | AD103: 414.9981333 | AE103: 414.9981333 | AF103: 414.9981333 | AG103: 414.9981333 | AH103: 414.9981333 | AI103: 414.9981333 | AJ103: 414.9981333 | AK103: 414.9981333 | AL103: 414.9981333 | AM103: 414.9981333 | AN103: 414.9981333 | AO103: 414.9981333 | AP103: 414.9981333 | AQ103: 414.9981333 | AR103: 414.9981333 | AS103: 414.9981333 | AT103: 414.9981333 | AU103: 414.9981333 | AV103: 414.9981333 | AW103: 414.9981333 | AX103: 414.9981333 | AY103: 414.9981333 | AZ103: =$J96 -> 414.9981333 | BA103: 414.9981333 | BB103: 414.9981333 | BC103: 414.9981333 | BD103: 414.9981333 | BE103: 414.9981333 | BF103: 414.9981333 | BG103: 414.9981333
B104: =B97 -> Value of EUE (LV circuits) | G104: ='1_KMA'!$I$20 -> 2024-06-30 | H104: ='1_KMA'!$I$19 -> $thousands | J104: =$J97 -> 253.0318384 | K104: 253.0318384 | L104: 253.0318384 | M104: 253.0318384 | N104: 253.0318384 | O104: 253.0318384 | P104: 253.0318384 | Q104: 253.0318384 | R104: 253.0318384 | S104: =$J97 -> 253.0318384 | T104: 253.0318384 | U104: 253.0318384 | V104: 253.0318384 | W104: 253.0318384 | X104: 253.0318384 | Y104: 253.0318384 | Z104: 253.0318384 | AA104: 253.0318384 | AB104: 253.0318384 | AC104: 253.0318384 | AD104: 253.0318384 | AE104: 253.0318384 | AF104: 253.0318384 | AG104: 253.0318384 | AH104: 253.0318384 | AI104: 253.0318384 | AJ104: 253.0318384 | AK104: 253.0318384 | AL104: 253.0318384 | AM104: 253.0318384 | AN104: 253.0318384 | AO104: 253.0318384 | AP104: 253.0318384 | AQ104: 253.0318384 | AR104: 253.0318384 | AS104: 253.0318384 | AT104: 253.0318384 | AU104: 253.0318384 | AV104: 253.0318384 | AW104: 253.0318384 | AX104: 253.0318384 | AY104: 253.0318384 | AZ104: =$J97 -> 253.0318384 | BA104: 253.0318384 | BB104: 253.0318384 | BC104: 253.0318384 | BD104: 253.0318384 | BE104: 253.0318384 | BF104: 253.0318384 | BG104: 253.0318384
G105: ='1_KMA'!$I$20 -> 2024-06-30 | H105: ='1_KMA'!$I$19 -> $thousands
G107: $ Basis Reminder | H107: $ Reminder
B108: Total | G108: ='1_KMA'!$I$20 -> 2024-06-30 | H108: ='1_KMA'!$I$19 -> $thousands | J108: =SUM(J102:J105) -> 995.5375145 | K108: =SUM(K102:K105) -> 995.5375145 | L108: 995.5375145 | M108: 995.5375145 | N108: 995.5375145 | O108: 995.5375145 | P108: 995.5375145 | Q108: 995.5375145 | R108: 995.5375145 | S108: 995.5375145 | T108: 995.5375145 | U108: 995.5375145 | V108: 995.5375145 | W108: 995.5375145 | X108: 995.5375145 | Y108: 995.5375145 | Z108: 995.5375145 | AA108: 995.5375145 | AB108: 995.5375145 | AC108: 995.5375145 | AD108: 995.5375145 | AE108: 995.5375145 | AF108: 995.5375145 | AG108: 995.5375145 | AH108: 995.5375145 | AI108: 995.5375145 | AJ108: 995.5375145 | AK108: 995.5375145 | AL108: 995.5375145 | AM108: 995.5375145 | AN108: 995.5375145 | AO108: 995.5375145 | AP108: 995.5375145 | AQ108: 995.5375145 | AR108: 995.5375145 | AS108: 995.5375145 | AT108: 995.5375145 | AU108: 995.5375145 | AV108: 995.5375145 | AW108: 995.5375145 | AX108: 995.5375145 | AY108: 995.5375145 | AZ108: 995.5375145 | BA108: 995.5375145 | BB108: 995.5375145 | BC108: 995.5375145 | BD108: 995.5375145 | BE108: 995.5375145 | BF108: 995.5375145 | BG108: 995.5375145

Sheet 2.1_Op1
B1: General Inputs: Option 1 | I1: Regulatory Period Indicator | J1: ='1_KMA'!J30 -> 0 | K1: ='1_KMA'!K30 -> 0 | L1: ='1_KMA'!L30 -> 0 | M1: ='1_KMA'!M30 -> 1 | N1: ='1_KMA'!N30 -> 1 | O1: ='1_KMA'!O30 -> 1 | P1: ='1_KMA'!P30 -> 1 | Q1: ='1_KMA'!Q30 -> 1 | R1: ='1_KMA'!R30 -> 0 | S1: ='1_KMA'!S30 -> 0 | T1: ='1_KMA'!T30 -> 0 | U1: ='1_KMA'!U30 -> 0 | V1: ='1_KMA'!V30 -> 0 | W1: ='1_KMA'!W30 -> 0 | X1: ='1_KMA'!X30 -> 0 | Y1: ='1_KMA'!Y30 -> 0 | Z1: ='1_KMA'!Z30 -> 0 | AA1: ='1_KMA'!AA30 -> 0 | AB1: ='1_KMA'!AB30 -> 0 | AC1: ='1_KMA'!AC30 -> 0 | AD1: ='1_KMA'!AD30 -> 0 | AE1: ='1_KMA'!AE30 -> 0 | AF1: ='1_KMA'!AF30 -> 0 | AG1: ='1_KMA'!AG30 -> 0 | AH1: ='1_KMA'!AH30 -> 0 | AI1: ='1_KMA'!AI30 -> 0 | AJ1: ='1_KMA'!AJ30 -> 0 | AK1: ='1_KMA'!AK30 -> 0 | AL1: ='1_KMA'!AL30 -> 0 | AM1: ='1_KMA'!AM30 -> 0 | AN1: ='1_KMA'!AN30 -> 0 | AO1: ='1_KMA'!AO30 -> 0 | AP1: ='1_KMA'!AP30 -> 0 | AQ1: ='1_KMA'!AQ30 -> 0 | AR1: ='1_KMA'!AR30 -> 0 | AS1: ='1_KMA'!AS30 -> 0 | AT1: ='1_KMA'!AT30 -> 0 | AU1: ='1_KMA'!AU30 -> 0 | AV1: ='1_KMA'!AV30 -> 0 | AW1: ='1_KMA'!AW30 -> 0 | AX1: ='1_KMA'!AX30 -> 0 | AY1: ='1_KMA'!AY30 -> 0 | AZ1: ='1_KMA'!AZ30 -> 0 | BA1: ='1_KMA'!BA30 -> 0 | BB1: ='1_KMA'!BB30 -> 0 | BC1: ='1_KMA'!BC30 -> 0 | BD1: ='1_KMA'!BD30 -> 0 | BE1: ='1_KMA'!BE30 -> 0 | BF1: ='1_KMA'!BF30 -> 0 | BG1: ='1_KMA'!BG30 -> 0
B2: =Cover!$C$9 -> AusNet Services | I2: Period Start Date | J2: ='1_KMA'!J31 -> 2023-07-01 | K2: ='1_KMA'!K31 -> 2024-07-01 | L2: ='1_KMA'!L31 -> 2025-07-01 | M2: ='1_KMA'!M31 -> 2026-07-01 | N2: ='1_KMA'!N31 -> 2027-07-01 | O2: ='1_KMA'!O31 -> 2028-07-01 | P2: ='1_KMA'!P31 -> 2029-07-01 | Q2: ='1_KMA'!Q31 -> 2030-07-01 | R2: ='1_KMA'!R31 -> 2031-07-01 | S2: ='1_KMA'!S31 -> 2032-07-01 | T2: ='1_KMA'!T31 -> 2033-07-01 | U2: ='1_KMA'!U31 -> 2034-07-01 | V2: ='1_KMA'!V31 -> 2035-07-01 | W2: ='1_KMA'!W31 -> 2036-07-01 | X2: ='1_KMA'!X31 -> 2037-07-01 | Y2: ='1_KMA'!Y31 -> 2038-07-01 | Z2: ='1_KMA'!Z31 -> 2039-07-01 | AA2: ='1_KMA'!AA31 -> 2040-07-01 | AB2: ='1_KMA'!AB31 -> 2041-07-01 | AC2: ='1_KMA'!AC31 -> 2042-07-01 | AD2: ='1_KMA'!AD31 -> 2043-07-01 | AE2: ='1_KMA'!AE31 -> 2044-07-01 | AF2: ='1_KMA'!AF31 -> 2045-07-01 | AG2: ='1_KMA'!AG31 -> 2046-07-01 | AH2: ='1_KMA'!AH31 -> 2047-07-01 | AI2: ='1_KMA'!AI31 -> 2048-07-01 | AJ2: ='1_KMA'!AJ31 -> 2049-07-01 | AK2: ='1_KMA'!AK31 -> 2050-07-01 | AL2: ='1_KMA'!AL31 -> 2051-07-01 | AM2: ='1_KMA'!AM31 -> 2052-07-01 | AN2: ='1_KMA'!AN31 -> 2053-07-01 | AO2: ='1_KMA'!AO31 -> 2054-07-01 | AP2: ='1_KMA'!AP31 -> 2055-07-01 | AQ2: ='1_KMA'!AQ31 -> 2056-07-01 | AR2: ='1_KMA'!AR31 -> 2057-07-01 | AS2: ='1_KMA'!AS31 -> 2058-07-01 | AT2: ='1_KMA'!AT31 -> 2059-07-01 | AU2: ='1_KMA'!AU31 -> 2060-07-01 | AV2: ='1_KMA'!AV31 -> 2061-07-01 | AW2: ='1_KMA'!AW31 -> 2062-07-01 | AX2: ='1_KMA'!AX31 -> 2063-07-01 | AY2: ='1_KMA'!AY31 -> 2064-07-01 | AZ2: ='1_KMA'!AZ31 -> 2065-07-01 | BA2: ='1_KMA'!BA31 -> 2066-07-01 | BB2: ='1_KMA'!BB31 -> 2067-07-01 | BC2: ='1_KMA'!BC31 -> 2068-07-01 | BD2: ='1_KMA'!BD31 -> 2069-07-01 | BE2: ='1_KMA'!BE31 -> 2070-07-01 | BF2: ='1_KMA'!BF31 -> 2071-07-01 | BG2: ='1_KMA'!BG31 -> 2072-07-01
B3: =Cover!$C$10 -> Business Case Evaluation | I3: Period End Date | J3: ='1_KMA'!J32 -> 2024-06-30 | K3: ='1_KMA'!K32 -> 2025-06-30 | L3: ='1_KMA'!L32 -> 2026-06-30 | M3: ='1_KMA'!M32 -> 2027-06-30 | N3: ='1_KMA'!N32 -> 2028-06-30 | O3: ='1_KMA'!O32 -> 2029-06-30 | P3: ='1_KMA'!P32 -> 2030-06-30 | Q3: ='1_KMA'!Q32 -> 2031-06-30 | R3: ='1_KMA'!R32 -> 2032-06-30 | S3: ='1_KMA'!S32 -> 2033-06-30 | T3: ='1_KMA'!T32 -> 2034-06-30 | U3: ='1_KMA'!U32 -> 2035-06-30 | V3: ='1_KMA'!V32 -> 2036-06-30 | W3: ='1_KMA'!W32 -> 2037-06-30 | X3: ='1_KMA'!X32 -> 2038-06-30 | Y3: ='1_KMA'!Y32 -> 2039-06-30 | Z3: ='1_KMA'!Z32 -> 2040-06-30 | AA3: ='1_KMA'!AA32 -> 2041-06-30 | AB3: ='1_KMA'!AB32 -> 2042-06-30 | AC3: ='1_KMA'!AC32 -> 2043-06-30 | AD3: ='1_KMA'!AD32 -> 2044-06-30 | AE3: ='1_KMA'!AE32 -> 2045-06-30 | AF3: ='1_KMA'!AF32 -> 2046-06-30 | AG3: ='1_KMA'!AG32 -> 2047-06-30 | AH3: ='1_KMA'!AH32 -> 2048-06-30 | AI3: ='1_KMA'!AI32 -> 2049-06-30 | AJ3: ='1_KMA'!AJ32 -> 2050-06-30 | AK3: ='1_KMA'!AK32 -> 2051-06-30 | AL3: ='1_KMA'!AL32 -> 2052-06-30 | AM3: ='1_KMA'!AM32 -> 2053-06-30 | AN3: ='1_KMA'!AN32 -> 2054-06-30 | AO3: ='1_KMA'!AO32 -> 2055-06-30 | AP3: ='1_KMA'!AP32 -> 2056-06-30 | AQ3: ='1_KMA'!AQ32 -> 2057-06-30 | AR3: ='1_KMA'!AR32 -> 2058-06-30 | AS3: ='1_KMA'!AS32 -> 2059-06-30 | AT3: ='1_KMA'!AT32 -> 2060-06-30 | AU3: ='1_KMA'!AU32 -> 2061-06-30 | AV3: ='1_KMA'!AV32 -> 2062-06-30 | AW3: ='1_KMA'!AW32 -> 2063-06-30 | AX3: ='1_KMA'!AX32 -> 2064-06-30 | AY3: ='1_KMA'!AY32 -> 2065-06-30 | AZ3: ='1_KMA'!AZ32 -> 2066-06-30 | BA3: ='1_KMA'!BA32 -> 2067-06-30 | BB3: ='1_KMA'!BB32 -> 2068-06-30 | BC3: ='1_KMA'!BC32 -> 2069-06-30 | BD3: ='1_KMA'!BD32 -> 2070-06-30 | BE3: ='1_KMA'!BE32 -> 2071-06-30 | BF3: ='1_KMA'!BF32 -> 2072-06-30 | BG3: ='1_KMA'!BG32 -> 2073-06-30
B4: =Cover!$C$11 -> Summer and winter readiness | I4: Project Year | J4: ='1_KMA'!J33 -> 1 | K4: ='1_KMA'!K33 -> 2 | L4: ='1_KMA'!L33 -> 3 | M4: ='1_KMA'!M33 -> 4 | N4: ='1_KMA'!N33 -> 5 | O4: ='1_KMA'!O33 -> 6 | P4: ='1_KMA'!P33 -> 7 | Q4: ='1_KMA'!Q33 -> 8 | R4: ='1_KMA'!R33 -> 9 | S4: ='1_KMA'!S33 -> 10 | T4: ='1_KMA'!T33 -> 11 | U4: ='1_KMA'!U33 -> 12 | V4: ='1_KMA'!V33 -> 13 | W4: ='1_KMA'!W33 -> 14 | X4: ='1_KMA'!X33 -> 15 | Y4: ='1_KMA'!Y33 -> 16 | Z4: ='1_KMA'!Z33 -> 17 | AA4: ='1_KMA'!AA33 -> 18 | AB4: ='1_KMA'!AB33 -> 19 | AC4: ='1_KMA'!AC33 -> 20 | AD4: ='1_KMA'!AD33 -> 21 | AE4: ='1_KMA'!AE33 -> 22 | AF4: ='1_KMA'!AF33 -> 23 | AG4: ='1_KMA'!AG33 -> 24 | AH4: ='1_KMA'!AH33 -> 25 | AI4: ='1_KMA'!AI33 -> 26 | AJ4: ='1_KMA'!AJ33 -> 27 | AK4: ='1_KMA'!AK33 -> 28 | AL4: ='1_KMA'!AL33 -> 29 | AM4: ='1_KMA'!AM33 -> 30 | AN4: ='1_KMA'!AN33 -> 31 | AO4: ='1_KMA'!AO33 -> 32 | AP4: ='1_KMA'!AP33 -> 33 | AQ4: ='1_KMA'!AQ33 -> 34 | AR4: ='1_KMA'!AR33 -> 35 | AS4: ='1_KMA'!AS33 -> 36 | AT4: ='1_KMA'!AT33 -> 37 | AU4: ='1_KMA'!AU33 -> 38 | AV4: ='1_KMA'!AV33 -> 39 | AW4: ='1_KMA'!AW33 -> 40 | AX4: ='1_KMA'!AX33 -> 41 | AY4: ='1_KMA'!AY33 -> 42 | AZ4: ='1_KMA'!AZ33 -> 43 | BA4: ='1_KMA'!BA33 -> 44 | BB4: ='1_KMA'!BB33 -> 45 | BC4: ='1_KMA'!BC33 -> 46 | BD4: ='1_KMA'!BD33 -> 47 | BE4: ='1_KMA'!BE33 -> 48 | BF4: ='1_KMA'!BF33 -> 49 | BG4: ='1_KMA'!BG33 -> 50
I5: Financial Year | J5: ='1_KMA'!J34 -> 2024 | K5: ='1_KMA'!K34 -> 2025 | L5: ='1_KMA'!L34 -> 2026 | M5: ='1_KMA'!M34 -> 2027 | N5: ='1_KMA'!N34 -> 2028 | O5: ='1_KMA'!O34 -> 2029 | P5: ='1_KMA'!P34 -> 2030 | Q5: ='1_KMA'!Q34 -> 2031 | R5: ='1_KMA'!R34 -> 2032 | S5: ='1_KMA'!S34 -> 2033 | T5: ='1_KMA'!T34 -> 2034 | U5: ='1_KMA'!U34 -> 2035 | V5: ='1_KMA'!V34 -> 2036 | W5: ='1_KMA'!W34 -> 2037 | X5: ='1_KMA'!X34 -> 2038 | Y5: ='1_KMA'!Y34 -> 2039 | Z5: ='1_KMA'!Z34 -> 2040 | AA5: ='1_KMA'!AA34 -> 2041 | AB5: ='1_KMA'!AB34 -> 2042 | AC5: ='1_KMA'!AC34 -> 2043 | AD5: ='1_KMA'!AD34 -> 2044 | AE5: ='1_KMA'!AE34 -> 2045 | AF5: ='1_KMA'!AF34 -> 2046 | AG5: ='1_KMA'!AG34 -> 2047 | AH5: ='1_KMA'!AH34 -> 2048 | AI5: ='1_KMA'!AI34 -> 2049 | AJ5: ='1_KMA'!AJ34 -> 2050 | AK5: ='1_KMA'!AK34 -> 2051 | AL5: ='1_KMA'!AL34 -> 2052 | AM5: ='1_KMA'!AM34 -> 2053 | AN5: ='1_KMA'!AN34 -> 2054 | AO5: ='1_KMA'!AO34 -> 2055 | AP5: ='1_KMA'!AP34 -> 2056 | AQ5: ='1_KMA'!AQ34 -> 2057 | AR5: ='1_KMA'!AR34 -> 2058 | AS5: ='1_KMA'!AS34 -> 2059 | AT5: ='1_KMA'!AT34 -> 2060 | AU5: ='1_KMA'!AU34 -> 2061 | AV5: ='1_KMA'!AV34 -> 2062 | AW5: ='1_KMA'!AW34 -> 2063 | AX5: ='1_KMA'!AX34 -> 2064 | AY5: ='1_KMA'!AY34 -> 2065 | AZ5: ='1_KMA'!AZ34 -> 2066 | BA5: ='1_KMA'!BA34 -> 2067 | BB5: ='1_KMA'!BB34 -> 2068 | BC5: ='1_KMA'!BC34 -> 2069 | BD5: ='1_KMA'!BD34 -> 2070 | BE5: ='1_KMA'!BE34 -> 2071 | BF5: ='1_KMA'!BF34 -> 2072 | BG5: ='1_KMA'!BG34 -> 2073
B7: Summary
B9: Costs | G9: $ Basis Reminder | H9: $ Reminder
B10: Capex | G10: ='1_KMA'!$I$20 -> 2024-06-30 | H10: ='1_KMA'!$I$19 -> $thousands | J10: 0 | K10: 0 | L10: 0 | M10: 1039.413333 | N10: 1039.413333 | O10: 1039.413333 | P10: 1039.413333 | Q10: 1039.413333 | R10: 0 | S10: 0 | T10: 0 | U10: 0 | V10: 0 | W10: 0 | X10: 0 | Y10: 0 | Z10: 0 | AA10: 0 | AB10: 0 | AC10: 0 | AD10: 0 | AE10: 0 | AF10: 0 | AG10: 0 | AH10: 0 | AI10: 0 | AJ10: 0 | AK10: 0 | AL10: 0 | AM10: 0 | AN10: 0 | AO10: 0 | AP10: 0 | AQ10: 0 | AR10: 0 | AS10: 0 | AT10: 0 | AU10: 0 | AV10: 0 | AW10: 0 | AX10: 0 | AY10: 0 | AZ10: 0 | BA10: 0 | BB10: 0 | BC10: 0 | BD10: 0 | BE10: 0 | BF10: 0 | BG10: 0
B11: Capex offset | G11: ='1_KMA'!$I$20 -> 2024-06-30 | H11: ='1_KMA'!$I$19 -> $thousands | J11: 0 | K11: 0 | L11: 0 | M11: 0 | N11: 0 | O11: 0 | P11: 0 | Q11: 0 | R11: 0 | S11: 0 | T11: 0 | U11: 0 | V11: 0 | W11: 0 | X11: 0 | Y11: 0 | Z11: 0 | AA11: 0 | AB11: 0 | AC11: 0 | AD11: 0 | AE11: 0 | AF11: 0 | AG11: 0 | AH11: 0 | AI11: 0 | AJ11: 0 | AK11: 0 | AL11: 0 | AM11: 0 | AN11: 0 | AO11: 0 | AP11: 0 | AQ11: 0 | AR11: 0 | AS11: 0 | AT11: 0 | AU11: 0 | AV11: 0 | AW11: 0 | AX11: 0 | AY11: 0 | AZ11: 0 | BA11: 0 | BB11: 0 | BC11: 0 | BD11: 0 | BE11: 0 | BF11: 0 | BG11: 0
B12: Opex | G12: ='1_KMA'!$I$20 -> 2024-06-30 | H12: ='1_KMA'!$I$19 -> $thousands | J12: 100 | K12: 100 | L12: 100 | M12: 100 | N12: 100 | O12: 100 | P12: 100 | Q12: 100 | R12: 100 | S12: 100 | T12: 100 | U12: 100 | V12: 100 | W12: 100 | X12: 100 | Y12: 100 | Z12: 100 | AA12: 100 | AB12: 100 | AC12: 100 | AD12: 100 | AE12: 100 | AF12: 100 | AG12: 100 | AH12: 250 | AI12: 250 | AJ12: 250 | AK12: 250 | AL12: 250 | AM12: 250 | AN12: 250 | AO12: 250 | AP12: -50 | AQ12: 250 | AR12: 250 | AS12: 250 | AT12: 250 | AU12: 100 | AV12: 100 | AW12: 100 | AX12: 100 | AY12: 100 | AZ12: 100 | BA12: 100 | BB12: 100 | BC12: 100 | BD12: 100 | BE12: 100 | BF12: 100 | BG12: 100
B13: Total | G13: ='1_KMA'!$I$20 -> 2024-06-30 | H13: ='1_KMA'!$I$19 -> $thousands | J13: =SUM(J10:J12) -> 100 | K13: =SUM(K10:K12) -> 100 | L13: =SUM(L10:L12) -> 100 | M13: 1139.413333 | N13: 1139.413333 | O13: 1139.413333 | P13: 1139.413333 | Q13: 1139.413333 | R13: 100 | S13: 100 | T13: 100 | U13: 100 | V13: 100 | W13: 100 | X13: 100 | Y13: 100 | Z13: 100 | AA13: 100 | AB13: 100 | AC13: 100 | AD13: 100 | AE13: 100 | AF13: 100 | AG13: 100 | AH13: 250 | AI13: 250 | AJ13: 250 | AK13: 250 | AL13: 250 | AM13: 250 | AN13: 250 | AO13: 250 | AP13: -50 | AQ13: 250 | AR13: 250 | AS13: 250 | AT13: 250 | AU13: 100 | AV13: 100 | AW13: 100 | AX13: 100 | AY13: 100 | AZ13: 100 | BA13: 100 | BB13: 100 | BC13: 100 | BD13: 100 | BE13: 100 | BF13: 100 | BG13: 100
B15: For benefits calc | G15: $ Basis Reminder | H15: $ Reminder
B16: Value of EUE (residual) | J16: =J108 -> 0 | K16: =K108 -> 0 | L16: 0 | M16: 0 | N16: 0 | O16: 0 | P16: 0 | Q16: 0 | R16: 0 | S16: 0 | T16: 0 | U16: 0 | V16: 0 | W16: 0 | X16: 0 | Y16: 0 | Z16: 0 | AA16: 0 | AB16: 0 | AC16: 0 | AD16: 0 | AE16: 0 | AF16: 0 | AG16: 0 | AH16: 0 | AI16: 0 | AJ16: 0 | AK16: 0 | AL16: 0 | AM16: 0 | AN16: 0 | AO16: 0 | AP16: 0 | AQ16: 0 | AR16: 0 | AS16: 0 | AT16: 0 | AU16: 0 | AV16: 0 | AW16: 0 | AX16: 0 | AY16: 0 | AZ16: 0 | BA16: 0 | BB16: 0 | BC16: 0 | BD16: 0 | BE16: 0
B21: Total | G21: ='1_KMA'!$I$20 -> 2024-06-30 | H21: ='1_KMA'!$I$19 -> $thousands | J21: =SUM(J16:J20) -> 0 | K21: =SUM(K16:K20) -> 0 | L21: 0 | M21: 0 | N21: 0 | O21: 0 | P21: 0 | Q21: 0 | R21: 0 | S21: 0 | T21: 0 | U21: 0 | V21: 0 | W21: 0 | X21: 0 | Y21: 0 | Z21: 0 | AA21: 0 | AB21: 0 | AC21: 0 | AD21: 0 | AE21: 0 | AF21: 0 | AG21: 0 | AH21: 0 | AI21: 0 | AJ21: 0 | AK21: 0 | AL21: 0 | AM21: 0 | AN21: 0 | AO21: 0 | AP21: 0 | AQ21: 0 | AR21: 0 | AS21: 0 | AT21: 0 | AU21: 0 | AV21: 0 | AW21: 0 | AX21: 0 | AY21: 0 | AZ21: 0 | BA21: 0 | BB21: 0 | BC21: 0 | BD21: 0 | BE21: 0 | BF21: 0 | BG21: 0
B24: Cost Inputs
B26: Capex Build Up
B28: Name | H28: Unit | J28: Unit Rate
B29: Small pole type substations | H29: per item
B30: Larger pole type substations | H30: per item
B31: LV circuits | H31: per item
B32: HV feeders | H32: per item
B34: Name | H34: Unit | J34: Quantities
B35: =B29 -> Small pole type substations
B36: =B30 -> Larger pole type substations
B37: =B31 -> LV circuits
B38: =B32 -> HV feeders
B40: Name | G40: $ Basis Reminder | H40: $ Reminder
B41: =B29 -> Small pole type substations | G41: ='1_KMA'!$I$20 -> 2024-06-30 | H41: ='1_KMA'!$I$19 -> $thousands | J41: =$J$29*J35 -> 0 | K41: =$J$29*K35 -> 0 | L41: =$J$29*L35 -> 0 | M41: =$J$29*M35 -> 0 | N41: 0 | O41: =$J$29*O35 -> 0 | P41: 0 | Q41: =$J$29*Q35 -> 0 | R41: 0 | S41: 0 | T41: 0 | U41: 0 | V41: 0 | W41: 0 | X41: 0 | Y41: 0 | Z41: 0 | AA41: 0 | AB41: 0 | AC41: 0 | AD41: 0 | AE41: 0 | AF41: 0 | AG41: 0 | AH41: 0 | AI41: 0 | AJ41: 0 | AK41: 0 | AL41: 0 | AM41: 0 | AN41: 0 | AO41: 0 | AP41: 0 | AQ41: 0 | AR41: 0 | AS41: 0 | AT41: 0 | AU41: 0 | AV41: 0 | AW41: 0 | AX41: 0 | AY41: 0 | AZ41: 0 | BA41: 0 | BB41: 0 | BC41: 0 | BD41: 0 | BE41: 0 | BF41: 0 | BG41: 0
B42: =B30 -> Larger pole type substations | G42: ='1_KMA'!$I$20 -> 2024-06-30 | H42: ='1_KMA'!$I$19 -> $thousands | J42: =$J$30*J36 -> 0 | K42: =$J$30*K36 -> 0 | L42: =$J$30*L36 -> 0 | M42: =$J$30*M36 -> 0 | N42: =$J$30*N36 -> 0 | O42: 0 | P42: 0 | Q42: 0 | R42: 0 | S42: 0 | T42: 0 | U42: 0 | V42: 0 | W42: 0 | X42: 0 | Y42: 0 | Z42: 0 | AA42: 0 | AB42: 0 | AC42: 0 | AD42: 0 | AE42: 0 | AF42: 0 | AG42: 0 | AH42: 0 | AI42: 0 | AJ42: 0 | AK42: 0 | AL42: 0 | AM42: 0 | AN42: 0 | AO42: 0 | AP42: 0 | AQ42: 0 | AR42: 0 | AS42: 0 | AT42: 0 | AU42: 0 | AV42: 0 | AW42: 0 | AX42: 0 | AY42: 0 | AZ42: 0 | BA42: 0 | BB42: 0 | BC42: 0 | BD42: 0 | BE42: 0 | BF42: 0 | BG42: 0
B43: =B31 -> LV circuits | G43: ='1_KMA'!$I$20 -> 2024-06-30 | H43: ='1_KMA'!$I$19 -> $thousands | J43: =$J$31*J37 -> 0 | K43: =$J$31*K37 -> 0 | L43: =$J$31*L37 -> 0 | M43: 0 | N43: =$J$31*N37 -> 0 | O43: 0 | P43: 0 | Q43: 0 | R43: 0 | S43: 0 | T43: 0 | U43: 0 | V43: 0 | W43: 0 | X43: 0 | Y43: 0 | Z43: 0 | AA43: 0 | AB43: 0 | AC43: 0 | AD43: 0 | AE43: 0 | AF43: 0 | AG43: 0 | AH43: 0 | AI43: 0 | AJ43: 0 | AK43: 0 | AL43: 0 | AM43: 0 | AN43: 0 | AO43: 0 | AP43: 0 | AQ43: 0 | AR43: 0 | AS43: 0 | AT43: 0 | AU43: 0 | AV43: 0 | AW43: 0 | AX43: 0 | AY43: 0 | AZ43: 0 | BA43: 0 | BB43: 0 | BC43: 0 | BD43: 0 | BE43: 0 | BF43: 0 | BG43: 0
B44: =B32 -> HV feeders | G44: ='1_KMA'!$I$20 -> 2024-06-30 | H44: ='1_KMA'!$I$19 -> $thousands | J44: =$J$32*J38 -> 0 | K44: =$J$32*K38 -> 0 | L44: =$J$32*L38 -> 0 | M44: 0 | N44: 0 | O44: =$J$32*O38 -> 0 | P44: 0 | Q44: 0 | R44: 0 | S44: 0 | T44: 0 | U44: 0 | V44: 0 | W44: 0 | X44: 0 | Y44: 0 | Z44: 0 | AA44: 0 | AB44: 0 | AC44: 0 | AD44: 0 | AE44: 0 | AF44: 0 | AG44: 0 | AH44: 0 | AI44: 0 | AJ44: 0 | AK44: 0 | AL44: 0 | AM44: 0 | AN44: 0 | AO44: 0 | AP44: 0 | AQ44: 0 | AR44: 0 | AS44: 0 | AT44: 0 | AU44: 0 | AV44: 0 | AW44: 0 | AX44: 0 | AY44: 0 | AZ44: 0 | BA44: 0 | BB44: 0 | BC44: 0 | BD44: 0 | BE44: 0 | BF44: 0 | BG44: 0
G46: $ Basis Reminder | H46: $ Reminder
B47: Total | G47: ='1_KMA'!$I$20 -> 2024-06-30 | H47: ='1_KMA'!$I$19 -> $thousands | J47: =SUM(J41:J44) -> 0 | K47: =SUM(K41:K44) -> 0 | L47: 0 | M47: =SUM(M41:M44) -> 0 | N47: =SUM(N41:N44) -> 0 | O47: 0 | P47: 0 | Q47: 0 | R47: 0 | S47: 0 | T47: 0 | U47: 0 | V47: 0 | W47: 0 | X47: 0 | Y47: 0 | Z47: 0 | AA47: 0 | AB47: 0 | AC47: 0 | AD47: 0 | AE47: 0 | AF47: 0 | AG47: 0 | AH47: 0 | AI47: 0 | AJ47: 0 | AK47: 0 | AL47: 0 | AM47: 0 | AN47: 0 | AO47: 0 | AP47: 0 | AQ47: 0 | AR47: 0 | AS47: 0 | AT47: 0 | AU47: 0 | AV47: 0 | AW47: 0 | AX47: 0 | AY47: 0 | AZ47: 0 | BA47: 0 | BB47: 0 | BC47: 0 | BD47: 0 | BE47: 0 | BF47: 0 | BG47: 0
B49: Capex Offset
B52: Name | G52: $ Basis Reminder | H52: $ Reminder
G53: ='1_KMA'!$I$20 -> 2024-06-30 | H53: ='1_KMA'!$I$19 -> $thousands
G54: ='1_KMA'!$I$20 -> 2024-06-30 | H54: ='1_KMA'!$I$19 -> $thousands
G55: ='1_KMA'!$I$20 -> 2024-06-30 | H55: ='1_KMA'!$I$19 -> $thousands
G56: ='1_KMA'!$I$20 -> 2024-06-30 | H56: ='1_KMA'!$I$19 -> $thousands
G58: $ Basis Reminder | H58: $ Reminder
B59: Total | G59: ='1_KMA'!$I$20 -> 2024-06-30 | H59: ='1_KMA'!$I$19 -> $thousands | J59: =SUM(J53:J56) -> 0 | K59: =SUM(K53:K56) -> 0 | L59: =SUM(L53:L56) -> 0 | M59: 0 | N59: 0 | O59: 0 | P59: 0 | Q59: 0 | R59: 0 | S59: 0 | T59: 0 | U59: 0 | V59: 0 | W59: 0 | X59: 0 | Y59: 0 | Z59: 0 | AA59: 0 | AB59: 0 | AC59: 0 | AD59: 0 | AE59: 0 | AF59: 0 | AG59: 0 | AH59: 0 | AI59: 0 | AJ59: 0 | AK59: 0 | AL59: 0 | AM59: 0 | AN59: 0 | AO59: 0 | AP59: 0 | AQ59: 0 | AR59: 0 | AS59: 0 | AT59: 0 | AU59: 0 | AV59: 0 | AW59: 0 | AX59: 0 | AY59: 0 | AZ59: 0 | BA59: 0 | BB59: 0 | BC59: 0 | BD59: 0 | BE59: 0 | BF59: 0 | BG59: 0
B61: Opex Build Up
B63: Name | H63: Unit | J63: Value
B64: Opex (feeder) - assumed it to be a 2-3rd of BAU | H64: Thousands p.a.
B65: Opex (distribution substation) - assumed it to be a 2-3rd of BAU | H65: Thousands p.a.
B66: Opex (LV circuits) - assumed it to be a 2-3rd of BAU | H66: Thousands p.a.
B67: Responding to feeder overloads | H67: Thousands p.a.
B68: Responding to substation failures | H68: Thousands p.a.
B69: Responding to LV cricuit failures | H69: Thousands p.a.
B71: Name | H71: Unit | J71: Quantities
B72: =B64 -> Opex (feeder) - assumed it to be a 2-3rd of BAU | H72: Unit p.a.
B73: =B65 -> Opex (distribution substation) - assumed it to be a 2-3rd of BAU | H73: Unit p.a.
B74: =B66 -> Opex (LV circuits) - assumed it to be a 2-3rd of BAU | H74: Unit p.a.
B75: =B67 -> Responding to feeder overloads | H75: Unit p.a.
B76: Responding to substation failures | H76: Unit p.a.
B77: Responding to LV cricuit failures | H77: Unit p.a.
B79: Name | G79: $ Basis Reminder | H79: $ Reminder
B80: =B64 -> Opex (feeder) - assumed it to be a 2-3rd of BAU | G80: ='1_KMA'!$I$20 -> 2024-06-30 | H80: ='1_KMA'!$I$19 -> $thousands | J80: =$J$64*J72 -> 0 | K80: =$J$64*K72 -> 0 | L80: 0 | M80: =$J$64*M72 -> 0 | N80: =$J$64*N72 -> 0 | O80: 0 | P80: 0 | Q80: 0 | R80: 0 | S80: 0 | T80: 0 | U80: 0 | V80: 0 | W80: 0 | X80: 0 | Y80: 0 | Z80: 0 | AA80: 0 | AB80: 0 | AC80: 0 | AD80: 0 | AE80: 0 | AF80: 0 | AG80: 0 | AH80: 0 | AI80: 0 | AJ80: 0 | AK80: 0 | AL80: 0 | AM80: 0 | AN80: 0 | AO80: 0 | AP80: =$J$64*AP72 -> 0 | AQ80: 0 | AR80: 0 | AS80: 0 | AT80: 0 | AU80: 0 | AV80: 0 | AW80: 0 | AX80: 0 | AY80: 0 | AZ80: 0 | BA80: 0 | BB80: 0 | BC80: 0 | BD80: 0 | BE80: 0 | BF80: 0 | BG80: 0
B81: =B65 -> Opex (distribution substation) - assumed it to be a 2-3rd of BAU | G81: ='1_KMA'!$I$20 -> 2024-06-30 | H81: ='1_KMA'!$I$19 -> $thousands | J81: =$J$65*J73 -> 0 | K81: 0 | L81: 0 | M81: =$J$65*M73 -> 0 | N81: 0 | O81: 0 | P81: 0 | Q81: 0 | R81: 0 | S81: 0 | T81: 0 | U81: 0 | V81: 0 | W81: 0 | X81: 0 | Y81: 0 | Z81: 0 | AA81: 0 | AB81: 0 | AC81: 0 | AD81: 0 | AE81: 0 | AF81: 0 | AG81: 0 | AH81: 0 | AI81: 0 | AJ81: 0 | AK81: 0 | AL81: 0 | AM81: 0 | AN81: 0 | AO81: 0 | AP81: =$J$65*AP73 -> 0 | AQ81: 0 | AR81: 0 | AS81: 0 | AT81: 0 | AU81: 0 | AV81: 0 | AW81: 0 | AX81: 0 | AY81: 0 | AZ81: 0 | BA81: 0 | BB81: 0 | BC81: 0 | BD81: 0 | BE81: 0 | BF81: 0 | BG81: 0
B82: =B66 -> Opex (LV circuits) - assumed it to be a 2-3rd of BAU | G82: ='1_KMA'!$I$20 -> 2024-06-30 | H82: ='1_KMA'!$I$19 -> $thousands | J82: =$J$66*J74 -> 0 | K82: 0 | L82: 0 | M82: =$J$66*M74 -> 0 | N82: 0 | O82: 0 | P82: 0 | Q82: 0 | R82: 0 | S82: 0 | T82: 0 | U82: 0 | V82: 0 | W82: 0 | X82: 0 | Y82: 0 | Z82: 0 | AA82: 0 | AB82: 0 | AC82: 0 | AD82: 0 | AE82: 0 | AF82: 0 | AG82: 0 | AH82: 0 | AI82: 0 | AJ82: 0 | AK82: 0 | AL82: 0 | AM82: 0 | AN82: 0 | AO82: 0 | AP82: =$J$66*AP74 -> 0 | AQ82: 0 | AR82: 0 | AS82: 0 | AT82: 0 | AU82: 0 | AV82: 0 | AW82: 0 | AX82: 0 | AY82: 0 | AZ82: 0 | BA82: 0 | BB82: 0 | BC82: 0 | BD82: 0 | BE82: 0 | BF82: 0 | BG82: 0
B83: =B67 -> Responding to feeder overloads | G83: ='1_KMA'!$I$20 -> 2024-06-30 | H83: ='1_KMA'!$I$19 -> $thousands | J83: =$J$67*J75 -> 0 | K83: =$J$67*K75 -> 0 | L83: 0 | M83: =$J$67*M75 -> 0 | N83: 0 | O83: 0 | P83: 0 | Q83: 0 | R83: 0 | S83: 0 | T83: 0 | U83: 0 | V83: 0 | W83: 0 | X83: 0 | Y83: 0 | Z83: 0 | AA83: 0 | AB83: 0 | AC83: 0 | AD83: 0 | AE83: 0 | AF83: 0 | AG83: 0 | AH83: 0 | AI83: 0 | AJ83: 0 | AK83: 0 | AL83: 0 | AM83: 0 | AN83: 0 | AO83: 0 | AP83: 0 | AQ83: 0 | AR83: 0 | AS83: 0 | AT83: 0 | AU83: 0 | AV83: 0 | AW83: 0 | AX83: 0 | AY83: 0 | AZ83: 0 | BA83: 0 | BB83: 0 | BC83: 0 | BD83: 0 | BE83: 0 | BF83: 0 | BG83: 0
B84: Responding to substation failures | G84: ='1_KMA'!$I$20 -> 2024-06-30 | H84: ='1_KMA'!$I$19 -> $thousands | J84: =$J$68*J76 -> 0 | K84: =$J$68*K76 -> 0 | L84: 0 | M84: =$J$68*M76 -> 0 | N84: 0 | O84: 0 | P84: 0 | Q84: 0 | R84: 0 | S84: 0 | T84: 0 | U84: 0 | V84: 0 | W84: 0 | X84: 0 | Y84: 0 | Z84: 0 | AA84: 0 | AB84: 0 | AC84: 0 | AD84: 0 | AE84: 0 | AF84: 0 | AG84: 0 | AH84: 0 | AI84: 0 | AJ84: 0 | AK84: 0 | AL84: 0 | AM84: 0 | AN84: 0 | AO84: 0 | AP84: 0 | AQ84: 0 | AR84: 0 | AS84: 0 | AT84: 0 | AU84: 0 | AV84: 0 | AW84: 0 | AX84: 0 | AY84: 0 | AZ84: 0 | BA84: 0 | BB84: 0 | BC84: 0 | BD84: 0 | BE84: 0 | BF84: 0 | BG84: 0
B85: Responding to LV cricuit failures | G85: ='1_KMA'!$I$20 -> 2024-06-30 | H85: ='1_KMA'!$I$19 -> $thousands | J85: =$J$69*J77 -> 0 | K85: =$J$69*K77 -> 0 | L85: 0 | M85: =$J$69*M77 -> 0 | N85: 0 | O85: 0 | P85: 0 | Q85: 0 | R85: 0 | S85: 0 | T85: 0 | U85: 0 | V85: 0 | W85: 0 | X85: 0 | Y85: 0 | Z85: 0 | AA85: 0 | AB85: 0 | AC85: 0 | AD85: 0 | AE85: 0 | AF85: 0 | AG85: 0 | AH85: 0 | AI85: 0 | AJ85: 0 | AK85: 0 | AL85: 0 | AM85: 0 | AN85: 0 | AO85: 0 | AP85: 0 | AQ85: 0 | AR85: 0 | AS85: 0 | AT85: 0 | AU85: 0 | AV85: 0 | AW85: 0 | AX85: 0 | AY85: 0 | AZ85: 0 | BA85: 0 | BB85: 0 | BC85: 0 | BD85: 0 | BE85: 0 | BF85: 0 | BG85: 0
G87: $ Basis Reminder | H87: $ Reminder
B88: Total | G88: ='1_KMA'!$I$20 -> 2024-06-30 | H88: ='1_KMA'!$I$19 -> $thousands | J88: =SUM(J80:J85) -> 0 | K88: =SUM(K80:K85) -> 0 | L88: =SUM(L80:L85) -> 0 | M88: 0 | N88: 0 | O88: 0 | P88: 0 | Q88: 0 | R88: 0 | S88: 0 | T88: 0 | U88: 0 | V88: 0 | W88: 0 | X88: 0 | Y88: 0 | Z88: 0 | AA88: 0 | AB88: 0 | AC88: 0 | AD88: 0 | AE88: 0 | AF88: 0 | AG88: 0 | AH88: 0 | AI88: 0 | AJ88: 0 | AK88: 0 | AL88: 0 | AM88: 0 | AN88: 0 | AO88: 0 | AP88: 0 | AQ88: 0 | AR88: 0 | AS88: 0 | AT88: 0 | AU88: 0 | AV88: 0 | AW88: 0 | AX88: 0 | AY88: 0 | AZ88: 0 | BA88: 0 | BB88: 0 | BC88: 0 | BD88: 0 | BE88: 0 | BF88: 0 | BG88: 0
B90: Benefits Inputs
B92: Value of EUE
B94: Name | H94: Unit | J94: Value
B95: Value of EUE (feeder) | H95: Thousands p.a. | J95: 0
B96: Value of EUE (distribution substation) | H96: Thousands p.a. | J96: 0
B97: Value of EUE (LV circuits) | H97: Thousands p.a. | J97: 0
B100: Name | G100: $ Basis Reminder | H100: $ Reminder
B101: =B95 -> Value of EUE (feeder) | G101: ='1_KMA'!$I$20 -> 2024-06-30 | H101: ='1_KMA'!$I$19 -> $thousands | K101: =$J95 -> 0 | L101: =$J95 -> 0 | M101: 0 | N101: 0 | O101: 0 | P101: 0 | Q101: 0 | R101: 0 | S101: 0 | T101: 0 | U101: 0 | V101: 0 | W101: 0 | X101: 0 | Y101: 0 | Z101: 0 | AA101: 0 | AB101: 0 | AC101: 0 | AD101: 0 | AE101: 0 | AF101: 0 | AG101: 0 | AH101: 0 | AI101: 0 | AJ101: 0 | AK101: 0 | AL101: 0 | AM101: 0 | AN101: 0 | AO101: 0 | AP101: 0 | AQ101: 0 | AR101: 0 | AS101: 0 | AT101: 0 | AU101: 0 | AV101: 0 | AW101: 0 | AX101: 0 | AY101: 0
B102: =B96 -> Value of EUE (distribution substation) | G102: ='1_KMA'!$I$20 -> 2024-06-30 | H102: ='1_KMA'!$I$19 -> $thousands | J102: 0 | K102: 0 | L102: =$J96 -> 0 | M102: =$J96 -> 0 | N102: 0 | O102: 0 | P102: 0 | Q102: 0 | R102: 0 | S102: 0 | T102: 0 | U102: 0 | V102: 0 | W102: 0 | X102: 0 | Y102: 0 | Z102: 0 | AA102: 0 | AB102: 0 | AC102: 0 | AD102: 0 | AE102: 0 | AF102: 0 | AG102: 0 | AH102: 0 | AI102: 0 | AJ102: 0 | AK102: 0 | AL102: 0 | AM102: 0 | AN102: 0 | AO102: 0 | AP102: 0 | AQ102: 0 | AR102: 0 | AS102: 0 | AT102: 0 | AU102: 0 | AV102: 0 | AW102: 0 | AX102: 0 | AY102: 0
B103: =B97 -> Value of EUE (LV circuits) | G103: ='1_KMA'!$I$20 -> 2024-06-30 | H103: ='1_KMA'!$I$19 -> $thousands | J103: 0 | K103: 0 | L103: 0 | M103: 0 | N103: 0 | O103: 0 | P103: 0 | Q103: 0 | R103: 0 | S103: 0 | T103: 0 | U103: 0 | V103: 0 | W103: 0 | X103: 0 | Y103: 0 | Z103: 0 | AA103: 0 | AB103: 0 | AC103: 0 | AD103: 0 | AE103: 0 | AF103: 0 | AG103: 0 | AH103: 0 | AI103: 0 | AJ103: 0 | AK103: 0 | AL103: 0 | AM103: 0 | AN103: 0 | AO103: 0 | AP103: 0 | AQ103: 0 | AR103: 0 | AS103: 0 | AT103: 0 | AU103: 0 | AV103: 0 | AW103: 0 | AX103: 0 | AY103: 0
G104: ='1_KMA'!$I$20 -> 2024-06-30 | H104: ='1_KMA'!$I$19 -> $thousands
G107: $ Basis Reminder | H107: $ Reminder
B108: Total | G108: ='1_KMA'!$I$20 -> 2024-06-30 | H108: ='1_KMA'!$I$19 -> $thousands | J108: =SUM(J101:J103) -> 0 | K108: =SUM(K101:K103) -> 0 | L108: 0 | M108: 0 | N108: 0 | O108: 0 | P108: 0 | Q108: 0 | R108: 0 | S108: 0 | T108: 0 | U108: 0 | V108: 0 | W108: 0 | X108: 0 | Y108: 0 | Z108: 0 | AA108: 0 | AB108: 0 | AC108: 0 | AD108: 0 | AE108: 0 | AF108: 0 | AG108: 0 | AH108: 0 | AI108: 0 | AJ108: 0 | AK108: 0 | AL108: 0 | AM108: 0 | AN108: 0 | AO108: 0 | AP108: 0 | AQ108: 0 | AR108: 0 | AS108: 0 | AT108: 0 | AU108: 0 | AV108: 0 | AW108: 0 | AX108: 0 | AY108: 0 | AZ108: 0 | BA108: 0 | BB108: 0 | BC108: 0 | BD108: 0 | BE108: 0 | BF108: 0 | BG108: 0

Sheet 3_Interim calcs-> (hidden)
C6: Interim calculations
C7: Section 3.
C9: =Cover!$C$9 -> AusNet Services
C10: =Cover!$C$10 -> Business Case Evaluation
C11: =Cover!$C$11 -> Summer and winter readiness

Sheet 3_BC (hidden)
B1: Interim Calculations: Base Case | I1: Regulatory Period Indicator | J1: ='1_KMA'!J30 -> 0 | K1: ='1_KMA'!K30 -> 0 | L1: ='1_KMA'!L30 -> 0 | M1: ='1_KMA'!M30 -> 1 | N1: ='1_KMA'!N30 -> 1 | O1: ='1_KMA'!O30 -> 1 | P1: ='1_KMA'!P30 -> 1 | Q1: ='1_KMA'!Q30 -> 1 | R1: ='1_KMA'!R30 -> 0 | S1: ='1_KMA'!S30 -> 0 | T1: ='1_KMA'!T30 -> 0 | U1: ='1_KMA'!U30 -> 0 | V1: ='1_KMA'!V30 -> 0 | W1: ='1_KMA'!W30 -> 0 | X1: ='1_KMA'!X30 -> 0 | Y1: ='1_KMA'!Y30 -> 0 | Z1: ='1_KMA'!Z30 -> 0 | AA1: ='1_KMA'!AA30 -> 0 | AB1: ='1_KMA'!AB30 -> 0 | AC1: ='1_KMA'!AC30 -> 0 | AD1: ='1_KMA'!AD30 -> 0 | AE1: ='1_KMA'!AE30 -> 0 | AF1: ='1_KMA'!AF30 -> 0 | AG1: ='1_KMA'!AG30 -> 0 | AH1: ='1_KMA'!AH30 -> 0 | AI1: ='1_KMA'!AI30 -> 0 | AJ1: ='1_KMA'!AJ30 -> 0 | AK1: ='1_KMA'!AK30 -> 0 | AL1: ='1_KMA'!AL30 -> 0 | AM1: ='1_KMA'!AM30 -> 0 | AN1: ='1_KMA'!AN30 -> 0 | AO1: ='1_KMA'!AO30 -> 0 | AP1: ='1_KMA'!AP30 -> 0 | AQ1: ='1_KMA'!AQ30 -> 0 | AR1: ='1_KMA'!AR30 -> 0 | AS1: ='1_KMA'!AS30 -> 0 | AT1: ='1_KMA'!AT30 -> 0 | AU1: ='1_KMA'!AU30 -> 0 | AV1: ='1_KMA'!AV30 -> 0 | AW1: ='1_KMA'!AW30 -> 0 | AX1: ='1_KMA'!AX30 -> 0 | AY1: ='1_KMA'!AY30 -> 0 | AZ1: ='1_KMA'!AZ30 -> 0 | BA1: ='1_KMA'!BA30 -> 0 | BB1: ='1_KMA'!BB30 -> 0 | BC1: ='1_KMA'!BC30 -> 0 | BD1: ='1_KMA'!BD30 -> 0 | BE1: ='1_KMA'!BE30 -> 0 | BF1: ='1_KMA'!BF30 -> 0 | BG1: ='1_KMA'!BG30 -> 0
B2: =Cover!$C$9 -> AusNet Services | I2: Period Start Date | J2: ='1_KMA'!J31 -> 2023-07-01 | K2: ='1_KMA'!K31 -> 2024-07-01 | L2: ='1_KMA'!L31 -> 2025-07-01 | M2: ='1_KMA'!M31 -> 2026-07-01 | N2: ='1_KMA'!N31 -> 2027-07-01 | O2: ='1_KMA'!O31 -> 2028-07-01 | P2: ='1_KMA'!P31 -> 2029-07-01 | Q2: ='1_KMA'!Q31 -> 2030-07-01 | R2: ='1_KMA'!R31 -> 2031-07-01 | S2: ='1_KMA'!S31 -> 2032-07-01 | T2: ='1_KMA'!T31 -> 2033-07-01 | U2: ='1_KMA'!U31 -> 2034-07-01 | V2: ='1_KMA'!V31 -> 2035-07-01 | W2: ='1_KMA'!W31 -> 2036-07-01 | X2: ='1_KMA'!X31 -> 2037-07-01 | Y2: ='1_KMA'!Y31 -> 2038-07-01 | Z2: ='1_KMA'!Z31 -> 2039-07-01 | AA2: ='1_KMA'!AA31 -> 2040-07-01 | AB2: ='1_KMA'!AB31 -> 2041-07-01 | AC2: ='1_KMA'!AC31 -> 2042-07-01 | AD2: ='1_KMA'!AD31 -> 2043-07-01 | AE2: ='1_KMA'!AE31 -> 2044-07-01 | AF2: ='1_KMA'!AF31 -> 2045-07-01 | AG2: ='1_KMA'!AG31 -> 2046-07-01 | AH2: ='1_KMA'!AH31 -> 2047-07-01 | AI2: ='1_KMA'!AI31 -> 2048-07-01 | AJ2: ='1_KMA'!AJ31 -> 2049-07-01 | AK2: ='1_KMA'!AK31 -> 2050-07-01 | AL2: ='1_KMA'!AL31 -> 2051-07-01 | AM2: ='1_KMA'!AM31 -> 2052-07-01 | AN2: ='1_KMA'!AN31 -> 2053-07-01 | AO2: ='1_KMA'!AO31 -> 2054-07-01 | AP2: ='1_KMA'!AP31 -> 2055-07-01 | AQ2: ='1_KMA'!AQ31 -> 2056-07-01 | AR2: ='1_KMA'!AR31 -> 2057-07-01 | AS2: ='1_KMA'!AS31 -> 2058-07-01 | AT2: ='1_KMA'!AT31 -> 2059-07-01 | AU2: ='1_KMA'!AU31 -> 2060-07-01 | AV2: ='1_KMA'!AV31 -> 2061-07-01 | AW2: ='1_KMA'!AW31 -> 2062-07-01 | AX2: ='1_KMA'!AX31 -> 2063-07-01 | AY2: ='1_KMA'!AY31 -> 2064-07-01 | AZ2: ='1_KMA'!AZ31 -> 2065-07-01 | BA2: ='1_KMA'!BA31 -> 2066-07-01 | BB2: ='1_KMA'!BB31 -> 2067-07-01 | BC2: ='1_KMA'!BC31 -> 2068-07-01 | BD2: ='1_KMA'!BD31 -> 2069-07-01 | BE2: ='1_KMA'!BE31 -> 2070-07-01 | BF2: ='1_KMA'!BF31 -> 2071-07-01 | BG2: ='1_KMA'!BG31 -> 2072-07-01
B3: =Cover!$C$10 -> Business Case Evaluation | I3: Period End Date | J3: ='1_KMA'!J32 -> 2024-06-30 | K3: ='1_KMA'!K32 -> 2025-06-30 | L3: ='1_KMA'!L32 -> 2026-06-30 | M3: ='1_KMA'!M32 -> 2027-06-30 | N3: ='1_KMA'!N32 -> 2028-06-30 | O3: ='1_KMA'!O32 -> 2029-06-30 | P3: ='1_KMA'!P32 -> 2030-06-30 | Q3: ='1_KMA'!Q32 -> 2031-06-30 | R3: ='1_KMA'!R32 -> 2032-06-30 | S3: ='1_KMA'!S32 -> 2033-06-30 | T3: ='1_KMA'!T32 -> 2034-06-30 | U3: ='1_KMA'!U32 -> 2035-06-30 | V3: ='1_KMA'!V32 -> 2036-06-30 | W3: ='1_KMA'!W32 -> 2037-06-30 | X3: ='1_KMA'!X32 -> 2038-06-30 | Y3: ='1_KMA'!Y32 -> 2039-06-30 | Z3: ='1_KMA'!Z32 -> 2040-06-30 | AA3: ='1_KMA'!AA32 -> 2041-06-30 | AB3: ='1_KMA'!AB32 -> 2042-06-30 | AC3: ='1_KMA'!AC32 -> 2043-06-30 | AD3: ='1_KMA'!AD32 -> 2044-06-30 | AE3: ='1_KMA'!AE32 -> 2045-06-30 | AF3: ='1_KMA'!AF32 -> 2046-06-30 | AG3: ='1_KMA'!AG32 -> 2047-06-30 | AH3: ='1_KMA'!AH32 -> 2048-06-30 | AI3: ='1_KMA'!AI32 -> 2049-06-30 | AJ3: ='1_KMA'!AJ32 -> 2050-06-30 | AK3: ='1_KMA'!AK32 -> 2051-06-30 | AL3: ='1_KMA'!AL32 -> 2052-06-30 | AM3: ='1_KMA'!AM32 -> 2053-06-30 | AN3: ='1_KMA'!AN32 -> 2054-06-30 | AO3: ='1_KMA'!AO32 -> 2055-06-30 | AP3: ='1_KMA'!AP32 -> 2056-06-30 | AQ3: ='1_KMA'!AQ32 -> 2057-06-30 | AR3: ='1_KMA'!AR32 -> 2058-06-30 | AS3: ='1_KMA'!AS32 -> 2059-06-30 | AT3: ='1_KMA'!AT32 -> 2060-06-30 | AU3: ='1_KMA'!AU32 -> 2061-06-30 | AV3: ='1_KMA'!AV32 -> 2062-06-30 | AW3: ='1_KMA'!AW32 -> 2063-06-30 | AX3: ='1_KMA'!AX32 -> 2064-06-30 | AY3: ='1_KMA'!AY32 -> 2065-06-30 | AZ3: ='1_KMA'!AZ32 -> 2066-06-30 | BA3: ='1_KMA'!BA32 -> 2067-06-30 | BB3: ='1_KMA'!BB32 -> 2068-06-30 | BC3: ='1_KMA'!BC32 -> 2069-06-30 | BD3: ='1_KMA'!BD32 -> 2070-06-30 | BE3: ='1_KMA'!BE32 -> 2071-06-30 | BF3: ='1_KMA'!BF32 -> 2072-06-30 | BG3: ='1_KMA'!BG32 -> 2073-06-30
B4: =Cover!$C$11 -> Summer and winter readiness | I4: Project Year | J4: ='1_KMA'!J33 -> 1 | K4: ='1_KMA'!K33 -> 2 | L4: ='1_KMA'!L33 -> 3 | M4: ='1_KMA'!M33 -> 4 | N4: ='1_KMA'!N33 -> 5 | O4: ='1_KMA'!O33 -> 6 | P4: ='1_KMA'!P33 -> 7 | Q4: ='1_KMA'!Q33 -> 8 | R4: ='1_KMA'!R33 -> 9 | S4: ='1_KMA'!S33 -> 10 | T4: ='1_KMA'!T33 -> 11 | U4: ='1_KMA'!U33 -> 12 | V4: ='1_KMA'!V33 -> 13 | W4: ='1_KMA'!W33 -> 14 | X4: ='1_KMA'!X33 -> 15 | Y4: ='1_KMA'!Y33 -> 16 | Z4: ='1_KMA'!Z33 -> 17 | AA4: ='1_KMA'!AA33 -> 18 | AB4: ='1_KMA'!AB33 -> 19 | AC4: ='1_KMA'!AC33 -> 20 | AD4: ='1_KMA'!AD33 -> 21 | AE4: ='1_KMA'!AE33 -> 22 | AF4: ='1_KMA'!AF33 -> 23 | AG4: ='1_KMA'!AG33 -> 24 | AH4: ='1_KMA'!AH33 -> 25 | AI4: ='1_KMA'!AI33 -> 26 | AJ4: ='1_KMA'!AJ33 -> 27 | AK4: ='1_KMA'!AK33 -> 28 | AL4: ='1_KMA'!AL33 -> 29 | AM4: ='1_KMA'!AM33 -> 30 | AN4: ='1_KMA'!AN33 -> 31 | AO4: ='1_KMA'!AO33 -> 32 | AP4: ='1_KMA'!AP33 -> 33 | AQ4: ='1_KMA'!AQ33 -> 34 | AR4: ='1_KMA'!AR33 -> 35 | AS4: ='1_KMA'!AS33 -> 36 | AT4: ='1_KMA'!AT33 -> 37 | AU4: ='1_KMA'!AU33 -> 38 | AV4: ='1_KMA'!AV33 -> 39 | AW4: ='1_KMA'!AW33 -> 40 | AX4: ='1_KMA'!AX33 -> 41 | AY4: ='1_KMA'!AY33 -> 42 | AZ4: ='1_KMA'!AZ33 -> 43 | BA4: ='1_KMA'!BA33 -> 44 | BB4: ='1_KMA'!BB33 -> 45 | BC4: ='1_KMA'!BC33 -> 46 | BD4: ='1_KMA'!BD33 -> 47 | BE4: ='1_KMA'!BE33 -> 48 | BF4: ='1_KMA'!BF33 -> 49 | BG4: ='1_KMA'!BG33 -> 50
I5: Financial Year | J5: ='1_KMA'!J34 -> 2024 | K5: ='1_KMA'!K34 -> 2025 | L5: ='1_KMA'!L34 -> 2026 | M5: ='1_KMA'!M34 -> 2027 | N5: ='1_KMA'!N34 -> 2028 | O5: ='1_KMA'!O34 -> 2029 | P5: ='1_KMA'!P34 -> 2030 | Q5: ='1_KMA'!Q34 -> 2031 | R5: ='1_KMA'!R34 -> 2032 | S5: ='1_KMA'!S34 -> 2033 | T5: ='1_KMA'!T34 -> 2034 | U5: ='1_KMA'!U34 -> 2035 | V5: ='1_KMA'!V34 -> 2036 | W5: ='1_KMA'!W34 -> 2037 | X5: ='1_KMA'!X34 -> 2038 | Y5: ='1_KMA'!Y34 -> 2039 | Z5: ='1_KMA'!Z34 -> 2040 | AA5: ='1_KMA'!AA34 -> 2041 | AB5: ='1_KMA'!AB34 -> 2042 | AC5: ='1_KMA'!AC34 -> 2043 | AD5: ='1_KMA'!AD34 -> 2044 | AE5: ='1_KMA'!AE34 -> 2045 | AF5: ='1_KMA'!AF34 -> 2046 | AG5: ='1_KMA'!AG34 -> 2047 | AH5: ='1_KMA'!AH34 -> 2048 | AI5: ='1_KMA'!AI34 -> 2049 | AJ5: ='1_KMA'!AJ34 -> 2050 | AK5: ='1_KMA'!AK34 -> 2051 | AL5: ='1_KMA'!AL34 -> 2052 | AM5: ='1_KMA'!AM34 -> 2053 | AN5: ='1_KMA'!AN34 -> 2054 | AO5: ='1_KMA'!AO34 -> 2055 | AP5: ='1_KMA'!AP34 -> 2056 | AQ5: ='1_KMA'!AQ34 -> 2057 | AR5: ='1_KMA'!AR34 -> 2058 | AS5: ='1_KMA'!AS34 -> 2059 | AT5: ='1_KMA'!AT34 -> 2060 | AU5: ='1_KMA'!AU34 -> 2061 | AV5: ='1_KMA'!AV34 -> 2062 | AW5: ='1_KMA'!AW34 -> 2063 | AX5: ='1_KMA'!AX34 -> 2064 | AY5: ='1_KMA'!AY34 -> 2065 | AZ5: ='1_KMA'!AZ34 -> 2066 | BA5: ='1_KMA'!BA34 -> 2067 | BB5: ='1_KMA'!BB34 -> 2068 | BC5: ='1_KMA'!BC34 -> 2069 | BD5: ='1_KMA'!BD34 -> 2070 | BE5: ='1_KMA'!BE34 -> 2071 | BF5: ='1_KMA'!BF34 -> 2072 | BG5: ='1_KMA'!BG34 -> 2073
I7: Escalation | J7: =IF(ISERROR(VLOOKUP('1_KMA'!$I$20&'1_KMA'!$I$21,CPI_Con_F!$C$63:$H$182,6,FALSE)),0,VLOOKUP('1_KMA'!$I$20&'1_KMA'!$I$21,CPI_Con_F!$C$63:$H$182,6,FALSE)) -> 1 | K7: =IF(ISERROR(VLOOKUP('1_KMA'!$I$20&'1_KMA'!$I$21,CPI_Con_F!$C$63:$H$182,6,FALSE)),0,VLOOKUP('1_KMA'!$I$20&'1_KMA'!$I$21,CPI_Con_F!$C$63:$H$182,6,FALSE)) -> 1 | L7: =IF(ISERROR(VLOOKUP('1_KMA'!$I$20&'1_KMA'!$I$21,CPI_Con_F!$C$63:$H$182,6,FALSE)),0,VLOOKUP('1_KMA'!$I$20&'1_KMA'!$I$21,CPI_Con_F!$C$63:$H$182,6,FALSE)) -> 1 | M7: =IF(ISERROR(VLOOKUP('1_KMA'!$I$20&'1_KMA'!$I$21,CPI_Con_F!$C$63:$H$182,6,FALSE)),0,VLOOKUP('1_KMA'!$I$20&'1_KMA'!$I$21,CPI_Con_F!$C$63:$H$182,6,FALSE)) -> 1 | N7: =IF(ISERROR(VLOOKUP('1_KMA'!$I$20&'1_KMA'!$I$21,CPI_Con_F!$C$63:$H$182,6,FALSE)),0,VLOOKUP('1_KMA'!$I$20&'1_KMA'!$I$21,CPI_Con_F!$C$63:$H$182,6,FALSE)) -> 1 | O7: =IF(ISERROR(VLOOKUP('1_KMA'!$I$20&'1_KMA'!$I$21,CPI_Con_F!$C$63:$H$182,6,FALSE)),0,VLOOKUP('1_KMA'!$I$20&'1_KMA'!$I$21,CPI_Con_F!$C$63:$H$182,6,FALSE)) -> 1 | P7: =IF(ISERROR(VLOOKUP('1_KMA'!$I$20&'1_KMA'!$I$21,CPI_Con_F!$C$63:$H$182,6,FALSE)),0,VLOOKUP('1_KMA'!$I$20&'1_KMA'!$I$21,CPI_Con_F!$C$63:$H$182,6,FALSE)) -> 1 | Q7: =IF(ISERROR(VLOOKUP('1_KMA'!$I$20&'1_KMA'!$I$21,CPI_Con_F!$C$63:$H$182,6,FALSE)),0,VLOOKUP('1_KMA'!$I$20&'1_KMA'!$I$21,CPI_Con_F!$C$63:$H$182,6,FALSE)) -> 1 | R7: =IF(ISERROR(VLOOKUP('1_KMA'!$I$20&'1_KMA'!$I$21,CPI_Con_F!$C$63:$H$182,6,FALSE)),0,VLOOKUP('1_KMA'!$I$20&'1_KMA'!$I$21,CPI_Con_F!$C$63:$H$182,6,FALSE)) -> 1 | S7: =IF(ISERROR(VLOOKUP('1_KMA'!$I$20&'1_KMA'!$I$21,CPI_Con_F!$C$63:$H$182,6,FALSE)),0,VLOOKUP('1_KMA'!$I$20&'1_KMA'!$I$21,CPI_Con_F!$C$63:$H$182,6,FALSE)) -> 1 | T7: =IF(ISERROR(VLOOKUP('1_KMA'!$I$20&'1_KMA'!$I$21,CPI_Con_F!$C$63:$H$182,6,FALSE)),0,VLOOKUP('1_KMA'!$I$20&'1_KMA'!$I$21,CPI_Con_F!$C$63:$H$182,6,FALSE)) -> 1 | U7: =IF(ISERROR(VLOOKUP('1_KMA'!$I$20&'1_KMA'!$I$21,CPI_Con_F!$C$63:$H$182,6,FALSE)),0,VLOOKUP('1_KMA'!$I$20&'1_KMA'!$I$21,CPI_Con_F!$C$63:$H$182,6,FALSE)) -> 1 | V7: =IF(ISERROR(VLOOKUP('1_KMA'!$I$20&'1_KMA'!$I$21,CPI_Con_F!$C$63:$H$182,6,FALSE)),0,VLOOKUP('1_KMA'!$I$20&'1_KMA'!$I$21,CPI_Con_F!$C$63:$H$182,6,FALSE)) -> 1 | W7: =IF(ISERROR(VLOOKUP('1_KMA'!$I$20&'1_KMA'!$I$21,CPI_Con_F!$C$63:$H$182,6,FALSE)),0,VLOOKUP('1_KMA'!$I$20&'1_KMA'!$I$21,CPI_Con_F!$C$63:$H$182,6,FALSE)) -> 1 | X7: =IF(ISERROR(VLOOKUP('1_KMA'!$I$20&'1_KMA'!$I$21,CPI_Con_F!$C$63:$H$182,6,FALSE)),0,VLOOKUP('1_KMA'!$I$20&'1_KMA'!$I$21,CPI_Con_F!$C$63:$H$182,6,FALSE)) -> 1 | Y7: =IF(ISERROR(VLOOKUP('1_KMA'!$I$20&'1_KMA'!$I$21,CPI_Con_F!$C$63:$H$182,6,FALSE)),0,VLOOKUP('1_KMA'!$I$20&'1_KMA'!$I$21,CPI_Con_F!$C$63:$H$182,6,FALSE)) -> 1 | Z7: =IF(ISERROR(VLOOKUP('1_KMA'!$I$20&'1_KMA'!$I$21,CPI_Con_F!$C$63:$H$182,6,FALSE)),0,VLOOKUP('1_KMA'!$I$20&'1_KMA'!$I$21,CPI_Con_F!$C$63:$H$182,6,FALSE)) -> 1 | AA7: =IF(ISERROR(VLOOKUP('1_KMA'!$I$20&'1_KMA'!$I$21,CPI_Con_F!$C$63:$H$182,6,FALSE)),0,VLOOKUP('1_KMA'!$I$20&'1_KMA'!$I$21,CPI_Con_F!$C$63:$H$182,6,FALSE)) -> 1 | AB7: =IF(ISERROR(VLOOKUP('1_KMA'!$I$20&'1_KMA'!$I$21,CPI_Con_F!$C$63:$H$182,6,FALSE)),0,VLOOKUP('1_KMA'!$I$20&'1_KMA'!$I$21,CPI_Con_F!$C$63:$H$182,6,FALSE)) -> 1 | AC7: =IF(ISERROR(VLOOKUP('1_KMA'!$I$20&'1_KMA'!$I$21,CPI_Con_F!$C$63:$H$182,6,FALSE)),0,VLOOKUP('1_KMA'!$I$20&'1_KMA'!$I$21,CPI_Con_F!$C$63:$H$182,6,FALSE)) -> 1 | AD7: =IF(ISERROR(VLOOKUP('1_KMA'!$I$20&'1_KMA'!$I$21,CPI_Con_F!$C$63:$H$182,6,FALSE)),0,VLOOKUP('1_KMA'!$I$20&'1_KMA'!$I$21,CPI_Con_F!$C$63:$H$182,6,FALSE)) -> 1 | AE7: =IF(ISERROR(VLOOKUP('1_KMA'!$I$20&'1_KMA'!$I$21,CPI_Con_F!$C$63:$H$182,6,FALSE)),0,VLOOKUP('1_KMA'!$I$20&'1_KMA'!$I$21,CPI_Con_F!$C$63:$H$182,6,FALSE)) -> 1 | AF7: =IF(ISERROR(VLOOKUP('1_KMA'!$I$20&'1_KMA'!$I$21,CPI_Con_F!$C$63:$H$182,6,FALSE)),0,VLOOKUP('1_KMA'!$I$20&'1_KMA'!$I$21,CPI_Con_F!$C$63:$H$182,6,FALSE)) -> 1 | AG7: =IF(ISERROR(VLOOKUP('1_KMA'!$I$20&'1_KMA'!$I$21,CPI_Con_F!$C$63:$H$182,6,FALSE)),0,VLOOKUP('1_KMA'!$I$20&'1_KMA'!$I$21,CPI_Con_F!$C$63:$H$182,6,FALSE)) -> 1 | AH7: =IF(ISERROR(VLOOKUP('1_KMA'!$I$20&'1_KMA'!$I$21,CPI_Con_F!$C$63:$H$182,6,FALSE)),0,VLOOKUP('1_KMA'!$I$20&'1_KMA'!$I$21,CPI_Con_F!$C$63:$H$182,6,FALSE)) -> 1 | AI7: =IF(ISERROR(VLOOKUP('1_KMA'!$I$20&'1_KMA'!$I$21,CPI_Con_F!$C$63:$H$182,6,FALSE)),0,VLOOKUP('1_KMA'!$I$20&'1_KMA'!$I$21,CPI_Con_F!$C$63:$H$182,6,FALSE)) -> 1 | AJ7: =IF(ISERROR(VLOOKUP('1_KMA'!$I$20&'1_KMA'!$I$21,CPI_Con_F!$C$63:$H$182,6,FALSE)),0,VLOOKUP('1_KMA'!$I$20&'1_KMA'!$I$21,CPI_Con_F!$C$63:$H$182,6,FALSE)) -> 1 | AK7: =IF(ISERROR(VLOOKUP('1_KMA'!$I$20&'1_KMA'!$I$21,CPI_Con_F!$C$63:$H$182,6,FALSE)),0,VLOOKUP('1_KMA'!$I$20&'1_KMA'!$I$21,CPI_Con_F!$C$63:$H$182,6,FALSE)) -> 1 | AL7: =IF(ISERROR(VLOOKUP('1_KMA'!$I$20&'1_KMA'!$I$21,CPI_Con_F!$C$63:$H$182,6,FALSE)),0,VLOOKUP('1_KMA'!$I$20&'1_KMA'!$I$21,CPI_Con_F!$C$63:$H$182,6,FALSE)) -> 1 | AM7: =IF(ISERROR(VLOOKUP('1_KMA'!$I$20&'1_KMA'!$I$21,CPI_Con_F!$C$63:$H$182,6,FALSE)),0,VLOOKUP('1_KMA'!$I$20&'1_KMA'!$I$21,CPI_Con_F!$C$63:$H$182,6,FALSE)) -> 1 | AN7: =IF(ISERROR(VLOOKUP('1_KMA'!$I$20&'1_KMA'!$I$21,CPI_Con_F!$C$63:$H$182,6,FALSE)),0,VLOOKUP('1_KMA'!$I$20&'1_KMA'!$I$21,CPI_Con_F!$C$63:$H$182,6,FALSE)) -> 1 | AO7: =IF(ISERROR(VLOOKUP('1_KMA'!$I$20&'1_KMA'!$I$21,CPI_Con_F!$C$63:$H$182,6,FALSE)),0,VLOOKUP('1_KMA'!$I$20&'1_KMA'!$I$21,CPI_Con_F!$C$63:$H$182,6,FALSE)) -> 1 | AP7: =IF(ISERROR(VLOOKUP('1_KMA'!$I$20&'1_KMA'!$I$21,CPI_Con_F!$C$63:$H$182,6,FALSE)),0,VLOOKUP('1_KMA'!$I$20&'1_KMA'!$I$21,CPI_Con_F!$C$63:$H$182,6,FALSE)) -> 1 | AQ7: =IF(ISERROR(VLOOKUP('1_KMA'!$I$20&'1_KMA'!$I$21,CPI_Con_F!$C$63:$H$182,6,FALSE)),0,VLOOKUP('1_KMA'!$I$20&'1_KMA'!$I$21,CPI_Con_F!$C$63:$H$182,6,FALSE)) -> 1 | AR7: =IF(ISERROR(VLOOKUP('1_KMA'!$I$20&'1_KMA'!$I$21,CPI_Con_F!$C$63:$H$182,6,FALSE)),0,VLOOKUP('1_KMA'!$I$20&'1_KMA'!$I$21,CPI_Con_F!$C$63:$H$182,6,FALSE)) -> 1 | AS7: =IF(ISERROR(VLOOKUP('1_KMA'!$I$20&'1_KMA'!$I$21,CPI_Con_F!$C$63:$H$182,6,FALSE)),0,VLOOKUP('1_KMA'!$I$20&'1_KMA'!$I$21,CPI_Con_F!$C$63:$H$182,6,FALSE)) -> 1 | AT7: =IF(ISERROR(VLOOKUP('1_KMA'!$I$20&'1_KMA'!$I$21,CPI_Con_F!$C$63:$H$182,6,FALSE)),0,VLOOKUP('1_KMA'!$I$20&'1_KMA'!$I$21,CPI_Con_F!$C$63:$H$182,6,FALSE)) -> 1 | AU7: =IF(ISERROR(VLOOKUP('1_KMA'!$I$20&'1_KMA'!$I$21,CPI_Con_F!$C$63:$H$182,6,FALSE)),0,VLOOKUP('1_KMA'!$I$20&'1_KMA'!$I$21,CPI_Con_F!$C$63:$H$182,6,FALSE)) -> 1 | AV7: =IF(ISERROR(VLOOKUP('1_KMA'!$I$20&'1_KMA'!$I$21,CPI_Con_F!$C$63:$H$182,6,FALSE)),0,VLOOKUP('1_KMA'!$I$20&'1_KMA'!$I$21,CPI_Con_F!$C$63:$H$182,6,FALSE)) -> 1 | AW7: =IF(ISERROR(VLOOKUP('1_KMA'!$I$20&'1_KMA'!$I$21,CPI_Con_F!$C$63:$H$182,6,FALSE)),0,VLOOKUP('1_KMA'!$I$20&'1_KMA'!$I$21,CPI_Con_F!$C$63:$H$182,6,FALSE)) -> 1 | AX7: =IF(ISERROR(VLOOKUP('1_KMA'!$I$20&'1_KMA'!$I$21,CPI_Con_F!$C$63:$H$182,6,FALSE)),0,VLOOKUP('1_KMA'!$I$20&'1_KMA'!$I$21,CPI_Con_F!$C$63:$H$182,6,FALSE)) -> 1 | AY7: =IF(ISERROR(VLOOKUP('1_KMA'!$I$20&'1_KMA'!$I$21,CPI_Con_F!$C$63:$H$182,6,FALSE)),0,VLOOKUP('1_KMA'!$I$20&'1_KMA'!$I$21,CPI_Con_F!$C$63:$H$182,6,FALSE)) -> 1 | AZ7: =IF(ISERROR(VLOOKUP('1_KMA'!$I$20&'1_KMA'!$I$21,CPI_Con_F!$C$63:$H$182,6,FALSE)),0,VLOOKUP('1_KMA'!$I$20&'1_KMA'!$I$21,CPI_Con_F!$C$63:$H$182,6,FALSE)) -> 1 | BA7: =IF(ISERROR(VLOOKUP('1_KMA'!$I$20&'1_KMA'!$I$21,CPI_Con_F!$C$63:$H$182,6,FALSE)),0,VLOOKUP('1_KMA'!$I$20&'1_KMA'!$I$21,CPI_Con_F!$C$63:$H$182,6,FALSE)) -> 1 | BB7: =IF(ISERROR(VLOOKUP('1_KMA'!$I$20&'1_KMA'!$I$21,CPI_Con_F!$C$63:$H$182,6,FALSE)),0,VLOOKUP('1_KMA'!$I$20&'1_KMA'!$I$21,CPI_Con_F!$C$63:$H$182,6,FALSE)) -> 1 | BC7: =IF(ISERROR(VLOOKUP('1_KMA'!$I$20&'1_KMA'!$I$21,CPI_Con_F!$C$63:$H$182,6,FALSE)),0,VLOOKUP('1_KMA'!$I$20&'1_KMA'!$I$21,CPI_Con_F!$C$63:$H$182,6,FALSE)) -> 1 | BD7: =IF(ISERROR(VLOOKUP('1_KMA'!$I$20&'1_KMA'!$I$21,CPI_Con_F!$C$63:$H$182,6,FALSE)),0,VLOOKUP('1_KMA'!$I$20&'1_KMA'!$I$21,CPI_Con_F!$C$63:$H$182,6,FALSE)) -> 1 | BE7: =IF(ISERROR(VLOOKUP('1_KMA'!$I$20&'1_KMA'!$I$21,CPI_Con_F!$C$63:$H$182,6,FALSE)),0,VLOOKUP('1_KMA'!$I$20&'1_KMA'!$I$21,CPI_Con_F!$C$63:$H$182,6,FALSE)) -> 1 | BF7: =IF(ISERROR(VLOOKUP('1_KMA'!$I$20&'1_KMA'!$I$21,CPI_Con_F!$C$63:$H$182,6,FALSE)),0,VLOOKUP('1_KMA'!$I$20&'1_KMA'!$I$21,CPI_Con_F!$C$63:$H$182,6,FALSE)) -> 1 | BG7: =IF(ISERROR(VLOOKUP('1_KMA'!$I$20&'1_KMA'!$I$21,CPI_Con_F!$C$63:$H$182,6,FALSE)),0,VLOOKUP('1_KMA'!$I$20&'1_KMA'!$I$21,CPI_Con_F!$C$63:$H$182,6,FALSE)) -> 1
I8: Evaluation Period Indicator | J8: =IF(J4<='1_KMA'!$I$23,1,0) -> 1 | K8: =IF(K4<='1_KMA'!$I$23,1,0) -> 1 | L8: =IF(L4<='1_KMA'!$I$23,1,0) -> 1 | M8: =IF(M4<='1_KMA'!$I$23,1,0) -> 1 | N8: =IF(N4<='1_KMA'!$I$23,1,0) -> 1 | O8: =IF(O4<='1_KMA'!$I$23,1,0) -> 1 | P8: =IF(P4<='1_KMA'!$I$23,1,0) -> 1 | Q8: =IF(Q4<='1_KMA'!$I$23,1,0) -> 1 | R8: =IF(R4<='1_KMA'!$I$23,1,0) -> 1 | S8: =IF(S4<='1_KMA'!$I$23,1,0) -> 1 | T8: =IF(T4<='1_KMA'!$I$23,1,0) -> 1 | U8: =IF(U4<='1_KMA'!$I$23,1,0) -> 1 | V8: =IF(V4<='1_KMA'!$I$23,1,0) -> 1 | W8: =IF(W4<='1_KMA'!$I$23,1,0) -> 1 | X8: =IF(X4<='1_KMA'!$I$23,1,0) -> 1 | Y8: =IF(Y4<='1_KMA'!$I$23,1,0) -> 1 | Z8: =IF(Z4<='1_KMA'!$I$23,1,0) -> 1 | AA8: =IF(AA4<='1_KMA'!$I$23,1,0) -> 1 | AB8: =IF(AB4<='1_KMA'!$I$23,1,0) -> 1 | AC8: =IF(AC4<='1_KMA'!$I$23,1,0) -> 1 | AD8: =IF(AD4<='1_KMA'!$I$23,1,0) -> 1 | AE8: =IF(AE4<='1_KMA'!$I$23,1,0) -> 1 | AF8: =IF(AF4<='1_KMA'!$I$23,1,0) -> 1 | AG8: =IF(AG4<='1_KMA'!$I$23,1,0) -> 1 | AH8: =IF(AH4<='1_KMA'!$I$23,1,0) -> 1 | AI8: =IF(AI4<='1_KMA'!$I$23,1,0) -> 1 | AJ8: =IF(AJ4<='1_KMA'!$I$23,1,0) -> 1 | AK8: =IF(AK4<='1_KMA'!$I$23,1,0) -> 1 | AL8: =IF(AL4<='1_KMA'!$I$23,1,0) -> 1 | AM8: =IF(AM4<='1_KMA'!$I$23,1,0) -> 1 | AN8: =IF(AN4<='1_KMA'!$I$23,1,0) -> 1 | AO8: =IF(AO4<='1_KMA'!$I$23,1,0) -> 1 | AP8: =IF(AP4<='1_KMA'!$I$23,1,0) -> 1 | AQ8: =IF(AQ4<='1_KMA'!$I$23,1,0) -> 1 | AR8: =IF(AR4<='1_KMA'!$I$23,1,0) -> 1 | AS8: =IF(AS4<='1_KMA'!$I$23,1,0) -> 1 | AT8: =IF(AT4<='1_KMA'!$I$23,1,0) -> 1 | AU8: =IF(AU4<='1_KMA'!$I$23,1,0) -> 1 | AV8: =IF(AV4<='1_KMA'!$I$23,1,0) -> 1 | AW8: =IF(AW4<='1_KMA'!$I$23,1,0) -> 1 | AX8: =IF(AX4<='1_KMA'!$I$23,1,0) -> 1 | AY8: =IF(AY4<='1_KMA'!$I$23,1,0) -> 1 | AZ8: =IF(AZ4<='1_KMA'!$I$23,1,0) -> 1 | BA8: =IF(BA4<='1_KMA'!$I$23,1,0) -> 1 | BB8: =IF(BB4<='1_KMA'!$I$23,1,0) -> 1 | BC8: =IF(BC4<='1_KMA'!$I$23,1,0) -> 1 | BD8: =IF(BD4<='1_KMA'!$I$23,1,0) -> 1 | BE8: =IF(BE4<='1_KMA'!$I$23,1,0) -> 1 | BF8: =IF(BF4<='1_KMA'!$I$23,1,0) -> 1 | BG8: =IF(BG4<='1_KMA'!$I$23,1,0) -> 1
B10: Summary for Central Assumptions
B12: WACC | J12: ='1_KMA'!$I$28 -> 0.05555 | K12: ='1_KMA'!$I$28 -> 0.05555 | L12: ='1_KMA'!$I$28 -> 0.05555 | M12: ='1_KMA'!$I$28 -> 0.05555 | N12: ='1_KMA'!$I$28 -> 0.05555 | O12: ='1_KMA'!$I$28 -> 0.05555 | P12: ='1_KMA'!$I$28 -> 0.05555 | Q12: ='1_KMA'!$I$28 -> 0.05555 | R12: ='1_KMA'!$I$28 -> 0.05555 | S12: ='1_KMA'!$I$28 -> 0.05555 | T12: ='1_KMA'!$I$28 -> 0.05555 | U12: ='1_KMA'!$I$28 -> 0.05555 | V12: ='1_KMA'!$I$28 -> 0.05555 | W12: ='1_KMA'!$I$28 -> 0.05555 | X12: ='1_KMA'!$I$28 -> 0.05555 | Y12: ='1_KMA'!$I$28 -> 0.05555 | Z12: ='1_KMA'!$I$28 -> 0.05555 | AA12: ='1_KMA'!$I$28 -> 0.05555 | AB12: ='1_KMA'!$I$28 -> 0.05555 | AC12: ='1_KMA'!$I$28 -> 0.05555 | AD12: ='1_KMA'!$I$28 -> 0.05555 | AE12: ='1_KMA'!$I$28 -> 0.05555 | AF12: ='1_KMA'!$I$28 -> 0.05555 | AG12: ='1_KMA'!$I$28 -> 0.05555 | AH12: ='1_KMA'!$I$28 -> 0.05555 | AI12: ='1_KMA'!$I$28 -> 0.05555 | AJ12: ='1_KMA'!$I$28 -> 0.05555 | AK12: ='1_KMA'!$I$28 -> 0.05555 | AL12: ='1_KMA'!$I$28 -> 0.05555 | AM12: ='1_KMA'!$I$28 -> 0.05555 | AN12: ='1_KMA'!$I$28 -> 0.05555 | AO12: ='1_KMA'!$I$28 -> 0.05555 | AP12: ='1_KMA'!$I$28 -> 0.05555 | AQ12: ='1_KMA'!$I$28 -> 0.05555 | AR12: ='1_KMA'!$I$28 -> 0.05555 | AS12: ='1_KMA'!$I$28 -> 0.05555 | AT12: ='1_KMA'!$I$28 -> 0.05555 | AU12: ='1_KMA'!$I$28 -> 0.05555 | AV12: ='1_KMA'!$I$28 -> 0.05555 | AW12: ='1_KMA'!$I$28 -> 0.05555 | AX12: ='1_KMA'!$I$28 -> 0.05555 | AY12: ='1_KMA'!$I$28 -> 0.05555 | AZ12: ='1_KMA'!$I$28 -> 0.05555 | BA12: ='1_KMA'!$I$28 -> 0.05555 | BB12: ='1_KMA'!$I$28 -> 0.05555 | BC12: ='1_KMA'!$I$28 -> 0.05555 | BD12: ='1_KMA'!$I$28 -> 0.05555 | BE12: ='1_KMA'!$I$28 -> 0.05555 | BF12: ='1_KMA'!$I$28 -> 0.05555 | BG12: ='1_KMA'!$I$28 -> 0.05555
B13: Deflator (interim calculation) | J13: 1 | K13: =J13*(1+K12) -> 1.05555 | L13: =K13*(1+L12) -> 1.114185802 | M13: =L13*(1+M12) -> 1.176078824 | N13: 1.241410002 | O13: 1.310370328 | P13: 1.3831614 | Q13: 1.459996016 | R13: 1.541098794 | S13: 1.626706832 | T13: 1.717070397 | U13: 1.812453657 | V13: 1.913135458 | W13: 2.019410133 | X13: 2.131588366 | Y13: 2.249998099 | Z13: 2.374985494 | AA13: 2.506915938 | AB13: 2.646175118 | AC13: 2.793170146 | AD13: 2.948330748 | AE13: 3.112110521 | AF13: 3.28498826 | AG13: 3.467469358 | AH13: 3.660087281 | AI13: 3.863405129 | AJ13: 4.078017284 | AK13: 4.304551144 | AL13: 4.54366896 | AM13: 4.796069771 | AN13: 5.062491447 | AO13: 5.343712847 | AP13: 5.640556096 | AQ13: 5.953888987 | AR13: 6.28462752 | AS13: 6.633738579 | AT13: 7.002242757 | AU13: 7.391217342 | AV13: 7.801799465 | AW13: 8.235189425 | AX13: 8.692654198 | AY13: 9.175531139 | AZ13: 9.685231893 | BA13: 10.22324653 | BB13: 10.79114787 | BC13: 11.39059613 | BD13: 12.02334375 | BE13: 12.69124049 | BF13: 13.3962389 | BG13: 14.14039997
B14: Deflator | J14: =1/J13 -> 1 | K14: =1/K13 -> 0.9473734072 | L14: =1/L13 -> 0.8975163727 | M14: 0.8502831441 | N14: =1/N13 -> 0.8055356393 | O14: 0.7631430433 | P14: 0.7229814251 | Q14: 0.6849333761 | R14: 0.6488876662 | S14: 0.6147389192 | T14: 0.5823873045 | U14: 0.551738245 | V14: 0.522702141 | W14: 0.4951941083 | X14: 0.4691337296 | Y14: 0.4444448199 | Z14: 0.4210552033 | AA14: 0.3988965026 | AB14: 0.3779039388 | AC14: 0.3580161421 | AD14: 0.3391749724 | AE14: 0.3213253493 | AF14: 0.304415091 | AG14: 0.2883947619 | AH14: 0.2732175282 | AI14: 0.2588390206 | AJ14: 0.2452172049 | AK14: 0.2323122589 | AL14: 0.2200864563 | AM14: 0.208504056 | AN14: 0.1975311979 | AO14: 0.187135804 | AP14: 0.1772874843 | AQ14: 0.167957448 | AR14: 0.1591184198 | AS14: 0.1507445595 | AT14: 0.142811387 | AU14: 0.1352957103 | AV14: 0.128175558 | AW14: 0.1214301151 | AX14: 0.1150396619 | AY14: 0.1089855165 | AZ14: 0.1032499801 | BA14: 0.09781628542 | BB14: 0.0926685476 | BC14: 0.08779171768 | BD14: 0.08317153871 | BE14: 0.07879450401 | BF14: 0.07464781773 | BG14: 0.07071935743
B16: Totex sought for EDPR FY27-31 (undiscounted) | G16: ="("&TEXT('1_KMA'!$I$21,"dd-mmm-yy")&" Dollars)" -> (30-Jun-24 Dollars)
C17: Net Capital Expenditure | G17: =SUM(J17:BG17) -> 0 | J17: =-J33*J$1*J$8 -> 0 | K17: =-K33*K$1*K$8 -> 0 | L17: 0 | M17: 0 | N17: 0 | O17: 0 | P17: 0 | Q17: 0 | R17: 0 | S17: 0 | T17: 0 | U17: 0 | V17: 0 | W17: 0 | X17: 0 | Y17: 0 | Z17: 0 | AA17: 0 | AB17: 0 | AC17: 0 | AD17: 0 | AE17: 0 | AF17: 0 | AG17: 0 | AH17: 0 | AI17: 0 | AJ17: 0 | AK17: 0 | AL17: 0 | AM17: 0 | AN17: 0 | AO17: 0 | AP17: 0 | AQ17: 0 | AR17: 0 | AS17: 0 | AT17: 0 | AU17: 0 | AV17: 0 | AW17: 0 | AX17: 0 | AY17: 0 | AZ17: 0 | BA17: 0 | BB17: 0 | BC17: 0 | BD17: 0 | BE17: 0 | BF17: 0 | BG17: 0
C18: Operating Expenditure | G18: =SUM(J18:BG18) -> -750 | J18: =-J34*J$1*J$8 -> 0 | K18: =-K34*K$1*K$8 -> 0 | L18: 0 | M18: -150 | N18: -150 | O18: -150 | P18: -150 | Q18: -150 | R18: 0 | S18: 0 | T18: 0 | U18: 0 | V18: 0 | W18: 0 | X18: 0 | Y18: 0 | Z18: 0 | AA18: 0 | AB18: 0 | AC18: 0 | AD18: 0 | AE18: 0 | AF18: 0 | AG18: 0 | AH18: 0 | AI18: 0 | AJ18: 0 | AK18: 0 | AL18: 0 | AM18: 0 | AN18: 0 | AO18: 0 | AP18: 0 | AQ18: 0 | AR18: 0 | AS18: 0 | AT18: 0 | AU18: 0 | AV18: 0 | AW18: 0 | AX18: 0 | AY18: 0 | AZ18: 0 | BA18: 0 | BB18: 0 | BC18: 0 | BD18: 0 | BE18: 0 | BF18: 0 | BG18: 0
C19: Totex | G19: =SUM(G17:G18) -> -750 | J19: =SUM(J17:J18) -> 0 | K19: =SUM(K17:K18) -> 0 | L19: =SUM(L17:L18) -> 0 | M19: -150 | N19: -150 | O19: -150 | P19: -150 | Q19: -150 | R19: 0 | S19: 0 | T19: 0 | U19: 0 | V19: 0 | W19: 0 | X19: 0 | Y19: 0 | Z19: 0 | AA19: 0 | AB19: 0 | AC19: 0 | AD19: 0 | AE19: 0 | AF19: 0 | AG19: 0 | AH19: 0 | AI19: 0 | AJ19: 0 | AK19: 0 | AL19: 0 | AM19: 0 | AN19: 0 | AO19: 0 | AP19: 0 | AQ19: 0 | AR19: 0 | AS19: 0 | AT19: 0 | AU19: 0 | AV19: 0 | AW19: 0 | AX19: 0 | AY19: 0 | AZ19: 0 | BA19: 0 | BB19: 0 | BC19: 0 | BD19: 0 | BE19: 0 | BF19: 0 | BG19: 0
B21: PV over full assessment period to establish the preferred option (discounted) | G21: ="("&TEXT('1_KMA'!$I$21,"dd-mmm-yy")&" Dollars)" -> (30-Jun-24 Dollars)
C22: Net Capital Expenditure | G22: =SUM(J22:BG22) -> 0 | J22: =-(J33)*J$14*J$8 -> 0 | K22: =-(K33)*K$14*K$8 -> 0 | L22: 0 | M22: 0 | N22: 0 | O22: 0 | P22: 0 | Q22: 0 | R22: 0 | S22: 0 | T22: 0 | U22: 0 | V22: 0 | W22: 0 | X22: 0 | Y22: 0 | Z22: 0 | AA22: 0 | AB22: 0 | AC22: 0 | AD22: 0 | AE22: 0 | AF22: 0 | AG22: 0 | AH22: 0 | AI22: 0 | AJ22: 0 | AK22: 0 | AL22: 0 | AM22: 0 | AN22: 0 | AO22: 0 | AP22: 0 | AQ22: 0 | AR22: 0 | AS22: 0 | AT22: 0 | AU22: 0 | AV22: 0 | AW22: 0 | AX22: 0 | AY22: 0 | AZ22: 0 | BA22: 0 | BB22: 0 | BC22: 0 | BD22: 0 | BE22: 0 | BF22: 0 | BG22: 0
C23: Operating Expenditure | G23: =SUM(J23:BG23) -> -3052.42309 | J23: =-(J34)*J$14*J$8 -> -150 | K23: =-(K34)*K$14*K$8 -> -142.1060111 | L23: -134.6274559 | M23: -127.5424716 | N23: -120.8303459 | O23: -114.4714565 | P23: -108.4472138 | Q23: -102.7400064 | R23: -97.33314993 | S23: -92.21083788 | T23: -87.35809567 | U23: -82.76073674 | V23: -78.40532115 | W23: -74.27911625 | X23: -70.37005944 | Y23: -66.66672298 | Z23: -63.1582805 | AA23: -59.83447539 | AB23: -56.68559082 | AC23: -53.70242132 | AD23: -50.87624586 | AE23: -48.19880239 | AF23: -45.66226364 | AG23: -43.25921429 | AH23: -81.96525847 | AI23: =-(AI34)*AI$14*AI$8 -> -77.65170619 | AJ23: -73.56516147 | AK23: -69.69367768 | AL23: -66.02593688 | AM23: -62.55121679 | AN23: -59.25935938 | AO23: -56.1407412 | AP23: -53.18624528 | AQ23: -50.38723441 | AR23: -47.73552594 | AS23: -45.22336786 | AT23: -42.84341609 | AU23: -20.29435654 | AV23: -19.2263337 | AW23: -18.21451727 | AX23: -17.25594929 | AY23: -16.34782747 | AZ23: -15.48749701 | BA23: -14.67244281 | BB23: -13.90028214 | BC23: -13.16875765 | BD23: -12.47573081 | BE23: -11.8191756 | BF23: -11.19717266 | BG23: -10.60790361
C24: Net Benefits | G24: =SUM(J24:BG24) -> -17649.61026 | J24: =(J45)*J$14*J$8 -> -995.5375145 | K24: =(K45)*K$14*K$8 -> -943.1457671 | L24: -893.5112189 | M24: -846.4887679 | N24: -801.9409482 | O24: -759.7375285 | P24: -719.755131 | Q24: -681.8768708 | R24: -645.9920144 | S24: -611.9956557 | T24: -579.7884096 | U24: -549.276121 | V24: -520.3695903 | W24: -492.9843118 | X24: -467.0402272 | Y24: -442.4614913 | Z24: -419.1762506 | AA24: -397.1164328 | AB24: -376.217548 | AC24: -356.4185003 | AD24: -337.661409 | AE24: -319.8914395 | AF24: -303.056643 | AG24: -287.1078045 | AH24: -271.998299 | AI24: =(AI45)*AI$14*AI$8 -> -257.6839553 | AJ24: -244.1229267 | AK24: -231.2755688 | AL24: -219.1043237 | AM24: -207.5736096 | AN24: -196.6497178 | AO24: -186.3007132 | AP24: -176.4963414 | AQ24: -167.2079403 | AR24: -158.4083562 | AS24: -150.0718641 | AT24: -142.1740932 | AU24: -134.6919551 | AV24: -127.6035765 | AW24: =(AW45)*AW$14*AW$8 -> -120.888235 | AX24: -114.5262991 | AY24: -108.4991702 | AZ24: -102.7892285 | BA24: -97.37978166 | BB24: -92.25501555 | BC24: -87.39994842 | BD24: -82.80038692 | BE24: -78.44288468 | BF24: -74.31470293 | BG24: -70.40377332
B25: Total Present Value | G25: =SUM(J25:BG25) -> -20702.03335 | J25: =SUM(J22:J24) -> -1145.537515 | K25: =SUM(K22:K24) -> -1085.251778 | L25: -1028.138675 | M25: -974.0312395 | N25: -922.7712941 | O25: -874.208985 | P25: -828.2023447 | Q25: -784.6168772 | R25: -743.3251643 | S25: -704.2064936 | T25: -667.1465052 | U25: -632.0368578 | V25: -598.7749115 | W25: -567.263428 | X25: -537.4102866 | Y25: -509.1282143 | Z25: -482.3345311 | AA25: -456.9509082 | AB25: -432.9031388 | AC25: -410.1209216 | AD25: -388.5376549 | AE25: -368.0902419 | AF25: -348.7189067 | AG25: -330.3670188 | AH25: -353.9635574 | AI25: -335.3356615 | AJ25: -317.6880882 | AK25: -300.9692465 | AL25: -285.1302605 | AM25: -270.1248264 | AN25: -255.9090772 | AO25: -242.4414544 | AP25: -229.6825867 | AQ25: -217.5951748 | AR25: -206.1438821 | AS25: -195.295232 | AT25: -185.0175093 | AU25: -154.9863117 | AV25: -146.8299102 | AW25: -139.1027523 | AX25: -131.7822484 | AY25: -124.8469977 | AZ25: -118.2767255 | BA25: -112.0522245 | BB25: -106.1552977 | BC25: -100.5687061 | BD25: -95.27611773 | BE25: -90.26206028 | BF25: -85.51187559 | BG25: -81.01167694
B27: Details for Central Assumptions
B28: Undiscounted | D28: ="("&TEXT('1_KMA'!$I$21,"dd-mmm-yy")&" dollars)" -> (30-Jun-24 dollars)
B30: Costs
G32: $ Basis Reminder | H32: $ Reminder
B33: Net Capex | G33: ='1_KMA'!$I$21 -> 2024-06-30 | H33: ='1_KMA'!$I$19 -> $thousands | J33: =J52*J$7 -> 0 | K33: 0 | L33: 0 | M33: 0 | N33: 0 | O33: 0 | P33: 0 | Q33: 0 | R33: 0 | S33: 0 | T33: 0 | U33: 0 | V33: 0 | W33: 0 | X33: 0 | Y33: 0 | Z33: 0 | AA33: 0 | AB33: 0 | AC33: 0 | AD33: 0 | AE33: 0 | AF33: 0 | AG33: 0 | AH33: 0 | AI33: 0 | AJ33: 0 | AK33: 0 | AL33: 0 | AM33: 0 | AN33: 0 | AO33: 0 | AP33: =AP52*AP$7 -> 0 | AQ33: 0 | AR33: 0 | AS33: 0 | AT33: 0 | AU33: 0 | AV33: 0 | AW33: 0 | AX33: 0 | AY33: 0 | AZ33: 0 | BA33: 0 | BB33: 0 | BC33: 0 | BD33: 0 | BE33: 0 | BF33: 0 | BG33: 0
B34: Opex | G34: ='1_KMA'!$I$21 -> 2024-06-30 | H34: ='1_KMA'!$I$19 -> $thousands | J34: =J53*J$7 -> 150 | K34: 150 | L34: 150 | M34: 150 | N34: 150 | O34: 150 | P34: 150 | Q34: 150 | R34: 150 | S34: 150 | T34: 150 | U34: 150 | V34: 150 | W34: 150 | X34: 150 | Y34: 150 | Z34: 150 | AA34: 150 | AB34: 150 | AC34: 150 | AD34: 150 | AE34: 150 | AF34: 150 | AG34: 150 | AH34: 300 | AI34: 300 | AJ34: 300 | AK34: 300 | AL34: 300 | AM34: 300 | AN34: 300 | AO34: 300 | AP34: =AP53*AP$7 -> 300 | AQ34: 300 | AR34: 300 | AS34: 300 | AT34: 300 | AU34: 150 | AV34: 150 | AW34: 150 | AX34: 150 | AY34: 150 | AZ34: 150 | BA34: 150 | BB34: 150 | BC34: 150 | BD34: 150 | BE34: 150 | BF34: 150 | BG34: 150
B35: Total | G35: ='1_KMA'!$I$21 -> 2024-06-30 | H35: ='1_KMA'!$I$19 -> $thousands | J35: =J54*J$7 -> 150 | K35: 150 | L35: 150 | M35: 150 | N35: 150 | O35: 150 | P35: 150 | Q35: 150 | R35: 150 | S35: 150 | T35: 150 | U35: 150 | V35: 150 | W35: 150 | X35: 150 | Y35: 150 | Z35: 150 | AA35: 150 | AB35: 150 | AC35: 150 | AD35: 150 | AE35: 150 | AF35: 150 | AG35: 150 | AH35: 300 | AI35: 300 | AJ35: 300 | AK35: 300 | AL35: 300 | AM35: 300 | AN35: 300 | AO35: 300 | AP35: =AP54*AP$7 -> 300 | AQ35: 300 | AR35: 300 | AS35: 300 | AT35: 300 | AU35: 150 | AV35: 150 | AW35: 150 | AX35: 150 | AY35: 150 | AZ35: 150 | BA35: 150 | BB35: 150 | BC35: 150 | BD35: 150 | BE35: 150 | BF35: 150 | BG35: 150
B37: Benefits
G39: $ Basis Reminder | H39: $ Reminder
B40: =B59 -> Value of EUE (residual) | G40: ='1_KMA'!$I$21 -> 2024-06-30 | H40: ='1_KMA'!$I$19 -> $thousands | J40: =J59*J$7 -> -995.5375145 | K40: -995.5375145 | L40: -995.5375145 | M40: -995.5375145 | N40: -995.5375145 | O40: -995.5375145 | P40: -995.5375145 | Q40: -995.5375145 | R40: -995.5375145 | S40: -995.5375145 | T40: -995.5375145 | U40: -995.5375145 | V40: -995.5375145 | W40: -995.5375145 | X40: -995.5375145 | Y40: -995.5375145 | Z40: -995.5375145 | AA40: -995.5375145 | AB40: -995.5375145 | AC40: -995.5375145 | AD40: -995.5375145 | AE40: -995.5375145 | AF40: -995.5375145 | AG40: -995.5375145 | AH40: -995.5375145 | AI40: -995.5375145 | AJ40: -995.5375145 | AK40: -995.5375145 | AL40: -995.5375145 | AM40: -995.5375145 | AN40: -995.5375145 | AO40: -995.5375145 | AP40: =AP59*AP$7 -> -995.5375145 | AQ40: -995.5375145 | AR40: -995.5375145 | AS40: -995.5375145 | AT40: -995.5375145 | AU40: -995.5375145 | AV40: -995.5375145 | AW40: -995.5375145 | AX40: -995.5375145 | AY40: -995.5375145 | AZ40: -995.5375145 | BA40: -995.5375145 | BB40: -995.5375145 | BC40: -995.5375145 | BD40: -995.5375145 | BE40: -995.5375145 | BF40: -995.5375145 | BG40: =BG59*BG$7 -> -995.5375145
B41: =B60 -> 0 | G41: ='1_KMA'!$I$21 -> 2024-06-30 | H41: ='1_KMA'!$I$19 -> $thousands | J41: =J60*J$7 -> 0 | K41: 0 | L41: 0 | M41: 0 | N41: 0 | O41: 0 | P41: 0 | Q41: 0 | R41: 0 | S41: 0 | T41: 0 | U41: 0 | V41: 0 | W41: 0 | X41: 0 | Y41: 0 | Z41: 0 | AA41: 0 | AB41: 0 | AC41: 0 | AD41: 0 | AE41: 0 | AF41: 0 | AG41: 0 | AH41: 0 | AI41: 0 | AJ41: 0 | AK41: 0 | AL41: 0 | AM41: 0 | AN41: 0 | AO41: 0 | AP41: =AP60*AP$7 -> 0 | AQ41: 0 | AR41: 0 | AS41: 0 | AT41: 0 | AU41: 0 | AV41: 0 | AW41: 0 | AX41: 0 | AY41: 0 | AZ41: 0 | BA41: 0 | BB41: 0 | BC41: 0 | BD41: 0 | BE41: 0 | BF41: 0 | BG41: 0
B42: 0 | G42: ='1_KMA'!$I$21 -> 2024-06-30 | H42: ='1_KMA'!$I$19 -> $thousands | J42: =J61*J$7 -> 0 | K42: 0 | L42: 0 | M42: 0 | N42: 0 | O42: 0 | P42: 0 | Q42: 0 | R42: 0 | S42: 0 | T42: 0 | U42: 0 | V42: 0 | W42: 0 | X42: 0 | Y42: 0 | Z42: 0 | AA42: 0 | AB42: 0 | AC42: 0 | AD42: 0 | AE42: 0 | AF42: 0 | AG42: 0 | AH42: 0 | AI42: 0 | AJ42: 0 | AK42: 0 | AL42: 0 | AM42: 0 | AN42: 0 | AO42: 0 | AP42: =AP61*AP$7 -> 0 | AQ42: 0 | AR42: 0 | AS42: 0 | AT42: 0 | AU42: 0 | AV42: 0 | AW42: 0 | AX42: 0 | AY42: 0 | AZ42: 0 | BA42: 0 | BB42: 0 | BC42: 0 | BD42: 0 | BE42: 0 | BF42: 0 | BG42: 0
B43: 0 | G43: ='1_KMA'!$I$21 -> 2024-06-30 | H43: ='1_KMA'!$I$19 -> $thousands | J43: =J62*J$7 -> 0 | K43: 0 | L43: 0 | M43: 0 | N43: 0 | O43: 0 | P43: 0 | Q43: 0 | R43: 0 | S43: 0 | T43: 0 | U43: 0 | V43: 0 | W43: 0 | X43: 0 | Y43: 0 | Z43: 0 | AA43: 0 | AB43: 0 | AC43: 0 | AD43: 0 | AE43: 0 | AF43: 0 | AG43: 0 | AH43: 0 | AI43: 0 | AJ43: 0 | AK43: 0 | AL43: 0 | AM43: 0 | AN43: 0 | AO43: 0 | AP43: =AP62*AP$7 -> 0 | AQ43: 0 | AR43: 0 | AS43: 0 | AT43: 0 | AU43: 0 | AV43: 0 | AW43: 0 | AX43: 0 | AY43: 0 | AZ43: 0 | BA43: 0 | BB43: 0 | BC43: 0 | BD43: 0 | BE43: 0 | BF43: 0 | BG43: 0
B44: 0 | G44: ='1_KMA'!$I$21 -> 2024-06-30 | H44: ='1_KMA'!$I$19 -> $thousands | J44: =J63*J$7 -> 0 | K44: 0 | L44: 0 | M44: 0 | N44: 0 | O44: 0 | P44: 0 | Q44: 0 | R44: 0 | S44: 0 | T44: 0 | U44: 0 | V44: 0 | W44: 0 | X44: 0 | Y44: 0 | Z44: 0 | AA44: 0 | AB44: 0 | AC44: 0 | AD44: 0 | AE44: 0 | AF44: 0 | AG44: 0 | AH44: 0 | AI44: 0 | AJ44: 0 | AK44: 0 | AL44: 0 | AM44: 0 | AN44: 0 | AO44: 0 | AP44: =AP63*AP$7 -> 0 | AQ44: 0 | AR44: 0 | AS44: 0 | AT44: 0 | AU44: 0 | AV44: 0 | AW44: 0 | AX44: 0 | AY44: 0 | AZ44: 0 | BA44: 0 | BB44: 0 | BC44: 0 | BD44: 0 | BE44: 0 | BF44: 0 | BG44: 0
B45: ='3_BC'!B64 -> Total | G45: ='1_KMA'!$I$21 -> 2024-06-30 | H45: ='1_KMA'!$I$19 -> $thousands | J45: =J64*J$7 -> -995.5375145 | K45: -995.5375145 | L45: -995.5375145 | M45: -995.5375145 | N45: -995.5375145 | O45: -995.5375145 | P45: -995.5375145 | Q45: -995.5375145 | R45: -995.5375145 | S45: -995.5375145 | T45: -995.5375145 | U45: -995.5375145 | V45: -995.5375145 | W45: -995.5375145 | X45: -995.5375145 | Y45: -995.5375145 | Z45: -995.5375145 | AA45: -995.5375145 | AB45: -995.5375145 | AC45: -995.5375145 | AD45: -995.5375145 | AE45: -995.5375145 | AF45: -995.5375145 | AG45: -995.5375145 | AH45: -995.5375145 | AI45: -995.5375145 | AJ45: -995.5375145 | AK45: -995.5375145 | AL45: -995.5375145 | AM45: -995.5375145 | AN45: -995.5375145 | AO45: -995.5375145 | AP45: =AP64*AP$7 -> -995.5375145 | AQ45: -995.5375145 | AR45: -995.5375145 | AS45: -995.5375145 | AT45: -995.5375145 | AU45: -995.5375145 | AV45: -995.5375145 | AW45: -995.5375145 | AX45: -995.5375145 | AY45: -995.5375145 | AZ45: -995.5375145 | BA45: -995.5375145 | BB45: -995.5375145 | BC45: -995.5375145 | BD45: -995.5375145 | BE45: -995.5375145 | BF45: -995.5375145 | BG45: -995.5375145
B47: Undiscounted | D47: ="("&TEXT('1_KMA'!$I$20,"dd-mmm-yy")&" dollars)" -> (30-Jun-24 dollars)
B49: Costs
G51: $ Basis Reminder | H51: $ Reminder
B52: Net Capex | G52: ='1_KMA'!$I$20 -> 2024-06-30 | H52: ='1_KMA'!$I$19 -> $thousands | J52: ='2.1_BC'!J10+'2.1_BC'!J11 -> 0 | K52: ='2.1_BC'!K10+'2.1_BC'!K11 -> 0 | L52: ='2.1_BC'!L10+'2.1_BC'!L11 -> 0 | M52: ='2.1_BC'!M10+'2.1_BC'!M11 -> 0 | N52: ='2.1_BC'!N10+'2.1_BC'!N11 -> 0 | O52: ='2.1_BC'!O10+'2.1_BC'!O11 -> 0 | P52: ='2.1_BC'!P10+'2.1_BC'!P11 -> 0 | Q52: ='2.1_BC'!Q10+'2.1_BC'!Q11 -> 0 | R52: ='2.1_BC'!R10+'2.1_BC'!R11 -> 0 | S52: ='2.1_BC'!S10+'2.1_BC'!S11 -> 0 | T52: ='2.1_BC'!T10+'2.1_BC'!T11 -> 0 | U52: ='2.1_BC'!U10+'2.1_BC'!U11 -> 0 | V52: ='2.1_BC'!V10+'2.1_BC'!V11 -> 0 | W52: ='2.1_BC'!W10+'2.1_BC'!W11 -> 0 | X52: ='2.1_BC'!X10+'2.1_BC'!X11 -> 0 | Y52: ='2.1_BC'!Y10+'2.1_BC'!Y11 -> 0 | Z52: ='2.1_BC'!Z10+'2.1_BC'!Z11 -> 0 | AA52: ='2.1_BC'!AA10+'2.1_BC'!AA11 -> 0 | AB52: ='2.1_BC'!AB10+'2.1_BC'!AB11 -> 0 | AC52: ='2.1_BC'!AC10+'2.1_BC'!AC11 -> 0 | AD52: ='2.1_BC'!AD10+'2.1_BC'!AD11 -> 0 | AE52: ='2.1_BC'!AE10+'2.1_BC'!AE11 -> 0 | AF52: ='2.1_BC'!AF10+'2.1_BC'!AF11 -> 0 | AG52: ='2.1_BC'!AG10+'2.1_BC'!AG11 -> 0 | AH52: ='2.1_BC'!AH10+'2.1_BC'!AH11 -> 0 | AI52: ='2.1_BC'!AI10+'2.1_BC'!AI11 -> 0 | AJ52: ='2.1_BC'!AJ10+'2.1_BC'!AJ11 -> 0 | AK52: ='2.1_BC'!AK10+'2.1_BC'!AK11 -> 0 | AL52: ='2.1_BC'!AL10+'2.1_BC'!AL11 -> 0 | AM52: ='2.1_BC'!AM10+'2.1_BC'!AM11 -> 0 | AN52: ='2.1_BC'!AN10+'2.1_BC'!AN11 -> 0 | AO52: ='2.1_BC'!AO10+'2.1_BC'!AO11 -> 0 | AP52: ='2.1_BC'!AP10+'2.1_BC'!AP11 -> 0 | AQ52: ='2.1_BC'!AQ10+'2.1_BC'!AQ11 -> 0 | AR52: ='2.1_BC'!AR10+'2.1_BC'!AR11 -> 0 | AS52: ='2.1_BC'!AS10+'2.1_BC'!AS11 -> 0 | AT52: ='2.1_BC'!AT10+'2.1_BC'!AT11 -> 0 | AU52: ='2.1_BC'!AU10+'2.1_BC'!AU11 -> 0 | AV52: ='2.1_BC'!AV10+'2.1_BC'!AV11 -> 0 | AW52: ='2.1_BC'!AW10+'2.1_BC'!AW11 -> 0 | AX52: ='2.1_BC'!AX10+'2.1_BC'!AX11 -> 0 | AY52: ='2.1_BC'!AY10+'2.1_BC'!AY11 -> 0 | AZ52: ='2.1_BC'!AZ10+'2.1_BC'!AZ11 -> 0 | BA52: ='2.1_BC'!BA10+'2.1_BC'!BA11 -> 0 | BB52: ='2.1_BC'!BB10+'2.1_BC'!BB11 -> 0 | BC52: ='2.1_BC'!BC10+'2.1_BC'!BC11 -> 0 | BD52: ='2.1_BC'!BD10+'2.1_BC'!BD11 -> 0 | BE52: ='2.1_BC'!BE10+'2.1_BC'!BE11 -> 0 | BF52: ='2.1_BC'!BF10+'2.1_BC'!BF11 -> 0 | BG52: ='2.1_BC'!BG10+'2.1_BC'!BG11 -> 0
B53: Opex | G53: ='1_KMA'!$I$20 -> 2024-06-30 | H53: ='1_KMA'!$I$19 -> $thousands | J53: ='2.1_BC'!J12 -> 150 | K53: ='2.1_BC'!K12 -> 150 | L53: ='2.1_BC'!L12 -> 150 | M53: ='2.1_BC'!M12 -> 150 | N53: ='2.1_BC'!N12 -> 150 | O53: ='2.1_BC'!O12 -> 150 | P53: ='2.1_BC'!P12 -> 150 | Q53: ='2.1_BC'!Q12 -> 150 | R53: ='2.1_BC'!R12 -> 150 | S53: ='2.1_BC'!S12 -> 150 | T53: ='2.1_BC'!T12 -> 150 | U53: ='2.1_BC'!U12 -> 150 | V53: ='2.1_BC'!V12 -> 150 | W53: ='2.1_BC'!W12 -> 150 | X53: ='2.1_BC'!X12 -> 150 | Y53: ='2.1_BC'!Y12 -> 150 | Z53: ='2.1_BC'!Z12 -> 150 | AA53: ='2.1_BC'!AA12 -> 150 | AB53: ='2.1_BC'!AB12 -> 150 | AC53: ='2.1_BC'!AC12 -> 150 | AD53: ='2.1_BC'!AD12 -> 150 | AE53: ='2.1_BC'!AE12 -> 150 | AF53: ='2.1_BC'!AF12 -> 150 | AG53: ='2.1_BC'!AG12 -> 150 | AH53: ='2.1_BC'!AH12 -> 300 | AI53: ='2.1_BC'!AI12 -> 300 | AJ53: ='2.1_BC'!AJ12 -> 300 | AK53: ='2.1_BC'!AK12 -> 300 | AL53: ='2.1_BC'!AL12 -> 300 | AM53: ='2.1_BC'!AM12 -> 300 | AN53: ='2.1_BC'!AN12 -> 300 | AO53: ='2.1_BC'!AO12 -> 300 | AP53: ='2.1_BC'!AP12 -> 300 | AQ53: ='2.1_BC'!AQ12 -> 300 | AR53: ='2.1_BC'!AR12 -> 300 | AS53: ='2.1_BC'!AS12 -> 300 | AT53: ='2.1_BC'!AT12 -> 300 | AU53: ='2.1_BC'!AU12 -> 150 | AV53: ='2.1_BC'!AV12 -> 150 | AW53: ='2.1_BC'!AW12 -> 150 | AX53: ='2.1_BC'!AX12 -> 150 | AY53: ='2.1_BC'!AY12 -> 150 | AZ53: ='2.1_BC'!AZ12 -> 150 | BA53: ='2.1_BC'!BA12 -> 150 | BB53: ='2.1_BC'!BB12 -> 150 | BC53: ='2.1_BC'!BC12 -> 150 | BD53: ='2.1_BC'!BD12 -> 150 | BE53: ='2.1_BC'!BE12 -> 150 | BF53: ='2.1_BC'!BF12 -> 150 | BG53: ='2.1_BC'!BG12 -> 150
B54: Total | G54: ='1_KMA'!$I$20 -> 2024-06-30 | H54: ='1_KMA'!$I$19 -> $thousands | J54: =SUM(J52:J53) -> 150 | K54: =SUM(K52:K53) -> 150 | L54: 150 | M54: 150 | N54: 150 | O54: 150 | P54: 150 | Q54: 150 | R54: 150 | S54: 150 | T54: 150 | U54: 150 | V54: 150 | W54: 150 | X54: 150 | Y54: 150 | Z54: 150 | AA54: 150 | AB54: 150 | AC54: 150 | AD54: 150 | AE54: 150 | AF54: 150 | AG54: 150 | AH54: 300 | AI54: 300 | AJ54: 300 | AK54: 300 | AL54: 300 | AM54: 300 | AN54: 300 | AO54: 300 | AP54: 300 | AQ54: 300 | AR54: 300 | AS54: 300 | AT54: 300 | AU54: 150 | AV54: 150 | AW54: 150 | AX54: 150 | AY54: 150 | AZ54: 150 | BA54: 150 | BB54: 150 | BC54: 150 | BD54: 150 | BE54: 150 | BF54: 150 | BG54: 150
B56: Benefits
G58: $ Basis Reminder | H58: $ Reminder
B59: ='2.1_BC'!$B$16 -> Value of EUE (residual) | G59: ='1_KMA'!$I$20 -> 2024-06-30 | H59: ='1_KMA'!$I$19 -> $thousands | J59: ='2.1_BC'!J16 -> -995.5375145 | K59: ='2.1_BC'!K16 -> -995.5375145 | L59: ='2.1_BC'!L16 -> -995.5375145 | M59: ='2.1_BC'!M16 -> -995.5375145 | N59: ='2.1_BC'!N16 -> -995.5375145 | O59: ='2.1_BC'!O16 -> -995.5375145 | P59: ='2.1_BC'!P16 -> -995.5375145 | Q59: ='2.1_BC'!Q16 -> -995.5375145 | R59: ='2.1_BC'!R16 -> -995.5375145 | S59: ='2.1_BC'!S16 -> -995.5375145 | T59: ='2.1_BC'!T16 -> -995.5375145 | U59: ='2.1_BC'!U16 -> -995.5375145 | V59: ='2.1_BC'!V16 -> -995.5375145 | W59: ='2.1_BC'!W16 -> -995.5375145 | X59: ='2.1_BC'!X16 -> -995.5375145 | Y59: ='2.1_BC'!Y16 -> -995.5375145 | Z59: ='2.1_BC'!Z16 -> -995.5375145 | AA59: ='2.1_BC'!AA16 -> -995.5375145 | AB59: ='2.1_BC'!AB16 -> -995.5375145 | AC59: ='2.1_BC'!AC16 -> -995.5375145 | AD59: ='2.1_BC'!AD16 -> -995.5375145 | AE59: ='2.1_BC'!AE16 -> -995.5375145 | AF59: ='2.1_BC'!AF16 -> -995.5375145 | AG59: ='2.1_BC'!AG16 -> -995.5375145 | AH59: ='2.1_BC'!AH16 -> -995.5375145 | AI59: ='2.1_BC'!AI16 -> -995.5375145 | AJ59: ='2.1_BC'!AJ16 -> -995.5375145 | AK59: ='2.1_BC'!AK16 -> -995.5375145 | AL59: ='2.1_BC'!AL16 -> -995.5375145 | AM59: ='2.1_BC'!AM16 -> -995.5375145 | AN59: ='2.1_BC'!AN16 -> -995.5375145 | AO59: ='2.1_BC'!AO16 -> -995.5375145 | AP59: ='2.1_BC'!AP16 -> -995.5375145 | AQ59: ='2.1_BC'!AQ16 -> -995.5375145 | AR59: ='2.1_BC'!AR16 -> -995.5375145 | AS59: ='2.1_BC'!AS16 -> -995.5375145 | AT59: ='2.1_BC'!AT16 -> -995.5375145 | AU59: ='2.1_BC'!AU16 -> -995.5375145 | AV59: ='2.1_BC'!AV16 -> -995.5375145 | AW59: ='2.1_BC'!AW16 -> -995.5375145 | AX59: ='2.1_BC'!AX16 -> -995.5375145 | AY59: ='2.1_BC'!AY16 -> -995.5375145 | AZ59: ='2.1_BC'!AZ16 -> -995.5375145 | BA59: ='2.1_BC'!BA16 -> -995.5375145 | BB59: ='2.1_BC'!BB16 -> -995.5375145 | BC59: ='2.1_BC'!BC16 -> -995.5375145 | BD59: ='2.1_BC'!BD16 -> -995.5375145 | BE59: ='2.1_BC'!BE16 -> -995.5375145 | BF59: ='2.1_BC'!BF16 -> -995.5375145 | BG59: ='2.1_BC'!BG16 -> -995.5375145
B60: ='2.1_BC'!$B$17 -> 0 | G60: ='1_KMA'!$I$20 -> 2024-06-30 | H60: ='1_KMA'!$I$19 -> $thousands | J60: ='2.1_BC'!J17 -> 0 | K60: ='2.1_BC'!K17 -> 0 | L60: ='2.1_BC'!L17 -> 0 | M60: ='2.1_BC'!M17 -> 0 | N60: ='2.1_BC'!N17 -> 0 | O60: ='2.1_BC'!O17 -> 0 | P60: ='2.1_BC'!P17 -> 0 | Q60: ='2.1_BC'!Q17 -> 0 | R60: ='2.1_BC'!R17 -> 0 | S60: ='2.1_BC'!S17 -> 0 | T60: ='2.1_BC'!T17 -> 0 | U60: ='2.1_BC'!U17 -> 0 | V60: ='2.1_BC'!V17 -> 0 | W60: ='2.1_BC'!W17 -> 0 | X60: ='2.1_BC'!X17 -> 0 | Y60: ='2.1_BC'!Y17 -> 0 | Z60: ='2.1_BC'!Z17 -> 0 | AA60: ='2.1_BC'!AA17 -> 0 | AB60: ='2.1_BC'!AB17 -> 0 | AC60: ='2.1_BC'!AC17 -> 0 | AD60: ='2.1_BC'!AD17 -> 0 | AE60: ='2.1_BC'!AE17 -> 0 | AF60: ='2.1_BC'!AF17 -> 0 | AG60: ='2.1_BC'!AG17 -> 0 | AH60: ='2.1_BC'!AH17 -> 0 | AI60: ='2.1_BC'!AI17 -> 0 | AJ60: ='2.1_BC'!AJ17 -> 0 | AK60: ='2.1_BC'!AK17 -> 0 | AL60: ='2.1_BC'!AL17 -> 0 | AM60: ='2.1_BC'!AM17 -> 0 | AN60: ='2.1_BC'!AN17 -> 0 | AO60: ='2.1_BC'!AO17 -> 0 | AP60: ='2.1_BC'!AP17 -> 0 | AQ60: ='2.1_BC'!AQ17 -> 0 | AR60: ='2.1_BC'!AR17 -> 0 | AS60: ='2.1_BC'!AS17 -> 0 | AT60: ='2.1_BC'!AT17 -> 0 | AU60: ='2.1_BC'!AU17 -> 0 | AV60: ='2.1_BC'!AV17 -> 0 | AW60: ='2.1_BC'!AW17 -> 0 | AX60: ='2.1_BC'!AX17 -> 0 | AY60: ='2.1_BC'!AY17 -> 0 | AZ60: ='2.1_BC'!AZ17 -> 0 | BA60: ='2.1_BC'!BA17 -> 0 | BB60: ='2.1_BC'!BB17 -> 0 | BC60: ='2.1_BC'!BC17 -> 0 | BD60: ='2.1_BC'!BD17 -> 0 | BE60: ='2.1_BC'!BE17 -> 0 | BF60: ='2.1_BC'!BF17 -> 0 | BG60: ='2.1_BC'!BG17 -> 0
B61: ='2.1_BC'!$B$18 -> 0 | G61: ='1_KMA'!$I$20 -> 2024-06-30 | H61: ='1_KMA'!$I$19 -> $thousands | J61: ='2.1_BC'!J18 -> 0 | K61: ='2.1_BC'!K18 -> 0 | L61: ='2.1_BC'!L18 -> 0 | M61: ='2.1_BC'!M18 -> 0 | N61: ='2.1_BC'!N18 -> 0 | O61: ='2.1_BC'!O18 -> 0 | P61: ='2.1_BC'!P18 -> 0 | Q61: ='2.1_BC'!Q18 -> 0 | R61: ='2.1_BC'!R18 -> 0 | S61: ='2.1_BC'!S18 -> 0 | T61: ='2.1_BC'!T18 -> 0 | U61: ='2.1_BC'!U18 -> 0 | V61: ='2.1_BC'!V18 -> 0 | W61: ='2.1_BC'!W18 -> 0 | X61: ='2.1_BC'!X18 -> 0 | Y61: ='2.1_BC'!Y18 -> 0 | Z61: ='2.1_BC'!Z18 -> 0 | AA61: ='2.1_BC'!AA18 -> 0 | AB61: ='2.1_BC'!AB18 -> 0 | AC61: ='2.1_BC'!AC18 -> 0 | AD61: ='2.1_BC'!AD18 -> 0 | AE61: ='2.1_BC'!AE18 -> 0 | AF61: ='2.1_BC'!AF18 -> 0 | AG61: ='2.1_BC'!AG18 -> 0 | AH61: ='2.1_BC'!AH18 -> 0 | AI61: ='2.1_BC'!AI18 -> 0 | AJ61: ='2.1_BC'!AJ18 -> 0 | AK61: ='2.1_BC'!AK18 -> 0 | AL61: ='2.1_BC'!AL18 -> 0 | AM61: ='2.1_BC'!AM18 -> 0 | AN61: ='2.1_BC'!AN18 -> 0 | AO61: ='2.1_BC'!AO18 -> 0 | AP61: ='2.1_BC'!AP18 -> 0 | AQ61: ='2.1_BC'!AQ18 -> 0 | AR61: ='2.1_BC'!AR18 -> 0 | AS61: ='2.1_BC'!AS18 -> 0 | AT61: ='2.1_BC'!AT18 -> 0 | AU61: ='2.1_BC'!AU18 -> 0 | AV61: ='2.1_BC'!AV18 -> 0 | AW61: ='2.1_BC'!AW18 -> 0 | AX61: ='2.1_BC'!AX18 -> 0 | AY61: ='2.1_BC'!AY18 -> 0 | AZ61: ='2.1_BC'!AZ18 -> 0 | BA61: ='2.1_BC'!BA18 -> 0 | BB61: ='2.1_BC'!BB18 -> 0 | BC61: ='2.1_BC'!BC18 -> 0 | BD61: ='2.1_BC'!BD18 -> 0 | BE61: ='2.1_BC'!BE18 -> 0 | BF61: ='2.1_BC'!BF18 -> 0 | BG61: ='2.1_BC'!BG18 -> 0
B62: ='2.1_BC'!$B$19 -> 0 | G62: ='1_KMA'!$I$20 -> 2024-06-30 | H62: ='1_KMA'!$I$19 -> $thousands | J62: ='2.1_BC'!J19 -> 0 | K62: ='2.1_BC'!K19 -> 0 | L62: ='2.1_BC'!L19 -> 0 | M62: ='2.1_BC'!M19 -> 0 | N62: ='2.1_BC'!N19 -> 0 | O62: ='2.1_BC'!O19 -> 0 | P62: ='2.1_BC'!P19 -> 0 | Q62: ='2.1_BC'!Q19 -> 0 | R62: ='2.1_BC'!R19 -> 0 | S62: ='2.1_BC'!S19 -> 0 | T62: ='2.1_BC'!T19 -> 0 | U62: ='2.1_BC'!U19 -> 0 | V62: ='2.1_BC'!V19 -> 0 | W62: ='2.1_BC'!W19 -> 0 | X62: ='2.1_BC'!X19 -> 0 | Y62: ='2.1_BC'!Y19 -> 0 | Z62: ='2.1_BC'!Z19 -> 0 | AA62: ='2.1_BC'!AA19 -> 0 | AB62: ='2.1_BC'!AB19 -> 0 | AC62: ='2.1_BC'!AC19 -> 0 | AD62: ='2.1_BC'!AD19 -> 0 | AE62: ='2.1_BC'!AE19 -> 0 | AF62: ='2.1_BC'!AF19 -> 0 | AG62: ='2.1_BC'!AG19 -> 0 | AH62: ='2.1_BC'!AH19 -> 0 | AI62: ='2.1_BC'!AI19 -> 0 | AJ62: ='2.1_BC'!AJ19 -> 0 | AK62: ='2.1_BC'!AK19 -> 0 | AL62: ='2.1_BC'!AL19 -> 0 | AM62: ='2.1_BC'!AM19 -> 0 | AN62: ='2.1_BC'!AN19 -> 0 | AO62: ='2.1_BC'!AO19 -> 0 | AP62: ='2.1_BC'!AP19 -> 0 | AQ62: ='2.1_BC'!AQ19 -> 0 | AR62: ='2.1_BC'!AR19 -> 0 | AS62: ='2.1_BC'!AS19 -> 0 | AT62: ='2.1_BC'!AT19 -> 0 | AU62: ='2.1_BC'!AU19 -> 0 | AV62: ='2.1_BC'!AV19 -> 0 | AW62: ='2.1_BC'!AW19 -> 0 | AX62: ='2.1_BC'!AX19 -> 0 | AY62: ='2.1_BC'!AY19 -> 0 | AZ62: ='2.1_BC'!AZ19 -> 0 | BA62: ='2.1_BC'!BA19 -> 0 | BB62: ='2.1_BC'!BB19 -> 0 | BC62: ='2.1_BC'!BC19 -> 0 | BD62: ='2.1_BC'!BD19 -> 0 | BE62: ='2.1_BC'!BE19 -> 0 | BF62: ='2.1_BC'!BF19 -> 0 | BG62: ='2.1_BC'!BG19 -> 0
B63: ='2.1_BC'!$B$20 -> 0 | G63: ='1_KMA'!$I$20 -> 2024-06-30 | H63: ='1_KMA'!$I$19 -> $thousands | J63: ='2.1_BC'!J20 -> 0 | K63: ='2.1_BC'!K20 -> 0 | L63: ='2.1_BC'!L20 -> 0 | M63: ='2.1_BC'!M20 -> 0 | N63: ='2.1_BC'!N20 -> 0 | O63: ='2.1_BC'!O20 -> 0 | P63: ='2.1_BC'!P20 -> 0 | Q63: ='2.1_BC'!Q20 -> 0 | R63: ='2.1_BC'!R20 -> 0 | S63: ='2.1_BC'!S20 -> 0 | T63: ='2.1_BC'!T20 -> 0 | U63: ='2.1_BC'!U20 -> 0 | V63: ='2.1_BC'!V20 -> 0 | W63: ='2.1_BC'!W20 -> 0 | X63: ='2.1_BC'!X20 -> 0 | Y63: ='2.1_BC'!Y20 -> 0 | Z63: ='2.1_BC'!Z20 -> 0 | AA63: ='2.1_BC'!AA20 -> 0 | AB63: ='2.1_BC'!AB20 -> 0 | AC63: ='2.1_BC'!AC20 -> 0 | AD63: ='2.1_BC'!AD20 -> 0 | AE63: ='2.1_BC'!AE20 -> 0 | AF63: ='2.1_BC'!AF20 -> 0 | AG63: ='2.1_BC'!AG20 -> 0 | AH63: ='2.1_BC'!AH20 -> 0 | AI63: ='2.1_BC'!AI20 -> 0 | AJ63: ='2.1_BC'!AJ20 -> 0 | AK63: ='2.1_BC'!AK20 -> 0 | AL63: ='2.1_BC'!AL20 -> 0 | AM63: ='2.1_BC'!AM20 -> 0 | AN63: ='2.1_BC'!AN20 -> 0 | AO63: ='2.1_BC'!AO20 -> 0 | AP63: ='2.1_BC'!AP20 -> 0 | AQ63: ='2.1_BC'!AQ20 -> 0 | AR63: ='2.1_BC'!AR20 -> 0 | AS63: ='2.1_BC'!AS20 -> 0 | AT63: ='2.1_BC'!AT20 -> 0 | AU63: ='2.1_BC'!AU20 -> 0 | AV63: ='2.1_BC'!AV20 -> 0 | AW63: ='2.1_BC'!AW20 -> 0 | AX63: ='2.1_BC'!AX20 -> 0 | AY63: ='2.1_BC'!AY20 -> 0 | AZ63: ='2.1_BC'!AZ20 -> 0 | BA63: ='2.1_BC'!BA20 -> 0 | BB63: ='2.1_BC'!BB20 -> 0 | BC63: ='2.1_BC'!BC20 -> 0 | BD63: ='2.1_BC'!BD20 -> 0 | BE63: ='2.1_BC'!BE20 -> 0 | BF63: ='2.1_BC'!BF20 -> 0 | BG63: ='2.1_BC'!BG20 -> 0
B64: Total | G64: ='1_KMA'!$I$20 -> 2024-06-30 | H64: ='1_KMA'!$I$19 -> $thousands | J64: =SUM(J59:J63) -> -995.5375145 | K64: =SUM(K59:K63) -> -995.5375145 | L64: -995.5375145 | M64: =SUM(M59:M63) -> -995.5375145 | N64: -995.5375145 | O64: -995.5375145 | P64: -995.5375145 | Q64: -995.5375145 | R64: -995.5375145 | S64: -995.5375145 | T64: -995.5375145 | U64: -995.5375145 | V64: -995.5375145 | W64: -995.5375145 | X64: -995.5375145 | Y64: -995.5375145 | Z64: -995.5375145 | AA64: -995.5375145 | AB64: -995.5375145 | AC64: -995.5375145 | AD64: -995.5375145 | AE64: -995.5375145 | AF64: -995.5375145 | AG64: -995.5375145 | AH64: -995.5375145 | AI64: -995.5375145 | AJ64: -995.5375145 | AK64: -995.5375145 | AL64: -995.5375145 | AM64: -995.5375145 | AN64: -995.5375145 | AO64: -995.5375145 | AP64: -995.5375145 | AQ64: -995.5375145 | AR64: -995.5375145 | AS64: -995.5375145 | AT64: -995.5375145 | AU64: -995.5375145 | AV64: -995.5375145 | AW64: -995.5375145 | AX64: -995.5375145 | AY64: -995.5375145 | AZ64: -995.5375145 | BA64: -995.5375145 | BB64: -995.5375145 | BC64: -995.5375145 | BD64: -995.5375145 | BE64: -995.5375145 | BF64: -995.5375145 | BG64: -995.5375145
B66: =Controls!$B$22&" "&Controls!$C$22&" ("&TEXT(Controls!$E$22,"0.00%")&")" -> Sensitivity Scenario 1 Higher Discount rate (7.00%)
B67: Summary
B69: WACC | J69: =Controls!$E$22 -> 0.07 | K69: =Controls!$E$22 -> 0.07 | L69: =Controls!$E$22 -> 0.07 | M69: =Controls!$E$22 -> 0.07 | N69: =Controls!$E$22 -> 0.07 | O69: =Controls!$E$22 -> 0.07 | P69: =Controls!$E$22 -> 0.07 | Q69: =Controls!$E$22 -> 0.07 | R69: =Controls!$E$22 -> 0.07 | S69: =Controls!$E$22 -> 0.07 | T69: =Controls!$E$22 -> 0.07 | U69: =Controls!$E$22 -> 0.07 | V69: =Controls!$E$22 -> 0.07 | W69: =Controls!$E$22 -> 0.07 | X69: =Controls!$E$22 -> 0.07 | Y69: =Controls!$E$22 -> 0.07 | Z69: =Controls!$E$22 -> 0.07 | AA69: =Controls!$E$22 -> 0.07 | AB69: =Controls!$E$22 -> 0.07 | AC69: =Controls!$E$22 -> 0.07 | AD69: =Controls!$E$22 -> 0.07 | AE69: =Controls!$E$22 -> 0.07 | AF69: =Controls!$E$22 -> 0.07 | AG69: =Controls!$E$22 -> 0.07 | AH69: =Controls!$E$22 -> 0.07 | AI69: =Controls!$E$22 -> 0.07 | AJ69: =Controls!$E$22 -> 0.07 | AK69: =Controls!$E$22 -> 0.07 | AL69: =Controls!$E$22 -> 0.07 | AM69: =Controls!$E$22 -> 0.07 | AN69: =Controls!$E$22 -> 0.07 | AO69: =Controls!$E$22 -> 0.07 | AP69: =Controls!$E$22 -> 0.07 | AQ69: =Controls!$E$22 -> 0.07 | AR69: =Controls!$E$22 -> 0.07 | AS69: =Controls!$E$22 -> 0.07 | AT69: =Controls!$E$22 -> 0.07 | AU69: =Controls!$E$22 -> 0.07 | AV69: =Controls!$E$22 -> 0.07 | AW69: =Controls!$E$22 -> 0.07 | AX69: =Controls!$E$22 -> 0.07 | AY69: =Controls!$E$22 -> 0.07 | AZ69: =Controls!$E$22 -> 0.07 | BA69: =Controls!$E$22 -> 0.07 | BB69: =Controls!$E$22 -> 0.07 | BC69: =Controls!$E$22 -> 0.07 | BD69: =Controls!$E$22 -> 0.07 | BE69: =Controls!$E$22 -> 0.07 | BF69: =Controls!$E$22 -> 0.07 | BG69: =Controls!$E$22 -> 0.07
B70: Deflator (interim calculation) | J70: 1 | K70: =J70*(1+K69) -> 1.07 | L70: =K70*(1+L69) -> 1.1449 | M70: =L70*(1+M69) -> 1.225043 | N70: =M70*(1+N69) -> 1.31079601 | O70: =N70*(1+O69) -> 1.402551731 | P70: =O70*(1+P69) -> 1.500730352 | Q70: =P70*(1+Q69) -> 1.605781476 | R70: =Q70*(1+R69) -> 1.71818618 | S70: =R70*(1+S69) -> 1.838459212 | T70: =S70*(1+T69) -> 1.967151357 | U70: =T70*(1+U69) -> 2.104851952 | V70: =U70*(1+V69) -> 2.252191589 | W70: =V70*(1+W69) -> 2.409845 | X70: =W70*(1+X69) -> 2.57853415 | Y70: =X70*(1+Y69) -> 2.759031541 | Z70: =Y70*(1+Z69) -> 2.952163749 | AA70: =Z70*(1+AA69) -> 3.158815211 | AB70: =AA70*(1+AB69) -> 3.379932276 | AC70: =AB70*(1+AC69) -> 3.616527535 | AD70: =AC70*(1+AD69) -> 3.869684462 | AE70: =AD70*(1+AE69) -> 4.140562375 | AF70: =AE70*(1+AF69) -> 4.430401741 | AG70: =AF70*(1+AG69) -> 4.740529863 | AH70: =AG70*(1+AH69) -> 5.072366953 | AI70: =AH70*(1+AI69) -> 5.42743264 | AJ70: =AI70*(1+AJ69) -> 5.807352925 | AK70: =AJ70*(1+AK69) -> 6.21386763 | AL70: =AK70*(1+AL69) -> 6.648838364 | AM70: =AL70*(1+AM69) -> 7.114257049 | AN70: =AM70*(1+AN69) -> 7.612255043 | AO70: =AN70*(1+AO69) -> 8.145112896 | AP70: =AO70*(1+AP69) -> 8.715270798 | AQ70: =AP70*(1+AQ69) -> 9.325339754 | AR70: =AQ70*(1+AR69) -> 9.978113537 | AS70: =AR70*(1+AS69) -> 10.67658148 | AT70: =AS70*(1+AT69) -> 11.42394219 | AU70: =AT70*(1+AU69) -> 12.22361814 | AV70: =AU70*(1+AV69) -> 13.07927141 | AW70: =AV70*(1+AW69) -> 13.99482041 | AX70: =AW70*(1+AX69) -> 14.97445784 | AY70: =AX70*(1+AY69) -> 16.02266989 | AZ70: =AY70*(1+AZ69) -> 17.14425678 | BA70: =AZ70*(1+BA69) -> 18.34435475 | BB70: =BA70*(1+BB69) -> 19.62845959 | BC70: =BB70*(1+BC69) -> 21.00245176 | BD70: =BC70*(1+BD69) -> 22.47262338 | BE70: =BD70*(1+BE69) -> 24.04570702 | BF70: =BE70*(1+BF69) -> 25.72890651 | BG70: =BF70*(1+BG69) -> 27.52992997
B71: Deflator | J71: =1/J70 -> 1 | K71: =1/K70 -> 0.9345794393 | L71: =1/L70 -> 0.8734387283 | M71: =1/M70 -> 0.8162978769 | N71: =1/N70 -> 0.762895212 | O71: =1/O70 -> 0.7129861795 | P71: 0.6663422238 | Q71: 0.6227497419 | R71: 0.5820091046 | S71: 0.5439337426 | T71: 0.5083492921 | U71: 0.4750927964 | V71: 0.4440119592 | W71: 0.4149644479 | X71: 0.387817241 | Y71: 0.3624460196 | Z71: 0.3387345978 | AA71: 0.3165743905 | AB71: 0.2958639163 | AC71: 0.276508333 | AD71: 0.2584190028 | AE71: 0.2415130867 | AF71: 0.2257131652 | AG71: 0.2109468833 | AH71: 0.1971466199 | AI71: 0.1842491775 | AJ71: 0.172195493 | AK71: 0.1609303673 | AL71: 0.1504022124 | AM71: 0.1405628154 | AN71: 0.1313671172 | AO71: 0.1227730067 | AP71: 0.1147411277 | AQ71: 0.1072346988 | AR71: 0.1002193447 | AS71: 0.09366293897 | AT71: 0.08753545698 | AU71: 0.0818088383 | AV71: 0.07645685822 | AW71: 0.07145500769 | AX71: 0.06678038102 | AY71: 0.06241157104 | AZ71: 0.05832857107 | BA71: 0.05451268324 | BB71: 0.05094643294 | BC71: 0.04761348872 | BD71: 0.04449858759 | BE71: 0.04158746504 | BF71: 0.03886678976 | BG71: 0.03632410258
B73: Totex sought for EDPR FY27-31 (undiscounted) | G73: ="("&TEXT('1_KMA'!$I$21,"dd-mmm-yy")&" Dollars)" -> (30-Jun-24 Dollars)
C74: Net Capital Expenditure | G74: =SUM(J74:BG74) -> 0 | J74: =-J89*J$1*J$8 -> 0 | K74: =-K89*K$1*K$8 -> 0 | L74: 0 | M74: 0 | N74: 0 | O74: 0 | P74: 0 | Q74: 0 | R74: 0 | S74: 0 | T74: 0 | U74: 0 | V74: 0 | W74: 0 | X74: 0 | Y74: 0 | Z74: 0 | AA74: 0 | AB74: 0 | AC74: 0 | AD74: 0 | AE74: 0 | AF74: 0 | AG74: 0 | AH74: 0 | AI74: 0 | AJ74: 0 | AK74: 0 | AL74: 0 | AM74: 0 | AN74: 0 | AO74: 0 | AP74: 0 | AQ74: 0 | AR74: 0 | AS74: 0 | AT74: 0 | AU74: 0 | AV74: 0 | AW74: 0 | AX74: 0 | AY74: 0 | AZ74: 0 | BA74: 0 | BB74: 0 | BC74: 0 | BD74: 0 | BE74: 0 | BF74: 0 | BG74: 0
C75: Operating Expenditure | G75: =SUM(J75:BG75) -> -750 | J75: =-J90*J$1*J$8 -> 0 | K75: =-K90*K$1*K$8 -> 0 | L75: 0 | M75: -150 | N75: -150 | O75: -150 | P75: -150 | Q75: -150 | R75: 0 | S75: 0 | T75: 0 | U75: 0 | V75: 0 | W75: 0 | X75: 0 | Y75: 0 | Z75: 0 | AA75: 0 | AB75: 0 | AC75: 0 | AD75: 0 | AE75: 0 | AF75: 0 | AG75: 0 | AH75: 0 | AI75: 0 | AJ75: 0 | AK75: 0 | AL75: 0 | AM75: 0 | AN75: 0 | AO75: 0 | AP75: 0 | AQ75: 0 | AR75: 0 | AS75: 0 | AT75: 0 | AU75: 0 | AV75: 0 | AW75: 0 | AX75: 0 | AY75: 0 | AZ75: 0 | BA75: 0 | BB75: 0 | BC75: 0 | BD75: 0 | BE75: 0 | BF75: 0 | BG75: 0
C76: Totex | G76: =SUM(G74:G75) -> -750 | J76: =SUM(J74:J75) -> 0 | K76: =SUM(K74:K75) -> 0 | L76: =SUM(L74:L75) -> 0 | M76: -150 | N76: -150 | O76: -150 | P76: -150 | Q76: -150 | R76: 0 | S76: 0 | T76: 0 | U76: 0 | V76: 0 | W76: 0 | X76: 0 | Y76: 0 | Z76: 0 | AA76: 0 | AB76: 0 | AC76: 0 | AD76: 0 | AE76: 0 | AF76: 0 | AG76: 0 | AH76: 0 | AI76: 0 | AJ76: 0 | AK76: 0 | AL76: 0 | AM76: 0 | AN76: 0 | AO76: 0 | AP76: 0 | AQ76: 0 | AR76: 0 | AS76: 0 | AT76: 0 | AU76: 0 | AV76: 0 | AW76: 0 | AX76: 0 | AY76: 0 | AZ76: 0 | BA76: 0 | BB76: 0 | BC76: 0 | BD76: 0 | BE76: 0 | BF76: 0 | BG76: 0
B78: PV over full assessment period to establish the preferred option (discounted) | G78: ="("&TEXT('1_KMA'!$I$21,"dd-mmm-yy")&" Dollars)" -> (30-Jun-24 Dollars)
C79: Net Capital Expenditure | G79: =SUM(J79:BG79) -> 0 | J79: =-(J89)*J$71*J$8 -> 0 | K79: =-(K89)*K$71*K$8 -> 0 | L79: 0 | M79: 0 | N79: 0 | O79: 0 | P79: 0 | Q79: 0 | R79: 0 | S79: 0 | T79: 0 | U79: 0 | V79: 0 | W79: 0 | X79: 0 | Y79: 0 | Z79: 0 | AA79: 0 | AB79: 0 | AC79: 0 | AD79: 0 | AE79: 0 | AF79: 0 | AG79: 0 | AH79: 0 | AI79: 0 | AJ79: 0 | AK79: 0 | AL79: 0 | AM79: 0 | AN79: 0 | AO79: 0 | AP79: 0 | AQ79: 0 | AR79: 0 | AS79: 0 | AT79: 0 | AU79: 0 | AV79: 0 | AW79: 0 | AX79: 0 | AY79: 0 | AZ79: 0 | BA79: 0 | BB79: 0 | BC79: 0 | BD79: 0 | BE79: 0 | BF79: 0 | BG79: 0
C80: Operating Expenditure | G80: =SUM(J80:BG80) -> -2479.472837 | J80: =-(J90)*J$71*J$8 -> -150 | K80: =-(K90)*K$71*K$8 -> -140.1869159 | L80: =-(L90)*L$71*L$8 -> -131.0158092 | M80: -122.4446815 | N80: -114.4342818 | O80: -106.9479269 | P80: -99.95133357 | Q80: -93.41246128 | R80: -87.30136568 | S80: -81.59006139 | T80: -76.25239382 | U80: -71.26391946 | V80: -66.60179389 | W80: -62.24466718 | X80: -58.17258615 | Y80: -54.36690295 | Z80: -50.81018967 | AA80: -47.48615857 | AB80: -44.37958745 | AC80: -41.47624995 | AD80: -38.76285042 | AE80: -36.22696301 | AF80: -33.85697478 | AG80: -31.6420325 | AH80: -59.14398598 | AI80: -55.27475326 | AJ80: -51.6586479 | AK80: -48.27911019 | AL80: -45.12066373 | AM80: -42.16884461 | AN80: -39.41013515 | AO80: -36.83190201 | AP80: -34.42233832 | AQ80: -32.17040965 | AR80: -30.06580341 | AS80: -28.09888169 | AT80: -26.26063709 | AU80: -12.27132575 | AV80: -11.46852873 | AW80: -10.71825115 | AX80: -10.01705715 | AY80: -9.361735656 | AZ80: -8.74928566 | BA80: -8.176902486 | BB80: -7.64196494 | BC80: -7.142023309 | BD80: -6.674788139 | BE80: -6.238119756 | BF80: -5.830018464 | BG80: -5.448615387
C81: Net Benefits | G81: =SUM(J81:BG81) -> -14700.90191 | J81: =(J101)*J$71*J$8 -> -995.5375145 | K81: =(K101)*K$71*K$8 -> -930.4088921 | L81: -869.5410206 | M81: -812.6551595 | N81: -759.4908032 | O81: -709.804489 | P81: -663.3686813 | Q81: -619.9707302 | R81: -579.4118974 | S81: -541.5064462 | T81: -506.0807908 | U81: -472.9727017 | V81: -442.0305623 | W81: -413.1126751 | X81: -386.0866122 | Y81: -360.8286095 | Z81: -337.2229996 | AA81: -315.1616818 | AB81: -294.5436279 | AC81: -275.2744186 | AD81: -257.2658118 | AE81: -240.4353381 | AF81: -224.7059235 | AG81: -210.0055359 | AH81: -196.266856 | AI81: -183.4269682 | AJ81: -171.4270731 | AK81: -160.2122179 | AL81: -149.7310447 | AM81: -139.9355558 | AN81: -130.7808933 | AO81: -122.2251339 | AP81: -114.2290971 | AQ81: -106.7561655 | AR81: -99.77211733 | AS81: -93.24496946 | AT81: -87.14483127 | AU81: -81.44376755 | AV81: -76.1156706 | AW81: -71.13614075 | AX81: -66.48237453 | AY81: -62.13306031 | AZ81: -58.06828067 | BA81: -54.26942118 | BB81: -50.71908522 | BC81: -47.40101422 | BD81: -44.30001329 | BE81: -41.40188158 | BF81: -38.69334727 | BG81: -36.1620068
B82: Total Present Value | G82: =SUM(J82:BG82) -> -17180.37475 | J82: =SUM(J79:J81) -> -1145.537515 | K82: =SUM(K79:K81) -> -1070.595808 | L82: -1000.55683 | M82: -935.099841 | N82: -873.925085 | O82: -816.7524159 | P82: -763.3200149 | Q82: -713.3831915 | R82: -666.7132631 | S82: -623.0965075 | T82: -582.3331846 | U82: -544.2366211 | V82: -508.6323562 | W82: -475.3573422 | X82: -444.2591984 | Y82: -415.1955125 | Z82: -388.0331892 | AA82: -362.6478404 | AB82: -338.9232153 | AC82: -316.7506685 | AD82: -296.0286622 | AE82: -276.6623011 | AF82: -258.5628982 | AG82: -241.6475684 | AH82: -255.410842 | AI82: -238.7017215 | AJ82: -223.085721 | AK82: -208.4913281 | AL82: -194.8517085 | AM82: -182.1044004 | AN82: -170.1910284 | AO82: -159.0570359 | AP82: -148.6514355 | AQ82: -138.9265752 | AR82: -129.8379207 | AS82: -121.3438512 | AT82: -113.4054684 | AU82: -93.71509329 | AV82: -87.58419934 | AW82: -81.8543919 | AX82: -76.49943169 | AY82: -71.49479597 | AZ82: -66.81756633 | BA82: -62.44632367 | BB82: -58.36105016 | BC82: -54.54303753 | BD82: -50.97480143 | BE82: -47.64000134 | BF82: -44.52336574 | BG82: -41.61062218
B84: Undiscounted | D84: ="("&TEXT('1_KMA'!$I$21,"dd-mmm-yy")&" dollars)" -> (30-Jun-24 dollars)
B86: Costs
G88: $ Basis Reminder | H88: $ Reminder
B89: Net Capex | G89: ='1_KMA'!$I$21 -> 2024-06-30 | H89: ='1_KMA'!$I$19 -> $thousands | J89: =J108*J$7 -> 0 | K89: 0 | L89: 0 | M89: 0 | N89: 0 | O89: 0 | P89: 0 | Q89: 0 | R89: 0 | S89: 0 | T89: 0 | U89: 0 | V89: 0 | W89: 0 | X89: 0 | Y89: 0 | Z89: 0 | AA89: 0 | AB89: 0 | AC89: 0 | AD89: 0 | AE89: 0 | AF89: 0 | AG89: 0 | AH89: 0 | AI89: 0 | AJ89: 0 | AK89: 0 | AL89: 0 | AM89: 0 | AN89: 0 | AO89: 0 | AP89: =AP108*AP$7 -> 0 | AQ89: 0 | AR89: 0 | AS89: 0 | AT89: 0 | AU89: 0 | AV89: 0 | AW89: 0 | AX89: 0 | AY89: 0 | AZ89: 0 | BA89: 0 | BB89: 0 | BC89: 0 | BD89: 0 | BE89: 0 | BF89: 0 | BG89: 0
B90: Opex | G90: ='1_KMA'!$I$21 -> 2024-06-30 | H90: ='1_KMA'!$I$19 -> $thousands | J90: =J109*J$7 -> 150 | K90: 150 | L90: 150 | M90: 150 | N90: 150 | O90: 150 | P90: 150 | Q90: 150 | R90: 150 | S90: 150 | T90: 150 | U90: 150 | V90: 150 | W90: 150 | X90: 150 | Y90: 150 | Z90: 150 | AA90: 150 | AB90: 150 | AC90: 150 | AD90: 150 | AE90: 150 | AF90: 150 | AG90: 150 | AH90: 300 | AI90: 300 | AJ90: 300 | AK90: 300 | AL90: 300 | AM90: 300 | AN90: 300 | AO90: 300 | AP90: =AP109*AP$7 -> 300 | AQ90: 300 | AR90: 300 | AS90: 300 | AT90: 300 | AU90: 150 | AV90: 150 | AW90: 150 | AX90: 150 | AY90: 150 | AZ90: 150 | BA90: 150 | BB90: 150 | BC90: 150 | BD90: 150 | BE90: 150 | BF90: 150 | BG90: 150
B91: Total | G91: ='1_KMA'!$I$21 -> 2024-06-30 | H91: ='1_KMA'!$I$19 -> $thousands | J91: =J110*J$7 -> 150 | K91: 150 | L91: 150 | M91: 150 | N91: 150 | O91: 150 | P91: 150 | Q91: 150 | R91: 150 | S91: 150 | T91: 150 | U91: 150 | V91: 150 | W91: 150 | X91: 150 | Y91: 150 | Z91: 150 | AA91: 150 | AB91: 150 | AC91: 150 | AD91: 150 | AE91: 150 | AF91: 150 | AG91: 150 | AH91: 300 | AI91: 300 | AJ91: 300 | AK91: 300 | AL91: 300 | AM91: 300 | AN91: 300 | AO91: 300 | AP91: =AP110*AP$7 -> 300 | AQ91: 300 | AR91: 300 | AS91: 300 | AT91: 300 | AU91: 150 | AV91: 150 | AW91: 150 | AX91: 150 | AY91: 150 | AZ91: 150 | BA91: 150 | BB91: 150 | BC91: 150 | BD91: 150 | BE91: 150 | BF91: 150 | BG91: 150
B93: Benefits
G95: $ Basis Reminder | H95: $ Reminder
B96: =B115 -> Value of EUE (residual) | G96: ='1_KMA'!$I$21 -> 2024-06-30 | H96: ='1_KMA'!$I$19 -> $thousands | J96: =J115*J$7 -> -995.5375145 | K96: -995.5375145 | L96: -995.5375145 | M96: -995.5375145 | N96: -995.5375145 | O96: -995.5375145 | P96: -995.5375145 | Q96: -995.5375145 | R96: -995.5375145 | S96: -995.5375145 | T96: -995.5375145 | U96: -995.5375145 | V96: -995.5375145 | W96: -995.5375145 | X96: -995.5375145 | Y96: -995.5375145 | Z96: -995.5375145 | AA96: -995.5375145 | AB96: -995.5375145 | AC96: -995.5375145 | AD96: -995.5375145 | AE96: -995.5375145 | AF96: -995.5375145 | AG96: -995.5375145 | AH96: -995.5375145 | AI96: -995.5375145 | AJ96: -995.5375145 | AK96: -995.5375145 | AL96: -995.5375145 | AM96: -995.5375145 | AN96: -995.5375145 | AO96: -995.5375145 | AP96: =AP115*AP$7 -> -995.5375145 | AQ96: -995.5375145 | AR96: -995.5375145 | AS96: -995.5375145 | AT96: -995.5375145 | AU96: -995.5375145 | AV96: -995.5375145 | AW96: -995.5375145 | AX96: -995.5375145 | AY96: -995.5375145 | AZ96: -995.5375145 | BA96: -995.5375145 | BB96: -995.5375145 | BC96: -995.5375145 | BD96: -995.5375145 | BE96: -995.5375145 | BF96: -995.5375145 | BG96: -995.5375145
B97: =B116 -> 0 | G97: ='1_KMA'!$I$21 -> 2024-06-30 | H97: ='1_KMA'!$I$19 -> $thousands | J97: =J116*J$7 -> 0 | K97: 0 | L97: 0 | M97: 0 | N97: 0 | O97: 0 | P97: 0 | Q97: 0 | R97: 0 | S97: 0 | T97: 0 | U97: 0 | V97: 0 | W97: 0 | X97: 0 | Y97: 0 | Z97: 0 | AA97: 0 | AB97: 0 | AC97: 0 | AD97: 0 | AE97: 0 | AF97: 0 | AG97: 0 | AH97: 0 | AI97: 0 | AJ97: 0 | AK97: 0 | AL97: 0 | AM97: 0 | AN97: 0 | AO97: 0 | AP97: =AP116*AP$7 -> 0 | AQ97: 0 | AR97: 0 | AS97: 0 | AT97: 0 | AU97: 0 | AV97: 0 | AW97: 0 | AX97: 0 | AY97: 0 | AZ97: 0 | BA97: 0 | BB97: 0 | BC97: 0 | BD97: 0 | BE97: 0 | BF97: 0 | BG97: 0
B98: 0 | G98: ='1_KMA'!$I$21 -> 2024-06-30 | H98: ='1_KMA'!$I$19 -> $thousands | J98: =J117*J$7 -> 0 | K98: 0 | L98: 0 | M98: 0 | N98: 0 | O98: 0 | P98: 0 | Q98: 0 | R98: 0 | S98: 0 | T98: 0 | U98: 0 | V98: 0 | W98: 0 | X98: 0 | Y98: 0 | Z98: 0 | AA98: 0 | AB98: 0 | AC98: 0 | AD98: 0 | AE98: 0 | AF98: 0 | AG98: 0 | AH98: 0 | AI98: 0 | AJ98: 0 | AK98: 0 | AL98: 0 | AM98: 0 | AN98: 0 | AO98: 0 | AP98: =AP117*AP$7 -> 0 | AQ98: 0 | AR98: 0 | AS98: 0 | AT98: 0 | AU98: 0 | AV98: 0 | AW98: 0 | AX98: 0 | AY98: 0 | AZ98: 0 | BA98: 0 | BB98: 0 | BC98: 0 | BD98: 0 | BE98: 0 | BF98: 0 | BG98: 0
B99: 0 | G99: ='1_KMA'!$I$21 -> 2024-06-30 | H99: ='1_KMA'!$I$19 -> $thousands | J99: =J118*J$7 -> 0 | K99: 0 | L99: 0 | M99: 0 | N99: 0 | O99: 0 | P99: 0 | Q99: 0 | R99: 0 | S99: 0 | T99: 0 | U99: 0 | V99: 0 | W99: 0 | X99: 0 | Y99: 0 | Z99: 0 | AA99: 0 | AB99: 0 | AC99: 0 | AD99: 0 | AE99: 0 | AF99: 0 | AG99: 0 | AH99: 0 | AI99: 0 | AJ99: 0 | AK99: 0 | AL99: 0 | AM99: 0 | AN99: 0 | AO99: 0 | AP99: =AP118*AP$7 -> 0 | AQ99: 0 | AR99: 0 | AS99: 0 | AT99: 0 | AU99: 0 | AV99: 0 | AW99: 0 | AX99: 0 | AY99: 0 | AZ99: 0 | BA99: 0 | BB99: 0 | BC99: 0 | BD99: 0 | BE99: 0 | BF99: 0 | BG99: 0
B100: 0 | G100: ='1_KMA'!$I$21 -> 2024-06-30 | H100: ='1_KMA'!$I$19 -> $thousands | J100: =J119*J$7 -> 0 | K100: 0 | L100: 0 | M100: 0 | N100: 0 | O100: 0 | P100: 0 | Q100: 0 | R100: 0 | S100: 0 | T100: 0 | U100: 0 | V100: 0 | W100: 0 | X100: 0 | Y100: 0 | Z100: 0 | AA100: 0 | AB100: 0 | AC100: 0 | AD100: 0 | AE100: 0 | AF100: 0 | AG100: 0 | AH100: 0 | AI100: 0 | AJ100: 0 | AK100: 0 | AL100: 0 | AM100: 0 | AN100: 0 | AO100: 0 | AP100: =AP119*AP$7 -> 0 | AQ100: 0 | AR100: 0 | AS100: 0 | AT100: 0 | AU100: 0 | AV100: 0 | AW100: 0 | AX100: 0 | AY100: 0 | AZ100: 0 | BA100: 0 | BB100: 0 | BC100: 0 | BD100: 0 | BE100: 0 | BF100: 0 | BG100: 0
B101: ='3_BC'!B120 -> Total | G101: ='1_KMA'!$I$21 -> 2024-06-30 | H101: ='1_KMA'!$I$19 -> $thousands | J101: =J120*J$7 -> -995.5375145 | K101: -995.5375145 | L101: -995.5375145 | M101: -995.5375145 | N101: -995.5375145 | O101: -995.5375145 | P101: -995.5375145 | Q101: -995.5375145 | R101: -995.5375145 | S101: -995.5375145 | T101: -995.5375145 | U101: -995.5375145 | V101: -995.5375145 | W101: -995.5375145 | X101: -995.5375145 | Y101: -995.5375145 | Z101: -995.5375145 | AA101: -995.5375145 | AB101: -995.5375145 | AC101: -995.5375145 | AD101: -995.5375145 | AE101: -995.5375145 | AF101: -995.5375145 | AG101: -995.5375145 | AH101: -995.5375145 | AI101: -995.5375145 | AJ101: -995.5375145 | AK101: -995.5375145 | AL101: -995.5375145 | AM101: -995.5375145 | AN101: -995.5375145 | AO101: -995.5375145 | AP101: =AP120*AP$7 -> -995.5375145 | AQ101: -995.5375145 | AR101: -995.5375145 | AS101: -995.5375145 | AT101: -995.5375145 | AU101: -995.5375145 | AV101: -995.5375145 | AW101: -995.5375145 | AX101: -995.5375145 | AY101: -995.5375145 | AZ101: -995.5375145 | BA101: -995.5375145 | BB101: -995.5375145 | BC101: -995.5375145 | BD101: -995.5375145 | BE101: -995.5375145 | BF101: -995.5375145 | BG101: -995.5375145
B103: Undiscounted | D103: ="("&TEXT('1_KMA'!$I$20,"dd-mmm-yy")&" dollars)" -> (30-Jun-24 dollars)
B105: Costs
G107: $ Basis Reminder | H107: $ Reminder
B108: Net Capex | G108: ='1_KMA'!$I$20 -> 2024-06-30 | H108: ='1_KMA'!$I$19 -> $thousands | J108: =J52*Controls!$F$22 -> 0 | K108: =K52*Controls!$F$22 -> 0 | L108: =L52*Controls!$F$22 -> 0 | M108: =M52*Controls!$F$22 -> 0 | N108: =N52*Controls!$F$22 -> 0 | O108: =O52*Controls!$F$22 -> 0 | P108: =P52*Controls!$F$22 -> 0 | Q108: =Q52*Controls!$F$22 -> 0 | R108: =R52*Controls!$F$22 -> 0 | S108: =S52*Controls!$F$22 -> 0 | T108: =T52*Controls!$F$22 -> 0 | U108: =U52*Controls!$F$22 -> 0 | V108: =V52*Controls!$F$22 -> 0 | W108: =W52*Controls!$F$22 -> 0 | X108: =X52*Controls!$F$22 -> 0 | Y108: =Y52*Controls!$F$22 -> 0 | Z108: =Z52*Controls!$F$22 -> 0 | AA108: =AA52*Controls!$F$22 -> 0 | AB108: =AB52*Controls!$F$22 -> 0 | AC108: =AC52*Controls!$F$22 -> 0 | AD108: =AD52*Controls!$F$22 -> 0 | AE108: =AE52*Controls!$F$22 -> 0 | AF108: =AF52*Controls!$F$22 -> 0 | AG108: =AG52*Controls!$F$22 -> 0 | AH108: =AH52*Controls!$F$22 -> 0 | AI108: =AI52*Controls!$F$22 -> 0 | AJ108: =AJ52*Controls!$F$22 -> 0 | AK108: =AK52*Controls!$F$22 -> 0 | AL108: =AL52*Controls!$F$22 -> 0 | AM108: =AM52*Controls!$F$22 -> 0 | AN108: =AN52*Controls!$F$22 -> 0 | AO108: =AO52*Controls!$F$22 -> 0 | AP108: =AP52*Controls!$F$22 -> 0 | AQ108: =AQ52*Controls!$F$22 -> 0 | AR108: =AR52*Controls!$F$22 -> 0 | AS108: =AS52*Controls!$F$22 -> 0 | AT108: =AT52*Controls!$F$22 -> 0 | AU108: =AU52*Controls!$F$22 -> 0 | AV108: =AV52*Controls!$F$22 -> 0 | AW108: =AW52*Controls!$F$22 -> 0 | AX108: =AX52*Controls!$F$22 -> 0 | AY108: =AY52*Controls!$F$22 -> 0 | AZ108: =AZ52*Controls!$F$22 -> 0 | BA108: =BA52*Controls!$F$22 -> 0 | BB108: =BB52*Controls!$F$22 -> 0 | BC108: =BC52*Controls!$F$22 -> 0 | BD108: =BD52*Controls!$F$22 -> 0 | BE108: =BE52*Controls!$F$22 -> 0 | BF108: =BF52*Controls!$F$22 -> 0 | BG108: =BG52*Controls!$F$22 -> 0
B109: Opex | G109: ='1_KMA'!$I$20 -> 2024-06-30 | H109: ='1_KMA'!$I$19 -> $thousands | J109: =J53*Controls!$F$22 -> 150 | K109: =K53*Controls!$F$22 -> 150 | L109: =L53*Controls!$F$22 -> 150 | M109: =M53*Controls!$F$22 -> 150 | N109: =N53*Controls!$F$22 -> 150 | O109: =O53*Controls!$F$22 -> 150 | P109: =P53*Controls!$F$22 -> 150 | Q109: =Q53*Controls!$F$22 -> 150 | R109: =R53*Controls!$F$22 -> 150 | S109: =S53*Controls!$F$22 -> 150 | T109: =T53*Controls!$F$22 -> 150 | U109: =U53*Controls!$F$22 -> 150 | V109: =V53*Controls!$F$22 -> 150 | W109: =W53*Controls!$F$22 -> 150 | X109: =X53*Controls!$F$22 -> 150 | Y109: =Y53*Controls!$F$22 -> 150 | Z109: =Z53*Controls!$F$22 -> 150 | AA109: =AA53*Controls!$F$22 -> 150 | AB109: =AB53*Controls!$F$22 -> 150 | AC109: =AC53*Controls!$F$22 -> 150 | AD109: =AD53*Controls!$F$22 -> 150 | AE109: =AE53*Controls!$F$22 -> 150 | AF109: =AF53*Controls!$F$22 -> 150 | AG109: =AG53*Controls!$F$22 -> 150 | AH109: =AH53*Controls!$F$22 -> 300 | AI109: =AI53*Controls!$F$22 -> 300 | AJ109: =AJ53*Controls!$F$22 -> 300 | AK109: =AK53*Controls!$F$22 -> 300 | AL109: =AL53*Controls!$F$22 -> 300 | AM109: =AM53*Controls!$F$22 -> 300 | AN109: =AN53*Controls!$F$22 -> 300 | AO109: =AO53*Controls!$F$22 -> 300 | AP109: =AP53*Controls!$F$22 -> 300 | AQ109: =AQ53*Controls!$F$22 -> 300 | AR109: =AR53*Controls!$F$22 -> 300 | AS109: =AS53*Controls!$F$22 -> 300 | AT109: =AT53*Controls!$F$22 -> 300 | AU109: =AU53*Controls!$F$22 -> 150 | AV109: =AV53*Controls!$F$22 -> 150 | AW109: =AW53*Controls!$F$22 -> 150 | AX109: =AX53*Controls!$F$22 -> 150 | AY109: =AY53*Controls!$F$22 -> 150 | AZ109: =AZ53*Controls!$F$22 -> 150 | BA109: =BA53*Controls!$F$22 -> 150 | BB109: =BB53*Controls!$F$22 -> 150 | BC109: =BC53*Controls!$F$22 -> 150 | BD109: =BD53*Controls!$F$22 -> 150 | BE109: =BE53*Controls!$F$22 -> 150 | BF109: =BF53*Controls!$F$22 -> 150 | BG109: =BG53*Controls!$F$22 -> 150
B110: Total | G110: ='1_KMA'!$I$20 -> 2024-06-30 | H110: ='1_KMA'!$I$19 -> $thousands | J110: =SUM(J108:J109) -> 150 | K110: =SUM(K108:K109) -> 150 | L110: 150 | M110: 150 | N110: 150 | O110: 150 | P110: 150 | Q110: 150 | R110: 150 | S110: 150 | T110: 150 | U110: 150 | V110: 150 | W110: 150 | X110: 150 | Y110: 150 | Z110: 150 | AA110: 150 | AB110: 150 | AC110: 150 | AD110: 150 | AE110: 150 | AF110: 150 | AG110: 150 | AH110: 300 | AI110: 300 | AJ110: 300 | AK110: 300 | AL110: 300 | AM110: 300 | AN110: 300 | AO110: 300 | AP110: 300 | AQ110: 300 | AR110: 300 | AS110: 300 | AT110: 300 | AU110: 150 | AV110: 150 | AW110: 150 | AX110: 150 | AY110: 150 | AZ110: 150 | BA110: 150 | BB110: 150 | BC110: 150 | BD110: 150 | BE110: 150 | BF110: 150 | BG110: 150
B112: Benefits
G114: $ Basis Reminder | H114: $ Reminder
B115: ='2.1_BC'!$B$16 -> Value of EUE (residual) | G115: ='1_KMA'!$I$20 -> 2024-06-30 | H115: ='1_KMA'!$I$19 -> $thousands | J115: =J59 -> -995.5375145 | K115: =K59 -> -995.5375145 | L115: -995.5375145 | M115: -995.5375145 | N115: -995.5375145 | O115: -995.5375145 | P115: -995.5375145 | Q115: -995.5375145 | R115: -995.5375145 | S115: -995.5375145 | T115: -995.5375145 | U115: -995.5375145 | V115: -995.5375145 | W115: -995.5375145 | X115: -995.5375145 | Y115: -995.5375145 | Z115: -995.5375145 | AA115: -995.5375145 | AB115: -995.5375145 | AC115: -995.5375145 | AD115: -995.5375145 | AE115: -995.5375145 | AF115: -995.5375145 | AG115: -995.5375145 | AH115: -995.5375145 | AI115: -995.5375145 | AJ115: -995.5375145 | AK115: -995.5375145 | AL115: -995.5375145 | AM115: -995.5375145 | AN115: -995.5375145 | AO115: -995.5375145 | AP115: -995.5375145 | AQ115: -995.5375145 | AR115: -995.5375145 | AS115: -995.5375145 | AT115: -995.5375145 | AU115: -995.5375145 | AV115: -995.5375145 | AW115: -995.5375145 | AX115: -995.5375145 | AY115: -995.5375145 | AZ115: -995.5375145 | BA115: -995.5375145 | BB115: -995.5375145 | BC115: -995.5375145 | BD115: -995.5375145 | BE115: -995.5375145 | BF115: -995.5375145 | BG115: -995.5375145
B116: ='2.1_BC'!$B$17 -> 0 | G116: ='1_KMA'!$I$20 -> 2024-06-30 | H116: ='1_KMA'!$I$19 -> $thousands | J116: =J60 -> 0 | K116: =K60 -> 0 | L116: 0 | M116: 0 | N116: 0 | O116: 0 | P116: 0 | Q116: 0 | R116: 0 | S116: 0 | T116: 0 | U116: 0 | V116: 0 | W116: 0 | X116: 0 | Y116: 0 | Z116: 0 | AA116: 0 | AB116: 0 | AC116: 0 | AD116: 0 | AE116: 0 | AF116: 0 | AG116: 0 | AH116: 0 | AI116: 0 | AJ116: 0 | AK116: 0 | AL116: 0 | AM116: 0 | AN116: 0 | AO116: 0 | AP116: 0 | AQ116: 0 | AR116: 0 | AS116: 0 | AT116: 0 | AU116: 0 | AV116: 0 | AW116: 0 | AX116: 0 | AY116: 0 | AZ116: 0 | BA116: 0 | BB116: 0 | BC116: 0 | BD116: 0 | BE116: 0 | BF116: 0 | BG116: 0
B117: ='2.1_BC'!$B$18 -> 0 | G117: ='1_KMA'!$I$20 -> 2024-06-30 | H117: ='1_KMA'!$I$19 -> $thousands | J117: =J61 -> 0 | K117: =K61 -> 0 | L117: 0 | M117: 0 | N117: 0 | O117: 0 | P117: 0 | Q117: 0 | R117: 0 | S117: 0 | T117: 0 | U117: 0 | V117: 0 | W117: 0 | X117: 0 | Y117: 0 | Z117: 0 | AA117: 0 | AB117: 0 | AC117: 0 | AD117: 0 | AE117: 0 | AF117: 0 | AG117: 0 | AH117: 0 | AI117: 0 | AJ117: 0 | AK117: 0 | AL117: 0 | AM117: 0 | AN117: 0 | AO117: 0 | AP117: 0 | AQ117: 0 | AR117: 0 | AS117: 0 | AT117: 0 | AU117: 0 | AV117: 0 | AW117: 0 | AX117: 0 | AY117: 0 | AZ117: 0 | BA117: 0 | BB117: 0 | BC117: 0 | BD117: 0 | BE117: 0 | BF117: 0 | BG117: 0
B118: ='2.1_BC'!$B$19 -> 0 | G118: ='1_KMA'!$I$20 -> 2024-06-30 | H118: ='1_KMA'!$I$19 -> $thousands | J118: =J62 -> 0 | K118: =K62 -> 0 | L118: 0 | M118: 0 | N118: 0 | O118: 0 | P118: 0 | Q118: 0 | R118: 0 | S118: 0 | T118: 0 | U118: 0 | V118: 0 | W118: 0 | X118: 0 | Y118: 0 | Z118: 0 | AA118: 0 | AB118: 0 | AC118: 0 | AD118: 0 | AE118: 0 | AF118: 0 | AG118: 0 | AH118: 0 | AI118: 0 | AJ118: 0 | AK118: 0 | AL118: 0 | AM118: 0 | AN118: 0 | AO118: 0 | AP118: 0 | AQ118: 0 | AR118: 0 | AS118: 0 | AT118: 0 | AU118: 0 | AV118: 0 | AW118: 0 | AX118: 0 | AY118: 0 | AZ118: 0 | BA118: 0 | BB118: 0 | BC118: 0 | BD118: 0 | BE118: 0 | BF118: 0 | BG118: 0
B119: ='2.1_BC'!$B$20 -> 0 | G119: ='1_KMA'!$I$20 -> 2024-06-30 | H119: ='1_KMA'!$I$19 -> $thousands | J119: =J63 -> 0 | K119: =K63 -> 0 | L119: 0 | M119: 0 | N119: 0 | O119: 0 | P119: 0 | Q119: 0 | R119: 0 | S119: 0 | T119: 0 | U119: 0 | V119: 0 | W119: 0 | X119: 0 | Y119: 0 | Z119: 0 | AA119: 0 | AB119: 0 | AC119: 0 | AD119: 0 | AE119: 0 | AF119: 0 | AG119: 0 | AH119: 0 | AI119: 0 | AJ119: 0 | AK119: 0 | AL119: 0 | AM119: 0 | AN119: 0 | AO119: 0 | AP119: 0 | AQ119: 0 | AR119: 0 | AS119: 0 | AT119: 0 | AU119: 0 | AV119: 0 | AW119: 0 | AX119: 0 | AY119: 0 | AZ119: 0 | BA119: 0 | BB119: 0 | BC119: 0 | BD119: 0 | BE119: 0 | BF119: 0 | BG119: 0
B120: Total | G120: ='1_KMA'!$I$20 -> 2024-06-30 | H120: ='1_KMA'!$I$19 -> $thousands | J120: =SUM(J115:J119) -> -995.5375145 | K120: =SUM(K115:K119) -> -995.5375145 | L120: -995.5375145 | M120: -995.5375145 | N120: -995.5375145 | O120: -995.5375145 | P120: -995.5375145 | Q120: -995.5375145 | R120: -995.5375145 | S120: -995.5375145 | T120: -995.5375145 | U120: -995.5375145 | V120: -995.5375145 | W120: -995.5375145 | X120: -995.5375145 | Y120: -995.5375145 | Z120: -995.5375145 | AA120: -995.5375145 | AB120: -995.5375145 | AC120: -995.5375145 | AD120: -995.5375145 | AE120: -995.5375145 | AF120: -995.5375145 | AG120: -995.5375145 | AH120: -995.5375145 | AI120: -995.5375145 | AJ120: -995.5375145 | AK120: -995.5375145 | AL120: -995.5375145 | AM120: -995.5375145 | AN120: -995.5375145 | AO120: -995.5375145 | AP120: -995.5375145 | AQ120: -995.5375145 | AR120: -995.5375145 | AS120: -995.5375145 | AT120: -995.5375145 | AU120: -995.5375145 | AV120: -995.5375145 | AW120: -995.5375145 | AX120: -995.5375145 | AY120: -995.5375145 | AZ120: -995.5375145 | BA120: -995.5375145 | BB120: -995.5375145 | BC120: -995.5375145 | BD120: -995.5375145 | BE120: -995.5375145 | BF120: -995.5375145 | BG120: -995.5375145
B122: =Controls!$B$23&" "&Controls!$C$23&" ("&TEXT(Controls!$E$23,"0.00%")&")" -> Sensitivity Scenario 2 Lower Discount Rate (4.11%)
B123: Summary
B125: WACC | J125: =Controls!$E$23 -> 0.0411 | K125: =Controls!$E$23 -> 0.0411 | L125: =Controls!$E$23 -> 0.0411 | M125: =Controls!$E$23 -> 0.0411 | N125: =Controls!$E$23 -> 0.0411 | O125: =Controls!$E$23 -> 0.0411 | P125: =Controls!$E$23 -> 0.0411 | Q125: =Controls!$E$23 -> 0.0411 | R125: =Controls!$E$23 -> 0.0411 | S125: =Controls!$E$23 -> 0.0411 | T125: =Controls!$E$23 -> 0.0411 | U125: =Controls!$E$23 -> 0.0411 | V125: =Controls!$E$23 -> 0.0411 | W125: =Controls!$E$23 -> 0.0411 | X125: =Controls!$E$23 -> 0.0411 | Y125: =Controls!$E$23 -> 0.0411 | Z125: =Controls!$E$23 -> 0.0411 | AA125: =Controls!$E$23 -> 0.0411 | AB125: =Controls!$E$23 -> 0.0411 | AC125: =Controls!$E$23 -> 0.0411 | AD125: =Controls!$E$23 -> 0.0411 | AE125: =Controls!$E$23 -> 0.0411 | AF125: =Controls!$E$23 -> 0.0411 | AG125: =Controls!$E$23 -> 0.0411 | AH125: =Controls!$E$23 -> 0.0411 | AI125: =Controls!$E$23 -> 0.0411 | AJ125: =Controls!$E$23 -> 0.0411 | AK125: =Controls!$E$23 -> 0.0411 | AL125: =Controls!$E$23 -> 0.0411 | AM125: =Controls!$E$23 -> 0.0411 | AN125: =Controls!$E$23 -> 0.0411 | AO125: =Controls!$E$23 -> 0.0411 | AP125: =Controls!$E$23 -> 0.0411 | AQ125: =Controls!$E$23 -> 0.0411 | AR125: =Controls!$E$23 -> 0.0411 | AS125: =Controls!$E$23 -> 0.0411 | AT125: =Controls!$E$23 -> 0.0411 | AU125: =Controls!$E$23 -> 0.0411 | AV125: =Controls!$E$23 -> 0.0411 | AW125: =Controls!$E$23 -> 0.0411 | AX125: =Controls!$E$23 -> 0.0411 | AY125: =Controls!$E$23 -> 0.0411 | AZ125: =Controls!$E$23 -> 0.0411 | BA125: =Controls!$E$23 -> 0.0411 | BB125: =Controls!$E$23 -> 0.0411 | BC125: =Controls!$E$23 -> 0.0411 | BD125: =Controls!$E$23 -> 0.0411 | BE125: =Controls!$E$23 -> 0.0411 | BF125: =Controls!$E$23 -> 0.0411 | BG125: =Controls!$E$23 -> 0.0411
B126: Deflator (interim calculation) | J126: 1 | K126: =J126*(1+K125) -> 1.0411 | L126: =K126*(1+L125) -> 1.08388921 | M126: =L126*(1+M125) -> 1.128437057 | N126: =M126*(1+N125) -> 1.17481582 | O126: =N126*(1+O125) -> 1.22310075 | P126: =O126*(1+P125) -> 1.273370191 | Q126: =P126*(1+Q125) -> 1.325705705 | R126: =Q126*(1+R125) -> 1.38019221 | S126: =R126*(1+S125) -> 1.43691811 | T126: =S126*(1+T125) -> 1.495975444 | U126: =T126*(1+U125) -> 1.557460035 | V126: =U126*(1+V125) -> 1.621471642 | W126: =V126*(1+W125) -> 1.688114127 | X126: =W126*(1+X125) -> 1.757495617 | Y126: =X126*(1+Y125) -> 1.829728687 | Z126: =Y126*(1+Z125) -> 1.904930536 | AA126: =Z126*(1+AA125) -> 1.983223181 | AB126: =AA126*(1+AB125) -> 2.064733654 | AC126: =AB126*(1+AC125) -> 2.149594207 | AD126: =AC126*(1+AD125) -> 2.237942529 | AE126: =AD126*(1+AE125) -> 2.329921967 | AF126: =AE126*(1+AF125) -> 2.42568176 | AG126: =AF126*(1+AG125) -> 2.52537728 | AH126: =AG126*(1+AH125) -> 2.629170286 | AI126: =AH126*(1+AI125) -> 2.737229185 | AJ126: =AI126*(1+AJ125) -> 2.849729305 | AK126: =AJ126*(1+AK125) -> 2.966853179 | AL126: =AK126*(1+AL125) -> 3.088790845 | AM126: =AL126*(1+AM125) -> 3.215740149 | AN126: =AM126*(1+AN125) -> 3.347907069 | AO126: =AN126*(1+AO125) -> 3.485506049 | AP126: =AO126*(1+AP125) -> 3.628760348 | AQ126: =AP126*(1+AQ125) -> 3.777902398 | AR126: =AQ126*(1+AR125) -> 3.933174187 | AS126: =AR126*(1+AS125) -> 4.094827646 | AT126: =AS126*(1+AT125) -> 4.263125062 | AU126: =AT126*(1+AU125) -> 4.438339502 | AV126: =AU126*(1+AV125) -> 4.620755255 | AW126: =AV126*(1+AW125) -> 4.810668296 | AX126: =AW126*(1+AX125) -> 5.008386763 | AY126: =AX126*(1+AY125) -> 5.214231459 | AZ126: =AY126*(1+AZ125) -> 5.428536372 | BA126: =AZ126*(1+BA125) -> 5.651649217 | BB126: =BA126*(1+BB125) -> 5.883932 | BC126: =BB126*(1+BC125) -> 6.125761605 | BD126: =BC126*(1+BD125) -> 6.377530407 | BE126: =BD126*(1+BE125) -> 6.639646907 | BF126: =BE126*(1+BF125) -> 6.912536395 | BG126: =BF126*(1+BG125) -> 7.196641641
B127: Deflator | J127: =1/J126 -> 1 | K127: =1/K126 -> 0.9605225243 | L127: =1/L126 -> 0.9226035196 | M127: =1/M126 -> 0.8861814615 | N127: =1/N126 -> 0.8511972544 | O127: =1/O126 -> 0.8175941354 | P127: 0.7853175828 | Q127: 0.7543152269 | R127: 0.7245367659 | S127: 0.6959338833 | T127: 0.6684601703 | U127: 0.6420710501 | V127: 0.6167237058 | W127: 0.5923770107 | X127: 0.5689914616 | Y127: 0.546529115 | Z127: 0.5249535251 | AA127: 0.504229685 | AB127: 0.4843239699 | AC127: 0.4652040821 | AD127: 0.4468389992 | AE127: 0.4291989235 | AF127: 0.4122552334 | AG127: 0.3959804374 | AH127: 0.3803481293 | AI127: 0.3653329452 | AJ127: 0.3509105227 | AK127: 0.3370574611 | AL127: 0.3237512834 | AM127: 0.3109703999 | AN127: 0.2986940735 | AO127: 0.2869023855 | AP127: 0.2755762035 | AQ127: 0.2646971506 | AR127: 0.2542475753 | AS127: 0.2442105228 | AT127: 0.2345697078 | AU127: 0.2253094878 | AV127: 0.216414838 | AW127: 0.2078713265 | AX127: 0.1996650912 | AY127: 0.1917828174 | AZ127: 0.1842117159 | BA127: 0.1769395024 | BB127: 0.1699543774 | BC127: 0.1632450076 | BD127: 0.1568005068 | BE127: 0.1506104186 | BF127: 0.1446646994 | BG127: 0.1389537023
B129: Totex sought for EDPR FY27-31 (undiscounted) | G129: ="("&TEXT('1_KMA'!$I$21,"dd-mmm-yy")&" Dollars)" -> (30-Jun-24 Dollars)
C130: Net Capital Expenditure | G130: =SUM(J130:BG130) -> 0 | J130: =-J145*J$1*J$8 -> 0 | K130: =-K145*K$1*K$8 -> 0 | L130: 0 | M130: 0 | N130: =-N145*N$1*N$8 -> 0 | O130: 0 | P130: 0 | Q130: 0 | R130: 0 | S130: 0 | T130: 0 | U130: 0 | V130: 0 | W130: 0 | X130: 0 | Y130: 0 | Z130: 0 | AA130: 0 | AB130: 0 | AC130: 0 | AD130: 0 | AE130: 0 | AF130: 0 | AG130: 0 | AH130: 0 | AI130: 0 | AJ130: 0 | AK130: 0 | AL130: 0 | AM130: 0 | AN130: 0 | AO130: 0 | AP130: 0 | AQ130: 0 | AR130: 0 | AS130: 0 | AT130: 0 | AU130: 0 | AV130: 0 | AW130: 0 | AX130: 0 | AY130: 0 | AZ130: 0 | BA130: 0 | BB130: 0 | BC130: 0 | BD130: 0 | BE130: 0 | BF130: 0 | BG130: 0
C131: Operating Expenditure | G131: =SUM(J131:BG131) -> -750 | J131: =-J146*J$1*J$8 -> 0 | K131: =-K146*K$1*K$8 -> 0 | L131: 0 | M131: -150 | N131: =-N146*N$1*N$8 -> -150 | O131: -150 | P131: -150 | Q131: -150 | R131: 0 | S131: 0 | T131: 0 | U131: 0 | V131: 0 | W131: 0 | X131: 0 | Y131: 0 | Z131: 0 | AA131: 0 | AB131: 0 | AC131: 0 | AD131: 0 | AE131: 0 | AF131: 0 | AG131: 0 | AH131: 0 | AI131: 0 | AJ131: 0 | AK131: 0 | AL131: 0 | AM131: 0 | AN131: 0 | AO131: 0 | AP131: 0 | AQ131: 0 | AR131: 0 | AS131: 0 | AT131: 0 | AU131: 0 | AV131: 0 | AW131: 0 | AX131: 0 | AY131: 0 | AZ131: 0 | BA131: 0 | BB131: 0 | BC131: 0 | BD131: 0 | BE131: 0 | BF131: 0 | BG131: 0
C132: Totex | G132: =SUM(G130:G131) -> -750 | J132: =SUM(J130:J131) -> 0 | K132: =SUM(K130:K131) -> 0 | L132: =SUM(L130:L131) -> 0 | M132: -150 | N132: -150 | O132: -150 | P132: -150 | Q132: -150 | R132: 0 | S132: 0 | T132: 0 | U132: 0 | V132: 0 | W132: 0 | X132: 0 | Y132: 0 | Z132: 0 | AA132: 0 | AB132: 0 | AC132: 0 | AD132: 0 | AE132: 0 | AF132: 0 | AG132: 0 | AH132: 0 | AI132: 0 | AJ132: 0 | AK132: 0 | AL132: 0 | AM132: 0 | AN132: 0 | AO132: 0 | AP132: 0 | AQ132: 0 | AR132: 0 | AS132: 0 | AT132: 0 | AU132: 0 | AV132: 0 | AW132: 0 | AX132: 0 | AY132: 0 | AZ132: 0 | BA132: 0 | BB132: 0 | BC132: 0 | BD132: 0 | BE132: 0 | BF132: 0 | BG132: 0
B134: PV over full assessment period to establish the preferred option (discounted) | G134: ="("&TEXT('1_KMA'!$I$21,"dd-mmm-yy")&" Dollars)" -> (30-Jun-24 Dollars)
C135: Net Capital Expenditure | G135: =SUM(J135:BG135) -> 0 | J135: =-(J145)*J$127*J$8 -> 0 | K135: =-(K145)*K$127*K$8 -> 0 | L135: 0 | M135: 0 | N135: 0 | O135: 0 | P135: 0 | Q135: 0 | R135: 0 | S135: 0 | T135: 0 | U135: 0 | V135: 0 | W135: 0 | X135: 0 | Y135: 0 | Z135: 0 | AA135: 0 | AB135: 0 | AC135: 0 | AD135: 0 | AE135: 0 | AF135: 0 | AG135: 0 | AH135: 0 | AI135: 0 | AJ135: 0 | AK135: 0 | AL135: 0 | AM135: 0 | AN135: 0 | AO135: 0 | AP135: 0 | AQ135: 0 | AR135: 0 | AS135: 0 | AT135: 0 | AU135: 0 | AV135: 0 | AW135: 0 | AX135: 0 | AY135: 0 | AZ135: 0 | BA135: 0 | BB135: 0 | BC135: 0 | BD135: 0 | BE135: 0 | BF135: 0 | BG135: =-(BG145)*BG$127*BG$8 -> 0
C136: Operating Expenditure | G136: =SUM(J136:BG136) -> -3881.59499 | J136: =-(J146)*J$127*J$8 -> -150 | K136: =-(K146)*K$127*K$8 -> -144.0783786 | L136: -138.3905279 | M136: -132.9272192 | N136: -127.6795882 | O136: -122.6391203 | P136: -117.7976374 | Q136: -113.147284 | R136: -108.6805149 | S136: -104.3900825 | T136: -100.2690255 | U136: -96.31065751 | V136: -92.50855587 | W136: -88.8565516 | X136: -85.34871924 | Y136: -81.97936724 | Z136: -78.74302876 | AA136: -75.63445275 | AB136: -72.64859548 | AC136: -69.78061231 | AD136: -67.02584988 | AE136: -64.37983852 | AF136: -61.83828501 | AG136: -59.39706561 | AH136: -114.1044388 | AI136: -109.5998836 | AJ136: -105.2731568 | AK136: -101.1172383 | AL136: -97.12538501 | AM136: -93.29111997 | AN136: -89.60822205 | AO136: -86.07071564 | AP136: -82.67286105 | AQ136: -79.40914518 | AR136: -76.27427258 | AS136: -73.26315683 | AT136: -70.37091233 | AU136: -33.79642317 | AV136: -32.4622257 | AW136: -31.18069897 | AX136: -29.94976368 | AY136: -28.76742261 | AZ136: -27.63175739 | BA136: -26.54092535 | BB136: -25.49315662 | BC136: -24.48675114 | BD136: -23.52007602 | BE136: -22.59156279 | BF136: -21.69970492 | BG136: =-(BG146)*BG$127*BG$8 -> -20.84305534
C137: Net Benefits | G137: =SUM(J137:BG137) -> -21852.07988 | J137: =(J157)*J$127*J$8 -> -995.5375145 | K137: =(K157)*K$127*K$8 -> -956.2362064 | L137: -918.4864148 | M137: -882.2268896 | N137: -847.398799 | O137: -813.9456334 | P137: -781.8131144 | Q137: -750.9491062 | R137: -721.3035311 | S137: -692.8282884 | T137: -665.4771764 | U137: -639.2058174 | V137: -613.9715852 | W137: -589.7335368 | X137: -566.4523454 | Y137: -544.0902367 | Z137: -522.6109276 | AA137: -501.9795674 | AB137: -482.1626812 | AC137: -463.1281156 | AD137: -444.8449867 | AE137: -427.2836295 | AF137: -410.4155504 | AG137: -394.2133804 | AH137: -378.6508313 | AI137: -363.7026523 | AJ137: -349.3445896 | AK137: -335.5533471 | AL137: -322.3065479 | AM137: -309.582699 | AN137: -297.3611555 | AO137: -285.6220877 | AP137: -274.3464487 | AQ137: -263.5159434 | AR137: -253.1129991 | AS137: -243.1207369 | AT137: -233.5229439 | AU137: -224.3040475 | AV137: -215.4490899 | AW137: -206.9437037 | AX137: -198.7740886 | AY137: -190.9269894 | AZ137: -183.3896738 | BA137: -176.1499124 | BB137: -169.1959585 | BC137: -162.5165292 | BD137: -156.1007868 | BE137: -149.9383218 | BF137: -144.0191353 | BG137: =(BG157)*BG$127*BG$8 -> -138.3336234
B138: Total Present Value | G138: =SUM(J138:BG138) -> -25733.67487 | J138: =SUM(J135:J137) -> -1145.537515 | K138: =SUM(K135:K137) -> -1100.314585 | L138: -1056.876943 | M138: -1015.154109 | N138: -975.0783871 | O138: -936.5847538 | P138: -899.6107519 | Q138: -864.0963902 | R138: -829.9840459 | S138: -797.2183709 | T138: -765.746202 | U138: -735.5164749 | V138: -706.4801411 | W138: -678.5900884 | X138: -651.8010647 | Y138: -626.069604 | Z138: -601.3539563 | AA138: -577.6140201 | AB138: -554.8112767 | AC138: -532.9087279 | AD138: -511.8708366 | AE138: -491.663468 | AF138: -472.2538354 | AG138: -453.610446 | AH138: -492.7552701 | AI138: -473.3025358 | AJ138: -454.6177465 | AK138: -436.6705854 | AL138: -419.431933 | AM138: -402.873819 | AN138: -386.9693776 | AO138: -371.6928034 | AP138: -357.0193097 | AQ138: -342.9250886 | AR138: -329.3872717 | AS138: -316.3838937 | AT138: -303.8938562 | AU138: -258.1004707 | AV138: -247.9113156 | AW138: -238.1244027 | AX138: -228.7238523 | AY138: -219.694412 | AZ138: -211.0214312 | BA138: -202.6908377 | BB138: -194.6891151 | BC138: -187.0032803 | BD138: -179.6208628 | BE138: -172.5298846 | BF138: -165.7188402 | BG138: -159.1766787
B140: Undiscounted | D140: ="("&TEXT('1_KMA'!$I$21,"dd-mmm-yy")&" dollars)" -> (30-Jun-24 dollars)
B142: Costs
G144: $ Basis Reminder | H144: $ Reminder
B145: Net Capex | G145: ='1_KMA'!$I$21 -> 2024-06-30 | H145: ='1_KMA'!$I$19 -> $thousands | J145: =J164*J$7 -> 0 | K145: 0 | L145: 0 | M145: 0 | N145: 0 | O145: 0 | P145: 0 | Q145: 0 | R145: 0 | S145: 0 | T145: 0 | U145: 0 | V145: 0 | W145: 0 | X145: 0 | Y145: 0 | Z145: 0 | AA145: 0 | AB145: 0 | AC145: 0 | AD145: 0 | AE145: 0 | AF145: 0 | AG145: 0 | AH145: 0 | AI145: 0 | AJ145: 0 | AK145: 0 | AL145: 0 | AM145: 0 | AN145: 0 | AO145: 0 | AP145: =AP164*AP$7 -> 0 | AQ145: 0 | AR145: 0 | AS145: 0 | AT145: 0 | AU145: 0 | AV145: 0 | AW145: 0 | AX145: 0 | AY145: 0 | AZ145: 0 | BA145: 0 | BB145: 0 | BC145: 0 | BD145: 0 | BE145: 0 | BF145: 0 | BG145: 0
B146: Opex | G146: ='1_KMA'!$I$21 -> 2024-06-30 | H146: ='1_KMA'!$I$19 -> $thousands | J146: =J165*J$7 -> 150 | K146: 150 | L146: 150 | M146: 150 | N146: 150 | O146: 150 | P146: 150 | Q146: 150 | R146: 150 | S146: 150 | T146: 150 | U146: 150 | V146: 150 | W146: 150 | X146: 150 | Y146: 150 | Z146: 150 | AA146: 150 | AB146: 150 | AC146: 150 | AD146: 150 | AE146: 150 | AF146: 150 | AG146: 150 | AH146: 300 | AI146: 300 | AJ146: 300 | AK146: 300 | AL146: 300 | AM146: 300 | AN146: 300 | AO146: 300 | AP146: =AP165*AP$7 -> 300 | AQ146: 300 | AR146: 300 | AS146: 300 | AT146: 300 | AU146: 150 | AV146: 150 | AW146: 150 | AX146: 150 | AY146: 150 | AZ146: 150 | BA146: 150 | BB146: 150 | BC146: 150 | BD146: 150 | BE146: 150 | BF146: 150 | BG146: 150
B147: Total | G147: ='1_KMA'!$I$21 -> 2024-06-30 | H147: ='1_KMA'!$I$19 -> $thousands | J147: =J166*J$7 -> 150 | K147: 150 | L147: 150 | M147: 150 | N147: 150 | O147: 150 | P147: 150 | Q147: 150 | R147: 150 | S147: 150 | T147: 150 | U147: 150 | V147: 150 | W147: 150 | X147: 150 | Y147: 150 | Z147: 150 | AA147: 150 | AB147: 150 | AC147: 150 | AD147: 150 | AE147: 150 | AF147: 150 | AG147: 150 | AH147: 300 | AI147: 300 | AJ147: 300 | AK147: 300 | AL147: 300 | AM147: 300 | AN147: 300 | AO147: 300 | AP147: =AP166*AP$7 -> 300 | AQ147: 300 | AR147: 300 | AS147: 300 | AT147: 300 | AU147: 150 | AV147: 150 | AW147: 150 | AX147: 150 | AY147: 150 | AZ147: 150 | BA147: 150 | BB147: 150 | BC147: 150 | BD147: 150 | BE147: 150 | BF147: 150 | BG147: 150
B149: Benefits
G151: $ Basis Reminder | H151: $ Reminder
B152: =B171 -> Value of EUE (residual) | G152: ='1_KMA'!$I$21 -> 2024-06-30 | H152: ='1_KMA'!$I$19 -> $thousands | J152: =J171*J$7 -> -995.5375145 | K152: -995.5375145 | L152: -995.5375145 | M152: -995.5375145 | N152: -995.5375145 | O152: -995.5375145 | P152: -995.5375145 | Q152: -995.5375145 | R152: -995.5375145 | S152: -995.5375145 | T152: -995.5375145 | U152: -995.5375145 | V152: -995.5375145 | W152: -995.5375145 | X152: -995.5375145 | Y152: -995.5375145 | Z152: -995.5375145 | AA152: -995.5375145 | AB152: -995.5375145 | AC152: -995.5375145 | AD152: -995.5375145 | AE152: -995.5375145 | AF152: -995.5375145 | AG152: -995.5375145 | AH152: -995.5375145 | AI152: -995.5375145 | AJ152: -995.5375145 | AK152: -995.5375145 | AL152: -995.5375145 | AM152: -995.5375145 | AN152: -995.5375145 | AO152: -995.5375145 | AP152: =AP171*AP$7 -> -995.5375145 | AQ152: -995.5375145 | AR152: -995.5375145 | AS152: -995.5375145 | AT152: -995.5375145 | AU152: -995.5375145 | AV152: -995.5375145 | AW152: -995.5375145 | AX152: -995.5375145 | AY152: -995.5375145 | AZ152: -995.5375145 | BA152: -995.5375145 | BB152: -995.5375145 | BC152: -995.5375145 | BD152: -995.5375145 | BE152: -995.5375145 | BF152: -995.5375145 | BG152: -995.5375145
B153: =B172 -> 0 | G153: ='1_KMA'!$I$21 -> 2024-06-30 | H153: ='1_KMA'!$I$19 -> $thousands | J153: =J172*J$7 -> 0 | K153: 0 | L153: 0 | M153: 0 | N153: 0 | O153: 0 | P153: 0 | Q153: 0 | R153: 0 | S153: 0 | T153: 0 | U153: 0 | V153: 0 | W153: 0 | X153: 0 | Y153: 0 | Z153: 0 | AA153: 0 | AB153: 0 | AC153: 0 | AD153: 0 | AE153: 0 | AF153: 0 | AG153: 0 | AH153: 0 | AI153: 0 | AJ153: 0 | AK153: 0 | AL153: 0 | AM153: 0 | AN153: 0 | AO153: 0 | AP153: =AP172*AP$7 -> 0 | AQ153: 0 | AR153: 0 | AS153: 0 | AT153: 0 | AU153: 0 | AV153: 0 | AW153: 0 | AX153: 0 | AY153: 0 | AZ153: 0 | BA153: 0 | BB153: 0 | BC153: 0 | BD153: 0 | BE153: 0 | BF153: 0 | BG153: 0
B154: 0 | G154: ='1_KMA'!$I$21 -> 2024-06-30 | H154: ='1_KMA'!$I$19 -> $thousands | J154: =J173*J$7 -> 0 | K154: 0 | L154: 0 | M154: 0 | N154: 0 | O154: 0 | P154: 0 | Q154: 0 | R154: 0 | S154: 0 | T154: 0 | U154: 0 | V154: 0 | W154: 0 | X154: 0 | Y154: 0 | Z154: 0 | AA154: 0 | AB154: 0 | AC154: 0 | AD154: 0 | AE154: 0 | AF154: 0 | AG154: 0 | AH154: 0 | AI154: 0 | AJ154: 0 | AK154: 0 | AL154: 0 | AM154: 0 | AN154: 0 | AO154: 0 | AP154: =AP173*AP$7 -> 0 | AQ154: 0 | AR154: 0 | AS154: 0 | AT154: 0 | AU154: 0 | AV154: 0 | AW154: 0 | AX154: 0 | AY154: 0 | AZ154: 0 | BA154: 0 | BB154: 0 | BC154: 0 | BD154: 0 | BE154: 0 | BF154: 0 | BG154: 0
B155: 0 | G155: ='1_KMA'!$I$21 -> 2024-06-30 | H155: ='1_KMA'!$I$19 -> $thousands | J155: =J174*J$7 -> 0 | K155: 0 | L155: 0 | M155: 0 | N155: 0 | O155: 0 | P155: 0 | Q155: 0 | R155: 0 | S155: 0 | T155: 0 | U155: 0 | V155: 0 | W155: 0 | X155: 0 | Y155: 0 | Z155: 0 | AA155: 0 | AB155: 0 | AC155: 0 | AD155: 0 | AE155: 0 | AF155: 0 | AG155: 0 | AH155: 0 | AI155: 0 | AJ155: 0 | AK155: 0 | AL155: 0 | AM155: 0 | AN155: 0 | AO155: 0 | AP155: =AP174*AP$7 -> 0 | AQ155: 0 | AR155: 0 | AS155: 0 | AT155: 0 | AU155: 0 | AV155: 0 | AW155: 0 | AX155: 0 | AY155: 0 | AZ155: 0 | BA155: 0 | BB155: 0 | BC155: 0 | BD155: 0 | BE155: 0 | BF155: 0 | BG155: 0
B156: =B175 -> 0 | G156: ='1_KMA'!$I$21 -> 2024-06-30 | H156: ='1_KMA'!$I$19 -> $thousands | J156: =J175*J$7 -> 0 | K156: 0 | L156: 0 | M156: 0 | N156: 0 | O156: 0 | P156: 0 | Q156: 0 | R156: 0 | S156: 0 | T156: 0 | U156: 0 | V156: 0 | W156: 0 | X156: 0 | Y156: 0 | Z156: 0 | AA156: 0 | AB156: 0 | AC156: 0 | AD156: 0 | AE156: 0 | AF156: 0 | AG156: 0 | AH156: 0 | AI156: 0 | AJ156: 0 | AK156: 0 | AL156: 0 | AM156: 0 | AN156: 0 | AO156: 0 | AP156: =AP175*AP$7 -> 0 | AQ156: 0 | AR156: 0 | AS156: 0 | AT156: 0 | AU156: 0 | AV156: 0 | AW156: 0 | AX156: 0 | AY156: 0 | AZ156: 0 | BA156: 0 | BB156: 0 | BC156: 0 | BD156: 0 | BE156: 0 | BF156: 0 | BG156: 0
B157: ='3_BC'!B176 -> Total | G157: ='1_KMA'!$I$21 -> 2024-06-30 | H157: ='1_KMA'!$I$19 -> $thousands | J157: =J176*J$7 -> -995.5375145 | K157: -995.5375145 | L157: -995.5375145 | M157: -995.5375145 | N157: -995.5375145 | O157: -995.5375145 | P157: -995.5375145 | Q157: -995.5375145 | R157: -995.5375145 | S157: -995.5375145 | T157: -995.5375145 | U157: -995.5375145 | V157: -995.5375145 | W157: -995.5375145 | X157: -995.5375145 | Y157: -995.5375145 | Z157: -995.5375145 | AA157: -995.5375145 | AB157: -995.5375145 | AC157: -995.5375145 | AD157: -995.5375145 | AE157: -995.5375145 | AF157: -995.5375145 | AG157: -995.5375145 | AH157: -995.5375145 | AI157: -995.5375145 | AJ157: -995.5375145 | AK157: -995.5375145 | AL157: -995.5375145 | AM157: -995.5375145 | AN157: -995.5375145 | AO157: -995.5375145 | AP157: =AP176*AP$7 -> -995.5375145 | AQ157: -995.5375145 | AR157: -995.5375145 | AS157: -995.5375145 | AT157: -995.5375145 | AU157: -995.5375145 | AV157: -995.5375145 | AW157: -995.5375145 | AX157: -995.5375145 | AY157: -995.5375145 | AZ157: -995.5375145 | BA157: -995.5375145 | BB157: -995.5375145 | BC157: -995.5375145 | BD157: -995.5375145 | BE157: -995.5375145 | BF157: -995.5375145 | BG157: -995.5375145
B159: Undiscounted | D159: ="("&TEXT('1_KMA'!$I$20,"dd-mmm-yy")&" dollars)" -> (30-Jun-24 dollars)
B161: Costs
G163: $ Basis Reminder | H163: $ Reminder
B164: Net Capex | G164: ='1_KMA'!$I$20 -> 2024-06-30 | H164: ='1_KMA'!$I$19 -> $thousands | J164: =J52*Controls!$F$23 -> 0 | K164: =K52*Controls!$F$23 -> 0 | L164: =L52*Controls!$F$23 -> 0 | M164: =M52*Controls!$F$23 -> 0 | N164: =N52*Controls!$F$23 -> 0 | O164: =O52*Controls!$F$23 -> 0 | P164: =P52*Controls!$F$23 -> 0 | Q164: =Q52*Controls!$F$23 -> 0 | R164: =R52*Controls!$F$23 -> 0 | S164: =S52*Controls!$F$23 -> 0 | T164: =T52*Controls!$F$23 -> 0 | U164: =U52*Controls!$F$23 -> 0 | V164: =V52*Controls!$F$23 -> 0 | W164: =W52*Controls!$F$23 -> 0 | X164: =X52*Controls!$F$23 -> 0 | Y164: =Y52*Controls!$F$23 -> 0 | Z164: =Z52*Controls!$F$23 -> 0 | AA164: =AA52*Controls!$F$23 -> 0 | AB164: =AB52*Controls!$F$23 -> 0 | AC164: =AC52*Controls!$F$23 -> 0 | AD164: =AD52*Controls!$F$23 -> 0 | AE164: =AE52*Controls!$F$23 -> 0 | AF164: =AF52*Controls!$F$23 -> 0 | AG164: =AG52*Controls!$F$23 -> 0 | AH164: =AH52*Controls!$F$23 -> 0 | AI164: =AI52*Controls!$F$23 -> 0 | AJ164: =AJ52*Controls!$F$23 -> 0 | AK164: =AK52*Controls!$F$23 -> 0 | AL164: =AL52*Controls!$F$23 -> 0 | AM164: =AM52*Controls!$F$23 -> 0 | AN164: =AN52*Controls!$F$23 -> 0 | AO164: =AO52*Controls!$F$23 -> 0 | AP164: =AP52*Controls!$F$23 -> 0 | AQ164: =AQ52*Controls!$F$23 -> 0 | AR164: =AR52*Controls!$F$23 -> 0 | AS164: =AS52*Controls!$F$23 -> 0 | AT164: =AT52*Controls!$F$23 -> 0 | AU164: =AU52*Controls!$F$23 -> 0 | AV164: =AV52*Controls!$F$23 -> 0 | AW164: =AW52*Controls!$F$23 -> 0 | AX164: =AX52*Controls!$F$23 -> 0 | AY164: =AY52*Controls!$F$23 -> 0 | AZ164: =AZ52*Controls!$F$23 -> 0 | BA164: =BA52*Controls!$F$23 -> 0 | BB164: =BB52*Controls!$F$23 -> 0 | BC164: =BC52*Controls!$F$23 -> 0 | BD164: =BD52*Controls!$F$23 -> 0 | BE164: =BE52*Controls!$F$23 -> 0 | BF164: =BF52*Controls!$F$23 -> 0 | BG164: =BG52*Controls!$F$23 -> 0
B165: Opex | G165: ='1_KMA'!$I$20 -> 2024-06-30 | H165: ='1_KMA'!$I$19 -> $thousands | J165: =J53*Controls!$F$23 -> 150 | K165: =K53*Controls!$F$23 -> 150 | L165: =L53*Controls!$F$23 -> 150 | M165: =M53*Controls!$F$23 -> 150 | N165: =N53*Controls!$F$23 -> 150 | O165: =O53*Controls!$F$23 -> 150 | P165: =P53*Controls!$F$23 -> 150 | Q165: =Q53*Controls!$F$23 -> 150 | R165: =R53*Controls!$F$23 -> 150 | S165: =S53*Controls!$F$23 -> 150 | T165: =T53*Controls!$F$23 -> 150 | U165: =U53*Controls!$F$23 -> 150 | V165: =V53*Controls!$F$23 -> 150 | W165: =W53*Controls!$F$23 -> 150 | X165: =X53*Controls!$F$23 -> 150 | Y165: =Y53*Controls!$F$23 -> 150 | Z165: =Z53*Controls!$F$23 -> 150 | AA165: =AA53*Controls!$F$23 -> 150 | AB165: =AB53*Controls!$F$23 -> 150 | AC165: =AC53*Controls!$F$23 -> 150 | AD165: =AD53*Controls!$F$23 -> 150 | AE165: =AE53*Controls!$F$23 -> 150 | AF165: =AF53*Controls!$F$23 -> 150 | AG165: =AG53*Controls!$F$23 -> 150 | AH165: =AH53*Controls!$F$23 -> 300 | AI165: =AI53*Controls!$F$23 -> 300 | AJ165: =AJ53*Controls!$F$23 -> 300 | AK165: =AK53*Controls!$F$23 -> 300 | AL165: =AL53*Controls!$F$23 -> 300 | AM165: =AM53*Controls!$F$23 -> 300 | AN165: =AN53*Controls!$F$23 -> 300 | AO165: =AO53*Controls!$F$23 -> 300 | AP165: =AP53*Controls!$F$23 -> 300 | AQ165: =AQ53*Controls!$F$23 -> 300 | AR165: =AR53*Controls!$F$23 -> 300 | AS165: =AS53*Controls!$F$23 -> 300 | AT165: =AT53*Controls!$F$23 -> 300 | AU165: =AU53*Controls!$F$23 -> 150 | AV165: =AV53*Controls!$F$23 -> 150 | AW165: =AW53*Controls!$F$23 -> 150 | AX165: =AX53*Controls!$F$23 -> 150 | AY165: =AY53*Controls!$F$23 -> 150 | AZ165: =AZ53*Controls!$F$23 -> 150 | BA165: =BA53*Controls!$F$23 -> 150 | BB165: =BB53*Controls!$F$23 -> 150 | BC165: =BC53*Controls!$F$23 -> 150 | BD165: =BD53*Controls!$F$23 -> 150 | BE165: =BE53*Controls!$F$23 -> 150 | BF165: =BF53*Controls!$F$23 -> 150 | BG165: =BG53*Controls!$F$23 -> 150
B166: Total | G166: ='1_KMA'!$I$20 -> 2024-06-30 | H166: ='1_KMA'!$I$19 -> $thousands | J166: =SUM(J164:J165) -> 150 | K166: =SUM(K164:K165) -> 150 | L166: 150 | M166: 150 | N166: 150 | O166: 150 | P166: 150 | Q166: 150 | R166: 150 | S166: 150 | T166: 150 | U166: 150 | V166: 150 | W166: 150 | X166: 150 | Y166: 150 | Z166: 150 | AA166: 150 | AB166: 150 | AC166: 150 | AD166: 150 | AE166: 150 | AF166: 150 | AG166: 150 | AH166: 300 | AI166: 300 | AJ166: 300 | AK166: 300 | AL166: 300 | AM166: 300 | AN166: 300 | AO166: 300 | AP166: 300 | AQ166: 300 | AR166: 300 | AS166: 300 | AT166: 300 | AU166: 150 | AV166: 150 | AW166: 150 | AX166: 150 | AY166: 150 | AZ166: 150 | BA166: 150 | BB166: 150 | BC166: 150 | BD166: 150 | BE166: 150 | BF166: 150 | BG166: 150
B168: Benefits
G170: $ Basis Reminder | H170: $ Reminder
B171: ='2.1_BC'!$B$16 -> Value of EUE (residual) | G171: ='1_KMA'!$I$20 -> 2024-06-30 | H171: ='1_KMA'!$I$19 -> $thousands | J171: =J59 -> -995.5375145 | K171: =K59 -> -995.5375145 | L171: -995.5375145 | M171: -995.5375145 | N171: =N59 -> -995.5375145 | O171: -995.5375145 | P171: -995.5375145 | Q171: -995.5375145 | R171: -995.5375145 | S171: -995.5375145 | T171: -995.5375145 | U171: -995.5375145 | V171: -995.5375145 | W171: -995.5375145 | X171: -995.5375145 | Y171: -995.5375145 | Z171: -995.5375145 | AA171: -995.5375145 | AB171: -995.5375145 | AC171: -995.5375145 | AD171: -995.5375145 | AE171: -995.5375145 | AF171: -995.5375145 | AG171: -995.5375145 | AH171: -995.5375145 | AI171: -995.5375145 | AJ171: -995.5375145 | AK171: -995.5375145 | AL171: -995.5375145 | AM171: -995.5375145 | AN171: -995.5375145 | AO171: -995.5375145 | AP171: -995.5375145 | AQ171: -995.5375145 | AR171: -995.5375145 | AS171: -995.5375145 | AT171: -995.5375145 | AU171: -995.5375145 | AV171: -995.5375145 | AW171: -995.5375145 | AX171: -995.5375145 | AY171: -995.5375145 | AZ171: -995.5375145 | BA171: -995.5375145 | BB171: -995.5375145 | BC171: -995.5375145 | BD171: -995.5375145 | BE171: -995.5375145 | BF171: -995.5375145 | BG171: -995.5375145
B172: ='2.1_BC'!$B$17 -> 0 | G172: ='1_KMA'!$I$20 -> 2024-06-30 | H172: ='1_KMA'!$I$19 -> $thousands | J172: =J60 -> 0 | K172: =K60 -> 0 | L172: 0 | M172: 0 | N172: =N60 -> 0 | O172: 0 | P172: 0 | Q172: 0 | R172: 0 | S172: 0 | T172: 0 | U172: 0 | V172: 0 | W172: 0 | X172: 0 | Y172: 0 | Z172: 0 | AA172: 0 | AB172: 0 | AC172: 0 | AD172: 0 | AE172: 0 | AF172: 0 | AG172: 0 | AH172: 0 | AI172: 0 | AJ172: 0 | AK172: 0 | AL172: 0 | AM172: 0 | AN172: 0 | AO172: 0 | AP172: 0 | AQ172: 0 | AR172: 0 | AS172: 0 | AT172: 0 | AU172: 0 | AV172: 0 | AW172: 0 | AX172: 0 | AY172: 0 | AZ172: 0 | BA172: 0 | BB172: 0 | BC172: 0 | BD172: 0 | BE172: 0 | BF172: 0 | BG172: 0
B173: ='2.1_BC'!$B$18 -> 0 | G173: ='1_KMA'!$I$20 -> 2024-06-30 | H173: ='1_KMA'!$I$19 -> $thousands | J173: =J61 -> 0 | K173: =K61 -> 0 | L173: 0 | M173: 0 | N173: 0 | O173: 0 | P173: 0 | Q173: 0 | R173: 0 | S173: 0 | T173: 0 | U173: 0 | V173: 0 | W173: 0 | X173: 0 | Y173: 0 | Z173: 0 | AA173: 0 | AB173: 0 | AC173: 0 | AD173: 0 | AE173: 0 | AF173: 0 | AG173: 0 | AH173: 0 | AI173: 0 | AJ173: 0 | AK173: 0 | AL173: 0 | AM173: 0 | AN173: 0 | AO173: 0 | AP173: 0 | AQ173: 0 | AR173: 0 | AS173: 0 | AT173: 0 | AU173: 0 | AV173: 0 | AW173: 0 | AX173: 0 | AY173: 0 | AZ173: 0 | BA173: 0 | BB173: 0 | BC173: 0 | BD173: 0 | BE173: 0 | BF173: 0 | BG173: 0
B174: ='2.1_BC'!$B$19 -> 0 | G174: ='1_KMA'!$I$20 -> 2024-06-30 | H174: ='1_KMA'!$I$19 -> $thousands | J174: =J62 -> 0 | K174: =K62 -> 0 | L174: 0 | M174: 0 | N174: 0 | O174: 0 | P174: 0 | Q174: 0 | R174: 0 | S174: 0 | T174: 0 | U174: 0 | V174: 0 | W174: 0 | X174: 0 | Y174: 0 | Z174: 0 | AA174: 0 | AB174: 0 | AC174: 0 | AD174: 0 | AE174: 0 | AF174: 0 | AG174: 0 | AH174: 0 | AI174: 0 | AJ174: 0 | AK174: 0 | AL174: 0 | AM174: 0 | AN174: 0 | AO174: 0 | AP174: 0 | AQ174: 0 | AR174: 0 | AS174: 0 | AT174: 0 | AU174: 0 | AV174: 0 | AW174: 0 | AX174: 0 | AY174: 0 | AZ174: 0 | BA174: 0 | BB174: 0 | BC174: 0 | BD174: 0 | BE174: 0 | BF174: 0 | BG174: 0
B175: ='2.1_BC'!$B$20 -> 0 | G175: ='1_KMA'!$I$20 -> 2024-06-30 | H175: ='1_KMA'!$I$19 -> $thousands | J175: =J63 -> 0 | K175: =K63 -> 0 | L175: 0 | M175: 0 | N175: 0 | O175: 0 | P175: 0 | Q175: 0 | R175: 0 | S175: 0 | T175: 0 | U175: 0 | V175: 0 | W175: 0 | X175: 0 | Y175: 0 | Z175: 0 | AA175: 0 | AB175: 0 | AC175: 0 | AD175: 0 | AE175: 0 | AF175: 0 | AG175: 0 | AH175: 0 | AI175: 0 | AJ175: 0 | AK175: 0 | AL175: 0 | AM175: 0 | AN175: 0 | AO175: 0 | AP175: 0 | AQ175: 0 | AR175: 0 | AS175: 0 | AT175: 0 | AU175: 0 | AV175: 0 | AW175: 0 | AX175: 0 | AY175: 0 | AZ175: 0 | BA175: 0 | BB175: 0 | BC175: 0 | BD175: 0 | BE175: 0 | BF175: 0 | BG175: 0
B176: Total | G176: ='1_KMA'!$I$20 -> 2024-06-30 | H176: ='1_KMA'!$I$19 -> $thousands | J176: =SUM(J171:J175) -> -995.5375145 | K176: =SUM(K171:K175) -> -995.5375145 | L176: =SUM(L171:L175) -> -995.5375145 | M176: =SUM(M171:M175) -> -995.5375145 | N176: =SUM(N171:N175) -> -995.5375145 | O176: -995.5375145 | P176: -995.5375145 | Q176: -995.5375145 | R176: -995.5375145 | S176: -995.5375145 | T176: -995.5375145 | U176: -995.5375145 | V176: -995.5375145 | W176: -995.5375145 | X176: -995.5375145 | Y176: -995.5375145 | Z176: -995.5375145 | AA176: -995.5375145 | AB176: -995.5375145 | AC176: -995.5375145 | AD176: -995.5375145 | AE176: -995.5375145 | AF176: -995.5375145 | AG176: -995.5375145 | AH176: -995.5375145 | AI176: -995.5375145 | AJ176: -995.5375145 | AK176: -995.5375145 | AL176: -995.5375145 | AM176: -995.5375145 | AN176: -995.5375145 | AO176: -995.5375145 | AP176: -995.5375145 | AQ176: -995.5375145 | AR176: -995.5375145 | AS176: -995.5375145 | AT176: -995.5375145 | AU176: -995.5375145 | AV176: -995.5375145 | AW176: -995.5375145 | AX176: -995.5375145 | AY176: -995.5375145 | AZ176: -995.5375145 | BA176: -995.5375145 | BB176: -995.5375145 | BC176: -995.5375145 | BD176: -995.5375145 | BE176: -995.5375145 | BF176: -995.5375145 | BG176: -995.5375145
B178: =Controls!$B$24&" "&Controls!$C$24&" (+"&TEXT(Controls!$F$24-1,"0.00%")&")" -> Sensitivity Scenario 3 Higher costs (+15.00%)
B179: Summary
B181: WACC | J181: =Controls!$E$24 -> 0.05555 | K181: =Controls!$E$24 -> 0.05555 | L181: =Controls!$E$24 -> 0.05555 | M181: =Controls!$E$24 -> 0.05555 | N181: =Controls!$E$24 -> 0.05555 | O181: =Controls!$E$24 -> 0.05555 | P181: =Controls!$E$24 -> 0.05555 | Q181: =Controls!$E$24 -> 0.05555 | R181: =Controls!$E$24 -> 0.05555 | S181: =Controls!$E$24 -> 0.05555 | T181: =Controls!$E$24 -> 0.05555 | U181: =Controls!$E$24 -> 0.05555 | V181: =Controls!$E$24 -> 0.05555 | W181: =Controls!$E$24 -> 0.05555 | X181: =Controls!$E$24 -> 0.05555 | Y181: =Controls!$E$24 -> 0.05555 | Z181: =Controls!$E$24 -> 0.05555 | AA181: =Controls!$E$24 -> 0.05555 | AB181: =Controls!$E$24 -> 0.05555 | AC181: =Controls!$E$24 -> 0.05555 | AD181: =Controls!$E$24 -> 0.05555 | AE181: =Controls!$E$24 -> 0.05555 | AF181: =Controls!$E$24 -> 0.05555 | AG181: =Controls!$E$24 -> 0.05555 | AH181: =Controls!$E$24 -> 0.05555 | AI181: =Controls!$E$24 -> 0.05555 | AJ181: =Controls!$E$24 -> 0.05555 | AK181: =Controls!$E$24 -> 0.05555 | AL181: =Controls!$E$24 -> 0.05555 | AM181: =Controls!$E$24 -> 0.05555 | AN181: =Controls!$E$24 -> 0.05555 | AO181: =Controls!$E$24 -> 0.05555 | AP181: =Controls!$E$24 -> 0.05555 | AQ181: =Controls!$E$24 -> 0.05555 | AR181: =Controls!$E$24 -> 0.05555 | AS181: =Controls!$E$24 -> 0.05555 | AT181: =Controls!$E$24 -> 0.05555 | AU181: =Controls!$E$24 -> 0.05555 | AV181: =Controls!$E$24 -> 0.05555 | AW181: =Controls!$E$24 -> 0.05555 | AX181: =Controls!$E$24 -> 0.05555 | AY181: =Controls!$E$24 -> 0.05555 | AZ181: =Controls!$E$24 -> 0.05555 | BA181: =Controls!$E$24 -> 0.05555 | BB181: =Controls!$E$24 -> 0.05555 | BC181: =Controls!$E$24 -> 0.05555 | BD181: =Controls!$E$24 -> 0.05555 | BE181: =Controls!$E$24 -> 0.05555 | BF181: =Controls!$E$24 -> 0.05555 | BG181: =Controls!$E$24 -> 0.05555
B182: Deflator (interim calculation) | J182: 1 | K182: =J182*(1+K181) -> 1.05555 | L182: =K182*(1+L181) -> 1.114185802 | M182: =L182*(1+M181) -> 1.176078824 | N182: =M182*(1+N181) -> 1.241410002 | O182: =N182*(1+O181) -> 1.310370328 | P182: =O182*(1+P181) -> 1.3831614 | Q182: =P182*(1+Q181) -> 1.459996016 | R182: =Q182*(1+R181) -> 1.541098794 | S182: =R182*(1+S181) -> 1.626706832 | T182: =S182*(1+T181) -> 1.717070397 | U182: =T182*(1+U181) -> 1.812453657 | V182: =U182*(1+V181) -> 1.913135458 | W182: =V182*(1+W181) -> 2.019410133 | X182: =W182*(1+X181) -> 2.131588366 | Y182: =X182*(1+Y181) -> 2.249998099 | Z182: =Y182*(1+Z181) -> 2.374985494 | AA182: =Z182*(1+AA181) -> 2.506915938 | AB182: =AA182*(1+AB181) -> 2.646175118 | AC182: =AB182*(1+AC181) -> 2.793170146 | AD182: =AC182*(1+AD181) -> 2.948330748 | AE182: =AD182*(1+AE181) -> 3.112110521 | AF182: =AE182*(1+AF181) -> 3.28498826 | AG182: =AF182*(1+AG181) -> 3.467469358 | AH182: =AG182*(1+AH181) -> 3.660087281 | AI182: =AH182*(1+AI181) -> 3.863405129 | AJ182: =AI182*(1+AJ181) -> 4.078017284 | AK182: =AJ182*(1+AK181) -> 4.304551144 | AL182: =AK182*(1+AL181) -> 4.54366896 | AM182: =AL182*(1+AM181) -> 4.796069771 | AN182: =AM182*(1+AN181) -> 5.062491447 | AO182: =AN182*(1+AO181) -> 5.343712847 | AP182: =AO182*(1+AP181) -> 5.640556096 | AQ182: =AP182*(1+AQ181) -> 5.953888987 | AR182: =AQ182*(1+AR181) -> 6.28462752 | AS182: =AR182*(1+AS181) -> 6.633738579 | AT182: =AS182*(1+AT181) -> 7.002242757 | AU182: =AT182*(1+AU181) -> 7.391217342 | AV182: =AU182*(1+AV181) -> 7.801799465 | AW182: =AV182*(1+AW181) -> 8.235189425 | AX182: =AW182*(1+AX181) -> 8.692654198 | AY182: =AX182*(1+AY181) -> 9.175531139 | AZ182: =AY182*(1+AZ181) -> 9.685231893 | BA182: =AZ182*(1+BA181) -> 10.22324653 | BB182: =BA182*(1+BB181) -> 10.79114787 | BC182: =BB182*(1+BC181) -> 11.39059613 | BD182: =BC182*(1+BD181) -> 12.02334375 | BE182: =BD182*(1+BE181) -> 12.69124049 | BF182: =BE182*(1+BF181) -> 13.3962389 | BG182: =BF182*(1+BG181) -> 14.14039997
B183: Deflator | J183: =1/J182 -> 1 | K183: =1/K182 -> 0.9473734072 | L183: =1/L182 -> 0.8975163727 | M183: =1/M182 -> 0.8502831441 | N183: =1/N182 -> 0.8055356393 | O183: =1/O182 -> 0.7631430433 | P183: 0.7229814251 | Q183: 0.6849333761 | R183: 0.6488876662 | S183: 0.6147389192 | T183: 0.5823873045 | U183: 0.551738245 | V183: 0.522702141 | W183: 0.4951941083 | X183: 0.4691337296 | Y183: 0.4444448199 | Z183: 0.4210552033 | AA183: 0.3988965026 | AB183: 0.3779039388 | AC183: 0.3580161421 | AD183: 0.3391749724 | AE183: 0.3213253493 | AF183: 0.304415091 | AG183: 0.2883947619 | AH183: 0.2732175282 | AI183: 0.2588390206 | AJ183: 0.2452172049 | AK183: 0.2323122589 | AL183: 0.2200864563 | AM183: 0.208504056 | AN183: 0.1975311979 | AO183: 0.187135804 | AP183: 0.1772874843 | AQ183: 0.167957448 | AR183: 0.1591184198 | AS183: 0.1507445595 | AT183: 0.142811387 | AU183: 0.1352957103 | AV183: 0.128175558 | AW183: 0.1214301151 | AX183: 0.1150396619 | AY183: 0.1089855165 | AZ183: 0.1032499801 | BA183: 0.09781628542 | BB183: 0.0926685476 | BC183: 0.08779171768 | BD183: 0.08317153871 | BE183: 0.07879450401 | BF183: 0.07464781773 | BG183: 0.07071935743
B185: Totex sought for EDPR FY27-31 (undiscounted) | G185: ="("&TEXT('1_KMA'!$I$21,"dd-mmm-yy")&" Dollars)" -> (30-Jun-24 Dollars)
C186: Net Capital Expenditure | G186: =SUM(J186:BG186) -> 0 | J186: =-J201*J$1 -> 0 | K186: =-K201*K$1 -> 0 | L186: =-L201*L$1 -> 0 | M186: =-M201*M$1 -> 0 | N186: =-N201*N$1 -> 0 | O186: 0 | P186: 0 | Q186: 0 | R186: 0 | S186: 0 | T186: 0 | U186: 0 | V186: 0 | W186: 0 | X186: 0 | Y186: 0 | Z186: 0 | AA186: 0 | AB186: 0 | AC186: 0 | AD186: 0 | AE186: 0 | AF186: 0 | AG186: 0 | AH186: 0 | AI186: 0 | AJ186: 0 | AK186: 0 | AL186: 0 | AM186: 0 | AN186: 0 | AO186: 0 | AP186: 0 | AQ186: 0 | AR186: 0 | AS186: 0 | AT186: 0 | AU186: 0 | AV186: 0 | AW186: 0 | AX186: 0 | AY186: 0 | AZ186: 0 | BA186: 0 | BB186: 0 | BC186: 0 | BD186: 0 | BE186: 0 | BF186: 0 | BG186: 0
C187: Operating Expenditure | G187: =SUM(J187:BG187) -> -862.5 | J187: =-J202*J$1 -> 0 | K187: =-K202*K$1 -> 0 | L187: =-L202*L$1 -> 0 | M187: -172.5 | N187: -172.5 | O187: -172.5 | P187: -172.5 | Q187: -172.5 | R187: 0 | S187: 0 | T187: 0 | U187: 0 | V187: 0 | W187: 0 | X187: 0 | Y187: 0 | Z187: 0 | AA187: 0 | AB187: 0 | AC187: 0 | AD187: 0 | AE187: 0 | AF187: 0 | AG187: 0 | AH187: 0 | AI187: 0 | AJ187: 0 | AK187: 0 | AL187: 0 | AM187: 0 | AN187: 0 | AO187: 0 | AP187: 0 | AQ187: 0 | AR187: 0 | AS187: 0 | AT187: 0 | AU187: 0 | AV187: 0 | AW187: 0 | AX187: 0 | AY187: 0 | AZ187: 0 | BA187: 0 | BB187: 0 | BC187: 0 | BD187: 0 | BE187: 0 | BF187: 0 | BG187: 0
C188: Totex | G188: =SUM(G186:G187) -> -862.5 | J188: =SUM(J186:J187) -> 0 | K188: =SUM(K186:K187) -> 0 | L188: =SUM(L186:L187) -> 0 | M188: -172.5 | N188: -172.5 | O188: -172.5 | P188: -172.5 | Q188: -172.5 | R188: 0 | S188: 0 | T188: 0 | U188: 0 | V188: 0 | W188: 0 | X188: 0 | Y188: 0 | Z188: 0 | AA188: 0 | AB188: 0 | AC188: 0 | AD188: 0 | AE188: 0 | AF188: 0 | AG188: 0 | AH188: 0 | AI188: 0 | AJ188: 0 | AK188: 0 | AL188: 0 | AM188: 0 | AN188: 0 | AO188: 0 | AP188: 0 | AQ188: 0 | AR188: 0 | AS188: 0 | AT188: 0 | AU188: 0 | AV188: 0 | AW188: 0 | AX188: 0 | AY188: 0 | AZ188: 0 | BA188: 0 | BB188: 0 | BC188: 0 | BD188: 0 | BE188: 0 | BF188: 0 | BG188: 0
B190: PV over full assessment period to establish the preferred option (discounted) | G190: ="("&TEXT('1_KMA'!$I$21,"dd-mmm-yy")&" Dollars)" -> (30-Jun-24 Dollars)
C191: Net Capital Expenditure | G191: =SUM(J191:BG191) -> 0 | J191: =-(J201)*J$183*J$8 -> 0 | K191: =-(K201)*K$183*K$8 -> 0 | L191: 0 | M191: 0 | N191: 0 | O191: 0 | P191: 0 | Q191: 0 | R191: 0 | S191: 0 | T191: 0 | U191: 0 | V191: 0 | W191: 0 | X191: 0 | Y191: 0 | Z191: 0 | AA191: 0 | AB191: 0 | AC191: 0 | AD191: 0 | AE191: 0 | AF191: 0 | AG191: 0 | AH191: 0 | AI191: 0 | AJ191: 0 | AK191: 0 | AL191: 0 | AM191: 0 | AN191: 0 | AO191: 0 | AP191: 0 | AQ191: 0 | AR191: 0 | AS191: 0 | AT191: 0 | AU191: 0 | AV191: 0 | AW191: 0 | AX191: 0 | AY191: 0 | AZ191: 0 | BA191: 0 | BB191: 0 | BC191: 0 | BD191: =-(BD201)*BD$183*BD$8 -> 0 | BE191: 0 | BF191: 0 | BG191: 0
C192: Operating Expenditure | G192: =SUM(J192:BG192) -> -3510.286553 | J192: =-(J202)*J$183*J$8 -> -172.5 | K192: =-(K202)*K$183*K$8 -> -163.4219127 | L192: -154.8215743 | M192: -146.6738424 | N192: -138.9548978 | O192: -131.642175 | P192: -124.7142958 | Q192: -118.1510074 | R192: -111.9331224 | S192: -106.0424636 | T192: -100.46181 | U192: -95.17484726 | V192: -90.16611933 | W192: -85.42098368 | X192: -80.92556836 | Y192: -76.66673143 | Z192: -72.63202258 | AA192: -68.8096467 | AB192: -65.18842945 | AC192: -61.75778452 | AD192: -58.50768274 | AE192: -55.42862275 | AF192: -52.51160319 | AG192: -49.74809643 | AH192: -94.26004724 | AI192: -89.29946212 | AJ192: -84.59993569 | AK192: -80.14772933 | AL192: -75.92982741 | AM192: -71.93389931 | AN192: -68.14826328 | AO192: -64.56185238 | AP192: -61.16418207 | AQ192: -57.94531957 | AR192: -54.89585483 | AS192: -52.00687303 | AT192: -49.26992851 | AU192: -23.33851002 | AV192: -22.11028376 | AW192: -20.94669486 | AX192: -19.84434168 | AY192: -18.80000159 | AZ192: -17.81062156 | BA192: -16.87330923 | BB192: -15.98532446 | BC192: -15.1440713 | BD192: =-(BD202)*BD$183*BD$8 -> -14.34709043 | BE192: -13.59205194 | BF192: -12.87674856 | BG192: -12.19908916
C193: Net Benefits | G193: =SUM(J193:BG193) -> -17649.61026 | J193: =(J213)*J$183*J$8 -> -995.5375145 | K193: =(K213)*K$183*K$8 -> -943.1457671 | L193: -893.5112189 | M193: -846.4887679 | N193: -801.9409482 | O193: -759.7375285 | P193: -719.755131 | Q193: -681.8768708 | R193: -645.9920144 | S193: -611.9956557 | T193: -579.7884096 | U193: -549.276121 | V193: -520.3695903 | W193: -492.9843118 | X193: -467.0402272 | Y193: -442.4614913 | Z193: -419.1762506 | AA193: -397.1164328 | AB193: -376.217548 | AC193: -356.4185003 | AD193: -337.661409 | AE193: -319.8914395 | AF193: -303.056643 | AG193: -287.1078045 | AH193: -271.998299 | AI193: -257.6839553 | AJ193: -244.1229267 | AK193: -231.2755688 | AL193: -219.1043237 | AM193: -207.5736096 | AN193: -196.6497178 | AO193: -186.3007132 | AP193: -176.4963414 | AQ193: -167.2079403 | AR193: -158.4083562 | AS193: -150.0718641 | AT193: -142.1740932 | AU193: -134.6919551 | AV193: -127.6035765 | AW193: -120.888235 | AX193: -114.5262991 | AY193: -108.4991702 | AZ193: -102.7892285 | BA193: -97.37978166 | BB193: -92.25501555 | BC193: -87.39994842 | BD193: =(BD213)*BD$183*BD$8 -> -82.80038692 | BE193: -78.44288468 | BF193: -74.31470293 | BG193: -70.40377332
B194: Total Present Value | G194: =SUM(J194:BG194) -> -21159.89682 | J194: =SUM(J191:J193) -> -1168.037515 | K194: =SUM(K191:K193) -> -1106.56768 | L194: -1048.332793 | M194: -993.1626102 | N194: -940.895846 | O194: -891.3797035 | P194: -844.4694268 | Q194: -800.0278782 | R194: -757.9251368 | S194: -718.0381193 | T194: -680.2502196 | U194: -644.4509683 | V194: -610.5357096 | W194: -578.4052955 | X194: -547.9657955 | Y194: -519.1282228 | Z194: -491.8082732 | AA194: -465.9260795 | AB194: -441.4059774 | AC194: -418.1762848 | AD194: -396.1690918 | AE194: -375.3200623 | AF194: -355.5682462 | AG194: -336.8559009 | AH194: -366.2583462 | AI194: -346.9834174 | AJ194: -328.7228624 | AK194: -311.4232982 | AL194: -295.0341511 | AM194: -279.507509 | AN194: -264.7979811 | AO194: -250.8625656 | AP194: -237.6605235 | AQ194: -225.1532599 | AR194: -213.304211 | AS194: -202.0787371 | AT194: -191.4440217 | AU194: -158.0304651 | AV194: -149.7138602 | AW194: -141.8349299 | AX194: -134.3706408 | AY194: -127.2991718 | AZ194: -120.5998501 | BA194: -114.2530909 | BB194: -108.24034 | BC194: -102.5440197 | BD194: -97.14747735 | BE194: -92.03493662 | BF194: -87.19145149 | BG194: -82.60286248
B196: Undiscounted | D196: ="("&TEXT('1_KMA'!$I$21,"dd-mmm-yy")&" dollars)" -> (30-Jun-24 dollars)
B198: Costs
G200: $ Basis Reminder | H200: $ Reminder
B201: Net Capex | G201: ='1_KMA'!$I$21 -> 2024-06-30 | H201: ='1_KMA'!$I$19 -> $thousands | J201: =J220*J$7 -> 0 | K201: 0 | L201: 0 | M201: 0 | N201: 0 | O201: 0 | P201: 0 | Q201: 0 | R201: 0 | S201: 0 | T201: 0 | U201: 0 | V201: 0 | W201: 0 | X201: 0 | Y201: 0 | Z201: 0 | AA201: 0 | AB201: 0 | AC201: 0 | AD201: 0 | AE201: 0 | AF201: 0 | AG201: 0 | AH201: 0 | AI201: 0 | AJ201: 0 | AK201: 0 | AL201: 0 | AM201: 0 | AN201: 0 | AO201: 0 | AP201: =AP220*AP$7 -> 0 | AQ201: 0 | AR201: 0 | AS201: 0 | AT201: 0 | AU201: 0 | AV201: 0 | AW201: 0 | AX201: 0 | AY201: 0 | AZ201: 0 | BA201: 0 | BB201: 0 | BC201: 0 | BD201: 0 | BE201: 0 | BF201: 0 | BG201: 0
B202: Opex | G202: ='1_KMA'!$I$21 -> 2024-06-30 | H202: ='1_KMA'!$I$19 -> $thousands | J202: =J221*J$7 -> 172.5 | K202: 172.5 | L202: 172.5 | M202: 172.5 | N202: 172.5 | O202: 172.5 | P202: 172.5 | Q202: 172.5 | R202: 172.5 | S202: 172.5 | T202: 172.5 | U202: 172.5 | V202: 172.5 | W202: 172.5 | X202: 172.5 | Y202: 172.5 | Z202: 172.5 | AA202: 172.5 | AB202: 172.5 | AC202: 172.5 | AD202: 172.5 | AE202: 172.5 | AF202: 172.5 | AG202: 172.5 | AH202: 345 | AI202: 345 | AJ202: 345 | AK202: 345 | AL202: 345 | AM202: 345 | AN202: 345 | AO202: 345 | AP202: =AP221*AP$7 -> 345 | AQ202: 345 | AR202: 345 | AS202: 345 | AT202: 345 | AU202: 172.5 | AV202: 172.5 | AW202: 172.5 | AX202: 172.5 | AY202: 172.5 | AZ202: 172.5 | BA202: 172.5 | BB202: 172.5 | BC202: 172.5 | BD202: 172.5 | BE202: 172.5 | BF202: 172.5 | BG202: 172.5
B203: Total | G203: ='1_KMA'!$I$21 -> 2024-06-30 | H203: ='1_KMA'!$I$19 -> $thousands | J203: =J222*J$7 -> 172.5 | K203: 172.5 | L203: 172.5 | M203: 172.5 | N203: 172.5 | O203: 172.5 | P203: 172.5 | Q203: 172.5 | R203: 172.5 | S203: 172.5 | T203: 172.5 | U203: 172.5 | V203: 172.5 | W203: 172.5 | X203: 172.5 | Y203: 172.5 | Z203: 172.5 | AA203: 172.5 | AB203: 172.5 | AC203: 172.5 | AD203: 172.5 | AE203: 172.5 | AF203: 172.5 | AG203: 172.5 | AH203: 345 | AI203: 345 | AJ203: 345 | AK203: 345 | AL203: 345 | AM203: 345 | AN203: 345 | AO203: 345 | AP203: =AP222*AP$7 -> 345 | AQ203: 345 | AR203: 345 | AS203: 345 | AT203: 345 | AU203: 172.5 | AV203: 172.5 | AW203: 172.5 | AX203: 172.5 | AY203: 172.5 | AZ203: 172.5 | BA203: 172.5 | BB203: 172.5 | BC203: 172.5 | BD203: 172.5 | BE203: 172.5 | BF203: 172.5 | BG203: 172.5
B205: Benefits
G207: $ Basis Reminder | H207: $ Reminder
B208: =B227 -> Value of EUE (residual) | G208: ='1_KMA'!$I$21 -> 2024-06-30 | H208: ='1_KMA'!$I$19 -> $thousands | J208: =J227*J$7 -> -995.5375145 | K208: -995.5375145 | L208: -995.5375145 | M208: -995.5375145 | N208: -995.5375145 | O208: -995.5375145 | P208: -995.5375145 | Q208: -995.5375145 | R208: -995.5375145 | S208: -995.5375145 | T208: -995.5375145 | U208: -995.5375145 | V208: -995.5375145 | W208: -995.5375145 | X208: -995.5375145 | Y208: -995.5375145 | Z208: -995.5375145 | AA208: -995.5375145 | AB208: -995.5375145 | AC208: -995.5375145 | AD208: -995.5375145 | AE208: -995.5375145 | AF208: -995.5375145 | AG208: -995.5375145 | AH208: -995.5375145 | AI208: -995.5375145 | AJ208: -995.5375145 | AK208: -995.5375145 | AL208: -995.5375145 | AM208: -995.5375145 | AN208: -995.5375145 | AO208: -995.5375145 | AP208: =AP227*AP$7 -> -995.5375145 | AQ208: -995.5375145 | AR208: -995.5375145 | AS208: -995.5375145 | AT208: -995.5375145 | AU208: -995.5375145 | AV208: -995.5375145 | AW208: -995.5375145 | AX208: -995.5375145 | AY208: -995.5375145 | AZ208: -995.5375145 | BA208: -995.5375145 | BB208: -995.5375145 | BC208: -995.5375145 | BD208: -995.5375145 | BE208: -995.5375145 | BF208: -995.5375145 | BG208: -995.5375145
B209: =B228 -> 0 | G209: ='1_KMA'!$I$21 -> 2024-06-30 | H209: ='1_KMA'!$I$19 -> $thousands | J209: =J228*J$7 -> 0 | K209: 0 | L209: 0 | M209: 0 | N209: 0 | O209: 0 | P209: 0 | Q209: 0 | R209: 0 | S209: 0 | T209: 0 | U209: 0 | V209: 0 | W209: 0 | X209: 0 | Y209: 0 | Z209: 0 | AA209: 0 | AB209: 0 | AC209: 0 | AD209: 0 | AE209: 0 | AF209: 0 | AG209: 0 | AH209: 0 | AI209: 0 | AJ209: 0 | AK209: 0 | AL209: 0 | AM209: 0 | AN209: 0 | AO209: 0 | AP209: =AP228*AP$7 -> 0 | AQ209: 0 | AR209: 0 | AS209: 0 | AT209: 0 | AU209: 0 | AV209: 0 | AW209: 0 | AX209: 0 | AY209: 0 | AZ209: 0 | BA209: 0 | BB209: 0 | BC209: 0 | BD209: 0 | BE209: 0 | BF209: 0 | BG209: 0
B210: 0 | G210: ='1_KMA'!$I$21 -> 2024-06-30 | H210: ='1_KMA'!$I$19 -> $thousands | J210: =J229*J$7 -> 0 | K210: 0 | L210: 0 | M210: 0 | N210: 0 | O210: 0 | P210: 0 | Q210: 0 | R210: 0 | S210: 0 | T210: 0 | U210: 0 | V210: 0 | W210: 0 | X210: 0 | Y210: 0 | Z210: 0 | AA210: 0 | AB210: 0 | AC210: 0 | AD210: 0 | AE210: 0 | AF210: 0 | AG210: 0 | AH210: 0 | AI210: 0 | AJ210: 0 | AK210: 0 | AL210: 0 | AM210: 0 | AN210: 0 | AO210: 0 | AP210: =AP229*AP$7 -> 0 | AQ210: 0 | AR210: 0 | AS210: 0 | AT210: 0 | AU210: 0 | AV210: 0 | AW210: 0 | AX210: 0 | AY210: 0 | AZ210: 0 | BA210: 0 | BB210: 0 | BC210: 0 | BD210: 0 | BE210: 0 | BF210: 0 | BG210: 0
B211: 0 | G211: ='1_KMA'!$I$21 -> 2024-06-30 | H211: ='1_KMA'!$I$19 -> $thousands | J211: =J230*J$7 -> 0 | K211: 0 | L211: 0 | M211: 0 | N211: 0 | O211: 0 | P211: 0 | Q211: 0 | R211: 0 | S211: 0 | T211: 0 | U211: 0 | V211: 0 | W211: 0 | X211: 0 | Y211: 0 | Z211: 0 | AA211: 0 | AB211: 0 | AC211: 0 | AD211: 0 | AE211: 0 | AF211: 0 | AG211: 0 | AH211: 0 | AI211: 0 | AJ211: 0 | AK211: 0 | AL211: 0 | AM211: 0 | AN211: 0 | AO211: 0 | AP211: =AP230*AP$7 -> 0 | AQ211: 0 | AR211: 0 | AS211: 0 | AT211: 0 | AU211: 0 | AV211: 0 | AW211: 0 | AX211: 0 | AY211: 0 | AZ211: 0 | BA211: 0 | BB211: 0 | BC211: 0 | BD211: 0 | BE211: 0 | BF211: 0 | BG211: 0
B212: 0 | G212: ='1_KMA'!$I$21 -> 2024-06-30 | H212: ='1_KMA'!$I$19 -> $thousands | J212: =J231*J$7 -> 0 | K212: 0 | L212: 0 | M212: 0 | N212: 0 | O212: 0 | P212: 0 | Q212: 0 | R212: 0 | S212: 0 | T212: 0 | U212: 0 | V212: 0 | W212: 0 | X212: 0 | Y212: 0 | Z212: 0 | AA212: 0 | AB212: 0 | AC212: 0 | AD212: 0 | AE212: 0 | AF212: 0 | AG212: 0 | AH212: 0 | AI212: 0 | AJ212: 0 | AK212: 0 | AL212: 0 | AM212: 0 | AN212: 0 | AO212: 0 | AP212: =AP231*AP$7 -> 0 | AQ212: 0 | AR212: 0 | AS212: 0 | AT212: 0 | AU212: 0 | AV212: 0 | AW212: 0 | AX212: 0 | AY212: 0 | AZ212: 0 | BA212: 0 | BB212: 0 | BC212: 0 | BD212: 0 | BE212: 0 | BF212: 0 | BG212: 0
B213: ='3_BC'!B232 -> Total | G213: ='1_KMA'!$I$21 -> 2024-06-30 | H213: ='1_KMA'!$I$19 -> $thousands | J213: =J232*J$7 -> -995.5375145 | K213: -995.5375145 | L213: -995.5375145 | M213: -995.5375145 | N213: -995.5375145 | O213: -995.5375145 | P213: -995.5375145 | Q213: -995.5375145 | R213: -995.5375145 | S213: -995.5375145 | T213: -995.5375145 | U213: -995.5375145 | V213: -995.5375145 | W213: -995.5375145 | X213: -995.5375145 | Y213: -995.5375145 | Z213: -995.5375145 | AA213: -995.5375145 | AB213: -995.5375145 | AC213: -995.5375145 | AD213: -995.5375145 | AE213: -995.5375145 | AF213: -995.5375145 | AG213: -995.5375145 | AH213: -995.5375145 | AI213: -995.5375145 | AJ213: -995.5375145 | AK213: -995.5375145 | AL213: -995.5375145 | AM213: -995.5375145 | AN213: -995.5375145 | AO213: -995.5375145 | AP213: =AP232*AP$7 -> -995.5375145 | AQ213: -995.5375145 | AR213: -995.5375145 | AS213: -995.5375145 | AT213: -995.5375145 | AU213: -995.5375145 | AV213: -995.5375145 | AW213: -995.5375145 | AX213: -995.5375145 | AY213: -995.5375145 | AZ213: -995.5375145 | BA213: -995.5375145 | BB213: -995.5375145 | BC213: -995.5375145 | BD213: -995.5375145 | BE213: -995.5375145 | BF213: -995.5375145 | BG213: -995.5375145
B215: Undiscounted | D215: ="("&TEXT('1_KMA'!$I$20,"dd-mmm-yy")&" dollars)" -> (30-Jun-24 dollars)
B217: Costs
G219: $ Basis Reminder | H219: $ Reminder
B220: Net Capex | G220: ='1_KMA'!$I$20 -> 2024-06-30 | H220: ='1_KMA'!$I$19 -> $thousands | J220: =J52*Controls!$F$24 -> 0 | K220: =K52*Controls!$F$24 -> 0 | L220: =L52*Controls!$F$24 -> 0 | M220: =M52*Controls!$F$24 -> 0 | N220: =N52*Controls!$F$24 -> 0 | O220: =O52*Controls!$F$24 -> 0 | P220: =P52*Controls!$F$24 -> 0 | Q220: =Q52*Controls!$F$24 -> 0 | R220: =R52*Controls!$F$24 -> 0 | S220: =S52*Controls!$F$24 -> 0 | T220: =T52*Controls!$F$24 -> 0 | U220: =U52*Controls!$F$24 -> 0 | V220: =V52*Controls!$F$24 -> 0 | W220: =W52*Controls!$F$24 -> 0 | X220: =X52*Controls!$F$24 -> 0 | Y220: =Y52*Controls!$F$24 -> 0 | Z220: =Z52*Controls!$F$24 -> 0 | AA220: =AA52*Controls!$F$24 -> 0 | AB220: =AB52*Controls!$F$24 -> 0 | AC220: =AC52*Controls!$F$24 -> 0 | AD220: =AD52*Controls!$F$24 -> 0 | AE220: =AE52*Controls!$F$24 -> 0 | AF220: =AF52*Controls!$F$24 -> 0 | AG220: =AG52*Controls!$F$24 -> 0 | AH220: =AH52*Controls!$F$24 -> 0 | AI220: =AI52*Controls!$F$24 -> 0 | AJ220: =AJ52*Controls!$F$24 -> 0 | AK220: =AK52*Controls!$F$24 -> 0 | AL220: =AL52*Controls!$F$24 -> 0 | AM220: =AM52*Controls!$F$24 -> 0 | AN220: =AN52*Controls!$F$24 -> 0 | AO220: =AO52*Controls!$F$24 -> 0 | AP220: =AP52*Controls!$F$24 -> 0 | AQ220: =AQ52*Controls!$F$24 -> 0 | AR220: =AR52*Controls!$F$24 -> 0 | AS220: =AS52*Controls!$F$24 -> 0 | AT220: =AT52*Controls!$F$24 -> 0 | AU220: =AU52*Controls!$F$24 -> 0 | AV220: =AV52*Controls!$F$24 -> 0 | AW220: =AW52*Controls!$F$24 -> 0 | AX220: =AX52*Controls!$F$24 -> 0 | AY220: =AY52*Controls!$F$24 -> 0 | AZ220: =AZ52*Controls!$F$24 -> 0 | BA220: =BA52*Controls!$F$24 -> 0 | BB220: =BB52*Controls!$F$24 -> 0 | BC220: =BC52*Controls!$F$24 -> 0 | BD220: =BD52*Controls!$F$24 -> 0 | BE220: =BE52*Controls!$F$24 -> 0 | BF220: =BF52*Controls!$F$24 -> 0 | BG220: =BG52*Controls!$F$24 -> 0
B221: Opex | G221: ='1_KMA'!$I$20 -> 2024-06-30 | H221: ='1_KMA'!$I$19 -> $thousands | J221: =J53*Controls!$F$24 -> 172.5 | K221: =K53*Controls!$F$24 -> 172.5 | L221: =L53*Controls!$F$24 -> 172.5 | M221: =M53*Controls!$F$24 -> 172.5 | N221: =N53*Controls!$F$24 -> 172.5 | O221: =O53*Controls!$F$24 -> 172.5 | P221: =P53*Controls!$F$24 -> 172.5 | Q221: =Q53*Controls!$F$24 -> 172.5 | R221: =R53*Controls!$F$24 -> 172.5 | S221: =S53*Controls!$F$24 -> 172.5 | T221: =T53*Controls!$F$24 -> 172.5 | U221: =U53*Controls!$F$24 -> 172.5 | V221: =V53*Controls!$F$24 -> 172.5 | W221: =W53*Controls!$F$24 -> 172.5 | X221: =X53*Controls!$F$24 -> 172.5 | Y221: =Y53*Controls!$F$24 -> 172.5 | Z221: =Z53*Controls!$F$24 -> 172.5 | AA221: =AA53*Controls!$F$24 -> 172.5 | AB221: =AB53*Controls!$F$24 -> 172.5 | AC221: =AC53*Controls!$F$24 -> 172.5 | AD221: =AD53*Controls!$F$24 -> 172.5 | AE221: =AE53*Controls!$F$24 -> 172.5 | AF221: =AF53*Controls!$F$24 -> 172.5 | AG221: =AG53*Controls!$F$24 -> 172.5 | AH221: =AH53*Controls!$F$24 -> 345 | AI221: =AI53*Controls!$F$24 -> 345 | AJ221: =AJ53*Controls!$F$24 -> 345 | AK221: =AK53*Controls!$F$24 -> 345 | AL221: =AL53*Controls!$F$24 -> 345 | AM221: =AM53*Controls!$F$24 -> 345 | AN221: =AN53*Controls!$F$24 -> 345 | AO221: =AO53*Controls!$F$24 -> 345 | AP221: =AP53*Controls!$F$24 -> 345 | AQ221: =AQ53*Controls!$F$24 -> 345 | AR221: =AR53*Controls!$F$24 -> 345 | AS221: =AS53*Controls!$F$24 -> 345 | AT221: =AT53*Controls!$F$24 -> 345 | AU221: =AU53*Controls!$F$24 -> 172.5 | AV221: =AV53*Controls!$F$24 -> 172.5 | AW221: =AW53*Controls!$F$24 -> 172.5 | AX221: =AX53*Controls!$F$24 -> 172.5 | AY221: =AY53*Controls!$F$24 -> 172.5 | AZ221: =AZ53*Controls!$F$24 -> 172.5 | BA221: =BA53*Controls!$F$24 -> 172.5 | BB221: =BB53*Controls!$F$24 -> 172.5 | BC221: =BC53*Controls!$F$24 -> 172.5 | BD221: =BD53*Controls!$F$24 -> 172.5 | BE221: =BE53*Controls!$F$24 -> 172.5 | BF221: =BF53*Controls!$F$24 -> 172.5 | BG221: =BG53*Controls!$F$24 -> 172.5
B222: Total | G222: ='1_KMA'!$I$20 -> 2024-06-30 | H222: ='1_KMA'!$I$19 -> $thousands | J222: =SUM(J220:J221) -> 172.5 | K222: =SUM(K220:K221) -> 172.5 | L222: 172.5 | M222: 172.5 | N222: 172.5 | O222: 172.5 | P222: 172.5 | Q222: 172.5 | R222: 172.5 | S222: 172.5 | T222: 172.5 | U222: 172.5 | V222: 172.5 | W222: 172.5 | X222: 172.5 | Y222: 172.5 | Z222: 172.5 | AA222: 172.5 | AB222: 172.5 | AC222: 172.5 | AD222: 172.5 | AE222: 172.5 | AF222: 172.5 | AG222: 172.5 | AH222: 345 | AI222: 345 | AJ222: 345 | AK222: 345 | AL222: 345 | AM222: 345 | AN222: 345 | AO222: 345 | AP222: 345 | AQ222: 345 | AR222: 345 | AS222: 345 | AT222: 345 | AU222: 172.5 | AV222: 172.5 | AW222: 172.5 | AX222: 172.5 | AY222: 172.5 | AZ222: 172.5 | BA222: 172.5 | BB222: 172.5 | BC222: 172.5 | BD222: 172.5 | BE222: 172.5 | BF222: 172.5 | BG222: 172.5
B224: Benefits
G226: $ Basis Reminder | H226: $ Reminder
B227: ='2.1_BC'!$B$16 -> Value of EUE (residual) | G227: ='1_KMA'!$I$20 -> 2024-06-30 | H227: ='1_KMA'!$I$19 -> $thousands | J227: =J59 -> -995.5375145 | K227: =K59 -> -995.5375145 | L227: -995.5375145 | M227: -995.5375145 | N227: -995.5375145 | O227: -995.5375145 | P227: -995.5375145 | Q227: -995.5375145 | R227: -995.5375145 | S227: -995.5375145 | T227: -995.5375145 | U227: -995.5375145 | V227: -995.5375145 | W227: -995.5375145 | X227: -995.5375145 | Y227: -995.5375145 | Z227: -995.5375145 | AA227: -995.5375145 | AB227: -995.5375145 | AC227: -995.5375145 | AD227: -995.5375145 | AE227: -995.5375145 | AF227: -995.5375145 | AG227: -995.5375145 | AH227: -995.5375145 | AI227: -995.5375145 | AJ227: -995.5375145 | AK227: -995.5375145 | AL227: -995.5375145 | AM227: -995.5375145 | AN227: -995.5375145 | AO227: -995.5375145 | AP227: -995.5375145 | AQ227: -995.5375145 | AR227: -995.5375145 | AS227: -995.5375145 | AT227: -995.5375145 | AU227: -995.5375145 | AV227: -995.5375145 | AW227: -995.5375145 | AX227: -995.5375145 | AY227: -995.5375145 | AZ227: -995.5375145 | BA227: -995.5375145 | BB227: -995.5375145 | BC227: -995.5375145 | BD227: -995.5375145 | BE227: -995.5375145 | BF227: -995.5375145 | BG227: -995.5375145
B228: ='2.1_BC'!$B$17 -> 0 | G228: ='1_KMA'!$I$20 -> 2024-06-30 | H228: ='1_KMA'!$I$19 -> $thousands | J228: =J60 -> 0 | K228: =K60 -> 0 | L228: 0 | M228: 0 | N228: 0 | O228: 0 | P228: 0 | Q228: 0 | R228: 0 | S228: 0 | T228: 0 | U228: 0 | V228: 0 | W228: 0 | X228: 0 | Y228: 0 | Z228: 0 | AA228: 0 | AB228: 0 | AC228: 0 | AD228: 0 | AE228: 0 | AF228: 0 | AG228: 0 | AH228: 0 | AI228: 0 | AJ228: 0 | AK228: 0 | AL228: 0 | AM228: 0 | AN228: 0 | AO228: 0 | AP228: 0 | AQ228: 0 | AR228: 0 | AS228: 0 | AT228: 0 | AU228: 0 | AV228: 0 | AW228: 0 | AX228: 0 | AY228: 0 | AZ228: 0 | BA228: 0 | BB228: 0 | BC228: 0 | BD228: 0 | BE228: 0 | BF228: 0 | BG228: 0
B229: ='2.1_BC'!$B$18 -> 0 | G229: ='1_KMA'!$I$20 -> 2024-06-30 | H229: ='1_KMA'!$I$19 -> $thousands | J229: =J61 -> 0 | K229: =K61 -> 0 | L229: 0 | M229: 0 | N229: 0 | O229: 0 | P229: 0 | Q229: 0 | R229: 0 | S229: 0 | T229: 0 | U229: 0 | V229: 0 | W229: 0 | X229: 0 | Y229: 0 | Z229: 0 | AA229: 0 | AB229: 0 | AC229: 0 | AD229: 0 | AE229: 0 | AF229: 0 | AG229: 0 | AH229: 0 | AI229: 0 | AJ229: 0 | AK229: 0 | AL229: 0 | AM229: 0 | AN229: 0 | AO229: 0 | AP229: 0 | AQ229: 0 | AR229: 0 | AS229: 0 | AT229: 0 | AU229: 0 | AV229: 0 | AW229: 0 | AX229: 0 | AY229: 0 | AZ229: 0 | BA229: 0 | BB229: 0 | BC229: 0 | BD229: 0 | BE229: 0 | BF229: 0 | BG229: 0
B230: ='2.1_BC'!$B$19 -> 0 | G230: ='1_KMA'!$I$20 -> 2024-06-30 | H230: ='1_KMA'!$I$19 -> $thousands | J230: =J62 -> 0 | K230: =K62 -> 0 | L230: 0 | M230: 0 | N230: 0 | O230: 0 | P230: 0 | Q230: 0 | R230: 0 | S230: 0 | T230: 0 | U230: 0 | V230: 0 | W230: 0 | X230: 0 | Y230: 0 | Z230: 0 | AA230: 0 | AB230: 0 | AC230: 0 | AD230: 0 | AE230: 0 | AF230: 0 | AG230: 0 | AH230: 0 | AI230: 0 | AJ230: 0 | AK230: 0 | AL230: 0 | AM230: 0 | AN230: 0 | AO230: 0 | AP230: 0 | AQ230: 0 | AR230: 0 | AS230: 0 | AT230: 0 | AU230: 0 | AV230: 0 | AW230: 0 | AX230: 0 | AY230: 0 | AZ230: 0 | BA230: 0 | BB230: 0 | BC230: 0 | BD230: 0 | BE230: 0 | BF230: 0 | BG230: 0
B231: ='2.1_BC'!$B$20 -> 0 | G231: ='1_KMA'!$I$20 -> 2024-06-30 | H231: ='1_KMA'!$I$19 -> $thousands | J231: =J63 -> 0 | K231: =K63 -> 0 | L231: 0 | M231: 0 | N231: 0 | O231: 0 | P231: 0 | Q231: 0 | R231: 0 | S231: 0 | T231: 0 | U231: 0 | V231: 0 | W231: 0 | X231: 0 | Y231: 0 | Z231: 0 | AA231: 0 | AB231: 0 | AC231: 0 | AD231: 0 | AE231: 0 | AF231: 0 | AG231: 0 | AH231: 0 | AI231: 0 | AJ231: 0 | AK231: 0 | AL231: 0 | AM231: 0 | AN231: 0 | AO231: 0 | AP231: 0 | AQ231: 0 | AR231: 0 | AS231: 0 | AT231: 0 | AU231: 0 | AV231: 0 | AW231: 0 | AX231: 0 | AY231: 0 | AZ231: 0 | BA231: 0 | BB231: 0 | BC231: 0 | BD231: 0 | BE231: 0 | BF231: 0 | BG231: 0
B232: Total | G232: ='1_KMA'!$I$20 -> 2024-06-30 | H232: ='1_KMA'!$I$19 -> $thousands | J232: =SUM(J227:J231) -> -995.5375145 | K232: =SUM(K227:K231) -> -995.5375145 | L232: -995.5375145 | M232: =SUM(M227:M231) -> -995.5375145 | N232: =SUM(N227:N231) -> -995.5375145 | O232: -995.5375145 | P232: -995.5375145 | Q232: -995.5375145 | R232: -995.5375145 | S232: -995.5375145 | T232: -995.5375145 | U232: -995.5375145 | V232: -995.5375145 | W232: -995.5375145 | X232: -995.5375145 | Y232: -995.5375145 | Z232: -995.5375145 | AA232: -995.5375145 | AB232: -995.5375145 | AC232: -995.5375145 | AD232: -995.5375145 | AE232: -995.5375145 | AF232: -995.5375145 | AG232: -995.5375145 | AH232: -995.5375145 | AI232: -995.5375145 | AJ232: -995.5375145 | AK232: -995.5375145 | AL232: -995.5375145 | AM232: -995.5375145 | AN232: -995.5375145 | AO232: -995.5375145 | AP232: -995.5375145 | AQ232: -995.5375145 | AR232: -995.5375145 | AS232: -995.5375145 | AT232: -995.5375145 | AU232: -995.5375145 | AV232: -995.5375145 | AW232: -995.5375145 | AX232: -995.5375145 | AY232: -995.5375145 | AZ232: -995.5375145 | BA232: -995.5375145 | BB232: -995.5375145 | BC232: -995.5375145 | BD232: -995.5375145 | BE232: -995.5375145 | BF232: -995.5375145 | BG232: -995.5375145
B234: =Controls!$B$25&" "&Controls!$C$25&" ("&TEXT(Controls!$F$25-1,"0.00%")&")" -> Sensitivity Scenario 4 Lower costs (-15.00%)
B235: Summary
B237: WACC | J237: =Controls!$E$25 -> 0.05555 | K237: =Controls!$E$25 -> 0.05555 | L237: =Controls!$E$25 -> 0.05555 | M237: =Controls!$E$25 -> 0.05555 | N237: =Controls!$E$25 -> 0.05555 | O237: =Controls!$E$25 -> 0.05555 | P237: =Controls!$E$25 -> 0.05555 | Q237: =Controls!$E$25 -> 0.05555 | R237: =Controls!$E$25 -> 0.05555 | S237: =Controls!$E$25 -> 0.05555 | T237: =Controls!$E$25 -> 0.05555 | U237: =Controls!$E$25 -> 0.05555 | V237: =Controls!$E$25 -> 0.05555 | W237: =Controls!$E$25 -> 0.05555 | X237: =Controls!$E$25 -> 0.05555 | Y237: =Controls!$E$25 -> 0.05555 | Z237: =Controls!$E$25 -> 0.05555 | AA237: =Controls!$E$25 -> 0.05555 | AB237: =Controls!$E$25 -> 0.05555 | AC237: =Controls!$E$25 -> 0.05555 | AD237: =Controls!$E$25 -> 0.05555 | AE237: =Controls!$E$25 -> 0.05555 | AF237: =Controls!$E$25 -> 0.05555 | AG237: =Controls!$E$25 -> 0.05555 | AH237: =Controls!$E$25 -> 0.05555 | AI237: =Controls!$E$25 -> 0.05555 | AJ237: =Controls!$E$25 -> 0.05555 | AK237: =Controls!$E$25 -> 0.05555 | AL237: =Controls!$E$25 -> 0.05555 | AM237: =Controls!$E$25 -> 0.05555 | AN237: =Controls!$E$25 -> 0.05555 | AO237: =Controls!$E$25 -> 0.05555 | AP237: =Controls!$E$25 -> 0.05555 | AQ237: =Controls!$E$25 -> 0.05555 | AR237: =Controls!$E$25 -> 0.05555 | AS237: =Controls!$E$25 -> 0.05555 | AT237: =Controls!$E$25 -> 0.05555 | AU237: =Controls!$E$25 -> 0.05555 | AV237: =Controls!$E$25 -> 0.05555 | AW237: =Controls!$E$25 -> 0.05555 | AX237: =Controls!$E$25 -> 0.05555 | AY237: =Controls!$E$25 -> 0.05555 | AZ237: =Controls!$E$25 -> 0.05555 | BA237: =Controls!$E$25 -> 0.05555 | BB237: =Controls!$E$25 -> 0.05555 | BC237: =Controls!$E$25 -> 0.05555 | BD237: =Controls!$E$25 -> 0.05555 | BE237: =Controls!$E$25 -> 0.05555 | BF237: =Controls!$E$25 -> 0.05555 | BG237: =Controls!$E$25 -> 0.05555
B238: Deflator (interim calculation) | J238: 1 | K238: =J238*(1+K237) -> 1.05555 | L238: =K238*(1+L237) -> 1.114185802 | M238: =L238*(1+M237) -> 1.176078824 | N238: =M238*(1+N237) -> 1.241410002 | O238: =N238*(1+O237) -> 1.310370328 | P238: =O238*(1+P237) -> 1.3831614 | Q238: =P238*(1+Q237) -> 1.459996016 | R238: =Q238*(1+R237) -> 1.541098794 | S238: =R238*(1+S237) -> 1.626706832 | T238: =S238*(1+T237) -> 1.717070397 | U238: =T238*(1+U237) -> 1.812453657 | V238: =U238*(1+V237) -> 1.913135458 | W238: =V238*(1+W237) -> 2.019410133 | X238: =W238*(1+X237) -> 2.131588366 | Y238: =X238*(1+Y237) -> 2.249998099 | Z238: =Y238*(1+Z237) -> 2.374985494 | AA238: =Z238*(1+AA237) -> 2.506915938 | AB238: =AA238*(1+AB237) -> 2.646175118 | AC238: =AB238*(1+AC237) -> 2.793170146 | AD238: =AC238*(1+AD237) -> 2.948330748 | AE238: =AD238*(1+AE237) -> 3.112110521 | AF238: =AE238*(1+AF237) -> 3.28498826 | AG238: =AF238*(1+AG237) -> 3.467469358 | AH238: =AG238*(1+AH237) -> 3.660087281 | AI238: =AH238*(1+AI237) -> 3.863405129 | AJ238: =AI238*(1+AJ237) -> 4.078017284 | AK238: =AJ238*(1+AK237) -> 4.304551144 | AL238: =AK238*(1+AL237) -> 4.54366896 | AM238: =AL238*(1+AM237) -> 4.796069771 | AN238: =AM238*(1+AN237) -> 5.062491447 | AO238: =AN238*(1+AO237) -> 5.343712847 | AP238: =AO238*(1+AP237) -> 5.640556096 | AQ238: =AP238*(1+AQ237) -> 5.953888987 | AR238: =AQ238*(1+AR237) -> 6.28462752 | AS238: =AR238*(1+AS237) -> 6.633738579 | AT238: =AS238*(1+AT237) -> 7.002242757 | AU238: =AT238*(1+AU237) -> 7.391217342 | AV238: =AU238*(1+AV237) -> 7.801799465 | AW238: =AV238*(1+AW237) -> 8.235189425 | AX238: =AW238*(1+AX237) -> 8.692654198 | AY238: =AX238*(1+AY237) -> 9.175531139 | AZ238: =AY238*(1+AZ237) -> 9.685231893 | BA238: =AZ238*(1+BA237) -> 10.22324653 | BB238: =BA238*(1+BB237) -> 10.79114787 | BC238: =BB238*(1+BC237) -> 11.39059613 | BD238: =BC238*(1+BD237) -> 12.02334375 | BE238: =BD238*(1+BE237) -> 12.69124049 | BF238: =BE238*(1+BF237) -> 13.3962389 | BG238: =BF238*(1+BG237) -> 14.14039997
B239: Deflator | J239: =1/J238 -> 1 | K239: =1/K238 -> 0.9473734072 | L239: =1/L238 -> 0.8975163727 | M239: =1/M238 -> 0.8502831441 | N239: =1/N238 -> 0.8055356393 | O239: =1/O238 -> 0.7631430433 | P239: 0.7229814251 | Q239: 0.6849333761 | R239: 0.6488876662 | S239: 0.6147389192 | T239: 0.5823873045 | U239: 0.551738245 | V239: 0.522702141 | W239: 0.4951941083 | X239: 0.4691337296 | Y239: 0.4444448199 | Z239: 0.4210552033 | AA239: 0.3988965026 | AB239: 0.3779039388 | AC239: 0.3580161421 | AD239: 0.3391749724 | AE239: 0.3213253493 | AF239: 0.304415091 | AG239: 0.2883947619 | AH239: 0.2732175282 | AI239: 0.2588390206 | AJ239: 0.2452172049 | AK239: 0.2323122589 | AL239: 0.2200864563 | AM239: 0.208504056 | AN239: 0.1975311979 | AO239: 0.187135804 | AP239: 0.1772874843 | AQ239: 0.167957448 | AR239: 0.1591184198 | AS239: 0.1507445595 | AT239: 0.142811387 | AU239: 0.1352957103 | AV239: 0.128175558 | AW239: 0.1214301151 | AX239: 0.1150396619 | AY239: 0.1089855165 | AZ239: 0.1032499801 | BA239: 0.09781628542 | BB239: 0.0926685476 | BC239: 0.08779171768 | BD239: 0.08317153871 | BE239: 0.07879450401 | BF239: 0.07464781773 | BG239: 0.07071935743
B241: Totex sought for EDPR FY27-31 (undiscounted) | G241: ="("&TEXT('1_KMA'!$I$21,"dd-mmm-yy")&" Dollars)" -> (30-Jun-24 Dollars)
C242: Net Capital Expenditure | G242: =SUM(J242:BG242) -> 0 | J242: =-J257*J$1*J$8 -> 0 | K242: =-K257*K$1*K$8 -> 0 | L242: 0 | M242: 0 | N242: 0 | O242: =-O257*O$1*O$8 -> 0 | P242: 0 | Q242: 0 | R242: 0 | S242: 0 | T242: 0 | U242: 0 | V242: 0 | W242: 0 | X242: 0 | Y242: 0 | Z242: 0 | AA242: 0 | AB242: 0 | AC242: 0 | AD242: 0 | AE242: 0 | AF242: 0 | AG242: 0 | AH242: 0 | AI242: 0 | AJ242: 0 | AK242: 0 | AL242: 0 | AM242: 0 | AN242: 0 | AO242: 0 | AP242: 0 | AQ242: 0 | AR242: 0 | AS242: 0 | AT242: 0 | AU242: 0 | AV242: 0 | AW242: 0 | AX242: 0 | AY242: 0 | AZ242: 0 | BA242: 0 | BB242: 0 | BC242: 0 | BD242: 0 | BE242: 0 | BF242: 0 | BG242: 0
C243: Operating Expenditure | G243: =SUM(J243:BG243) -> -637.5 | J243: =-J258*J$1*J$8 -> 0 | K243: =-K258*K$1*K$8 -> 0 | L243: 0 | M243: =-M258*M$1*M$8 -> -127.5 | N243: =-N258*N$1*N$8 -> -127.5 | O243: -127.5 | P243: -127.5 | Q243: -127.5 | R243: 0 | S243: 0 | T243: 0 | U243: 0 | V243: 0 | W243: 0 | X243: 0 | Y243: 0 | Z243: 0 | AA243: 0 | AB243: 0 | AC243: 0 | AD243: 0 | AE243: 0 | AF243: 0 | AG243: 0 | AH243: 0 | AI243: 0 | AJ243: 0 | AK243: 0 | AL243: 0 | AM243: 0 | AN243: 0 | AO243: 0 | AP243: 0 | AQ243: 0 | AR243: 0 | AS243: 0 | AT243: 0 | AU243: 0 | AV243: 0 | AW243: 0 | AX243: 0 | AY243: 0 | AZ243: 0 | BA243: 0 | BB243: 0 | BC243: 0 | BD243: 0 | BE243: 0 | BF243: 0 | BG243: 0
C244: Totex | G244: =SUM(G242:G243) -> -637.5 | J244: =SUM(J242:J243) -> 0 | K244: =SUM(K242:K243) -> 0 | L244: =SUM(L242:L243) -> 0 | M244: -127.5 | N244: -127.5 | O244: -127.5 | P244: -127.5 | Q244: -127.5 | R244: 0 | S244: 0 | T244: 0 | U244: 0 | V244: 0 | W244: 0 | X244: 0 | Y244: 0 | Z244: 0 | AA244: 0 | AB244: 0 | AC244: 0 | AD244: 0 | AE244: 0 | AF244: 0 | AG244: 0 | AH244: 0 | AI244: 0 | AJ244: 0 | AK244: 0 | AL244: 0 | AM244: 0 | AN244: 0 | AO244: 0 | AP244: 0 | AQ244: 0 | AR244: 0 | AS244: 0 | AT244: 0 | AU244: 0 | AV244: 0 | AW244: 0 | AX244: 0 | AY244: 0 | AZ244: 0 | BA244: 0 | BB244: 0 | BC244: 0 | BD244: 0 | BE244: 0 | BF244: 0 | BG244: 0
B246: PV over full assessment period to establish the preferred option (discounted) | G246: ="("&TEXT('1_KMA'!$I$21,"dd-mmm-yy")&" Dollars)" -> (30-Jun-24 Dollars)
C247: Net Capital Expenditure | G247: =SUM(J247:BG247) -> 0 | J247: =-(J257)*J$239*J$8 -> 0 | K247: =-(K257)*K$239*K$8 -> 0 | L247: 0 | M247: 0 | N247: =-(N257)*N$239*N$8 -> 0 | O247: 0 | P247: 0 | Q247: 0 | R247: 0 | S247: 0 | T247: 0 | U247: 0 | V247: 0 | W247: 0 | X247: 0 | Y247: 0 | Z247: 0 | AA247: 0 | AB247: 0 | AC247: 0 | AD247: 0 | AE247: 0 | AF247: 0 | AG247: 0 | AH247: 0 | AI247: 0 | AJ247: 0 | AK247: 0 | AL247: 0 | AM247: 0 | AN247: 0 | AO247: 0 | AP247: 0 | AQ247: 0 | AR247: 0 | AS247: 0 | AT247: 0 | AU247: 0 | AV247: 0 | AW247: 0 | AX247: 0 | AY247: 0 | AZ247: 0 | BA247: 0 | BB247: 0 | BC247: 0 | BD247: 0 | BE247: 0 | BF247: 0 | BG247: 0
C248: Operating Expenditure | G248: =SUM(J248:BG248) -> -2594.559626 | J248: =-(J258)*J$239*J$8 -> -127.5 | K248: =-(K258)*K$239*K$8 -> -120.7901094 | L248: -114.4333375 | M248: =-(M258)*M$239*M$8 -> -108.4111009 | N248: =-(N258)*N$239*N$8 -> -102.705794 | O248: -97.30073801 | P248: -92.1801317 | Q248: -87.32900545 | R248: -82.73317744 | S248: -78.3792122 | T248: -74.25438132 | U248: -70.34662623 | V248: -66.64452298 | W248: -63.13724881 | X248: -59.81455053 | Y248: -56.66671454 | Z248: -53.68453843 | AA248: -50.85930408 | AB248: -48.1827522 | AC248: -45.64705812 | AD248: -43.24480898 | AE248: -40.96898203 | AF248: -38.8129241 | AG248: -36.77033215 | AH248: -69.6704697 | AI248: -66.00395026 | AJ248: -62.53038725 | AK248: -59.23962602 | AL248: -56.12204635 | AM248: -53.16853427 | AN248: -50.37045547 | AO248: -47.71963002 | AP248: -45.20830849 | AQ248: -42.82914925 | AR248: -40.57519705 | AS248: -38.43986268 | AT248: -36.41690368 | AU248: -17.25020306 | AV248: -16.34238365 | AW248: -15.48233968 | AX248: -14.66755689 | AY248: -13.89565335 | AZ248: -13.16437246 | BA248: -12.47157639 | BB248: -11.81523982 | BC248: -11.193444 | BD248: -10.60437119 | BE248: -10.04629926 | BF248: -9.517596761 | BG248: -9.016718072
C249: Net Benefits | G249: =SUM(J249:BG249) -> -17649.61026 | J249: =(J269)*J$239*J$8 -> -995.5375145 | K249: =(K269)*K$239*K$8 -> -943.1457671 | L249: -893.5112189 | M249: =(M269)*M$239*M$8 -> -846.4887679 | N249: =(N269)*N$239*N$8 -> -801.9409482 | O249: -759.7375285 | P249: -719.755131 | Q249: -681.8768708 | R249: -645.9920144 | S249: -611.9956557 | T249: -579.7884096 | U249: -549.276121 | V249: -520.3695903 | W249: -492.9843118 | X249: -467.0402272 | Y249: -442.4614913 | Z249: -419.1762506 | AA249: -397.1164328 | AB249: -376.217548 | AC249: -356.4185003 | AD249: -337.661409 | AE249: -319.8914395 | AF249: -303.056643 | AG249: -287.1078045 | AH249: -271.998299 | AI249: -257.6839553 | AJ249: -244.1229267 | AK249: -231.2755688 | AL249: -219.1043237 | AM249: -207.5736096 | AN249: -196.6497178 | AO249: -186.3007132 | AP249: -176.4963414 | AQ249: -167.2079403 | AR249: -158.4083562 | AS249: -150.0718641 | AT249: -142.1740932 | AU249: -134.6919551 | AV249: -127.6035765 | AW249: -120.888235 | AX249: -114.5262991 | AY249: -108.4991702 | AZ249: -102.7892285 | BA249: -97.37978166 | BB249: -92.25501555 | BC249: -87.39994842 | BD249: -82.80038692 | BE249: -78.44288468 | BF249: -74.31470293 | BG249: -70.40377332
B250: Total Present Value | G250: =SUM(J250:BG250) -> -20244.16989 | J250: =SUM(J247:J249) -> -1123.037515 | K250: =SUM(K247:K249) -> -1063.935877 | L250: -1007.944556 | M250: -954.8998688 | N250: -904.6467422 | O250: -857.0382665 | P250: -811.9352627 | Q250: -769.2058762 | R250: -728.7251918 | S250: -690.3748679 | T250: -654.0427909 | U250: -619.6227473 | V250: -587.0141133 | W250: -556.1215606 | X250: -526.8547777 | Y250: -499.1282059 | Z250: -472.860789 | AA250: -447.9757368 | AB250: -424.4003002 | AC250: -402.0655584 | AD250: -380.906218 | AE250: -360.8604216 | AF250: -341.8695671 | AG250: -323.8781366 | AH250: -341.6687687 | AI250: -323.6879055 | AJ250: -306.6533139 | AK250: -290.5151949 | AL250: -275.22637 | AM250: -260.7421439 | AN250: -247.0201733 | AO250: -234.0203432 | AP250: -221.7046499 | AQ250: -210.0370896 | AR250: -198.9835532 | AS250: -188.5117268 | AT250: -178.5909969 | AU250: -151.9421582 | AV250: -143.9459601 | AW250: -136.3705747 | AX250: -129.193856 | AY250: -122.3948235 | AZ250: -115.953601 | BA250: -109.8513581 | BB250: -104.0702554 | BC250: -98.59339242 | BD250: -93.40475811 | BE250: -88.48918394 | BF250: -83.83229969 | BG250: -79.42049139
B252: Undiscounted | D252: ="("&TEXT('1_KMA'!$I$21,"dd-mmm-yy")&" dollars)" -> (30-Jun-24 dollars)
B254: Costs
G256: $ Basis Reminder | H256: $ Reminder
B257: Net Capex | G257: ='1_KMA'!$I$21 -> 2024-06-30 | H257: ='1_KMA'!$I$19 -> $thousands | J257: =J276*J$7 -> 0 | K257: 0 | L257: 0 | M257: 0 | N257: 0 | O257: 0 | P257: 0 | Q257: 0 | R257: 0 | S257: 0 | T257: 0 | U257: 0 | V257: 0 | W257: 0 | X257: 0 | Y257: 0 | Z257: 0 | AA257: 0 | AB257: 0 | AC257: 0 | AD257: 0 | AE257: 0 | AF257: 0 | AG257: 0 | AH257: 0 | AI257: 0 | AJ257: 0 | AK257: 0 | AL257: 0 | AM257: 0 | AN257: 0 | AO257: 0 | AP257: =AP276*AP$7 -> 0 | AQ257: 0 | AR257: 0 | AS257: 0 | AT257: 0 | AU257: 0 | AV257: 0 | AW257: 0 | AX257: 0 | AY257: 0 | AZ257: 0 | BA257: 0 | BB257: 0 | BC257: 0 | BD257: 0 | BE257: 0 | BF257: 0 | BG257: 0
B258: Opex | G258: ='1_KMA'!$I$21 -> 2024-06-30 | H258: ='1_KMA'!$I$19 -> $thousands | J258: =J277*J$7 -> 127.5 | K258: 127.5 | L258: 127.5 | M258: 127.5 | N258: 127.5 | O258: 127.5 | P258: 127.5 | Q258: 127.5 | R258: 127.5 | S258: 127.5 | T258: 127.5 | U258: 127.5 | V258: 127.5 | W258: 127.5 | X258: 127.5 | Y258: 127.5 | Z258: 127.5 | AA258: 127.5 | AB258: 127.5 | AC258: 127.5 | AD258: 127.5 | AE258: 127.5 | AF258: 127.5 | AG258: 127.5 | AH258: 255 | AI258: 255 | AJ258: 255 | AK258: 255 | AL258: 255 | AM258: 255 | AN258: 255 | AO258: 255 | AP258: =AP277*AP$7 -> 255 | AQ258: 255 | AR258: 255 | AS258: 255 | AT258: 255 | AU258: 127.5 | AV258: 127.5 | AW258: 127.5 | AX258: 127.5 | AY258: 127.5 | AZ258: 127.5 | BA258: 127.5 | BB258: 127.5 | BC258: 127.5 | BD258: 127.5 | BE258: 127.5 | BF258: 127.5 | BG258: 127.5
B259: Total | G259: ='1_KMA'!$I$21 -> 2024-06-30 | H259: ='1_KMA'!$I$19 -> $thousands | J259: =J278*J$7 -> 127.5 | K259: 127.5 | L259: 127.5 | M259: 127.5 | N259: 127.5 | O259: 127.5 | P259: 127.5 | Q259: 127.5 | R259: 127.5 | S259: 127.5 | T259: 127.5 | U259: 127.5 | V259: 127.5 | W259: 127.5 | X259: 127.5 | Y259: 127.5 | Z259: 127.5 | AA259: 127.5 | AB259: 127.5 | AC259: 127.5 | AD259: 127.5 | AE259: 127.5 | AF259: 127.5 | AG259: 127.5 | AH259: 255 | AI259: 255 | AJ259: 255 | AK259: 255 | AL259: 255 | AM259: 255 | AN259: 255 | AO259: 255 | AP259: =AP278*AP$7 -> 255 | AQ259: 255 | AR259: 255 | AS259: 255 | AT259: 255 | AU259: 127.5 | AV259: 127.5 | AW259: 127.5 | AX259: 127.5 | AY259: 127.5 | AZ259: 127.5 | BA259: 127.5 | BB259: 127.5 | BC259: 127.5 | BD259: 127.5 | BE259: 127.5 | BF259: 127.5 | BG259: 127.5
B261: Benefits
G263: $ Basis Reminder | H263: $ Reminder
B264: =B283 -> Value of EUE (residual) | G264: ='1_KMA'!$I$21 -> 2024-06-30 | H264: ='1_KMA'!$I$19 -> $thousands | J264: =J283*J$7 -> -995.5375145 | K264: -995.5375145 | L264: -995.5375145 | M264: -995.5375145 | N264: -995.5375145 | O264: -995.5375145 | P264: -995.5375145 | Q264: -995.5375145 | R264: -995.5375145 | S264: -995.5375145 | T264: -995.5375145 | U264: -995.5375145 | V264: -995.5375145 | W264: -995.5375145 | X264: -995.5375145 | Y264: -995.5375145 | Z264: -995.5375145 | AA264: -995.5375145 | AB264: -995.5375145 | AC264: -995.5375145 | AD264: -995.5375145 | AE264: -995.5375145 | AF264: -995.5375145 | AG264: -995.5375145 | AH264: -995.5375145 | AI264: -995.5375145 | AJ264: -995.5375145 | AK264: -995.5375145 | AL264: -995.5375145 | AM264: -995.5375145 | AN264: -995.5375145 | AO264: -995.5375145 | AP264: =AP283*AP$7 -> -995.5375145 | AQ264: -995.5375145 | AR264: -995.5375145 | AS264: -995.5375145 | AT264: -995.5375145 | AU264: -995.5375145 | AV264: -995.5375145 | AW264: -995.5375145 | AX264: -995.5375145 | AY264: -995.5375145 | AZ264: -995.5375145 | BA264: -995.5375145 | BB264: -995.5375145 | BC264: -995.5375145 | BD264: -995.5375145 | BE264: -995.5375145 | BF264: -995.5375145 | BG264: -995.5375145
B265: =B284 -> 0 | G265: ='1_KMA'!$I$21 -> 2024-06-30 | H265: ='1_KMA'!$I$19 -> $thousands | J265: =J284*J$7 -> 0 | K265: 0 | L265: 0 | M265: 0 | N265: 0 | O265: 0 | P265: 0 | Q265: 0 | R265: 0 | S265: 0 | T265: 0 | U265: 0 | V265: 0 | W265: 0 | X265: 0 | Y265: 0 | Z265: 0 | AA265: 0 | AB265: 0 | AC265: 0 | AD265: 0 | AE265: 0 | AF265: 0 | AG265: 0 | AH265: 0 | AI265: 0 | AJ265: 0 | AK265: 0 | AL265: 0 | AM265: 0 | AN265: 0 | AO265: 0 | AP265: =AP284*AP$7 -> 0 | AQ265: 0 | AR265: 0 | AS265: 0 | AT265: 0 | AU265: 0 | AV265: 0 | AW265: 0 | AX265: 0 | AY265: 0 | AZ265: 0 | BA265: 0 | BB265: 0 | BC265: 0 | BD265: 0 | BE265: 0 | BF265: 0 | BG265: 0
B266: 0 | G266: ='1_KMA'!$I$21 -> 2024-06-30 | H266: ='1_KMA'!$I$19 -> $thousands | J266: =J285*J$7 -> 0 | K266: 0 | L266: 0 | M266: 0 | N266: 0 | O266: 0 | P266: 0 | Q266: 0 | R266: 0 | S266: 0 | T266: 0 | U266: 0 | V266: 0 | W266: 0 | X266: 0 | Y266: 0 | Z266: 0 | AA266: 0 | AB266: 0 | AC266: 0 | AD266: 0 | AE266: 0 | AF266: 0 | AG266: 0 | AH266: 0 | AI266: 0 | AJ266: 0 | AK266: 0 | AL266: 0 | AM266: 0 | AN266: 0 | AO266: 0 | AP266: =AP285*AP$7 -> 0 | AQ266: 0 | AR266: 0 | AS266: 0 | AT266: 0 | AU266: 0 | AV266: 0 | AW266: 0 | AX266: 0 | AY266: 0 | AZ266: 0 | BA266: 0 | BB266: 0 | BC266: 0 | BD266: 0 | BE266: 0 | BF266: 0 | BG266: 0
... 17 more rows

Sheet 3_Op1 (hidden)
B1: Interim Calculations: Option 1 | I1: Regulatory Period Indicator | J1: ='1_KMA'!J30 -> 0 | K1: ='1_KMA'!K30 -> 0 | L1: ='1_KMA'!L30 -> 0 | M1: ='1_KMA'!M30 -> 1 | N1: ='1_KMA'!N30 -> 1 | O1: ='1_KMA'!O30 -> 1 | P1: ='1_KMA'!P30 -> 1 | Q1: ='1_KMA'!Q30 -> 1 | R1: ='1_KMA'!R30 -> 0 | S1: ='1_KMA'!S30 -> 0 | T1: ='1_KMA'!T30 -> 0 | U1: ='1_KMA'!U30 -> 0 | V1: ='1_KMA'!V30 -> 0 | W1: ='1_KMA'!W30 -> 0 | X1: ='1_KMA'!X30 -> 0 | Y1: ='1_KMA'!Y30 -> 0 | Z1: ='1_KMA'!Z30 -> 0 | AA1: ='1_KMA'!AA30 -> 0 | AB1: ='1_KMA'!AB30 -> 0 | AC1: ='1_KMA'!AC30 -> 0 | AD1: ='1_KMA'!AD30 -> 0 | AE1: ='1_KMA'!AE30 -> 0 | AF1: ='1_KMA'!AF30 -> 0 | AG1: ='1_KMA'!AG30 -> 0 | AH1: ='1_KMA'!AH30 -> 0 | AI1: ='1_KMA'!AI30 -> 0 | AJ1: ='1_KMA'!AJ30 -> 0 | AK1: ='1_KMA'!AK30 -> 0 | AL1: ='1_KMA'!AL30 -> 0 | AM1: ='1_KMA'!AM30 -> 0 | AN1: ='1_KMA'!AN30 -> 0 | AO1: ='1_KMA'!AO30 -> 0 | AP1: ='1_KMA'!AP30 -> 0 | AQ1: ='1_KMA'!AQ30 -> 0 | AR1: ='1_KMA'!AR30 -> 0 | AS1: ='1_KMA'!AS30 -> 0 | AT1: ='1_KMA'!AT30 -> 0 | AU1: ='1_KMA'!AU30 -> 0 | AV1: ='1_KMA'!AV30 -> 0 | AW1: ='1_KMA'!AW30 -> 0 | AX1: ='1_KMA'!AX30 -> 0 | AY1: ='1_KMA'!AY30 -> 0 | AZ1: ='1_KMA'!AZ30 -> 0 | BA1: ='1_KMA'!BA30 -> 0 | BB1: ='1_KMA'!BB30 -> 0 | BC1: ='1_KMA'!BC30 -> 0 | BD1: ='1_KMA'!BD30 -> 0 | BE1: ='1_KMA'!BE30 -> 0 | BF1: ='1_KMA'!BF30 -> 0 | BG1: ='1_KMA'!BG30 -> 0
B2: =Cover!$C$9 -> AusNet Services | I2: Period Start Date | J2: ='1_KMA'!J31 -> 2023-07-01 | K2: ='1_KMA'!K31 -> 2024-07-01 | L2: ='1_KMA'!L31 -> 2025-07-01 | M2: ='1_KMA'!M31 -> 2026-07-01 | N2: ='1_KMA'!N31 -> 2027-07-01 | O2: ='1_KMA'!O31 -> 2028-07-01 | P2: ='1_KMA'!P31 -> 2029-07-01 | Q2: ='1_KMA'!Q31 -> 2030-07-01 | R2: ='1_KMA'!R31 -> 2031-07-01 | S2: ='1_KMA'!S31 -> 2032-07-01 | T2: ='1_KMA'!T31 -> 2033-07-01 | U2: ='1_KMA'!U31 -> 2034-07-01 | V2: ='1_KMA'!V31 -> 2035-07-01 | W2: ='1_KMA'!W31 -> 2036-07-01 | X2: ='1_KMA'!X31 -> 2037-07-01 | Y2: ='1_KMA'!Y31 -> 2038-07-01 | Z2: ='1_KMA'!Z31 -> 2039-07-01 | AA2: ='1_KMA'!AA31 -> 2040-07-01 | AB2: ='1_KMA'!AB31 -> 2041-07-01 | AC2: ='1_KMA'!AC31 -> 2042-07-01 | AD2: ='1_KMA'!AD31 -> 2043-07-01 | AE2: ='1_KMA'!AE31 -> 2044-07-01 | AF2: ='1_KMA'!AF31 -> 2045-07-01 | AG2: ='1_KMA'!AG31 -> 2046-07-01 | AH2: ='1_KMA'!AH31 -> 2047-07-01 | AI2: ='1_KMA'!AI31 -> 2048-07-01 | AJ2: ='1_KMA'!AJ31 -> 2049-07-01 | AK2: ='1_KMA'!AK31 -> 2050-07-01 | AL2: ='1_KMA'!AL31 -> 2051-07-01 | AM2: ='1_KMA'!AM31 -> 2052-07-01 | AN2: ='1_KMA'!AN31 -> 2053-07-01 | AO2: ='1_KMA'!AO31 -> 2054-07-01 | AP2: ='1_KMA'!AP31 -> 2055-07-01 | AQ2: ='1_KMA'!AQ31 -> 2056-07-01 | AR2: ='1_KMA'!AR31 -> 2057-07-01 | AS2: ='1_KMA'!AS31 -> 2058-07-01 | AT2: ='1_KMA'!AT31 -> 2059-07-01 | AU2: ='1_KMA'!AU31 -> 2060-07-01 | AV2: ='1_KMA'!AV31 -> 2061-07-01 | AW2: ='1_KMA'!AW31 -> 2062-07-01 | AX2: ='1_KMA'!AX31 -> 2063-07-01 | AY2: ='1_KMA'!AY31 -> 2064-07-01 | AZ2: ='1_KMA'!AZ31 -> 2065-07-01 | BA2: ='1_KMA'!BA31 -> 2066-07-01 | BB2: ='1_KMA'!BB31 -> 2067-07-01 | BC2: ='1_KMA'!BC31 -> 2068-07-01 | BD2: ='1_KMA'!BD31 -> 2069-07-01 | BE2: ='1_KMA'!BE31 -> 2070-07-01 | BF2: ='1_KMA'!BF31 -> 2071-07-01 | BG2: ='1_KMA'!BG31 -> 2072-07-01
B3: =Cover!$C$10 -> Business Case Evaluation | I3: Period End Date | J3: ='1_KMA'!J32 -> 2024-06-30 | K3: ='1_KMA'!K32 -> 2025-06-30 | L3: ='1_KMA'!L32 -> 2026-06-30 | M3: ='1_KMA'!M32 -> 2027-06-30 | N3: ='1_KMA'!N32 -> 2028-06-30 | O3: ='1_KMA'!O32 -> 2029-06-30 | P3: ='1_KMA'!P32 -> 2030-06-30 | Q3: ='1_KMA'!Q32 -> 2031-06-30 | R3: ='1_KMA'!R32 -> 2032-06-30 | S3: ='1_KMA'!S32 -> 2033-06-30 | T3: ='1_KMA'!T32 -> 2034-06-30 | U3: ='1_KMA'!U32 -> 2035-06-30 | V3: ='1_KMA'!V32 -> 2036-06-30 | W3: ='1_KMA'!W32 -> 2037-06-30 | X3: ='1_KMA'!X32 -> 2038-06-30 | Y3: ='1_KMA'!Y32 -> 2039-06-30 | Z3: ='1_KMA'!Z32 -> 2040-06-30 | AA3: ='1_KMA'!AA32 -> 2041-06-30 | AB3: ='1_KMA'!AB32 -> 2042-06-30 | AC3: ='1_KMA'!AC32 -> 2043-06-30 | AD3: ='1_KMA'!AD32 -> 2044-06-30 | AE3: ='1_KMA'!AE32 -> 2045-06-30 | AF3: ='1_KMA'!AF32 -> 2046-06-30 | AG3: ='1_KMA'!AG32 -> 2047-06-30 | AH3: ='1_KMA'!AH32 -> 2048-06-30 | AI3: ='1_KMA'!AI32 -> 2049-06-30 | AJ3: ='1_KMA'!AJ32 -> 2050-06-30 | AK3: ='1_KMA'!AK32 -> 2051-06-30 | AL3: ='1_KMA'!AL32 -> 2052-06-30 | AM3: ='1_KMA'!AM32 -> 2053-06-30 | AN3: ='1_KMA'!AN32 -> 2054-06-30 | AO3: ='1_KMA'!AO32 -> 2055-06-30 | AP3: ='1_KMA'!AP32 -> 2056-06-30 | AQ3: ='1_KMA'!AQ32 -> 2057-06-30 | AR3: ='1_KMA'!AR32 -> 2058-06-30 | AS3: ='1_KMA'!AS32 -> 2059-06-30 | AT3: ='1_KMA'!AT32 -> 2060-06-30 | AU3: ='1_KMA'!AU32 -> 2061-06-30 | AV3: ='1_KMA'!AV32 -> 2062-06-30 | AW3: ='1_KMA'!AW32 -> 2063-06-30 | AX3: ='1_KMA'!AX32 -> 2064-06-30 | AY3: ='1_KMA'!AY32 -> 2065-06-30 | AZ3: ='1_KMA'!AZ32 -> 2066-06-30 | BA3: ='1_KMA'!BA32 -> 2067-06-30 | BB3: ='1_KMA'!BB32 -> 2068-06-30 | BC3: ='1_KMA'!BC32 -> 2069-06-30 | BD3: ='1_KMA'!BD32 -> 2070-06-30 | BE3: ='1_KMA'!BE32 -> 2071-06-30 | BF3: ='1_KMA'!BF32 -> 2072-06-30 | BG3: ='1_KMA'!BG32 -> 2073-06-30
B4: =Cover!$C$11 -> Summer and winter readiness | I4: Project Year | J4: ='1_KMA'!J33 -> 1 | K4: ='1_KMA'!K33 -> 2 | L4: ='1_KMA'!L33 -> 3 | M4: ='1_KMA'!M33 -> 4 | N4: ='1_KMA'!N33 -> 5 | O4: ='1_KMA'!O33 -> 6 | P4: ='1_KMA'!P33 -> 7 | Q4: ='1_KMA'!Q33 -> 8 | R4: ='1_KMA'!R33 -> 9 | S4: ='1_KMA'!S33 -> 10 | T4: ='1_KMA'!T33 -> 11 | U4: ='1_KMA'!U33 -> 12 | V4: ='1_KMA'!V33 -> 13 | W4: ='1_KMA'!W33 -> 14 | X4: ='1_KMA'!X33 -> 15 | Y4: ='1_KMA'!Y33 -> 16 | Z4: ='1_KMA'!Z33 -> 17 | AA4: ='1_KMA'!AA33 -> 18 | AB4: ='1_KMA'!AB33 -> 19 | AC4: ='1_KMA'!AC33 -> 20 | AD4: ='1_KMA'!AD33 -> 21 | AE4: ='1_KMA'!AE33 -> 22 | AF4: ='1_KMA'!AF33 -> 23 | AG4: ='1_KMA'!AG33 -> 24 | AH4: ='1_KMA'!AH33 -> 25 | AI4: ='1_KMA'!AI33 -> 26 | AJ4: ='1_KMA'!AJ33 -> 27 | AK4: ='1_KMA'!AK33 -> 28 | AL4: ='1_KMA'!AL33 -> 29 | AM4: ='1_KMA'!AM33 -> 30 | AN4: ='1_KMA'!AN33 -> 31 | AO4: ='1_KMA'!AO33 -> 32 | AP4: ='1_KMA'!AP33 -> 33 | AQ4: ='1_KMA'!AQ33 -> 34 | AR4: ='1_KMA'!AR33 -> 35 | AS4: ='1_KMA'!AS33 -> 36 | AT4: ='1_KMA'!AT33 -> 37 | AU4: ='1_KMA'!AU33 -> 38 | AV4: ='1_KMA'!AV33 -> 39 | AW4: ='1_KMA'!AW33 -> 40 | AX4: ='1_KMA'!AX33 -> 41 | AY4: ='1_KMA'!AY33 -> 42 | AZ4: ='1_KMA'!AZ33 -> 43 | BA4: ='1_KMA'!BA33 -> 44 | BB4: ='1_KMA'!BB33 -> 45 | BC4: ='1_KMA'!BC33 -> 46 | BD4: ='1_KMA'!BD33 -> 47 | BE4: ='1_KMA'!BE33 -> 48 | BF4: ='1_KMA'!BF33 -> 49 | BG4: ='1_KMA'!BG33 -> 50
I5: Financial Year | J5: ='1_KMA'!J34 -> 2024 | K5: ='1_KMA'!K34 -> 2025 | L5: ='1_KMA'!L34 -> 2026 | M5: ='1_KMA'!M34 -> 2027 | N5: ='1_KMA'!N34 -> 2028 | O5: ='1_KMA'!O34 -> 2029 | P5: ='1_KMA'!P34 -> 2030 | Q5: ='1_KMA'!Q34 -> 2031 | R5: ='1_KMA'!R34 -> 2032 | S5: ='1_KMA'!S34 -> 2033 | T5: ='1_KMA'!T34 -> 2034 | U5: ='1_KMA'!U34 -> 2035 | V5: ='1_KMA'!V34 -> 2036 | W5: ='1_KMA'!W34 -> 2037 | X5: ='1_KMA'!X34 -> 2038 | Y5: ='1_KMA'!Y34 -> 2039 | Z5: ='1_KMA'!Z34 -> 2040 | AA5: ='1_KMA'!AA34 -> 2041 | AB5: ='1_KMA'!AB34 -> 2042 | AC5: ='1_KMA'!AC34 -> 2043 | AD5: ='1_KMA'!AD34 -> 2044 | AE5: ='1_KMA'!AE34 -> 2045 | AF5: ='1_KMA'!AF34 -> 2046 | AG5: ='1_KMA'!AG34 -> 2047 | AH5: ='1_KMA'!AH34 -> 2048 | AI5: ='1_KMA'!AI34 -> 2049 | AJ5: ='1_KMA'!AJ34 -> 2050 | AK5: ='1_KMA'!AK34 -> 2051 | AL5: ='1_KMA'!AL34 -> 2052 | AM5: ='1_KMA'!AM34 -> 2053 | AN5: ='1_KMA'!AN34 -> 2054 | AO5: ='1_KMA'!AO34 -> 2055 | AP5: ='1_KMA'!AP34 -> 2056 | AQ5: ='1_KMA'!AQ34 -> 2057 | AR5: ='1_KMA'!AR34 -> 2058 | AS5: ='1_KMA'!AS34 -> 2059 | AT5: ='1_KMA'!AT34 -> 2060 | AU5: ='1_KMA'!AU34 -> 2061 | AV5: ='1_KMA'!AV34 -> 2062 | AW5: ='1_KMA'!AW34 -> 2063 | AX5: ='1_KMA'!AX34 -> 2064 | AY5: ='1_KMA'!AY34 -> 2065 | AZ5: ='1_KMA'!AZ34 -> 2066 | BA5: ='1_KMA'!BA34 -> 2067 | BB5: ='1_KMA'!BB34 -> 2068 | BC5: ='1_KMA'!BC34 -> 2069 | BD5: ='1_KMA'!BD34 -> 2070 | BE5: ='1_KMA'!BE34 -> 2071 | BF5: ='1_KMA'!BF34 -> 2072 | BG5: ='1_KMA'!BG34 -> 2073
I7: Escalation | J7: =IF(ISERROR(VLOOKUP('1_KMA'!$I$20&'1_KMA'!$I$21,CPI_Con_F!$C$63:$H$182,6,FALSE)),0,VLOOKUP('1_KMA'!$I$20&'1_KMA'!$I$21,CPI_Con_F!$C$63:$H$182,6,FALSE)) -> 1 | K7: =IF(ISERROR(VLOOKUP('1_KMA'!$I$20&'1_KMA'!$I$21,CPI_Con_F!$C$63:$H$182,6,FALSE)),0,VLOOKUP('1_KMA'!$I$20&'1_KMA'!$I$21,CPI_Con_F!$C$63:$H$182,6,FALSE)) -> 1 | L7: =IF(ISERROR(VLOOKUP('1_KMA'!$I$20&'1_KMA'!$I$21,CPI_Con_F!$C$63:$H$182,6,FALSE)),0,VLOOKUP('1_KMA'!$I$20&'1_KMA'!$I$21,CPI_Con_F!$C$63:$H$182,6,FALSE)) -> 1 | M7: =IF(ISERROR(VLOOKUP('1_KMA'!$I$20&'1_KMA'!$I$21,CPI_Con_F!$C$63:$H$182,6,FALSE)),0,VLOOKUP('1_KMA'!$I$20&'1_KMA'!$I$21,CPI_Con_F!$C$63:$H$182,6,FALSE)) -> 1 | N7: =IF(ISERROR(VLOOKUP('1_KMA'!$I$20&'1_KMA'!$I$21,CPI_Con_F!$C$63:$H$182,6,FALSE)),0,VLOOKUP('1_KMA'!$I$20&'1_KMA'!$I$21,CPI_Con_F!$C$63:$H$182,6,FALSE)) -> 1 | O7: =IF(ISERROR(VLOOKUP('1_KMA'!$I$20&'1_KMA'!$I$21,CPI_Con_F!$C$63:$H$182,6,FALSE)),0,VLOOKUP('1_KMA'!$I$20&'1_KMA'!$I$21,CPI_Con_F!$C$63:$H$182,6,FALSE)) -> 1 | P7: =IF(ISERROR(VLOOKUP('1_KMA'!$I$20&'1_KMA'!$I$21,CPI_Con_F!$C$63:$H$182,6,FALSE)),0,VLOOKUP('1_KMA'!$I$20&'1_KMA'!$I$21,CPI_Con_F!$C$63:$H$182,6,FALSE)) -> 1 | Q7: =IF(ISERROR(VLOOKUP('1_KMA'!$I$20&'1_KMA'!$I$21,CPI_Con_F!$C$63:$H$182,6,FALSE)),0,VLOOKUP('1_KMA'!$I$20&'1_KMA'!$I$21,CPI_Con_F!$C$63:$H$182,6,FALSE)) -> 1 | R7: =IF(ISERROR(VLOOKUP('1_KMA'!$I$20&'1_KMA'!$I$21,CPI_Con_F!$C$63:$H$182,6,FALSE)),0,VLOOKUP('1_KMA'!$I$20&'1_KMA'!$I$21,CPI_Con_F!$C$63:$H$182,6,FALSE)) -> 1 | S7: =IF(ISERROR(VLOOKUP('1_KMA'!$I$20&'1_KMA'!$I$21,CPI_Con_F!$C$63:$H$182,6,FALSE)),0,VLOOKUP('1_KMA'!$I$20&'1_KMA'!$I$21,CPI_Con_F!$C$63:$H$182,6,FALSE)) -> 1 | T7: =IF(ISERROR(VLOOKUP('1_KMA'!$I$20&'1_KMA'!$I$21,CPI_Con_F!$C$63:$H$182,6,FALSE)),0,VLOOKUP('1_KMA'!$I$20&'1_KMA'!$I$21,CPI_Con_F!$C$63:$H$182,6,FALSE)) -> 1 | U7: =IF(ISERROR(VLOOKUP('1_KMA'!$I$20&'1_KMA'!$I$21,CPI_Con_F!$C$63:$H$182,6,FALSE)),0,VLOOKUP('1_KMA'!$I$20&'1_KMA'!$I$21,CPI_Con_F!$C$63:$H$182,6,FALSE)) -> 1 | V7: =IF(ISERROR(VLOOKUP('1_KMA'!$I$20&'1_KMA'!$I$21,CPI_Con_F!$C$63:$H$182,6,FALSE)),0,VLOOKUP('1_KMA'!$I$20&'1_KMA'!$I$21,CPI_Con_F!$C$63:$H$182,6,FALSE)) -> 1 | W7: =IF(ISERROR(VLOOKUP('1_KMA'!$I$20&'1_KMA'!$I$21,CPI_Con_F!$C$63:$H$182,6,FALSE)),0,VLOOKUP('1_KMA'!$I$20&'1_KMA'!$I$21,CPI_Con_F!$C$63:$H$182,6,FALSE)) -> 1 | X7: =IF(ISERROR(VLOOKUP('1_KMA'!$I$20&'1_KMA'!$I$21,CPI_Con_F!$C$63:$H$182,6,FALSE)),0,VLOOKUP('1_KMA'!$I$20&'1_KMA'!$I$21,CPI_Con_F!$C$63:$H$182,6,FALSE)) -> 1 | Y7: =IF(ISERROR(VLOOKUP('1_KMA'!$I$20&'1_KMA'!$I$21,CPI_Con_F!$C$63:$H$182,6,FALSE)),0,VLOOKUP('1_KMA'!$I$20&'1_KMA'!$I$21,CPI_Con_F!$C$63:$H$182,6,FALSE)) -> 1 | Z7: =IF(ISERROR(VLOOKUP('1_KMA'!$I$20&'1_KMA'!$I$21,CPI_Con_F!$C$63:$H$182,6,FALSE)),0,VLOOKUP('1_KMA'!$I$20&'1_KMA'!$I$21,CPI_Con_F!$C$63:$H$182,6,FALSE)) -> 1 | AA7: =IF(ISERROR(VLOOKUP('1_KMA'!$I$20&'1_KMA'!$I$21,CPI_Con_F!$C$63:$H$182,6,FALSE)),0,VLOOKUP('1_KMA'!$I$20&'1_KMA'!$I$21,CPI_Con_F!$C$63:$H$182,6,FALSE)) -> 1 | AB7: =IF(ISERROR(VLOOKUP('1_KMA'!$I$20&'1_KMA'!$I$21,CPI_Con_F!$C$63:$H$182,6,FALSE)),0,VLOOKUP('1_KMA'!$I$20&'1_KMA'!$I$21,CPI_Con_F!$C$63:$H$182,6,FALSE)) -> 1 | AC7: =IF(ISERROR(VLOOKUP('1_KMA'!$I$20&'1_KMA'!$I$21,CPI_Con_F!$C$63:$H$182,6,FALSE)),0,VLOOKUP('1_KMA'!$I$20&'1_KMA'!$I$21,CPI_Con_F!$C$63:$H$182,6,FALSE)) -> 1 | AD7: =IF(ISERROR(VLOOKUP('1_KMA'!$I$20&'1_KMA'!$I$21,CPI_Con_F!$C$63:$H$182,6,FALSE)),0,VLOOKUP('1_KMA'!$I$20&'1_KMA'!$I$21,CPI_Con_F!$C$63:$H$182,6,FALSE)) -> 1 | AE7: =IF(ISERROR(VLOOKUP('1_KMA'!$I$20&'1_KMA'!$I$21,CPI_Con_F!$C$63:$H$182,6,FALSE)),0,VLOOKUP('1_KMA'!$I$20&'1_KMA'!$I$21,CPI_Con_F!$C$63:$H$182,6,FALSE)) -> 1 | AF7: =IF(ISERROR(VLOOKUP('1_KMA'!$I$20&'1_KMA'!$I$21,CPI_Con_F!$C$63:$H$182,6,FALSE)),0,VLOOKUP('1_KMA'!$I$20&'1_KMA'!$I$21,CPI_Con_F!$C$63:$H$182,6,FALSE)) -> 1 | AG7: =IF(ISERROR(VLOOKUP('1_KMA'!$I$20&'1_KMA'!$I$21,CPI_Con_F!$C$63:$H$182,6,FALSE)),0,VLOOKUP('1_KMA'!$I$20&'1_KMA'!$I$21,CPI_Con_F!$C$63:$H$182,6,FALSE)) -> 1 | AH7: =IF(ISERROR(VLOOKUP('1_KMA'!$I$20&'1_KMA'!$I$21,CPI_Con_F!$C$63:$H$182,6,FALSE)),0,VLOOKUP('1_KMA'!$I$20&'1_KMA'!$I$21,CPI_Con_F!$C$63:$H$182,6,FALSE)) -> 1 | AI7: =IF(ISERROR(VLOOKUP('1_KMA'!$I$20&'1_KMA'!$I$21,CPI_Con_F!$C$63:$H$182,6,FALSE)),0,VLOOKUP('1_KMA'!$I$20&'1_KMA'!$I$21,CPI_Con_F!$C$63:$H$182,6,FALSE)) -> 1 | AJ7: =IF(ISERROR(VLOOKUP('1_KMA'!$I$20&'1_KMA'!$I$21,CPI_Con_F!$C$63:$H$182,6,FALSE)),0,VLOOKUP('1_KMA'!$I$20&'1_KMA'!$I$21,CPI_Con_F!$C$63:$H$182,6,FALSE)) -> 1 | AK7: =IF(ISERROR(VLOOKUP('1_KMA'!$I$20&'1_KMA'!$I$21,CPI_Con_F!$C$63:$H$182,6,FALSE)),0,VLOOKUP('1_KMA'!$I$20&'1_KMA'!$I$21,CPI_Con_F!$C$63:$H$182,6,FALSE)) -> 1 | AL7: =IF(ISERROR(VLOOKUP('1_KMA'!$I$20&'1_KMA'!$I$21,CPI_Con_F!$C$63:$H$182,6,FALSE)),0,VLOOKUP('1_KMA'!$I$20&'1_KMA'!$I$21,CPI_Con_F!$C$63:$H$182,6,FALSE)) -> 1 | AM7: =IF(ISERROR(VLOOKUP('1_KMA'!$I$20&'1_KMA'!$I$21,CPI_Con_F!$C$63:$H$182,6,FALSE)),0,VLOOKUP('1_KMA'!$I$20&'1_KMA'!$I$21,CPI_Con_F!$C$63:$H$182,6,FALSE)) -> 1 | AN7: =IF(ISERROR(VLOOKUP('1_KMA'!$I$20&'1_KMA'!$I$21,CPI_Con_F!$C$63:$H$182,6,FALSE)),0,VLOOKUP('1_KMA'!$I$20&'1_KMA'!$I$21,CPI_Con_F!$C$63:$H$182,6,FALSE)) -> 1 | AO7: =IF(ISERROR(VLOOKUP('1_KMA'!$I$20&'1_KMA'!$I$21,CPI_Con_F!$C$63:$H$182,6,FALSE)),0,VLOOKUP('1_KMA'!$I$20&'1_KMA'!$I$21,CPI_Con_F!$C$63:$H$182,6,FALSE)) -> 1 | AP7: =IF(ISERROR(VLOOKUP('1_KMA'!$I$20&'1_KMA'!$I$21,CPI_Con_F!$C$63:$H$182,6,FALSE)),0,VLOOKUP('1_KMA'!$I$20&'1_KMA'!$I$21,CPI_Con_F!$C$63:$H$182,6,FALSE)) -> 1 | AQ7: =IF(ISERROR(VLOOKUP('1_KMA'!$I$20&'1_KMA'!$I$21,CPI_Con_F!$C$63:$H$182,6,FALSE)),0,VLOOKUP('1_KMA'!$I$20&'1_KMA'!$I$21,CPI_Con_F!$C$63:$H$182,6,FALSE)) -> 1 | AR7: =IF(ISERROR(VLOOKUP('1_KMA'!$I$20&'1_KMA'!$I$21,CPI_Con_F!$C$63:$H$182,6,FALSE)),0,VLOOKUP('1_KMA'!$I$20&'1_KMA'!$I$21,CPI_Con_F!$C$63:$H$182,6,FALSE)) -> 1 | AS7: =IF(ISERROR(VLOOKUP('1_KMA'!$I$20&'1_KMA'!$I$21,CPI_Con_F!$C$63:$H$182,6,FALSE)),0,VLOOKUP('1_KMA'!$I$20&'1_KMA'!$I$21,CPI_Con_F!$C$63:$H$182,6,FALSE)) -> 1 | AT7: =IF(ISERROR(VLOOKUP('1_KMA'!$I$20&'1_KMA'!$I$21,CPI_Con_F!$C$63:$H$182,6,FALSE)),0,VLOOKUP('1_KMA'!$I$20&'1_KMA'!$I$21,CPI_Con_F!$C$63:$H$182,6,FALSE)) -> 1 | AU7: =IF(ISERROR(VLOOKUP('1_KMA'!$I$20&'1_KMA'!$I$21,CPI_Con_F!$C$63:$H$182,6,FALSE)),0,VLOOKUP('1_KMA'!$I$20&'1_KMA'!$I$21,CPI_Con_F!$C$63:$H$182,6,FALSE)) -> 1 | AV7: =IF(ISERROR(VLOOKUP('1_KMA'!$I$20&'1_KMA'!$I$21,CPI_Con_F!$C$63:$H$182,6,FALSE)),0,VLOOKUP('1_KMA'!$I$20&'1_KMA'!$I$21,CPI_Con_F!$C$63:$H$182,6,FALSE)) -> 1 | AW7: =IF(ISERROR(VLOOKUP('1_KMA'!$I$20&'1_KMA'!$I$21,CPI_Con_F!$C$63:$H$182,6,FALSE)),0,VLOOKUP('1_KMA'!$I$20&'1_KMA'!$I$21,CPI_Con_F!$C$63:$H$182,6,FALSE)) -> 1 | AX7: =IF(ISERROR(VLOOKUP('1_KMA'!$I$20&'1_KMA'!$I$21,CPI_Con_F!$C$63:$H$182,6,FALSE)),0,VLOOKUP('1_KMA'!$I$20&'1_KMA'!$I$21,CPI_Con_F!$C$63:$H$182,6,FALSE)) -> 1 | AY7: =IF(ISERROR(VLOOKUP('1_KMA'!$I$20&'1_KMA'!$I$21,CPI_Con_F!$C$63:$H$182,6,FALSE)),0,VLOOKUP('1_KMA'!$I$20&'1_KMA'!$I$21,CPI_Con_F!$C$63:$H$182,6,FALSE)) -> 1 | AZ7: =IF(ISERROR(VLOOKUP('1_KMA'!$I$20&'1_KMA'!$I$21,CPI_Con_F!$C$63:$H$182,6,FALSE)),0,VLOOKUP('1_KMA'!$I$20&'1_KMA'!$I$21,CPI_Con_F!$C$63:$H$182,6,FALSE)) -> 1 | BA7: =IF(ISERROR(VLOOKUP('1_KMA'!$I$20&'1_KMA'!$I$21,CPI_Con_F!$C$63:$H$182,6,FALSE)),0,VLOOKUP('1_KMA'!$I$20&'1_KMA'!$I$21,CPI_Con_F!$C$63:$H$182,6,FALSE)) -> 1 | BB7: =IF(ISERROR(VLOOKUP('1_KMA'!$I$20&'1_KMA'!$I$21,CPI_Con_F!$C$63:$H$182,6,FALSE)),0,VLOOKUP('1_KMA'!$I$20&'1_KMA'!$I$21,CPI_Con_F!$C$63:$H$182,6,FALSE)) -> 1 | BC7: =IF(ISERROR(VLOOKUP('1_KMA'!$I$20&'1_KMA'!$I$21,CPI_Con_F!$C$63:$H$182,6,FALSE)),0,VLOOKUP('1_KMA'!$I$20&'1_KMA'!$I$21,CPI_Con_F!$C$63:$H$182,6,FALSE)) -> 1 | BD7: =IF(ISERROR(VLOOKUP('1_KMA'!$I$20&'1_KMA'!$I$21,CPI_Con_F!$C$63:$H$182,6,FALSE)),0,VLOOKUP('1_KMA'!$I$20&'1_KMA'!$I$21,CPI_Con_F!$C$63:$H$182,6,FALSE)) -> 1 | BE7: =IF(ISERROR(VLOOKUP('1_KMA'!$I$20&'1_KMA'!$I$21,CPI_Con_F!$C$63:$H$182,6,FALSE)),0,VLOOKUP('1_KMA'!$I$20&'1_KMA'!$I$21,CPI_Con_F!$C$63:$H$182,6,FALSE)) -> 1 | BF7: =IF(ISERROR(VLOOKUP('1_KMA'!$I$20&'1_KMA'!$I$21,CPI_Con_F!$C$63:$H$182,6,FALSE)),0,VLOOKUP('1_KMA'!$I$20&'1_KMA'!$I$21,CPI_Con_F!$C$63:$H$182,6,FALSE)) -> 1 | BG7: =IF(ISERROR(VLOOKUP('1_KMA'!$I$20&'1_KMA'!$I$21,CPI_Con_F!$C$63:$H$182,6,FALSE)),0,VLOOKUP('1_KMA'!$I$20&'1_KMA'!$I$21,CPI_Con_F!$C$63:$H$182,6,FALSE)) -> 1
I8: Evaluation Period Indicator | J8: =IF(J4<='1_KMA'!$I$23,1,0) -> 1 | K8: =IF(K4<='1_KMA'!$I$23,1,0) -> 1 | L8: =IF(L4<='1_KMA'!$I$23,1,0) -> 1 | M8: =IF(M4<='1_KMA'!$I$23,1,0) -> 1 | N8: =IF(N4<='1_KMA'!$I$23,1,0) -> 1 | O8: =IF(O4<='1_KMA'!$I$23,1,0) -> 1 | P8: =IF(P4<='1_KMA'!$I$23,1,0) -> 1 | Q8: =IF(Q4<='1_KMA'!$I$23,1,0) -> 1 | R8: =IF(R4<='1_KMA'!$I$23,1,0) -> 1 | S8: =IF(S4<='1_KMA'!$I$23,1,0) -> 1 | T8: =IF(T4<='1_KMA'!$I$23,1,0) -> 1 | U8: =IF(U4<='1_KMA'!$I$23,1,0) -> 1 | V8: =IF(V4<='1_KMA'!$I$23,1,0) -> 1 | W8: =IF(W4<='1_KMA'!$I$23,1,0) -> 1 | X8: =IF(X4<='1_KMA'!$I$23,1,0) -> 1 | Y8: =IF(Y4<='1_KMA'!$I$23,1,0) -> 1 | Z8: =IF(Z4<='1_KMA'!$I$23,1,0) -> 1 | AA8: =IF(AA4<='1_KMA'!$I$23,1,0) -> 1 | AB8: =IF(AB4<='1_KMA'!$I$23,1,0) -> 1 | AC8: =IF(AC4<='1_KMA'!$I$23,1,0) -> 1 | AD8: =IF(AD4<='1_KMA'!$I$23,1,0) -> 1 | AE8: =IF(AE4<='1_KMA'!$I$23,1,0) -> 1 | AF8: =IF(AF4<='1_KMA'!$I$23,1,0) -> 1 | AG8: =IF(AG4<='1_KMA'!$I$23,1,0) -> 1 | AH8: =IF(AH4<='1_KMA'!$I$23,1,0) -> 1 | AI8: =IF(AI4<='1_KMA'!$I$23,1,0) -> 1 | AJ8: =IF(AJ4<='1_KMA'!$I$23,1,0) -> 1 | AK8: =IF(AK4<='1_KMA'!$I$23,1,0) -> 1 | AL8: =IF(AL4<='1_KMA'!$I$23,1,0) -> 1 | AM8: =IF(AM4<='1_KMA'!$I$23,1,0) -> 1 | AN8: =IF(AN4<='1_KMA'!$I$23,1,0) -> 1 | AO8: =IF(AO4<='1_KMA'!$I$23,1,0) -> 1 | AP8: =IF(AP4<='1_KMA'!$I$23,1,0) -> 1 | AQ8: =IF(AQ4<='1_KMA'!$I$23,1,0) -> 1 | AR8: =IF(AR4<='1_KMA'!$I$23,1,0) -> 1 | AS8: =IF(AS4<='1_KMA'!$I$23,1,0) -> 1 | AT8: =IF(AT4<='1_KMA'!$I$23,1,0) -> 1 | AU8: =IF(AU4<='1_KMA'!$I$23,1,0) -> 1 | AV8: =IF(AV4<='1_KMA'!$I$23,1,0) -> 1 | AW8: =IF(AW4<='1_KMA'!$I$23,1,0) -> 1 | AX8: =IF(AX4<='1_KMA'!$I$23,1,0) -> 1 | AY8: =IF(AY4<='1_KMA'!$I$23,1,0) -> 1 | AZ8: =IF(AZ4<='1_KMA'!$I$23,1,0) -> 1 | BA8: =IF(BA4<='1_KMA'!$I$23,1,0) -> 1 | BB8: =IF(BB4<='1_KMA'!$I$23,1,0) -> 1 | BC8: =IF(BC4<='1_KMA'!$I$23,1,0) -> 1 | BD8: =IF(BD4<='1_KMA'!$I$23,1,0) -> 1 | BE8: =IF(BE4<='1_KMA'!$I$23,1,0) -> 1 | BF8: =IF(BF4<='1_KMA'!$I$23,1,0) -> 1 | BG8: =IF(BG4<='1_KMA'!$I$23,1,0) -> 1
B10: Summary for Central Assumptions
B12: WACC | J12: ='1_KMA'!$I$28 -> 0.05555 | K12: ='1_KMA'!$I$28 -> 0.05555 | L12: ='1_KMA'!$I$28 -> 0.05555 | M12: ='1_KMA'!$I$28 -> 0.05555 | N12: ='1_KMA'!$I$28 -> 0.05555 | O12: ='1_KMA'!$I$28 -> 0.05555 | P12: ='1_KMA'!$I$28 -> 0.05555 | Q12: ='1_KMA'!$I$28 -> 0.05555 | R12: ='1_KMA'!$I$28 -> 0.05555 | S12: ='1_KMA'!$I$28 -> 0.05555 | T12: ='1_KMA'!$I$28 -> 0.05555 | U12: ='1_KMA'!$I$28 -> 0.05555 | V12: ='1_KMA'!$I$28 -> 0.05555 | W12: ='1_KMA'!$I$28 -> 0.05555 | X12: ='1_KMA'!$I$28 -> 0.05555 | Y12: ='1_KMA'!$I$28 -> 0.05555 | Z12: ='1_KMA'!$I$28 -> 0.05555 | AA12: ='1_KMA'!$I$28 -> 0.05555 | AB12: ='1_KMA'!$I$28 -> 0.05555 | AC12: ='1_KMA'!$I$28 -> 0.05555 | AD12: ='1_KMA'!$I$28 -> 0.05555 | AE12: ='1_KMA'!$I$28 -> 0.05555 | AF12: ='1_KMA'!$I$28 -> 0.05555 | AG12: ='1_KMA'!$I$28 -> 0.05555 | AH12: ='1_KMA'!$I$28 -> 0.05555 | AI12: ='1_KMA'!$I$28 -> 0.05555 | AJ12: ='1_KMA'!$I$28 -> 0.05555 | AK12: ='1_KMA'!$I$28 -> 0.05555 | AL12: ='1_KMA'!$I$28 -> 0.05555 | AM12: ='1_KMA'!$I$28 -> 0.05555 | AN12: ='1_KMA'!$I$28 -> 0.05555 | AO12: ='1_KMA'!$I$28 -> 0.05555 | AP12: ='1_KMA'!$I$28 -> 0.05555 | AQ12: ='1_KMA'!$I$28 -> 0.05555 | AR12: ='1_KMA'!$I$28 -> 0.05555 | AS12: ='1_KMA'!$I$28 -> 0.05555 | AT12: ='1_KMA'!$I$28 -> 0.05555 | AU12: ='1_KMA'!$I$28 -> 0.05555 | AV12: ='1_KMA'!$I$28 -> 0.05555 | AW12: ='1_KMA'!$I$28 -> 0.05555 | AX12: ='1_KMA'!$I$28 -> 0.05555 | AY12: ='1_KMA'!$I$28 -> 0.05555 | AZ12: ='1_KMA'!$I$28 -> 0.05555 | BA12: ='1_KMA'!$I$28 -> 0.05555 | BB12: ='1_KMA'!$I$28 -> 0.05555 | BC12: ='1_KMA'!$I$28 -> 0.05555 | BD12: ='1_KMA'!$I$28 -> 0.05555 | BE12: ='1_KMA'!$I$28 -> 0.05555 | BF12: ='1_KMA'!$I$28 -> 0.05555 | BG12: ='1_KMA'!$I$28 -> 0.05555
B13: Deflator (interim calculation) | J13: 1 | K13: =J13*(1+K12) -> 1.05555 | L13: =K13*(1+L12) -> 1.114185802 | M13: =L13*(1+M12) -> 1.176078824 | N13: 1.241410002 | O13: 1.310370328 | P13: 1.3831614 | Q13: 1.459996016 | R13: 1.541098794 | S13: 1.626706832 | T13: 1.717070397 | U13: 1.812453657 | V13: 1.913135458 | W13: 2.019410133 | X13: 2.131588366 | Y13: 2.249998099 | Z13: 2.374985494 | AA13: 2.506915938 | AB13: 2.646175118 | AC13: 2.793170146 | AD13: 2.948330748 | AE13: 3.112110521 | AF13: 3.28498826 | AG13: 3.467469358 | AH13: 3.660087281 | AI13: 3.863405129 | AJ13: 4.078017284 | AK13: 4.304551144 | AL13: 4.54366896 | AM13: 4.796069771 | AN13: 5.062491447 | AO13: 5.343712847 | AP13: 5.640556096 | AQ13: 5.953888987 | AR13: 6.28462752 | AS13: 6.633738579 | AT13: 7.002242757 | AU13: 7.391217342 | AV13: 7.801799465 | AW13: 8.235189425 | AX13: 8.692654198 | AY13: 9.175531139 | AZ13: 9.685231893 | BA13: 10.22324653 | BB13: 10.79114787 | BC13: 11.39059613 | BD13: 12.02334375 | BE13: 12.69124049 | BF13: 13.3962389 | BG13: 14.14039997
B14: Deflator | J14: =1/J13 -> 1 | K14: =1/K13 -> 0.9473734072 | L14: =1/L13 -> 0.8975163727 | M14: 0.8502831441 | N14: =1/N13 -> 0.8055356393 | O14: 0.7631430433 | P14: 0.7229814251 | Q14: 0.6849333761 | R14: 0.6488876662 | S14: 0.6147389192 | T14: 0.5823873045 | U14: 0.551738245 | V14: 0.522702141 | W14: 0.4951941083 | X14: 0.4691337296 | Y14: 0.4444448199 | Z14: 0.4210552033 | AA14: 0.3988965026 | AB14: 0.3779039388 | AC14: 0.3580161421 | AD14: 0.3391749724 | AE14: 0.3213253493 | AF14: 0.304415091 | AG14: 0.2883947619 | AH14: 0.2732175282 | AI14: 0.2588390206 | AJ14: 0.2452172049 | AK14: 0.2323122589 | AL14: 0.2200864563 | AM14: 0.208504056 | AN14: 0.1975311979 | AO14: 0.187135804 | AP14: 0.1772874843 | AQ14: 0.167957448 | AR14: 0.1591184198 | AS14: 0.1507445595 | AT14: 0.142811387 | AU14: 0.1352957103 | AV14: 0.128175558 | AW14: 0.1214301151 | AX14: 0.1150396619 | AY14: 0.1089855165 | AZ14: 0.1032499801 | BA14: 0.09781628542 | BB14: 0.0926685476 | BC14: 0.08779171768 | BD14: 0.08317153871 | BE14: 0.07879450401 | BF14: 0.07464781773 | BG14: 0.07071935743
B16: Totex sought for EDPR FY27-31 (undiscounted) | G16: ="("&TEXT('1_KMA'!$I$21,"dd-mmm-yy")&" Dollars)" -> (30-Jun-24 Dollars)
C17: Net Capital Expenditure | G17: =SUM(J17:BG17) -> -5197.066667 | J17: =-J33*J$1*J$8 -> 0 | K17: =-K33*K$1*K$8 -> 0 | L17: 0 | M17: -1039.413333 | N17: -1039.413333 | O17: -1039.413333 | P17: -1039.413333 | Q17: -1039.413333 | R17: 0 | S17: 0 | T17: 0 | U17: 0 | V17: 0 | W17: 0 | X17: 0 | Y17: 0 | Z17: 0 | AA17: 0 | AB17: 0 | AC17: 0 | AD17: 0 | AE17: 0 | AF17: 0 | AG17: 0 | AH17: 0 | AI17: 0 | AJ17: 0 | AK17: 0 | AL17: 0 | AM17: 0 | AN17: 0 | AO17: 0 | AP17: 0 | AQ17: 0 | AR17: 0 | AS17: 0 | AT17: 0 | AU17: 0 | AV17: 0 | AW17: 0 | AX17: 0 | AY17: 0 | AZ17: 0 | BA17: 0 | BB17: 0 | BC17: 0 | BD17: 0 | BE17: 0 | BF17: 0 | BG17: 0
C18: Operating Expenditure | G18: =SUM(J18:BG18) -> -500 | J18: =-J34*J$1*J$8 -> 0 | K18: 0 | L18: 0 | M18: -100 | N18: -100 | O18: -100 | P18: -100 | Q18: -100 | R18: 0 | S18: 0 | T18: 0 | U18: 0 | V18: 0 | W18: 0 | X18: 0 | Y18: 0 | Z18: 0 | AA18: 0 | AB18: 0 | AC18: 0 | AD18: 0 | AE18: 0 | AF18: 0 | AG18: 0 | AH18: 0 | AI18: 0 | AJ18: 0 | AK18: 0 | AL18: 0 | AM18: 0 | AN18: 0 | AO18: 0 | AP18: 0 | AQ18: 0 | AR18: 0 | AS18: 0 | AT18: 0 | AU18: 0 | AV18: 0 | AW18: 0 | AX18: 0 | AY18: 0 | AZ18: 0 | BA18: 0 | BB18: 0 | BC18: 0 | BD18: 0 | BE18: 0 | BF18: 0 | BG18: 0
C19: Totex | G19: =SUM(G17:G18) -> -5697.066667 | J19: =SUM(J17:J18) -> 0 | K19: =SUM(K17:K18) -> 0 | L19: =SUM(L17:L18) -> 0 | M19: -1139.413333 | N19: -1139.413333 | O19: -1139.413333 | P19: -1139.413333 | Q19: -1139.413333 | R19: 0 | S19: 0 | T19: 0 | U19: 0 | V19: 0 | W19: 0 | X19: 0 | Y19: 0 | Z19: 0 | AA19: 0 | AB19: 0 | AC19: 0 | AD19: 0 | AE19: 0 | AF19: 0 | AG19: 0 | AH19: 0 | AI19: 0 | AJ19: 0 | AK19: 0 | AL19: 0 | AM19: 0 | AN19: 0 | AO19: 0 | AP19: 0 | AQ19: 0 | AR19: 0 | AS19: 0 | AT19: 0 | AU19: 0 | AV19: 0 | AW19: 0 | AX19: 0 | AY19: 0 | AZ19: 0 | BA19: 0 | BB19: 0 | BC19: 0 | BD19: 0 | BE19: 0 | BF19: 0 | BG19: 0
B21: PV over full assessment period to establish the preferred option (discounted) | G21: ="("&TEXT('1_KMA'!$I$21,"dd-mmm-yy")&" Dollars)" -> (30-Jun-24 Dollars)
C22: Net Capital Expenditure | G22: =SUM(J22:BG22) -> -3977.706592 | J22: =-(J33)*J$14*J$8 -> 0 | K22: =-(K33)*K$14*K$8 -> 0 | L22: 0 | M22: -883.7956371 | N22: -837.284484 | O22: -793.2210544 | P22: -751.476533 | Q22: -711.9288835 | R22: 0 | S22: 0 | T22: 0 | U22: 0 | V22: 0 | W22: 0 | X22: 0 | Y22: 0 | Z22: 0 | AA22: 0 | AB22: 0 | AC22: 0 | AD22: 0 | AE22: 0 | AF22: 0 | AG22: 0 | AH22: 0 | AI22: 0 | AJ22: 0 | AK22: 0 | AL22: 0 | AM22: 0 | AN22: 0 | AO22: 0 | AP22: 0 | AQ22: 0 | AR22: 0 | AS22: 0 | AT22: 0 | AU22: 0 | AV22: 0 | AW22: 0 | AX22: 0 | AY22: 0 | AZ22: 0 | BA22: 0 | BB22: 0 | BC22: 0 | BD22: 0 | BE22: 0 | BF22: 0 | BG22: 0
C23: Operating Expenditure | G23: =SUM(J23:BG23) -> -2112.800622 | J23: =-(J34)*J$14*J$8 -> -100 | K23: -94.73734072 | L23: -89.75163727 | M23: -85.02831441 | N23: -80.55356393 | O23: -76.31430433 | P23: -72.29814251 | Q23: -68.49333761 | R23: -64.88876662 | S23: -61.47389192 | T23: -58.23873045 | U23: -55.1738245 | V23: -52.2702141 | W23: -49.51941083 | X23: -46.91337296 | Y23: -44.44448199 | Z23: -42.10552033 | AA23: -39.88965026 | AB23: -37.79039388 | AC23: -35.80161421 | AD23: -33.91749724 | AE23: -32.13253493 | AF23: -30.4415091 | AG23: -28.83947619 | AH23: -68.30438206 | AI23: =-(AI34)*AI$14*AI$8 -> -64.70975516 | AJ23: -61.30430123 | AK23: -58.07806473 | AL23: -55.02161407 | AM23: -52.12601399 | AN23: -49.38279948 | AO23: =-(AO34)*AO$14*AO$8 -> -46.783951 | AP23: =-(AP34)*AP$14*AP$8 -> 8.864374213 | AQ23: -41.98936201 | AR23: -39.77960495 | AS23: -37.68613988 | AT23: -35.70284674 | AU23: -13.52957103 | AV23: -12.8175558 | AW23: -12.14301151 | AX23: -11.50396619 | AY23: -10.89855165 | AZ23: -10.32499801 | BA23: -9.781628542 | BB23: -9.26685476 | BC23: -8.779171768 | BD23: -8.317153871 | BE23: -7.879450401 | BF23: -7.464781773 | BG23: -7.071935743
C24: Net Benefits | G24: =SUM(J24:BG24) -> 0 | J24: =(J45)*J$14*J$8 -> 0 | K24: =(K45)*K$14*K$8 -> 0 | L24: 0 | M24: =(M45)*M$14*M$8 -> 0 | N24: 0 | O24: 0 | P24: 0 | Q24: 0 | R24: 0 | S24: 0 | T24: 0 | U24: 0 | V24: 0 | W24: 0 | X24: 0 | Y24: 0 | Z24: 0 | AA24: 0 | AB24: 0 | AC24: 0 | AD24: 0 | AE24: 0 | AF24: 0 | AG24: 0 | AH24: 0 | AI24: =(AI45)*AI$14*AI$8 -> 0 | AJ24: 0 | AK24: 0 | AL24: 0 | AM24: 0 | AN24: 0 | AO24: 0 | AP24: 0 | AQ24: 0 | AR24: 0 | AS24: 0 | AT24: 0 | AU24: 0 | AV24: 0 | AW24: 0 | AX24: 0 | AY24: 0 | AZ24: 0 | BA24: 0 | BB24: 0 | BC24: 0 | BD24: 0 | BE24: 0 | BF24: 0 | BG24: 0
B25: Total Present Value | G25: =SUM(J25:BG25) -> -6090.507214 | J25: =SUM(J22:J24) -> -100 | K25: =SUM(K22:K24) -> -94.73734072 | L25: -89.75163727 | M25: -968.8239515 | N25: -917.8380479 | O25: -869.5353587 | P25: -823.7746755 | Q25: -780.4222211 | R25: -64.88876662 | S25: -61.47389192 | T25: -58.23873045 | U25: -55.1738245 | V25: -52.2702141 | W25: -49.51941083 | X25: -46.91337296 | Y25: -44.44448199 | Z25: -42.10552033 | AA25: -39.88965026 | AB25: -37.79039388 | AC25: -35.80161421 | AD25: -33.91749724 | AE25: -32.13253493 | AF25: -30.4415091 | AG25: -28.83947619 | AH25: -68.30438206 | AI25: -64.70975516 | AJ25: -61.30430123 | AK25: -58.07806473 | AL25: -55.02161407 | AM25: -52.12601399 | AN25: -49.38279948 | AO25: -46.783951 | AP25: 8.864374213 | AQ25: -41.98936201 | AR25: -39.77960495 | AS25: -37.68613988 | AT25: -35.70284674 | AU25: -13.52957103 | AV25: -12.8175558 | AW25: -12.14301151 | AX25: -11.50396619 | AY25: -10.89855165 | AZ25: -10.32499801 | BA25: -9.781628542 | BB25: -9.26685476 | BC25: -8.779171768 | BD25: -8.317153871 | BE25: -7.879450401 | BF25: -7.464781773 | BG25: -7.071935743
B27: Details for Central Assumptions
B28: Undiscounted | D28: ="("&TEXT('1_KMA'!$I$21,"dd-mmm-yy")&" dollars)" -> (30-Jun-24 dollars)
B30: Costs
G32: $ Basis Reminder | H32: $ Reminder
B33: Net Capex | G33: ='1_KMA'!$I$21 -> 2024-06-30 | H33: ='1_KMA'!$I$19 -> $thousands | J33: =J52*J$7 -> 0 | K33: 0 | L33: 0 | M33: 1039.413333 | N33: 1039.413333 | O33: 1039.413333 | P33: 1039.413333 | Q33: 1039.413333 | R33: 0 | S33: 0 | T33: 0 | U33: 0 | V33: 0 | W33: 0 | X33: 0 | Y33: 0 | Z33: 0 | AA33: 0 | AB33: 0 | AC33: 0 | AD33: 0 | AE33: 0 | AF33: 0 | AG33: 0 | AH33: 0 | AI33: 0 | AJ33: 0 | AK33: 0 | AL33: 0 | AM33: 0 | AN33: 0 | AO33: 0 | AP33: =AP52*AP$7 -> 0 | AQ33: 0 | AR33: 0 | AS33: 0 | AT33: 0 | AU33: 0 | AV33: 0 | AW33: 0 | AX33: 0 | AY33: 0 | AZ33: 0 | BA33: 0 | BB33: 0 | BC33: 0 | BD33: 0 | BE33: 0 | BF33: 0 | BG33: 0
B34: Opex | G34: ='1_KMA'!$I$21 -> 2024-06-30 | H34: ='1_KMA'!$I$19 -> $thousands | J34: =J53*J$7 -> 100 | K34: 100 | L34: 100 | M34: 100 | N34: 100 | O34: 100 | P34: 100 | Q34: 100 | R34: 100 | S34: 100 | T34: 100 | U34: 100 | V34: 100 | W34: 100 | X34: 100 | Y34: 100 | Z34: 100 | AA34: 100 | AB34: 100 | AC34: 100 | AD34: 100 | AE34: 100 | AF34: 100 | AG34: 100 | AH34: =AH53*AH$7 -> 250 | AI34: 250 | AJ34: 250 | AK34: 250 | AL34: 250 | AM34: 250 | AN34: 250 | AO34: 250 | AP34: =AP53*AP$7 -> -50 | AQ34: =AQ53*AQ$7 -> 250 | AR34: 250 | AS34: 250 | AT34: 250 | AU34: 100 | AV34: 100 | AW34: 100 | AX34: 100 | AY34: 100 | AZ34: 100 | BA34: 100 | BB34: 100 | BC34: 100 | BD34: 100 | BE34: 100 | BF34: 100 | BG34: 100
B35: Total | G35: ='1_KMA'!$I$21 -> 2024-06-30 | H35: ='1_KMA'!$I$19 -> $thousands | J35: =J54*J$7 -> 100 | K35: 100 | L35: 100 | M35: 1139.413333 | N35: 1139.413333 | O35: 1139.413333 | P35: 1139.413333 | Q35: 1139.413333 | R35: 100 | S35: 100 | T35: 100 | U35: 100 | V35: 100 | W35: 100 | X35: 100 | Y35: 100 | Z35: 100 | AA35: 100 | AB35: 100 | AC35: 100 | AD35: 100 | AE35: 100 | AF35: 100 | AG35: 100 | AH35: 250 | AI35: 250 | AJ35: 250 | AK35: 250 | AL35: 250 | AM35: 250 | AN35: 250 | AO35: 250 | AP35: =AP54*AP$7 -> -50 | AQ35: 250 | AR35: 250 | AS35: 250 | AT35: 250 | AU35: 100 | AV35: 100 | AW35: 100 | AX35: 100 | AY35: 100 | AZ35: 100 | BA35: 100 | BB35: 100 | BC35: 100 | BD35: 100 | BE35: 100 | BF35: 100 | BG35: 100
B37: Benefits
G39: $ Basis Reminder | H39: $ Reminder
B40: =B59 -> Value of EUE (residual) | G40: ='1_KMA'!$I$21 -> 2024-06-30 | H40: ='1_KMA'!$I$19 -> $thousands | J40: =J59*J$7 -> 0 | K40: 0 | L40: 0 | M40: 0 | N40: 0 | O40: 0 | P40: 0 | Q40: 0 | R40: 0 | S40: 0 | T40: 0 | U40: 0 | V40: 0 | W40: 0 | X40: 0 | Y40: 0 | Z40: 0 | AA40: 0 | AB40: 0 | AC40: 0 | AD40: 0 | AE40: 0 | AF40: 0 | AG40: 0 | AH40: 0 | AI40: 0 | AJ40: 0 | AK40: 0 | AL40: 0 | AM40: 0 | AN40: 0 | AO40: 0 | AP40: =AP59*AP$7 -> 0 | AQ40: 0 | AR40: 0 | AS40: 0 | AT40: 0 | AU40: 0 | AV40: 0 | AW40: 0 | AX40: 0 | AY40: 0 | AZ40: 0 | BA40: 0 | BB40: 0 | BC40: 0 | BD40: 0 | BE40: 0 | BF40: 0 | BG40: 0
B41: =B60 -> 0 | G41: ='1_KMA'!$I$21 -> 2024-06-30 | H41: ='1_KMA'!$I$19 -> $thousands | J41: =J60*J$7 -> 0 | K41: =K60*K$7 -> 0 | L41: 0 | M41: 0 | N41: 0 | O41: 0 | P41: 0 | Q41: 0 | R41: 0 | S41: 0 | T41: 0 | U41: 0 | V41: 0 | W41: 0 | X41: 0 | Y41: 0 | Z41: 0 | AA41: 0 | AB41: 0 | AC41: 0 | AD41: 0 | AE41: 0 | AF41: 0 | AG41: 0 | AH41: 0 | AI41: 0 | AJ41: 0 | AK41: 0 | AL41: 0 | AM41: 0 | AN41: 0 | AO41: 0 | AP41: =AP60*AP$7 -> 0 | AQ41: 0 | AR41: 0 | AS41: 0 | AT41: 0 | AU41: 0 | AV41: 0 | AW41: 0 | AX41: 0 | AY41: 0 | AZ41: 0 | BA41: 0 | BB41: 0 | BC41: 0 | BD41: 0 | BE41: 0 | BF41: 0 | BG41: 0
B42: 0 | G42: ='1_KMA'!$I$21 -> 2024-06-30 | H42: ='1_KMA'!$I$19 -> $thousands | J42: =J61*J$7 -> 0 | K42: 0 | L42: 0 | M42: 0 | N42: 0 | O42: 0 | P42: 0 | Q42: 0 | R42: 0 | S42: 0 | T42: 0 | U42: 0 | V42: 0 | W42: 0 | X42: 0 | Y42: 0 | Z42: 0 | AA42: 0 | AB42: 0 | AC42: 0 | AD42: 0 | AE42: 0 | AF42: 0 | AG42: 0 | AH42: 0 | AI42: 0 | AJ42: 0 | AK42: 0 | AL42: 0 | AM42: 0 | AN42: 0 | AO42: 0 | AP42: =AP61*AP$7 -> 0 | AQ42: 0 | AR42: 0 | AS42: 0 | AT42: 0 | AU42: 0 | AV42: 0 | AW42: 0 | AX42: 0 | AY42: 0 | AZ42: 0 | BA42: 0 | BB42: 0 | BC42: 0 | BD42: 0 | BE42: 0 | BF42: 0 | BG42: 0
B43: 0 | G43: ='1_KMA'!$I$21 -> 2024-06-30 | H43: ='1_KMA'!$I$19 -> $thousands | J43: =J62*J$7 -> 0 | K43: 0 | L43: 0 | M43: 0 | N43: 0 | O43: 0 | P43: 0 | Q43: 0 | R43: 0 | S43: 0 | T43: 0 | U43: 0 | V43: 0 | W43: 0 | X43: 0 | Y43: 0 | Z43: 0 | AA43: 0 | AB43: 0 | AC43: 0 | AD43: 0 | AE43: 0 | AF43: 0 | AG43: 0 | AH43: 0 | AI43: 0 | AJ43: 0 | AK43: 0 | AL43: 0 | AM43: 0 | AN43: 0 | AO43: 0 | AP43: =AP62*AP$7 -> 0 | AQ43: 0 | AR43: 0 | AS43: 0 | AT43: 0 | AU43: 0 | AV43: 0 | AW43: 0 | AX43: 0 | AY43: 0 | AZ43: 0 | BA43: 0 | BB43: 0 | BC43: 0 | BD43: 0 | BE43: 0 | BF43: 0 | BG43: 0
B44: 0 | G44: ='1_KMA'!$I$21 -> 2024-06-30 | H44: ='1_KMA'!$I$19 -> $thousands | J44: =J63*J$7 -> 0 | K44: 0 | L44: 0 | M44: 0 | N44: 0 | O44: 0 | P44: 0 | Q44: 0 | R44: 0 | S44: 0 | T44: 0 | U44: 0 | V44: 0 | W44: 0 | X44: 0 | Y44: 0 | Z44: 0 | AA44: 0 | AB44: 0 | AC44: 0 | AD44: 0 | AE44: 0 | AF44: 0 | AG44: 0 | AH44: 0 | AI44: 0 | AJ44: 0 | AK44: 0 | AL44: 0 | AM44: 0 | AN44: 0 | AO44: 0 | AP44: =AP63*AP$7 -> 0 | AQ44: 0 | AR44: 0 | AS44: 0 | AT44: 0 | AU44: 0 | AV44: 0 | AW44: 0 | AX44: 0 | AY44: 0 | AZ44: 0 | BA44: 0 | BB44: 0 | BC44: 0 | BD44: 0 | BE44: 0 | BF44: 0 | BG44: 0
B45: ='3_Op1'!B64 -> Total | G45: ='1_KMA'!$I$21 -> 2024-06-30 | H45: ='1_KMA'!$I$19 -> $thousands | J45: =J64*J$7 -> 0 | K45: =K64*K$7 -> 0 | L45: 0 | M45: =M64*M$7 -> 0 | N45: 0 | O45: 0 | P45: 0 | Q45: 0 | R45: 0 | S45: 0 | T45: 0 | U45: 0 | V45: 0 | W45: 0 | X45: 0 | Y45: 0 | Z45: 0 | AA45: 0 | AB45: 0 | AC45: 0 | AD45: 0 | AE45: 0 | AF45: 0 | AG45: 0 | AH45: 0 | AI45: 0 | AJ45: 0 | AK45: 0 | AL45: 0 | AM45: 0 | AN45: 0 | AO45: 0 | AP45: =AP64*AP$7 -> 0 | AQ45: 0 | AR45: 0 | AS45: 0 | AT45: 0 | AU45: 0 | AV45: 0 | AW45: 0 | AX45: 0 | AY45: 0 | AZ45: 0 | BA45: 0 | BB45: 0 | BC45: 0 | BD45: 0 | BE45: 0 | BF45: 0 | BG45: 0
B47: Undiscounted | D47: ="("&TEXT('1_KMA'!$I$20,"dd-mmm-yy")&" dollars)" -> (30-Jun-24 dollars)
B49: Costs
G51: $ Basis Reminder | H51: $ Reminder
B52: Net Capex | G52: ='1_KMA'!$I$20 -> 2024-06-30 | H52: ='1_KMA'!$I$19 -> $thousands | J52: ='2.1_Op1'!J10+'2.1_Op1'!J11 -> 0 | K52: ='2.1_Op1'!K10+'2.1_Op1'!K11 -> 0 | L52: ='2.1_Op1'!L10+'2.1_Op1'!L11 -> 0 | M52: ='2.1_Op1'!M10+'2.1_Op1'!M11 -> 1039.413333 | N52: ='2.1_Op1'!N10+'2.1_Op1'!N11 -> 1039.413333 | O52: ='2.1_Op1'!O10+'2.1_Op1'!O11 -> 1039.413333 | P52: ='2.1_Op1'!P10+'2.1_Op1'!P11 -> 1039.413333 | Q52: ='2.1_Op1'!Q10+'2.1_Op1'!Q11 -> 1039.413333 | R52: ='2.1_Op1'!R10+'2.1_Op1'!R11 -> 0 | S52: ='2.1_Op1'!S10+'2.1_Op1'!S11 -> 0 | T52: ='2.1_Op1'!T10+'2.1_Op1'!T11 -> 0 | U52: ='2.1_Op1'!U10+'2.1_Op1'!U11 -> 0 | V52: ='2.1_Op1'!V10+'2.1_Op1'!V11 -> 0 | W52: ='2.1_Op1'!W10+'2.1_Op1'!W11 -> 0 | X52: ='2.1_Op1'!X10+'2.1_Op1'!X11 -> 0 | Y52: ='2.1_Op1'!Y10+'2.1_Op1'!Y11 -> 0 | Z52: ='2.1_Op1'!Z10+'2.1_Op1'!Z11 -> 0 | AA52: ='2.1_Op1'!AA10+'2.1_Op1'!AA11 -> 0 | AB52: ='2.1_Op1'!AB10+'2.1_Op1'!AB11 -> 0 | AC52: ='2.1_Op1'!AC10+'2.1_Op1'!AC11 -> 0 | AD52: ='2.1_Op1'!AD10+'2.1_Op1'!AD11 -> 0 | AE52: ='2.1_Op1'!AE10+'2.1_Op1'!AE11 -> 0 | AF52: ='2.1_Op1'!AF10+'2.1_Op1'!AF11 -> 0 | AG52: ='2.1_Op1'!AG10+'2.1_Op1'!AG11 -> 0 | AH52: ='2.1_Op1'!AH10+'2.1_Op1'!AH11 -> 0 | AI52: ='2.1_Op1'!AI10+'2.1_Op1'!AI11 -> 0 | AJ52: ='2.1_Op1'!AJ10+'2.1_Op1'!AJ11 -> 0 | AK52: ='2.1_Op1'!AK10+'2.1_Op1'!AK11 -> 0 | AL52: ='2.1_Op1'!AL10+'2.1_Op1'!AL11 -> 0 | AM52: ='2.1_Op1'!AM10+'2.1_Op1'!AM11 -> 0 | AN52: ='2.1_Op1'!AN10+'2.1_Op1'!AN11 -> 0 | AO52: ='2.1_Op1'!AO10+'2.1_Op1'!AO11 -> 0 | AP52: ='2.1_Op1'!AP10+'2.1_Op1'!AP11 -> 0 | AQ52: ='2.1_Op1'!AQ10+'2.1_Op1'!AQ11 -> 0 | AR52: ='2.1_Op1'!AR10+'2.1_Op1'!AR11 -> 0 | AS52: ='2.1_Op1'!AS10+'2.1_Op1'!AS11 -> 0 | AT52: ='2.1_Op1'!AT10+'2.1_Op1'!AT11 -> 0 | AU52: ='2.1_Op1'!AU10+'2.1_Op1'!AU11 -> 0 | AV52: ='2.1_Op1'!AV10+'2.1_Op1'!AV11 -> 0 | AW52: ='2.1_Op1'!AW10+'2.1_Op1'!AW11 -> 0 | AX52: ='2.1_Op1'!AX10+'2.1_Op1'!AX11 -> 0 | AY52: ='2.1_Op1'!AY10+'2.1_Op1'!AY11 -> 0 | AZ52: ='2.1_Op1'!AZ10+'2.1_Op1'!AZ11 -> 0 | BA52: ='2.1_Op1'!BA10+'2.1_Op1'!BA11 -> 0 | BB52: ='2.1_Op1'!BB10+'2.1_Op1'!BB11 -> 0 | BC52: ='2.1_Op1'!BC10+'2.1_Op1'!BC11 -> 0 | BD52: ='2.1_Op1'!BD10+'2.1_Op1'!BD11 -> 0 | BE52: ='2.1_Op1'!BE10+'2.1_Op1'!BE11 -> 0 | BF52: ='2.1_Op1'!BF10+'2.1_Op1'!BF11 -> 0 | BG52: ='2.1_Op1'!BG10+'2.1_Op1'!BG11 -> 0
B53: Opex | G53: ='1_KMA'!$I$20 -> 2024-06-30 | H53: ='1_KMA'!$I$19 -> $thousands | J53: ='2.1_Op1'!J12 -> 100 | K53: ='2.1_Op1'!K12 -> 100 | L53: ='2.1_Op1'!L12 -> 100 | M53: ='2.1_Op1'!M12 -> 100 | N53: ='2.1_Op1'!N12 -> 100 | O53: ='2.1_Op1'!O12 -> 100 | P53: ='2.1_Op1'!P12 -> 100 | Q53: ='2.1_Op1'!Q12 -> 100 | R53: ='2.1_Op1'!R12 -> 100 | S53: ='2.1_Op1'!S12 -> 100 | T53: ='2.1_Op1'!T12 -> 100 | U53: ='2.1_Op1'!U12 -> 100 | V53: ='2.1_Op1'!V12 -> 100 | W53: ='2.1_Op1'!W12 -> 100 | X53: ='2.1_Op1'!X12 -> 100 | Y53: ='2.1_Op1'!Y12 -> 100 | Z53: ='2.1_Op1'!Z12 -> 100 | AA53: ='2.1_Op1'!AA12 -> 100 | AB53: ='2.1_Op1'!AB12 -> 100 | AC53: ='2.1_Op1'!AC12 -> 100 | AD53: ='2.1_Op1'!AD12 -> 100 | AE53: ='2.1_Op1'!AE12 -> 100 | AF53: ='2.1_Op1'!AF12 -> 100 | AG53: ='2.1_Op1'!AG12 -> 100 | AH53: ='2.1_Op1'!AH12 -> 250 | AI53: ='2.1_Op1'!AI12 -> 250 | AJ53: ='2.1_Op1'!AJ12 -> 250 | AK53: ='2.1_Op1'!AK12 -> 250 | AL53: ='2.1_Op1'!AL12 -> 250 | AM53: ='2.1_Op1'!AM12 -> 250 | AN53: ='2.1_Op1'!AN12 -> 250 | AO53: ='2.1_Op1'!AO12 -> 250 | AP53: ='2.1_Op1'!AP12 -> -50 | AQ53: ='2.1_Op1'!AQ12 -> 250 | AR53: ='2.1_Op1'!AR12 -> 250 | AS53: ='2.1_Op1'!AS12 -> 250 | AT53: ='2.1_Op1'!AT12 -> 250 | AU53: ='2.1_Op1'!AU12 -> 100 | AV53: ='2.1_Op1'!AV12 -> 100 | AW53: ='2.1_Op1'!AW12 -> 100 | AX53: ='2.1_Op1'!AX12 -> 100 | AY53: ='2.1_Op1'!AY12 -> 100 | AZ53: ='2.1_Op1'!AZ12 -> 100 | BA53: ='2.1_Op1'!BA12 -> 100 | BB53: ='2.1_Op1'!BB12 -> 100 | BC53: ='2.1_Op1'!BC12 -> 100 | BD53: ='2.1_Op1'!BD12 -> 100 | BE53: ='2.1_Op1'!BE12 -> 100 | BF53: ='2.1_Op1'!BF12 -> 100 | BG53: ='2.1_Op1'!BG12 -> 100
B54: Total | G54: ='1_KMA'!$I$20 -> 2024-06-30 | H54: ='1_KMA'!$I$19 -> $thousands | J54: =SUM(J52:J53) -> 100 | K54: =SUM(K52:K53) -> 100 | L54: 100 | M54: 1139.413333 | N54: 1139.413333 | O54: 1139.413333 | P54: 1139.413333 | Q54: 1139.413333 | R54: 100 | S54: 100 | T54: 100 | U54: 100 | V54: 100 | W54: 100 | X54: 100 | Y54: 100 | Z54: 100 | AA54: 100 | AB54: 100 | AC54: 100 | AD54: 100 | AE54: 100 | AF54: 100 | AG54: 100 | AH54: 250 | AI54: 250 | AJ54: 250 | AK54: 250 | AL54: 250 | AM54: 250 | AN54: 250 | AO54: 250 | AP54: -50 | AQ54: 250 | AR54: 250 | AS54: 250 | AT54: 250 | AU54: 100 | AV54: 100 | AW54: 100 | AX54: 100 | AY54: 100 | AZ54: 100 | BA54: 100 | BB54: 100 | BC54: 100 | BD54: 100 | BE54: 100 | BF54: 100 | BG54: 100
B56: Benefits
G58: $ Basis Reminder | H58: $ Reminder
B59: ='2.1_Op1'!$B$16 -> Value of EUE (residual) | G59: ='1_KMA'!$I$20 -> 2024-06-30 | H59: ='1_KMA'!$I$19 -> $thousands | J59: ='2.1_Op1'!J16 -> 0 | K59: ='2.1_Op1'!K16 -> 0 | L59: ='2.1_Op1'!L16 -> 0 | M59: ='2.1_Op1'!M16 -> 0 | N59: ='2.1_Op1'!N16 -> 0 | O59: ='2.1_Op1'!O16 -> 0 | P59: ='2.1_Op1'!P16 -> 0 | Q59: ='2.1_Op1'!Q16 -> 0 | R59: ='2.1_Op1'!R16 -> 0 | S59: ='2.1_Op1'!S16 -> 0 | T59: ='2.1_Op1'!T16 -> 0 | U59: ='2.1_Op1'!U16 -> 0 | V59: ='2.1_Op1'!V16 -> 0 | W59: ='2.1_Op1'!W16 -> 0 | X59: ='2.1_Op1'!X16 -> 0 | Y59: ='2.1_Op1'!Y16 -> 0 | Z59: ='2.1_Op1'!Z16 -> 0 | AA59: ='2.1_Op1'!AA16 -> 0 | AB59: ='2.1_Op1'!AB16 -> 0 | AC59: ='2.1_Op1'!AC16 -> 0 | AD59: ='2.1_Op1'!AD16 -> 0 | AE59: ='2.1_Op1'!AE16 -> 0 | AF59: ='2.1_Op1'!AF16 -> 0 | AG59: ='2.1_Op1'!AG16 -> 0 | AH59: ='2.1_Op1'!AH16 -> 0 | AI59: ='2.1_Op1'!AI16 -> 0 | AJ59: ='2.1_Op1'!AJ16 -> 0 | AK59: ='2.1_Op1'!AK16 -> 0 | AL59: ='2.1_Op1'!AL16 -> 0 | AM59: ='2.1_Op1'!AM16 -> 0 | AN59: ='2.1_Op1'!AN16 -> 0 | AO59: ='2.1_Op1'!AO16 -> 0 | AP59: ='2.1_Op1'!AP16 -> 0 | AQ59: ='2.1_Op1'!AQ16 -> 0 | AR59: ='2.1_Op1'!AR16 -> 0 | AS59: ='2.1_Op1'!AS16 -> 0 | AT59: ='2.1_Op1'!AT16 -> 0 | AU59: ='2.1_Op1'!AU16 -> 0 | AV59: ='2.1_Op1'!AV16 -> 0 | AW59: ='2.1_Op1'!AW16 -> 0 | AX59: ='2.1_Op1'!AX16 -> 0 | AY59: ='2.1_Op1'!AY16 -> 0 | AZ59: ='2.1_Op1'!AZ16 -> 0 | BA59: ='2.1_Op1'!BA16 -> 0 | BB59: ='2.1_Op1'!BB16 -> 0 | BC59: ='2.1_Op1'!BC16 -> 0 | BD59: ='2.1_Op1'!BD16 -> 0 | BE59: ='2.1_Op1'!BE16 -> 0 | BF59: ='2.1_Op1'!BF16 -> 0 | BG59: ='2.1_Op1'!BG16 -> 0
B60: ='2.1_Op1'!$B$17 -> 0 | G60: ='1_KMA'!$I$20 -> 2024-06-30 | H60: ='1_KMA'!$I$19 -> $thousands | J60: ='2.1_Op1'!J17 -> 0 | K60: ='2.1_Op1'!K17 -> 0 | L60: ='2.1_Op1'!L17 -> 0 | M60: ='2.1_Op1'!M17 -> 0 | N60: ='2.1_Op1'!N17 -> 0 | O60: ='2.1_Op1'!O17 -> 0 | P60: ='2.1_Op1'!P17 -> 0 | Q60: ='2.1_Op1'!Q17 -> 0 | R60: ='2.1_Op1'!R17 -> 0 | S60: ='2.1_Op1'!S17 -> 0 | T60: ='2.1_Op1'!T17 -> 0 | U60: ='2.1_Op1'!U17 -> 0 | V60: ='2.1_Op1'!V17 -> 0 | W60: ='2.1_Op1'!W17 -> 0 | X60: ='2.1_Op1'!X17 -> 0 | Y60: ='2.1_Op1'!Y17 -> 0 | Z60: ='2.1_Op1'!Z17 -> 0 | AA60: ='2.1_Op1'!AA17 -> 0 | AB60: ='2.1_Op1'!AB17 -> 0 | AC60: ='2.1_Op1'!AC17 -> 0 | AD60: ='2.1_Op1'!AD17 -> 0 | AE60: ='2.1_Op1'!AE17 -> 0 | AF60: ='2.1_Op1'!AF17 -> 0 | AG60: ='2.1_Op1'!AG17 -> 0 | AH60: ='2.1_Op1'!AH17 -> 0 | AI60: ='2.1_Op1'!AI17 -> 0 | AJ60: ='2.1_Op1'!AJ17 -> 0 | AK60: ='2.1_Op1'!AK17 -> 0 | AL60: ='2.1_Op1'!AL17 -> 0 | AM60: ='2.1_Op1'!AM17 -> 0 | AN60: ='2.1_Op1'!AN17 -> 0 | AO60: ='2.1_Op1'!AO17 -> 0 | AP60: ='2.1_Op1'!AP17 -> 0 | AQ60: ='2.1_Op1'!AQ17 -> 0 | AR60: ='2.1_Op1'!AR17 -> 0 | AS60: ='2.1_Op1'!AS17 -> 0 | AT60: ='2.1_Op1'!AT17 -> 0 | AU60: ='2.1_Op1'!AU17 -> 0 | AV60: ='2.1_Op1'!AV17 -> 0 | AW60: ='2.1_Op1'!AW17 -> 0 | AX60: ='2.1_Op1'!AX17 -> 0 | AY60: ='2.1_Op1'!AY17 -> 0 | AZ60: ='2.1_Op1'!AZ17 -> 0 | BA60: ='2.1_Op1'!BA17 -> 0 | BB60: ='2.1_Op1'!BB17 -> 0 | BC60: ='2.1_Op1'!BC17 -> 0 | BD60: ='2.1_Op1'!BD17 -> 0 | BE60: ='2.1_Op1'!BE17 -> 0 | BF60: ='2.1_Op1'!BF17 -> 0 | BG60: ='2.1_Op1'!BG17 -> 0
B61: ='2.1_Op1'!$B$18 -> 0 | G61: ='1_KMA'!$I$20 -> 2024-06-30 | H61: ='1_KMA'!$I$19 -> $thousands | J61: ='2.1_Op1'!J18 -> 0 | K61: ='2.1_Op1'!K18 -> 0 | L61: ='2.1_Op1'!L18 -> 0 | M61: ='2.1_Op1'!M18 -> 0 | N61: ='2.1_Op1'!N18 -> 0 | O61: ='2.1_Op1'!O18 -> 0 | P61: ='2.1_Op1'!P18 -> 0 | Q61: ='2.1_Op1'!Q18 -> 0 | R61: ='2.1_Op1'!R18 -> 0 | S61: ='2.1_Op1'!S18 -> 0 | T61: ='2.1_Op1'!T18 -> 0 | U61: ='2.1_Op1'!U18 -> 0 | V61: ='2.1_Op1'!V18 -> 0 | W61: ='2.1_Op1'!W18 -> 0 | X61: ='2.1_Op1'!X18 -> 0 | Y61: ='2.1_Op1'!Y18 -> 0 | Z61: ='2.1_Op1'!Z18 -> 0 | AA61: ='2.1_Op1'!AA18 -> 0 | AB61: ='2.1_Op1'!AB18 -> 0 | AC61: ='2.1_Op1'!AC18 -> 0 | AD61: ='2.1_Op1'!AD18 -> 0 | AE61: ='2.1_Op1'!AE18 -> 0 | AF61: ='2.1_Op1'!AF18 -> 0 | AG61: ='2.1_Op1'!AG18 -> 0 | AH61: ='2.1_Op1'!AH18 -> 0 | AI61: ='2.1_Op1'!AI18 -> 0 | AJ61: ='2.1_Op1'!AJ18 -> 0 | AK61: ='2.1_Op1'!AK18 -> 0 | AL61: ='2.1_Op1'!AL18 -> 0 | AM61: ='2.1_Op1'!AM18 -> 0 | AN61: ='2.1_Op1'!AN18 -> 0 | AO61: ='2.1_Op1'!AO18 -> 0 | AP61: ='2.1_Op1'!AP18 -> 0 | AQ61: ='2.1_Op1'!AQ18 -> 0 | AR61: ='2.1_Op1'!AR18 -> 0 | AS61: ='2.1_Op1'!AS18 -> 0 | AT61: ='2.1_Op1'!AT18 -> 0 | AU61: ='2.1_Op1'!AU18 -> 0 | AV61: ='2.1_Op1'!AV18 -> 0 | AW61: ='2.1_Op1'!AW18 -> 0 | AX61: ='2.1_Op1'!AX18 -> 0 | AY61: ='2.1_Op1'!AY18 -> 0 | AZ61: ='2.1_Op1'!AZ18 -> 0 | BA61: ='2.1_Op1'!BA18 -> 0 | BB61: ='2.1_Op1'!BB18 -> 0 | BC61: ='2.1_Op1'!BC18 -> 0 | BD61: ='2.1_Op1'!BD18 -> 0 | BE61: ='2.1_Op1'!BE18 -> 0 | BF61: ='2.1_Op1'!BF18 -> 0 | BG61: ='2.1_Op1'!BG18 -> 0
B62: ='2.1_Op1'!$B$19 -> 0 | G62: ='1_KMA'!$I$20 -> 2024-06-30 | H62: ='1_KMA'!$I$19 -> $thousands | J62: ='2.1_Op1'!J19 -> 0 | K62: ='2.1_Op1'!K19 -> 0 | L62: ='2.1_Op1'!L19 -> 0 | M62: ='2.1_Op1'!M19 -> 0 | N62: ='2.1_Op1'!N19 -> 0 | O62: ='2.1_Op1'!O19 -> 0 | P62: ='2.1_Op1'!P19 -> 0 | Q62: ='2.1_Op1'!Q19 -> 0 | R62: ='2.1_Op1'!R19 -> 0 | S62: ='2.1_Op1'!S19 -> 0 | T62: ='2.1_Op1'!T19 -> 0 | U62: ='2.1_Op1'!U19 -> 0 | V62: ='2.1_Op1'!V19 -> 0 | W62: ='2.1_Op1'!W19 -> 0 | X62: ='2.1_Op1'!X19 -> 0 | Y62: ='2.1_Op1'!Y19 -> 0 | Z62: ='2.1_Op1'!Z19 -> 0 | AA62: ='2.1_Op1'!AA19 -> 0 | AB62: ='2.1_Op1'!AB19 -> 0 | AC62: ='2.1_Op1'!AC19 -> 0 | AD62: ='2.1_Op1'!AD19 -> 0 | AE62: ='2.1_Op1'!AE19 -> 0 | AF62: ='2.1_Op1'!AF19 -> 0 | AG62: ='2.1_Op1'!AG19 -> 0 | AH62: ='2.1_Op1'!AH19 -> 0 | AI62: ='2.1_Op1'!AI19 -> 0 | AJ62: ='2.1_Op1'!AJ19 -> 0 | AK62: ='2.1_Op1'!AK19 -> 0 | AL62: ='2.1_Op1'!AL19 -> 0 | AM62: ='2.1_Op1'!AM19 -> 0 | AN62: ='2.1_Op1'!AN19 -> 0 | AO62: ='2.1_Op1'!AO19 -> 0 | AP62: ='2.1_Op1'!AP19 -> 0 | AQ62: ='2.1_Op1'!AQ19 -> 0 | AR62: ='2.1_Op1'!AR19 -> 0 | AS62: ='2.1_Op1'!AS19 -> 0 | AT62: ='2.1_Op1'!AT19 -> 0 | AU62: ='2.1_Op1'!AU19 -> 0 | AV62: ='2.1_Op1'!AV19 -> 0 | AW62: ='2.1_Op1'!AW19 -> 0 | AX62: ='2.1_Op1'!AX19 -> 0 | AY62: ='2.1_Op1'!AY19 -> 0 | AZ62: ='2.1_Op1'!AZ19 -> 0 | BA62: ='2.1_Op1'!BA19 -> 0 | BB62: ='2.1_Op1'!BB19 -> 0 | BC62: ='2.1_Op1'!BC19 -> 0 | BD62: ='2.1_Op1'!BD19 -> 0 | BE62: ='2.1_Op1'!BE19 -> 0 | BF62: ='2.1_Op1'!BF19 -> 0 | BG62: ='2.1_Op1'!BG19 -> 0
B63: ='2.1_Op1'!$B$20 -> 0 | G63: ='1_KMA'!$I$20 -> 2024-06-30 | H63: ='1_KMA'!$I$19 -> $thousands | J63: ='2.1_Op1'!J20 -> 0 | K63: ='2.1_Op1'!K20 -> 0 | L63: ='2.1_Op1'!L20 -> 0 | M63: ='2.1_Op1'!M20 -> 0 | N63: ='2.1_Op1'!N20 -> 0 | O63: ='2.1_Op1'!O20 -> 0 | P63: ='2.1_Op1'!P20 -> 0 | Q63: ='2.1_Op1'!Q20 -> 0 | R63: ='2.1_Op1'!R20 -> 0 | S63: ='2.1_Op1'!S20 -> 0 | T63: ='2.1_Op1'!T20 -> 0 | U63: ='2.1_Op1'!U20 -> 0 | V63: ='2.1_Op1'!V20 -> 0 | W63: ='2.1_Op1'!W20 -> 0 | X63: ='2.1_Op1'!X20 -> 0 | Y63: ='2.1_Op1'!Y20 -> 0 | Z63: ='2.1_Op1'!Z20 -> 0 | AA63: ='2.1_Op1'!AA20 -> 0 | AB63: ='2.1_Op1'!AB20 -> 0 | AC63: ='2.1_Op1'!AC20 -> 0 | AD63: ='2.1_Op1'!AD20 -> 0 | AE63: ='2.1_Op1'!AE20 -> 0 | AF63: ='2.1_Op1'!AF20 -> 0 | AG63: ='2.1_Op1'!AG20 -> 0 | AH63: ='2.1_Op1'!AH20 -> 0 | AI63: ='2.1_Op1'!AI20 -> 0 | AJ63: ='2.1_Op1'!AJ20 -> 0 | AK63: ='2.1_Op1'!AK20 -> 0 | AL63: ='2.1_Op1'!AL20 -> 0 | AM63: ='2.1_Op1'!AM20 -> 0 | AN63: ='2.1_Op1'!AN20 -> 0 | AO63: ='2.1_Op1'!AO20 -> 0 | AP63: ='2.1_Op1'!AP20 -> 0 | AQ63: ='2.1_Op1'!AQ20 -> 0 | AR63: ='2.1_Op1'!AR20 -> 0 | AS63: ='2.1_Op1'!AS20 -> 0 | AT63: ='2.1_Op1'!AT20 -> 0 | AU63: ='2.1_Op1'!AU20 -> 0 | AV63: ='2.1_Op1'!AV20 -> 0 | AW63: ='2.1_Op1'!AW20 -> 0 | AX63: ='2.1_Op1'!AX20 -> 0 | AY63: ='2.1_Op1'!AY20 -> 0 | AZ63: ='2.1_Op1'!AZ20 -> 0 | BA63: ='2.1_Op1'!BA20 -> 0 | BB63: ='2.1_Op1'!BB20 -> 0 | BC63: ='2.1_Op1'!BC20 -> 0 | BD63: ='2.1_Op1'!BD20 -> 0 | BE63: ='2.1_Op1'!BE20 -> 0 | BF63: ='2.1_Op1'!BF20 -> 0 | BG63: ='2.1_Op1'!BG20 -> 0
B64: Total | G64: ='1_KMA'!$I$20 -> 2024-06-30 | H64: ='1_KMA'!$I$19 -> $thousands | J64: =SUM(J59:J63) -> 0 | K64: =SUM(K59:K63) -> 0 | L64: 0 | M64: =SUM(M59:M63) -> 0 | N64: 0 | O64: 0 | P64: 0 | Q64: 0 | R64: 0 | S64: 0 | T64: 0 | U64: 0 | V64: 0 | W64: 0 | X64: 0 | Y64: 0 | Z64: 0 | AA64: 0 | AB64: 0 | AC64: 0 | AD64: 0 | AE64: 0 | AF64: 0 | AG64: 0 | AH64: 0 | AI64: 0 | AJ64: 0 | AK64: 0 | AL64: 0 | AM64: 0 | AN64: 0 | AO64: 0 | AP64: 0 | AQ64: 0 | AR64: 0 | AS64: 0 | AT64: 0 | AU64: 0 | AV64: 0 | AW64: 0 | AX64: 0 | AY64: 0 | AZ64: 0 | BA64: 0 | BB64: 0 | BC64: 0 | BD64: 0 | BE64: 0 | BF64: 0 | BG64: 0
B66: =Controls!$B$22&" "&Controls!$C$22&" ("&TEXT(Controls!$E$22,"0.00%")&")" -> Sensitivity Scenario 1 Higher Discount rate (7.00%)
B67: Summary
B69: WACC | J69: =Controls!$E$22 -> 0.07 | K69: =Controls!$E$22 -> 0.07 | L69: =Controls!$E$22 -> 0.07 | M69: =Controls!$E$22 -> 0.07 | N69: =Controls!$E$22 -> 0.07 | O69: =Controls!$E$22 -> 0.07 | P69: =Controls!$E$22 -> 0.07 | Q69: =Controls!$E$22 -> 0.07 | R69: =Controls!$E$22 -> 0.07 | S69: =Controls!$E$22 -> 0.07 | T69: =Controls!$E$22 -> 0.07 | U69: =Controls!$E$22 -> 0.07 | V69: =Controls!$E$22 -> 0.07 | W69: =Controls!$E$22 -> 0.07 | X69: =Controls!$E$22 -> 0.07 | Y69: =Controls!$E$22 -> 0.07 | Z69: =Controls!$E$22 -> 0.07 | AA69: =Controls!$E$22 -> 0.07 | AB69: =Controls!$E$22 -> 0.07 | AC69: =Controls!$E$22 -> 0.07 | AD69: =Controls!$E$22 -> 0.07 | AE69: =Controls!$E$22 -> 0.07 | AF69: =Controls!$E$22 -> 0.07 | AG69: =Controls!$E$22 -> 0.07 | AH69: =Controls!$E$22 -> 0.07 | AI69: =Controls!$E$22 -> 0.07 | AJ69: =Controls!$E$22 -> 0.07 | AK69: =Controls!$E$22 -> 0.07 | AL69: =Controls!$E$22 -> 0.07 | AM69: =Controls!$E$22 -> 0.07 | AN69: =Controls!$E$22 -> 0.07 | AO69: =Controls!$E$22 -> 0.07 | AP69: =Controls!$E$22 -> 0.07 | AQ69: =Controls!$E$22 -> 0.07 | AR69: =Controls!$E$22 -> 0.07 | AS69: =Controls!$E$22 -> 0.07 | AT69: =Controls!$E$22 -> 0.07 | AU69: =Controls!$E$22 -> 0.07 | AV69: =Controls!$E$22 -> 0.07 | AW69: =Controls!$E$22 -> 0.07 | AX69: =Controls!$E$22 -> 0.07 | AY69: =Controls!$E$22 -> 0.07 | AZ69: =Controls!$E$22 -> 0.07 | BA69: =Controls!$E$22 -> 0.07 | BB69: =Controls!$E$22 -> 0.07 | BC69: =Controls!$E$22 -> 0.07 | BD69: =Controls!$E$22 -> 0.07 | BE69: =Controls!$E$22 -> 0.07 | BF69: =Controls!$E$22 -> 0.07 | BG69: =Controls!$E$22 -> 0.07
B70: Deflator (interim calculation) | J70: 1 | K70: =J70*(1+K69) -> 1.07 | L70: =K70*(1+L69) -> 1.1449 | M70: =L70*(1+M69) -> 1.225043 | N70: =M70*(1+N69) -> 1.31079601 | O70: 1.402551731 | P70: 1.500730352 | Q70: 1.605781476 | R70: 1.71818618 | S70: 1.838459212 | T70: 1.967151357 | U70: 2.104851952 | V70: 2.252191589 | W70: 2.409845 | X70: 2.57853415 | Y70: 2.759031541 | Z70: 2.952163749 | AA70: 3.158815211 | AB70: 3.379932276 | AC70: 3.616527535 | AD70: 3.869684462 | AE70: 4.140562375 | AF70: 4.430401741 | AG70: 4.740529863 | AH70: 5.072366953 | AI70: 5.42743264 | AJ70: 5.807352925 | AK70: 6.21386763 | AL70: 6.648838364 | AM70: 7.114257049 | AN70: 7.612255043 | AO70: 8.145112896 | AP70: 8.715270798 | AQ70: 9.325339754 | AR70: 9.978113537 | AS70: 10.67658148 | AT70: 11.42394219 | AU70: 12.22361814 | AV70: 13.07927141 | AW70: 13.99482041 | AX70: 14.97445784 | AY70: 16.02266989 | AZ70: 17.14425678 | BA70: 18.34435475 | BB70: 19.62845959 | BC70: 21.00245176 | BD70: 22.47262338 | BE70: 24.04570702 | BF70: 25.72890651 | BG70: 27.52992997
B71: Deflator | J71: =1/J70 -> 1 | K71: =1/K70 -> 0.9345794393 | L71: =1/L70 -> 0.8734387283 | M71: =1/M70 -> 0.8162978769 | N71: =1/N70 -> 0.762895212 | O71: =1/O70 -> 0.7129861795 | P71: 0.6663422238 | Q71: 0.6227497419 | R71: 0.5820091046 | S71: 0.5439337426 | T71: 0.5083492921 | U71: 0.4750927964 | V71: 0.4440119592 | W71: 0.4149644479 | X71: 0.387817241 | Y71: 0.3624460196 | Z71: 0.3387345978 | AA71: 0.3165743905 | AB71: 0.2958639163 | AC71: 0.276508333 | AD71: 0.2584190028 | AE71: 0.2415130867 | AF71: 0.2257131652 | AG71: 0.2109468833 | AH71: 0.1971466199 | AI71: 0.1842491775 | AJ71: 0.172195493 | AK71: 0.1609303673 | AL71: 0.1504022124 | AM71: 0.1405628154 | AN71: 0.1313671172 | AO71: 0.1227730067 | AP71: 0.1147411277 | AQ71: 0.1072346988 | AR71: 0.1002193447 | AS71: 0.09366293897 | AT71: 0.08753545698 | AU71: 0.0818088383 | AV71: 0.07645685822 | AW71: 0.07145500769 | AX71: 0.06678038102 | AY71: 0.06241157104 | AZ71: 0.05832857107 | BA71: 0.05451268324 | BB71: 0.05094643294 | BC71: 0.04761348872 | BD71: 0.04449858759 | BE71: 0.04158746504 | BF71: 0.03886678976 | BG71: 0.03632410258
B73: Totex sought for EDPR FY27-31 (undiscounted) | G73: ="("&TEXT('1_KMA'!$I$21,"dd-mmm-yy")&" Dollars)" -> (30-Jun-24 Dollars)
C74: Net Capital Expenditure | G74: =SUM(J74:BG74) -> -5197.066667 | J74: =-J89*J$1*J$8 -> 0 | K74: =-K89*K$1*K$8 -> 0 | L74: 0 | M74: -1039.413333 | N74: -1039.413333 | O74: -1039.413333 | P74: -1039.413333 | Q74: -1039.413333 | R74: 0 | S74: 0 | T74: 0 | U74: 0 | V74: 0 | W74: 0 | X74: 0 | Y74: 0 | Z74: 0 | AA74: 0 | AB74: 0 | AC74: 0 | AD74: 0 | AE74: 0 | AF74: 0 | AG74: 0 | AH74: 0 | AI74: 0 | AJ74: 0 | AK74: 0 | AL74: 0 | AM74: 0 | AN74: 0 | AO74: 0 | AP74: 0 | AQ74: 0 | AR74: 0 | AS74: 0 | AT74: 0 | AU74: 0 | AV74: 0 | AW74: 0 | AX74: 0 | AY74: 0 | AZ74: 0 | BA74: 0 | BB74: 0 | BC74: 0 | BD74: 0 | BE74: 0 | BF74: 0 | BG74: 0
C75: Operating Expenditure | G75: =SUM(J75:BG75) -> -500 | J75: =-J90*J$1*J$8 -> 0 | K75: 0 | L75: 0 | M75: -100 | N75: -100 | O75: -100 | P75: -100 | Q75: -100 | R75: 0 | S75: 0 | T75: 0 | U75: 0 | V75: 0 | W75: 0 | X75: 0 | Y75: 0 | Z75: 0 | AA75: 0 | AB75: 0 | AC75: 0 | AD75: 0 | AE75: 0 | AF75: 0 | AG75: 0 | AH75: 0 | AI75: 0 | AJ75: 0 | AK75: 0 | AL75: 0 | AM75: 0 | AN75: 0 | AO75: 0 | AP75: 0 | AQ75: 0 | AR75: 0 | AS75: 0 | AT75: 0 | AU75: 0 | AV75: 0 | AW75: 0 | AX75: 0 | AY75: 0 | AZ75: 0 | BA75: 0 | BB75: 0 | BC75: 0 | BD75: 0 | BE75: 0 | BF75: 0 | BG75: 0
C76: Totex | G76: =SUM(G74:G75) -> -5697.066667 | J76: =SUM(J74:J75) -> 0 | K76: =SUM(K74:K75) -> 0 | L76: =SUM(L74:L75) -> 0 | M76: -1139.413333 | N76: -1139.413333 | O76: -1139.413333 | P76: -1139.413333 | Q76: -1139.413333 | R76: 0 | S76: 0 | T76: 0 | U76: 0 | V76: 0 | W76: 0 | X76: 0 | Y76: 0 | Z76: 0 | AA76: 0 | AB76: 0 | AC76: 0 | AD76: 0 | AE76: 0 | AF76: 0 | AG76: 0 | AH76: 0 | AI76: 0 | AJ76: 0 | AK76: 0 | AL76: 0 | AM76: 0 | AN76: 0 | AO76: 0 | AP76: 0 | AQ76: 0 | AR76: 0 | AS76: 0 | AT76: 0 | AU76: 0 | AV76: 0 | AW76: 0 | AX76: 0 | AY76: 0 | AZ76: 0 | BA76: 0 | BB76: 0 | BC76: 0 | BD76: 0 | BE76: 0 | BF76: 0 | BG76: 0
B78: PV over full assessment period to establish the preferred option (discounted) | G78: ="("&TEXT('1_KMA'!$I$21,"dd-mmm-yy")&" Dollars)" -> (30-Jun-24 Dollars)
C79: Net Capital Expenditure | G79: =SUM(J79:BG79) -> -3722.421071 | J79: =-(J89)*J$71*J$8 -> 0 | K79: =-(K89)*K$71*K$8 -> 0 | L79: 0 | M79: -848.4708972 | N79: -792.9634553 | O79: -741.0873414 | P79: -692.604992 | Q79: -647.294385 | R79: 0 | S79: 0 | T79: 0 | U79: 0 | V79: 0 | W79: 0 | X79: 0 | Y79: 0 | Z79: 0 | AA79: 0 | AB79: 0 | AC79: 0 | AD79: 0 | AE79: 0 | AF79: 0 | AG79: 0 | AH79: 0 | AI79: 0 | AJ79: 0 | AK79: 0 | AL79: 0 | AM79: 0 | AN79: 0 | AO79: 0 | AP79: 0 | AQ79: 0 | AR79: 0 | AS79: 0 | AT79: 0 | AU79: 0 | AV79: 0 | AW79: 0 | AX79: 0 | AY79: 0 | AZ79: 0 | BA79: 0 | BB79: 0 | BC79: 0 | BD79: 0 | BE79: 0 | BF79: 0 | BG79: 0
C80: Operating Expenditure | G80: =SUM(J80:BG80) -> -1706.710572 | J80: =-(J90)*J$71*J$8 -> -100 | K80: -93.45794393 | L80: -87.34387283 | M80: -81.62978769 | N80: -76.2895212 | O80: -71.29861795 | P80: -66.63422238 | Q80: -62.27497419 | R80: -58.20091046 | S80: -54.39337426 | T80: -50.83492921 | U80: -47.50927964 | V80: -44.40119592 | W80: -41.49644479 | X80: -38.7817241 | Y80: -36.24460196 | Z80: -33.87345978 | AA80: -31.65743905 | AB80: -29.58639163 | AC80: -27.6508333 | AD80: -25.84190028 | AE80: -24.15130867 | AF80: -22.57131652 | AG80: -21.09468833 | AH80: -49.28665499 | AI80: -46.06229438 | AJ80: -43.04887325 | AK80: -40.23259183 | AL80: -37.60055311 | AM80: -35.14070384 | AN80: -32.84177929 | AO80: -30.69325167 | AP80: 5.737056387 | AQ80: -26.80867471 | AR80: -25.05483617 | AS80: -23.41573474 | AT80: -21.88386425 | AU80: -8.18088383 | AV80: -7.645685822 | AW80: -7.145500769 | AX80: -6.678038102 | AY80: -6.241157104 | AZ80: -5.832857107 | BA80: -5.451268324 | BB80: -5.094643294 | BC80: -4.761348872 | BD80: -4.449858759 | BE80: -4.158746504 | BF80: -3.886678976 | BG80: -3.632410258
C81: Net Benefits | G81: =SUM(J81:BG81) -> 0 | J81: =(J101)*J$71*J$8 -> 0 | K81: =(K101)*K$71*K$8 -> 0 | L81: 0 | M81: 0 | N81: 0 | O81: 0 | P81: 0 | Q81: 0 | R81: 0 | S81: 0 | T81: 0 | U81: 0 | V81: 0 | W81: 0 | X81: 0 | Y81: 0 | Z81: 0 | AA81: 0 | AB81: 0 | AC81: 0 | AD81: 0 | AE81: 0 | AF81: 0 | AG81: 0 | AH81: 0 | AI81: 0 | AJ81: 0 | AK81: 0 | AL81: 0 | AM81: 0 | AN81: 0 | AO81: 0 | AP81: 0 | AQ81: 0 | AR81: 0 | AS81: 0 | AT81: 0 | AU81: 0 | AV81: 0 | AW81: 0 | AX81: 0 | AY81: 0 | AZ81: 0 | BA81: 0 | BB81: 0 | BC81: 0 | BD81: 0 | BE81: 0 | BF81: 0 | BG81: 0
B82: Total Present Value | G82: =SUM(J82:BG82) -> -5429.131643 | J82: =SUM(J79:J81) -> -100 | K82: =SUM(K79:K81) -> -93.45794393 | L82: -87.34387283 | M82: -930.1006849 | N82: -869.2529765 | O82: -812.3859594 | P82: -759.2392144 | Q82: -709.5693592 | R82: -58.20091046 | S82: -54.39337426 | T82: -50.83492921 | U82: -47.50927964 | V82: -44.40119592 | W82: -41.49644479 | X82: -38.7817241 | Y82: -36.24460196 | Z82: -33.87345978 | AA82: -31.65743905 | AB82: -29.58639163 | AC82: -27.6508333 | AD82: -25.84190028 | AE82: -24.15130867 | AF82: -22.57131652 | AG82: -21.09468833 | AH82: -49.28665499 | AI82: -46.06229438 | AJ82: -43.04887325 | AK82: -40.23259183 | AL82: -37.60055311 | AM82: -35.14070384 | AN82: -32.84177929 | AO82: -30.69325167 | AP82: 5.737056387 | AQ82: -26.80867471 | AR82: -25.05483617 | AS82: -23.41573474 | AT82: -21.88386425 | AU82: -8.18088383 | AV82: -7.645685822 | AW82: -7.145500769 | AX82: -6.678038102 | AY82: -6.241157104 | AZ82: -5.832857107 | BA82: -5.451268324 | BB82: -5.094643294 | BC82: -4.761348872 | BD82: -4.449858759 | BE82: -4.158746504 | BF82: -3.886678976 | BG82: -3.632410258
B84: Undiscounted | D84: ="("&TEXT('1_KMA'!$I$21,"dd-mmm-yy")&" dollars)" -> (30-Jun-24 dollars)
B86: Costs
G88: $ Basis Reminder | H88: $ Reminder
B89: Net Capex | G89: ='1_KMA'!$I$21 -> 2024-06-30 | H89: ='1_KMA'!$I$19 -> $thousands | J89: =J108*J$7 -> 0 | K89: 0 | L89: 0 | M89: 1039.413333 | N89: 1039.413333 | O89: 1039.413333 | P89: 1039.413333 | Q89: 1039.413333 | R89: 0 | S89: 0 | T89: 0 | U89: 0 | V89: 0 | W89: 0 | X89: 0 | Y89: 0 | Z89: 0 | AA89: 0 | AB89: 0 | AC89: 0 | AD89: 0 | AE89: 0 | AF89: 0 | AG89: 0 | AH89: 0 | AI89: 0 | AJ89: 0 | AK89: 0 | AL89: 0 | AM89: 0 | AN89: 0 | AO89: 0 | AP89: =AP108*AP$7 -> 0 | AQ89: 0 | AR89: 0 | AS89: 0 | AT89: 0 | AU89: 0 | AV89: 0 | AW89: 0 | AX89: 0 | AY89: 0 | AZ89: 0 | BA89: 0 | BB89: 0 | BC89: 0 | BD89: 0 | BE89: 0 | BF89: 0 | BG89: 0
B90: Opex | G90: ='1_KMA'!$I$21 -> 2024-06-30 | H90: ='1_KMA'!$I$19 -> $thousands | J90: =J109*J$7 -> 100 | K90: 100 | L90: 100 | M90: 100 | N90: 100 | O90: 100 | P90: 100 | Q90: 100 | R90: 100 | S90: 100 | T90: 100 | U90: 100 | V90: 100 | W90: 100 | X90: 100 | Y90: 100 | Z90: 100 | AA90: 100 | AB90: 100 | AC90: 100 | AD90: 100 | AE90: 100 | AF90: 100 | AG90: 100 | AH90: 250 | AI90: 250 | AJ90: 250 | AK90: 250 | AL90: 250 | AM90: 250 | AN90: 250 | AO90: 250 | AP90: =AP109*AP$7 -> -50 | AQ90: 250 | AR90: 250 | AS90: 250 | AT90: 250 | AU90: 100 | AV90: 100 | AW90: 100 | AX90: 100 | AY90: 100 | AZ90: 100 | BA90: 100 | BB90: 100 | BC90: 100 | BD90: 100 | BE90: 100 | BF90: 100 | BG90: 100
B91: Total | G91: ='1_KMA'!$I$21 -> 2024-06-30 | H91: ='1_KMA'!$I$19 -> $thousands | J91: =J110*J$7 -> 100 | K91: 100 | L91: 100 | M91: 1139.413333 | N91: 1139.413333 | O91: 1139.413333 | P91: 1139.413333 | Q91: 1139.413333 | R91: 100 | S91: 100 | T91: 100 | U91: 100 | V91: 100 | W91: 100 | X91: 100 | Y91: 100 | Z91: 100 | AA91: 100 | AB91: 100 | AC91: 100 | AD91: 100 | AE91: 100 | AF91: 100 | AG91: 100 | AH91: 250 | AI91: 250 | AJ91: 250 | AK91: 250 | AL91: 250 | AM91: 250 | AN91: 250 | AO91: 250 | AP91: =AP110*AP$7 -> -50 | AQ91: 250 | AR91: 250 | AS91: 250 | AT91: 250 | AU91: 100 | AV91: 100 | AW91: 100 | AX91: 100 | AY91: 100 | AZ91: 100 | BA91: 100 | BB91: 100 | BC91: 100 | BD91: 100 | BE91: 100 | BF91: 100 | BG91: 100
B93: Benefits
G95: $ Basis Reminder | H95: $ Reminder
B96: =B115 -> Value of EUE (residual) | G96: ='1_KMA'!$I$21 -> 2024-06-30 | H96: ='1_KMA'!$I$19 -> $thousands | J96: =J115*J$7 -> 0 | K96: 0 | L96: 0 | M96: 0 | N96: 0 | O96: 0 | P96: 0 | Q96: 0 | R96: 0 | S96: 0 | T96: 0 | U96: 0 | V96: 0 | W96: 0 | X96: 0 | Y96: 0 | Z96: 0 | AA96: 0 | AB96: 0 | AC96: 0 | AD96: 0 | AE96: 0 | AF96: 0 | AG96: 0 | AH96: 0 | AI96: 0 | AJ96: 0 | AK96: 0 | AL96: 0 | AM96: 0 | AN96: 0 | AO96: 0 | AP96: =AP115*AP$7 -> 0 | AQ96: 0 | AR96: 0 | AS96: 0 | AT96: 0 | AU96: 0 | AV96: 0 | AW96: 0 | AX96: 0 | AY96: 0 | AZ96: 0 | BA96: 0 | BB96: 0 | BC96: 0 | BD96: 0 | BE96: 0 | BF96: 0 | BG96: 0
B97: =B116 -> 0 | G97: ='1_KMA'!$I$21 -> 2024-06-30 | H97: ='1_KMA'!$I$19 -> $thousands | J97: =J116*J$7 -> 0 | K97: 0 | L97: 0 | M97: 0 | N97: 0 | O97: 0 | P97: 0 | Q97: 0 | R97: 0 | S97: 0 | T97: 0 | U97: 0 | V97: 0 | W97: 0 | X97: 0 | Y97: 0 | Z97: 0 | AA97: 0 | AB97: 0 | AC97: 0 | AD97: 0 | AE97: 0 | AF97: 0 | AG97: 0 | AH97: 0 | AI97: 0 | AJ97: 0 | AK97: 0 | AL97: 0 | AM97: 0 | AN97: 0 | AO97: 0 | AP97: =AP116*AP$7 -> 0 | AQ97: 0 | AR97: 0 | AS97: 0 | AT97: 0 | AU97: 0 | AV97: 0 | AW97: 0 | AX97: 0 | AY97: 0 | AZ97: 0 | BA97: 0 | BB97: 0 | BC97: 0 | BD97: 0 | BE97: 0 | BF97: 0 | BG97: 0
B98: 0 | G98: ='1_KMA'!$I$21 -> 2024-06-30 | H98: ='1_KMA'!$I$19 -> $thousands | J98: =J117*J$7 -> 0 | K98: 0 | L98: 0 | M98: 0 | N98: 0 | O98: 0 | P98: 0 | Q98: 0 | R98: 0 | S98: 0 | T98: 0 | U98: 0 | V98: 0 | W98: 0 | X98: 0 | Y98: 0 | Z98: 0 | AA98: 0 | AB98: 0 | AC98: 0 | AD98: 0 | AE98: 0 | AF98: 0 | AG98: 0 | AH98: 0 | AI98: 0 | AJ98: 0 | AK98: 0 | AL98: 0 | AM98: 0 | AN98: 0 | AO98: 0 | AP98: =AP117*AP$7 -> 0 | AQ98: 0 | AR98: 0 | AS98: 0 | AT98: 0 | AU98: 0 | AV98: 0 | AW98: 0 | AX98: 0 | AY98: 0 | AZ98: 0 | BA98: 0 | BB98: 0 | BC98: 0 | BD98: 0 | BE98: 0 | BF98: 0 | BG98: 0
B99: 0 | G99: ='1_KMA'!$I$21 -> 2024-06-30 | H99: ='1_KMA'!$I$19 -> $thousands | J99: =J118*J$7 -> 0 | K99: 0 | L99: 0 | M99: 0 | N99: 0 | O99: 0 | P99: 0 | Q99: 0 | R99: 0 | S99: 0 | T99: 0 | U99: 0 | V99: 0 | W99: 0 | X99: 0 | Y99: 0 | Z99: 0 | AA99: 0 | AB99: 0 | AC99: 0 | AD99: 0 | AE99: 0 | AF99: 0 | AG99: 0 | AH99: 0 | AI99: 0 | AJ99: 0 | AK99: 0 | AL99: 0 | AM99: 0 | AN99: 0 | AO99: 0 | AP99: =AP118*AP$7 -> 0 | AQ99: 0 | AR99: 0 | AS99: 0 | AT99: 0 | AU99: 0 | AV99: 0 | AW99: 0 | AX99: 0 | AY99: 0 | AZ99: 0 | BA99: 0 | BB99: 0 | BC99: 0 | BD99: 0 | BE99: 0 | BF99: 0 | BG99: 0
B100: 0 | G100: ='1_KMA'!$I$21 -> 2024-06-30 | H100: ='1_KMA'!$I$19 -> $thousands | J100: =J119*J$7 -> 0 | K100: 0 | L100: 0 | M100: 0 | N100: 0 | O100: 0 | P100: 0 | Q100: 0 | R100: 0 | S100: 0 | T100: 0 | U100: 0 | V100: 0 | W100: 0 | X100: 0 | Y100: 0 | Z100: 0 | AA100: 0 | AB100: 0 | AC100: 0 | AD100: 0 | AE100: 0 | AF100: 0 | AG100: 0 | AH100: 0 | AI100: 0 | AJ100: 0 | AK100: 0 | AL100: 0 | AM100: 0 | AN100: 0 | AO100: 0 | AP100: =AP119*AP$7 -> 0 | AQ100: 0 | AR100: 0 | AS100: 0 | AT100: 0 | AU100: 0 | AV100: 0 | AW100: 0 | AX100: 0 | AY100: 0 | AZ100: 0 | BA100: 0 | BB100: 0 | BC100: 0 | BD100: 0 | BE100: 0 | BF100: 0 | BG100: 0
B101: ='3_Op1'!B120 -> Total | G101: ='1_KMA'!$I$21 -> 2024-06-30 | H101: ='1_KMA'!$I$19 -> $thousands | J101: =J120*J$7 -> 0 | K101: 0 | L101: 0 | M101: 0 | N101: 0 | O101: 0 | P101: 0 | Q101: 0 | R101: 0 | S101: 0 | T101: 0 | U101: 0 | V101: 0 | W101: 0 | X101: 0 | Y101: 0 | Z101: 0 | AA101: 0 | AB101: 0 | AC101: 0 | AD101: 0 | AE101: 0 | AF101: 0 | AG101: 0 | AH101: 0 | AI101: 0 | AJ101: 0 | AK101: 0 | AL101: 0 | AM101: 0 | AN101: 0 | AO101: 0 | AP101: =AP120*AP$7 -> 0 | AQ101: 0 | AR101: 0 | AS101: 0 | AT101: 0 | AU101: 0 | AV101: 0 | AW101: 0 | AX101: 0 | AY101: 0 | AZ101: 0 | BA101: 0 | BB101: 0 | BC101: 0 | BD101: 0 | BE101: 0 | BF101: 0 | BG101: 0
B103: Undiscounted | D103: ="("&TEXT('1_KMA'!$I$20,"dd-mmm-yy")&" dollars)" -> (30-Jun-24 dollars)
B105: Costs
G107: $ Basis Reminder | H107: $ Reminder
B108: Net Capex | G108: ='1_KMA'!$I$20 -> 2024-06-30 | H108: ='1_KMA'!$I$19 -> $thousands | J108: =J52*Controls!$F$22 -> 0 | K108: =K52*Controls!$F$22 -> 0 | L108: =L52*Controls!$F$22 -> 0 | M108: =M52*Controls!$F$22 -> 1039.413333 | N108: =N52*Controls!$F$22 -> 1039.413333 | O108: =O52*Controls!$F$22 -> 1039.413333 | P108: =P52*Controls!$F$22 -> 1039.413333 | Q108: =Q52*Controls!$F$22 -> 1039.413333 | R108: =R52*Controls!$F$22 -> 0 | S108: =S52*Controls!$F$22 -> 0 | T108: =T52*Controls!$F$22 -> 0 | U108: =U52*Controls!$F$22 -> 0 | V108: =V52*Controls!$F$22 -> 0 | W108: =W52*Controls!$F$22 -> 0 | X108: =X52*Controls!$F$22 -> 0 | Y108: =Y52*Controls!$F$22 -> 0 | Z108: =Z52*Controls!$F$22 -> 0 | AA108: =AA52*Controls!$F$22 -> 0 | AB108: =AB52*Controls!$F$22 -> 0 | AC108: =AC52*Controls!$F$22 -> 0 | AD108: =AD52*Controls!$F$22 -> 0 | AE108: =AE52*Controls!$F$22 -> 0 | AF108: =AF52*Controls!$F$22 -> 0 | AG108: =AG52*Controls!$F$22 -> 0 | AH108: =AH52*Controls!$F$22 -> 0 | AI108: =AI52*Controls!$F$22 -> 0 | AJ108: =AJ52*Controls!$F$22 -> 0 | AK108: =AK52*Controls!$F$22 -> 0 | AL108: =AL52*Controls!$F$22 -> 0 | AM108: =AM52*Controls!$F$22 -> 0 | AN108: =AN52*Controls!$F$22 -> 0 | AO108: =AO52*Controls!$F$22 -> 0 | AP108: =AP52*Controls!$F$22 -> 0 | AQ108: =AQ52*Controls!$F$22 -> 0 | AR108: =AR52*Controls!$F$22 -> 0 | AS108: =AS52*Controls!$F$22 -> 0 | AT108: =AT52*Controls!$F$22 -> 0 | AU108: =AU52*Controls!$F$22 -> 0 | AV108: =AV52*Controls!$F$22 -> 0 | AW108: =AW52*Controls!$F$22 -> 0 | AX108: =AX52*Controls!$F$22 -> 0 | AY108: =AY52*Controls!$F$22 -> 0 | AZ108: =AZ52*Controls!$F$22 -> 0 | BA108: =BA52*Controls!$F$22 -> 0 | BB108: =BB52*Controls!$F$22 -> 0 | BC108: =BC52*Controls!$F$22 -> 0 | BD108: =BD52*Controls!$F$22 -> 0 | BE108: =BE52*Controls!$F$22 -> 0 | BF108: =BF52*Controls!$F$22 -> 0 | BG108: =BG52*Controls!$F$22 -> 0
B109: Opex | G109: ='1_KMA'!$I$20 -> 2024-06-30 | H109: ='1_KMA'!$I$19 -> $thousands | J109: =J53*Controls!$F$22 -> 100 | K109: =K53*Controls!$F$22 -> 100 | L109: =L53*Controls!$F$22 -> 100 | M109: =M53*Controls!$F$22 -> 100 | N109: =N53*Controls!$F$22 -> 100 | O109: =O53*Controls!$F$22 -> 100 | P109: =P53*Controls!$F$22 -> 100 | Q109: =Q53*Controls!$F$22 -> 100 | R109: =R53*Controls!$F$22 -> 100 | S109: =S53*Controls!$F$22 -> 100 | T109: =T53*Controls!$F$22 -> 100 | U109: =U53*Controls!$F$22 -> 100 | V109: =V53*Controls!$F$22 -> 100 | W109: =W53*Controls!$F$22 -> 100 | X109: =X53*Controls!$F$22 -> 100 | Y109: =Y53*Controls!$F$22 -> 100 | Z109: =Z53*Controls!$F$22 -> 100 | AA109: =AA53*Controls!$F$22 -> 100 | AB109: =AB53*Controls!$F$22 -> 100 | AC109: =AC53*Controls!$F$22 -> 100 | AD109: =AD53*Controls!$F$22 -> 100 | AE109: =AE53*Controls!$F$22 -> 100 | AF109: =AF53*Controls!$F$22 -> 100 | AG109: =AG53*Controls!$F$22 -> 100 | AH109: =AH53*Controls!$F$22 -> 250 | AI109: =AI53*Controls!$F$22 -> 250 | AJ109: =AJ53*Controls!$F$22 -> 250 | AK109: =AK53*Controls!$F$22 -> 250 | AL109: =AL53*Controls!$F$22 -> 250 | AM109: =AM53*Controls!$F$22 -> 250 | AN109: =AN53*Controls!$F$22 -> 250 | AO109: =AO53*Controls!$F$22 -> 250 | AP109: =AP53*Controls!$F$22 -> -50 | AQ109: =AQ53*Controls!$F$22 -> 250 | AR109: =AR53*Controls!$F$22 -> 250 | AS109: =AS53*Controls!$F$22 -> 250 | AT109: =AT53*Controls!$F$22 -> 250 | AU109: =AU53*Controls!$F$22 -> 100 | AV109: =AV53*Controls!$F$22 -> 100 | AW109: =AW53*Controls!$F$22 -> 100 | AX109: =AX53*Controls!$F$22 -> 100 | AY109: =AY53*Controls!$F$22 -> 100 | AZ109: =AZ53*Controls!$F$22 -> 100 | BA109: =BA53*Controls!$F$22 -> 100 | BB109: =BB53*Controls!$F$22 -> 100 | BC109: =BC53*Controls!$F$22 -> 100 | BD109: =BD53*Controls!$F$22 -> 100 | BE109: =BE53*Controls!$F$22 -> 100 | BF109: =BF53*Controls!$F$22 -> 100 | BG109: =BG53*Controls!$F$22 -> 100
B110: Total | G110: ='1_KMA'!$I$20 -> 2024-06-30 | H110: ='1_KMA'!$I$19 -> $thousands | J110: =SUM(J108:J109) -> 100 | K110: =SUM(K108:K109) -> 100 | L110: 100 | M110: 1139.413333 | N110: 1139.413333 | O110: 1139.413333 | P110: 1139.413333 | Q110: 1139.413333 | R110: 100 | S110: 100 | T110: 100 | U110: 100 | V110: 100 | W110: 100 | X110: 100 | Y110: 100 | Z110: 100 | AA110: 100 | AB110: 100 | AC110: 100 | AD110: 100 | AE110: 100 | AF110: 100 | AG110: 100 | AH110: 250 | AI110: 250 | AJ110: 250 | AK110: 250 | AL110: 250 | AM110: 250 | AN110: 250 | AO110: 250 | AP110: -50 | AQ110: 250 | AR110: 250 | AS110: 250 | AT110: 250 | AU110: 100 | AV110: 100 | AW110: 100 | AX110: 100 | AY110: 100 | AZ110: 100 | BA110: 100 | BB110: 100 | BC110: 100 | BD110: 100 | BE110: 100 | BF110: 100 | BG110: 100
B112: Benefits
G114: $ Basis Reminder | H114: $ Reminder
B115: ='2.1_Op1'!$B$16 -> Value of EUE (residual) | G115: ='1_KMA'!$I$20 -> 2024-06-30 | H115: ='1_KMA'!$I$19 -> $thousands | J115: =J59 -> 0 | K115: =K59 -> 0 | L115: 0 | M115: 0 | N115: 0 | O115: 0 | P115: 0 | Q115: 0 | R115: 0 | S115: 0 | T115: 0 | U115: 0 | V115: 0 | W115: 0 | X115: 0 | Y115: 0 | Z115: 0 | AA115: 0 | AB115: 0 | AC115: 0 | AD115: 0 | AE115: 0 | AF115: 0 | AG115: 0 | AH115: 0 | AI115: 0 | AJ115: 0 | AK115: 0 | AL115: 0 | AM115: 0 | AN115: 0 | AO115: 0 | AP115: 0 | AQ115: 0 | AR115: 0 | AS115: 0 | AT115: 0 | AU115: 0 | AV115: 0 | AW115: 0 | AX115: 0 | AY115: 0 | AZ115: 0 | BA115: 0 | BB115: 0 | BC115: 0 | BD115: 0 | BE115: 0 | BF115: 0 | BG115: 0
B116: ='2.1_Op1'!$B$17 -> 0 | G116: ='1_KMA'!$I$20 -> 2024-06-30 | H116: ='1_KMA'!$I$19 -> $thousands | J116: =J60 -> 0 | K116: 0 | L116: 0 | M116: 0 | N116: 0 | O116: 0 | P116: 0 | Q116: 0 | R116: 0 | S116: 0 | T116: 0 | U116: 0 | V116: 0 | W116: 0 | X116: 0 | Y116: 0 | Z116: 0 | AA116: 0 | AB116: 0 | AC116: 0 | AD116: 0 | AE116: 0 | AF116: 0 | AG116: 0 | AH116: 0 | AI116: 0 | AJ116: 0 | AK116: 0 | AL116: 0 | AM116: 0 | AN116: 0 | AO116: 0 | AP116: 0 | AQ116: 0 | AR116: 0 | AS116: 0 | AT116: 0 | AU116: 0 | AV116: 0 | AW116: 0 | AX116: 0 | AY116: 0 | AZ116: 0 | BA116: 0 | BB116: 0 | BC116: 0 | BD116: 0 | BE116: 0 | BF116: 0 | BG116: 0
B117: ='2.1_Op1'!$B$18 -> 0 | G117: ='1_KMA'!$I$20 -> 2024-06-30 | H117: ='1_KMA'!$I$19 -> $thousands | J117: =J61 -> 0 | K117: 0 | L117: 0 | M117: 0 | N117: 0 | O117: 0 | P117: 0 | Q117: 0 | R117: 0 | S117: 0 | T117: 0 | U117: 0 | V117: 0 | W117: 0 | X117: 0 | Y117: 0 | Z117: 0 | AA117: 0 | AB117: 0 | AC117: 0 | AD117: 0 | AE117: 0 | AF117: 0 | AG117: 0 | AH117: 0 | AI117: 0 | AJ117: 0 | AK117: 0 | AL117: 0 | AM117: 0 | AN117: 0 | AO117: 0 | AP117: 0 | AQ117: 0 | AR117: 0 | AS117: 0 | AT117: 0 | AU117: 0 | AV117: 0 | AW117: 0 | AX117: 0 | AY117: 0 | AZ117: 0 | BA117: 0 | BB117: 0 | BC117: 0 | BD117: 0 | BE117: 0 | BF117: 0 | BG117: 0
B118: ='2.1_Op1'!$B$19 -> 0 | G118: ='1_KMA'!$I$20 -> 2024-06-30 | H118: ='1_KMA'!$I$19 -> $thousands | J118: =J62 -> 0 | K118: 0 | L118: 0 | M118: 0 | N118: 0 | O118: 0 | P118: 0 | Q118: 0 | R118: 0 | S118: 0 | T118: 0 | U118: 0 | V118: 0 | W118: 0 | X118: 0 | Y118: 0 | Z118: 0 | AA118: 0 | AB118: 0 | AC118: 0 | AD118: 0 | AE118: 0 | AF118: 0 | AG118: 0 | AH118: 0 | AI118: 0 | AJ118: 0 | AK118: 0 | AL118: 0 | AM118: 0 | AN118: 0 | AO118: 0 | AP118: 0 | AQ118: 0 | AR118: 0 | AS118: 0 | AT118: 0 | AU118: 0 | AV118: 0 | AW118: 0 | AX118: 0 | AY118: 0 | AZ118: 0 | BA118: 0 | BB118: 0 | BC118: 0 | BD118: 0 | BE118: 0 | BF118: 0 | BG118: 0
B119: ='2.1_Op1'!$B$20 -> 0 | G119: ='1_KMA'!$I$20 -> 2024-06-30 | H119: ='1_KMA'!$I$19 -> $thousands | J119: =J63 -> 0 | K119: 0 | L119: 0 | M119: 0 | N119: 0 | O119: 0 | P119: 0 | Q119: 0 | R119: 0 | S119: 0 | T119: 0 | U119: 0 | V119: 0 | W119: 0 | X119: 0 | Y119: 0 | Z119: 0 | AA119: 0 | AB119: 0 | AC119: 0 | AD119: 0 | AE119: 0 | AF119: 0 | AG119: 0 | AH119: 0 | AI119: 0 | AJ119: 0 | AK119: 0 | AL119: 0 | AM119: 0 | AN119: 0 | AO119: 0 | AP119: 0 | AQ119: 0 | AR119: 0 | AS119: 0 | AT119: 0 | AU119: 0 | AV119: 0 | AW119: 0 | AX119: 0 | AY119: 0 | AZ119: 0 | BA119: 0 | BB119: 0 | BC119: 0 | BD119: 0 | BE119: 0 | BF119: 0 | BG119: 0
B120: Total | G120: ='1_KMA'!$I$20 -> 2024-06-30 | H120: ='1_KMA'!$I$19 -> $thousands | J120: =SUM(J115:J119) -> 0 | K120: =SUM(K115:K119) -> 0 | L120: 0 | M120: 0 | N120: 0 | O120: 0 | P120: 0 | Q120: 0 | R120: 0 | S120: 0 | T120: 0 | U120: 0 | V120: 0 | W120: 0 | X120: 0 | Y120: 0 | Z120: 0 | AA120: 0 | AB120: 0 | AC120: 0 | AD120: 0 | AE120: 0 | AF120: 0 | AG120: 0 | AH120: 0 | AI120: 0 | AJ120: 0 | AK120: 0 | AL120: 0 | AM120: 0 | AN120: 0 | AO120: 0 | AP120: 0 | AQ120: 0 | AR120: 0 | AS120: 0 | AT120: 0 | AU120: 0 | AV120: 0 | AW120: 0 | AX120: 0 | AY120: 0 | AZ120: 0 | BA120: 0 | BB120: 0 | BC120: 0 | BD120: 0 | BE120: 0 | BF120: 0 | BG120: 0
B122: =Controls!$B$23&" "&Controls!$C$23&" ("&TEXT(Controls!$E$23,"0.00%")&")" -> Sensitivity Scenario 2 Lower Discount Rate (4.11%)
B123: Summary
B125: WACC | J125: =Controls!$E$23 -> 0.0411 | K125: =Controls!$E$23 -> 0.0411 | L125: =Controls!$E$23 -> 0.0411 | M125: =Controls!$E$23 -> 0.0411 | N125: =Controls!$E$23 -> 0.0411 | O125: =Controls!$E$23 -> 0.0411 | P125: =Controls!$E$23 -> 0.0411 | Q125: =Controls!$E$23 -> 0.0411 | R125: =Controls!$E$23 -> 0.0411 | S125: =Controls!$E$23 -> 0.0411 | T125: =Controls!$E$23 -> 0.0411 | U125: =Controls!$E$23 -> 0.0411 | V125: =Controls!$E$23 -> 0.0411 | W125: =Controls!$E$23 -> 0.0411 | X125: =Controls!$E$23 -> 0.0411 | Y125: =Controls!$E$23 -> 0.0411 | Z125: =Controls!$E$23 -> 0.0411 | AA125: =Controls!$E$23 -> 0.0411 | AB125: =Controls!$E$23 -> 0.0411 | AC125: =Controls!$E$23 -> 0.0411 | AD125: =Controls!$E$23 -> 0.0411 | AE125: =Controls!$E$23 -> 0.0411 | AF125: =Controls!$E$23 -> 0.0411 | AG125: =Controls!$E$23 -> 0.0411 | AH125: =Controls!$E$23 -> 0.0411 | AI125: =Controls!$E$23 -> 0.0411 | AJ125: =Controls!$E$23 -> 0.0411 | AK125: =Controls!$E$23 -> 0.0411 | AL125: =Controls!$E$23 -> 0.0411 | AM125: =Controls!$E$23 -> 0.0411 | AN125: =Controls!$E$23 -> 0.0411 | AO125: =Controls!$E$23 -> 0.0411 | AP125: =Controls!$E$23 -> 0.0411 | AQ125: =Controls!$E$23 -> 0.0411 | AR125: =Controls!$E$23 -> 0.0411 | AS125: =Controls!$E$23 -> 0.0411 | AT125: =Controls!$E$23 -> 0.0411 | AU125: =Controls!$E$23 -> 0.0411 | AV125: =Controls!$E$23 -> 0.0411 | AW125: =Controls!$E$23 -> 0.0411 | AX125: =Controls!$E$23 -> 0.0411 | AY125: =Controls!$E$23 -> 0.0411 | AZ125: =Controls!$E$23 -> 0.0411 | BA125: =Controls!$E$23 -> 0.0411 | BB125: =Controls!$E$23 -> 0.0411 | BC125: =Controls!$E$23 -> 0.0411 | BD125: =Controls!$E$23 -> 0.0411 | BE125: =Controls!$E$23 -> 0.0411 | BF125: =Controls!$E$23 -> 0.0411 | BG125: =Controls!$E$23 -> 0.0411
B126: Deflator (interim calculation) | J126: 1 | K126: =J126*(1+K125) -> 1.0411 | L126: =K126*(1+L125) -> 1.08388921 | M126: =L126*(1+M125) -> 1.128437057 | N126: =M126*(1+N125) -> 1.17481582 | O126: 1.22310075 | P126: 1.273370191 | Q126: 1.325705705 | R126: 1.38019221 | S126: 1.43691811 | T126: 1.495975444 | U126: 1.557460035 | V126: 1.621471642 | W126: 1.688114127 | X126: 1.757495617 | Y126: 1.829728687 | Z126: 1.904930536 | AA126: 1.983223181 | AB126: 2.064733654 | AC126: 2.149594207 | AD126: 2.237942529 | AE126: 2.329921967 | AF126: 2.42568176 | AG126: 2.52537728 | AH126: 2.629170286 | AI126: 2.737229185 | AJ126: 2.849729305 | AK126: 2.966853179 | AL126: 3.088790845 | AM126: 3.215740149 | AN126: 3.347907069 | AO126: 3.485506049 | AP126: 3.628760348 | AQ126: 3.777902398 | AR126: 3.933174187 | AS126: 4.094827646 | AT126: 4.263125062 | AU126: 4.438339502 | AV126: 4.620755255 | AW126: 4.810668296 | AX126: 5.008386763 | AY126: 5.214231459 | AZ126: 5.428536372 | BA126: 5.651649217 | BB126: 5.883932 | BC126: 6.125761605 | BD126: 6.377530407 | BE126: 6.639646907 | BF126: 6.912536395 | BG126: 7.196641641
B127: Deflator | J127: =1/J126 -> 1 | K127: =1/K126 -> 0.9605225243 | L127: =1/L126 -> 0.9226035196 | M127: =1/M126 -> 0.8861814615 | N127: =1/N126 -> 0.8511972544 | O127: =1/O126 -> 0.8175941354 | P127: 0.7853175828 | Q127: 0.7543152269 | R127: 0.7245367659 | S127: 0.6959338833 | T127: 0.6684601703 | U127: 0.6420710501 | V127: 0.6167237058 | W127: 0.5923770107 | X127: 0.5689914616 | Y127: 0.546529115 | Z127: 0.5249535251 | AA127: 0.504229685 | AB127: 0.4843239699 | AC127: 0.4652040821 | AD127: 0.4468389992 | AE127: 0.4291989235 | AF127: 0.4122552334 | AG127: 0.3959804374 | AH127: 0.3803481293 | AI127: 0.3653329452 | AJ127: 0.3509105227 | AK127: 0.3370574611 | AL127: 0.3237512834 | AM127: 0.3109703999 | AN127: 0.2986940735 | AO127: 0.2869023855 | AP127: 0.2755762035 | AQ127: 0.2646971506 | AR127: 0.2542475753 | AS127: 0.2442105228 | AT127: 0.2345697078 | AU127: 0.2253094878 | AV127: 0.216414838 | AW127: 0.2078713265 | AX127: 0.1996650912 | AY127: 0.1917828174 | AZ127: 0.1842117159 | BA127: 0.1769395024 | BB127: 0.1699543774 | BC127: 0.1632450076 | BD127: 0.1568005068 | BE127: 0.1506104186 | BF127: 0.1446646994 | BG127: 0.1389537023
B129: Totex sought for EDPR FY27-31 (undiscounted) | G129: ="("&TEXT('1_KMA'!$I$21,"dd-mmm-yy")&" Dollars)" -> (30-Jun-24 Dollars)
C130: Net Capital Expenditure | G130: =SUM(J130:BG130) -> -5197.066667 | J130: =-J145*J$1*J$8 -> 0 | K130: =-K145*K$1*K$8 -> 0 | L130: 0 | M130: -1039.413333 | N130: =-N145*N$1*N$8 -> -1039.413333 | O130: -1039.413333 | P130: -1039.413333 | Q130: -1039.413333 | R130: 0 | S130: 0 | T130: 0 | U130: 0 | V130: 0 | W130: 0 | X130: 0 | Y130: 0 | Z130: 0 | AA130: 0 | AB130: 0 | AC130: 0 | AD130: 0 | AE130: 0 | AF130: 0 | AG130: 0 | AH130: 0 | AI130: 0 | AJ130: 0 | AK130: 0 | AL130: 0 | AM130: 0 | AN130: 0 | AO130: 0 | AP130: 0 | AQ130: 0 | AR130: 0 | AS130: 0 | AT130: 0 | AU130: 0 | AV130: 0 | AW130: 0 | AX130: 0 | AY130: 0 | AZ130: 0 | BA130: 0 | BB130: 0 | BC130: 0 | BD130: 0 | BE130: 0 | BF130: 0 | BG130: 0
C131: Operating Expenditure | G131: =SUM(J131:BG131) -> -500 | J131: =-J146*J$1*J$8 -> 0 | K131: 0 | L131: 0 | M131: -100 | N131: =-N146*N$1*N$8 -> -100 | O131: -100 | P131: -100 | Q131: -100 | R131: 0 | S131: 0 | T131: 0 | U131: 0 | V131: 0 | W131: 0 | X131: 0 | Y131: 0 | Z131: 0 | AA131: 0 | AB131: 0 | AC131: 0 | AD131: 0 | AE131: 0 | AF131: 0 | AG131: 0 | AH131: 0 | AI131: 0 | AJ131: 0 | AK131: 0 | AL131: 0 | AM131: 0 | AN131: 0 | AO131: 0 | AP131: 0 | AQ131: 0 | AR131: 0 | AS131: 0 | AT131: 0 | AU131: 0 | AV131: 0 | AW131: 0 | AX131: 0 | AY131: 0 | AZ131: 0 | BA131: 0 | BB131: 0 | BC131: 0 | BD131: 0 | BE131: 0 | BF131: 0 | BG131: 0
C132: Totex | G132: =SUM(G130:G131) -> -5697.066667 | J132: =SUM(J130:J131) -> 0 | K132: =SUM(K130:K131) -> 0 | L132: =SUM(L130:L131) -> 0 | M132: -1139.413333 | N132: -1139.413333 | O132: -1139.413333 | P132: -1139.413333 | Q132: -1139.413333 | R132: 0 | S132: 0 | T132: 0 | U132: 0 | V132: 0 | W132: 0 | X132: 0 | Y132: 0 | Z132: 0 | AA132: 0 | AB132: 0 | AC132: 0 | AD132: 0 | AE132: 0 | AF132: 0 | AG132: 0 | AH132: 0 | AI132: 0 | AJ132: 0 | AK132: 0 | AL132: 0 | AM132: 0 | AN132: 0 | AO132: 0 | AP132: 0 | AQ132: 0 | AR132: 0 | AS132: 0 | AT132: 0 | AU132: 0 | AV132: 0 | AW132: 0 | AX132: 0 | AY132: 0 | AZ132: 0 | BA132: 0 | BB132: 0 | BC132: 0 | BD132: 0 | BE132: 0 | BF132: 0 | BG132: 0
B134: PV over full assessment period to establish the preferred option (discounted) | G134: ="("&TEXT('1_KMA'!$I$21,"dd-mmm-yy")&" Dollars)" -> (30-Jun-24 Dollars)
C135: Net Capital Expenditure | G135: =SUM(J135:BG135) -> -4255.987719 | J135: =-(J145)*J$127*J$8 -> 0 | K135: =-(K145)*K$127*K$8 -> 0 | L135: 0 | M135: -921.1088269 | N135: -884.7457755 | O135: -849.8182456 | P135: -816.2695664 | Q135: -784.0453044 | R135: 0 | S135: 0 | T135: 0 | U135: 0 | V135: 0 | W135: 0 | X135: 0 | Y135: 0 | Z135: 0 | AA135: 0 | AB135: 0 | AC135: 0 | AD135: 0 | AE135: 0 | AF135: 0 | AG135: 0 | AH135: 0 | AI135: 0 | AJ135: 0 | AK135: 0 | AL135: 0 | AM135: 0 | AN135: 0 | AO135: 0 | AP135: 0 | AQ135: 0 | AR135: 0 | AS135: 0 | AT135: 0 | AU135: 0 | AV135: 0 | AW135: 0 | AX135: 0 | AY135: 0 | AZ135: 0 | BA135: 0 | BB135: 0 | BC135: 0 | BD135: 0 | BE135: 0 | BF135: 0 | BG135: =-(BG145)*BG$127*BG$8 -> 0
C136: Operating Expenditure | G136: =SUM(J136:BG136) -> -2701.42055 | J136: =-(J146)*J$127*J$8 -> -100 | K136: -96.05225243 | L136: -92.26035196 | M136: -88.61814615 | N136: -85.11972544 | O136: -81.75941354 | P136: -78.53175828 | Q136: -75.43152269 | R136: -72.45367659 | S136: -69.59338833 | T136: -66.84601703 | U136: -64.20710501 | V136: -61.67237058 | W136: -59.23770107 | X136: -56.89914616 | Y136: -54.6529115 | Z136: -52.49535251 | AA136: -50.4229685 | AB136: -48.43239699 | AC136: -46.52040821 | AD136: -44.68389992 | AE136: -42.91989235 | AF136: -41.22552334 | AG136: -39.59804374 | AH136: -95.08703232 | AI136: -91.33323631 | AJ136: -87.72763069 | AK136: -84.26436527 | AL136: -80.93782084 | AM136: -77.74259998 | AN136: -74.67351837 | AO136: -71.72559636 | AP136: 13.77881017 | AQ136: -66.17428765 | AR136: -63.56189381 | AS136: -61.05263069 | AT136: -58.64242694 | AU136: -22.53094878 | AV136: -21.6414838 | AW136: -20.78713265 | AX136: -19.96650912 | AY136: -19.17828174 | AZ136: -18.42117159 | BA136: -17.69395024 | BB136: -16.99543774 | BC136: -16.32450076 | BD136: -15.68005068 | BE136: -15.06104186 | BF136: -14.46646994 | BG136: =-(BG146)*BG$127*BG$8 -> -13.89537023
C137: Net Benefits | G137: =SUM(J137:BG137) -> 0 | J137: =(J157)*J$127*J$8 -> 0 | K137: =(K157)*K$127*K$8 -> 0 | L137: 0 | M137: 0 | N137: 0 | O137: 0 | P137: 0 | Q137: 0 | R137: 0 | S137: 0 | T137: 0 | U137: 0 | V137: 0 | W137: 0 | X137: 0 | Y137: 0 | Z137: 0 | AA137: 0 | AB137: 0 | AC137: 0 | AD137: 0 | AE137: 0 | AF137: 0 | AG137: 0 | AH137: 0 | AI137: 0 | AJ137: 0 | AK137: 0 | AL137: 0 | AM137: 0 | AN137: 0 | AO137: 0 | AP137: 0 | AQ137: 0 | AR137: 0 | AS137: 0 | AT137: 0 | AU137: 0 | AV137: 0 | AW137: 0 | AX137: 0 | AY137: 0 | AZ137: 0 | BA137: 0 | BB137: 0 | BC137: 0 | BD137: 0 | BE137: 0 | BF137: 0 | BG137: =(BG157)*BG$127*BG$8 -> 0
B138: Total Present Value | G138: =SUM(J138:BG138) -> -6957.408269 | J138: =SUM(J135:J137) -> -100 | K138: =SUM(K135:K137) -> -96.05225243 | L138: -92.26035196 | M138: -1009.726973 | N138: -969.8655009 | O138: -931.5776591 | P138: -894.8013247 | Q138: -859.4768271 | R138: -72.45367659 | S138: -69.59338833 | T138: -66.84601703 | U138: -64.20710501 | V138: -61.67237058 | W138: -59.23770107 | X138: -56.89914616 | Y138: -54.6529115 | Z138: -52.49535251 | AA138: -50.4229685 | AB138: -48.43239699 | AC138: -46.52040821 | AD138: -44.68389992 | AE138: -42.91989235 | AF138: -41.22552334 | AG138: -39.59804374 | AH138: -95.08703232 | AI138: -91.33323631 | AJ138: -87.72763069 | AK138: -84.26436527 | AL138: -80.93782084 | AM138: -77.74259998 | AN138: -74.67351837 | AO138: -71.72559636 | AP138: 13.77881017 | AQ138: -66.17428765 | AR138: -63.56189381 | AS138: -61.05263069 | AT138: -58.64242694 | AU138: -22.53094878 | AV138: -21.6414838 | AW138: -20.78713265 | AX138: -19.96650912 | AY138: -19.17828174 | AZ138: -18.42117159 | BA138: -17.69395024 | BB138: -16.99543774 | BC138: -16.32450076 | BD138: -15.68005068 | BE138: -15.06104186 | BF138: -14.46646994 | BG138: -13.89537023
B140: Undiscounted | D140: ="("&TEXT('1_KMA'!$I$21,"dd-mmm-yy")&" dollars)" -> (30-Jun-24 dollars)
B142: Costs
G144: $ Basis Reminder | H144: $ Reminder
B145: Net Capex | G145: ='1_KMA'!$I$21 -> 2024-06-30 | H145: ='1_KMA'!$I$19 -> $thousands | J145: =J164*J$7 -> 0 | K145: 0 | L145: 0 | M145: 1039.413333 | N145: 1039.413333 | O145: 1039.413333 | P145: 1039.413333 | Q145: 1039.413333 | R145: 0 | S145: 0 | T145: 0 | U145: 0 | V145: 0 | W145: 0 | X145: 0 | Y145: 0 | Z145: 0 | AA145: 0 | AB145: 0 | AC145: 0 | AD145: 0 | AE145: 0 | AF145: 0 | AG145: 0 | AH145: 0 | AI145: 0 | AJ145: 0 | AK145: 0 | AL145: 0 | AM145: 0 | AN145: 0 | AO145: 0 | AP145: =AP164*AP$7 -> 0 | AQ145: 0 | AR145: 0 | AS145: 0 | AT145: 0 | AU145: 0 | AV145: 0 | AW145: 0 | AX145: 0 | AY145: 0 | AZ145: 0 | BA145: 0 | BB145: 0 | BC145: 0 | BD145: 0 | BE145: 0 | BF145: 0 | BG145: 0
B146: Opex | G146: ='1_KMA'!$I$21 -> 2024-06-30 | H146: ='1_KMA'!$I$19 -> $thousands | J146: =J165*J$7 -> 100 | K146: 100 | L146: 100 | M146: 100 | N146: 100 | O146: 100 | P146: 100 | Q146: 100 | R146: 100 | S146: 100 | T146: 100 | U146: 100 | V146: 100 | W146: 100 | X146: 100 | Y146: 100 | Z146: 100 | AA146: 100 | AB146: 100 | AC146: 100 | AD146: 100 | AE146: 100 | AF146: 100 | AG146: 100 | AH146: 250 | AI146: 250 | AJ146: 250 | AK146: 250 | AL146: 250 | AM146: 250 | AN146: 250 | AO146: 250 | AP146: =AP165*AP$7 -> -50 | AQ146: 250 | AR146: 250 | AS146: 250 | AT146: 250 | AU146: 100 | AV146: 100 | AW146: 100 | AX146: 100 | AY146: 100 | AZ146: 100 | BA146: 100 | BB146: 100 | BC146: 100 | BD146: 100 | BE146: 100 | BF146: 100 | BG146: 100
